{"text_format":"1","workbook":"xlsx","n_sheets":8,"sheets":["Info","Project Components","EUL_basis","EUL_hou","NTG","NTG_by_Date","2017 EE Programs List","lookup"],"not_rendered":{"charts":0,"images":0,"macros":1,"external_links":0,"defined_names":12,"comments":0,"pivot_tables":0},"unopened":[],"bounds":{"document_bytes":16777216,"sheet_cells":100000,"rows_first":2000,"rows_last":500,"rows_between":2000,"halvings":0,"cell_chars":16384,"cell_head_chars":4096},"cells_cut":0,"cells_raw":0,"read":"whole","date_system":"1900"}

{"sheet":"Info","index":0,"n_rows":75,"n_cols":4,"rows_kept":75,"cut":false,"hidden":false,"merged":[[43,3,46,3]]}
[null,"Combining Measures for Claims"]
[null,"2018-02-23"]
[]
[null,"This workbook demonstrates a method of determing the weighted useful life, net-to-gross ratio and measure cost values of a claim when the claim represents a combination of individual measures."]
[]
[null,"The process of combining measures with differing useful life periods necessarily compromises the determination of cost effectiveness values."]
[null,"* If measures with different EUL and/or NTG values are combined into a single weighted measure, the TRC and PAC values determined by the cost-effectiveness calculator will not be"]
[null,"the same as the sum of those values when analyzed as individual measures.  The results of the weighted measures may be higher or lower than the sum of the individual measures."]
[null,"* If measures with both electric and gas savings are combined into a single weighted measure, correct values for first year and lifetime energy savings cannot be assured."]
[null,"* If measures with different EUL values are combined, the first year electric demand savings can match the sum of the demand savings for the individual measures, but the "]
[null,"lifetime demand savings cannot be correct."]
[]
[null,"The method presented in this workbook attempts to minimize the errors in the cost effectiveness calculations introduced by combining measures that have differing EUL and/or NTG values."]
[null,"* Two separate claim measures are created, one for the gas savings and one for the electric savings.  "]
[null,"* The weighted NTG and EUL values are determined so that the first year gross and net energy values are correct and the lifetime net energy values are correct."]
[null,"* The measure cost is allocated based on the individual measure's specified Primary Fuel or, if the primary fuel is both electric and gas, based on the source energy savings associated"]
[null,"with each fuel type."]
[]
[null,"This workbook currently allows combining measures where each measure has a single period for measure savings. "]
[null,"* The period of savings can be the EUL of the measure or the RUL of the measure (depending on the specified measure type)."]
[null,"* Early-retirement measures cannot be combined using this workbook."]
[]
[]
[null,"Project Components Tab - Section 1: User Inputs"]
[]
[null,"Project and individual measure information is entered in section 1."]
[null,"Note: to help assure that all of the entered data are valid, validation rules are applied to many of the entries.  Some of these validation rules, such as the list "]
[null,"of valid NTG_ID values,  change based on previous selections.  When a previous selection is changed, a current entry may no longer be valid.  To check if all "]
[null,"current entries are valid, press the [Circle Invalid Data] button at the top of the page."]
[]
[null,"The results of calculation performed on the user input data supplied on this tab are shown as Claim values for the weighted measures"]
[]
[null,"User Inputs","Description","Rules"]
[null,"Program Administrator","The standard code for the program administrator","Select from the available list"]
[null,"Program ID","The program ID under which this project was implemented","Select from the list, based on the selected Program Administrator"]
[null,"Project ID","Program administrator assigned identifying code for this project"]
[null,"Project Description","Brief description of this project identifying overall project objective and implementation"]
[null,"Submission Date","Date that the form is submitted"]
[null,"Form Completed By","Name of person completing this form"]
[null,"Project Type","The overall project type","Select from list: Building or Process"]
[null,"Calculation type","The calculation type associated with this project, determines how EUL value is specified","Select from list: Deemed, Custom or NMEC. Deemed projects must select an EUL_ID from the EUL table, Custom and NMEC projects can specify measure-specific EUL values."]
[null,"Claim Date Range","The date range that the claim will be submitted.","Some NTG IDs have multiple records that depend on their Start and Expiry dates. The date ranges specified will allow the correct NTG record and corresponding NTG values to be retrieved. When a specified NTG_ID is not compatible with the specified date range, the NTG_ID will be highlighted."]
[null,"Measure Description","A description of the project component"]
[null,"Energy Savings: elec kWh","the first year gross electric savings of the project component in kWh","as reported in a Claims record if this were a stand-alone meaure"]
[null,"Energy Savings: elec kW","the first year gross demand savings of the project component"]
[null,"Energy Savings: gas therm","the first year gross gas savings of the project component in therms"]
[null,"Measure Cost","the measure cost of the component"]
[null,"Primary Fuel","select the primary fuel type for the measure from a list of Electric, Nat'l Gas, or Both","Individual measure costs are assigned to the weighted electric or gas measure based on the Primary Fuel.  If the Primary Fuel is \"Both\", the measure cost is allocated based on the lifetime source energy savings associated with each fuel type.  The Primary Fuel selection is also used to retieve either the NTGR_kwh or the NTGR_therm value from the NTG table."]
[null,"EUL_ID","The estimated useful life code, from the DEER EUL table.","Specify one of the applicable EUL_IDs from the DEER EUL table, the list of valid entries varies based on selected Calculation Type. This is a required input if the Calculation Type is Deemed, optional if the Calculation Type is Custom or NMEC."]
[null,"EUL/RUL Value","The EUL or RUL value to be used in the life savings calculations","Can be input if the Calculation Type is Custom or NMEC. If both an EUL_ID and an EUL value are specified, the EUL_ID will be used."]
[null,"Building Type","The building type associated with this measure component, used to select the proper hours-of-use in the EUL table","Required for EULs that depend on building type, select from list of applicable building types based on selected EUL_ID.  This entry is not used when an EUL value is specified instead of an EUL_ID."]
[null,"Measure Type","The category of measure type, either Add-on Equipment (AOE) or Replace on Burnout/New Construction/Normal Replacement (ROB/NC/NR)","Determines whether EUL or RUL value is used for measure component life-time savings calculations."]
[null,"NTG_ID","The Net-to-Gross ratio code, from the DEER NTG table","Select from list of all applicable NTG_IDs, the list varies depending on the Calculation Type."]
[]
[]
[]
[null,"Project Components Tab - Section 2: User Input Documentation & Verification"]
[]
[null,"This section pulls together the descriptions and classification fields for each of the specified EUL and NTG records. "]
[null,"The classification fields are formatted to call attention to any incompatabilities between the EUL and NTG records for the same measure component."]
[]
[]
[null,"Project Components Tab - Section 3: Determination of weighted EUL, NTG and Measure Cost values"]
[]
[null,"This section calculates the weighted useful life period and net-to-gross values under a variety of scenarios."]
[null,"For each scenario, the first-year and lifetime energy savings values are highlighted to show when:"]
[null,null,"the values match the sum of the individual components"]
[null,null,"the values are greater than the sum of the individual components"]
[null,null,"the values are less than the sum of the individual components"]
[null,"For the example given, there is no scenario using a single weighted measure (rows 20 - 27) where the reported first year gross savings are correct and the lifetime net savings values are correct."]
[null,"When the individual measures are weighted to create two new measures, one with the electric savings and one with the gas savings, a useful life period and a net-to-gross value can be calculated"]
[null,"for each measure such that the first-year energy savings values are correct and the net lifetime savings values are correct (see rows 34 and 41).  In these cases, the gross lifetime savings values "]
[null,"may not be correct, as with the example given."]
[]
[null,"This section also calculates the measure cost allocated to the electric and gas weighted measures."]

{"sheet":"Project Components","index":1,"n_rows":45,"n_cols":48,"rows_kept":45,"cut":false,"hidden":false,"merged":[[17,34,17,35],[17,36,17,37],[35,30,35,33],[35,34,35,37],[3,42,3,45],[4,30,4,31],[4,32,4,33],[3,30,3,33],[3,34,3,37],[4,34,4,35],[4,36,4,37],[1,27,1,40],[11,2,11,4],[15,18,15,22],[4,18,4,22],[1,15,1,24],[5,2,5,3],[1,1,1,11],[36,30,36,31],[36,32,36,33],[36,34,36,35],[4,46,4,47],[25,2,25,4],[28,30,28,33],[28,34,28,37],[29,30,29,31],[29,32,29,33],[29,34,29,35],[29,36,29,37],[36,36,36,37],[16,30,16,33],[16,34,16,37],[17,30,17,31],[17,32,17,33]]}
[]
[null,"Section 1: User Input",null,null,null,null,null,null,null,null,null,null,null,null,null,"Section 2: User Input Documentation & Verification",null,null,null,null,null,null,null,null,null,null,null,"Section 3: Determination of weighted EUL, NTG and Measure Cost values"]
[]
[null,null,null,null,null,null,null,null,null,null,null,null,null,null,null,null,null,null,null,null,null,null,null,null,null,null,null,null,null,null,"First Year Savings",null,null,null,"Lifetime Savings",null,null,null,null,null,null,null,"Determination of EUL when a function of Building Type"]
[null,"Program Administrator:","PGE",null,null,null,"Program Name:",{"$f":"VLOOKUP(C6,'2017 EE Programs List'!$B$4:$D$408,2,FALSE)","v":"Residential Energy Advisor"},null,null,null,null,null,null,null,null,null,null,"NTG classification",null,null,null,null,"NTG","Measure",null,null,null,null,null," Gross",null,"Net",null," Gross",null,"Net",null,null,"kWh","therm",null,null,null,"HOU_Cat","Bldg Type","validation reference"]
[null,"Program ID:","PGE21001",null,null,null,"Main Sector:",{"$f":"VLOOKUP(C6,'2017 EE Programs List'!$B$4:$D$408,3,FALSE)","v":"Residential"},null,null,null,null,null,null,null,"Measure","NTG_ID","NTG Description","Sector","UseCategory","UseSubCategory","TechGroup","TechType","Qualifier","Delivery",null,null,"Measure","EUL/RUL","NTG","kWh","therms","kWh","therms","kWh","therms","kWh","therms","Cost","Cost","Cost",null,"HOU_Cat","HOU_Cat_LU","Basis","EUL_hou","col","num rows"]
[null,"Project ID:","PGE1234567",null,null,null,null,null,null,null,null,null,null,null,1,{"$f":"IF(ISBLANK(B14),\"\",B14)","v":"Window upgrade"},{"$f":"IF(ISBLANK(L14),\"\",L14)","v":"Res-Default>2"},{"$f":"IFERROR(VLOOKUP($L14,NTG!$B$7:$Q$106,5,FALSE),\"\")","v":"All other EEM with no evaluated NTGR; existing EEM with same delivery mechanism for more than 2 years"},{"$f":"IFERROR(VLOOKUP($L14,NTG!$B$7:$Q$106,12,FALSE),\"\")","v":"Res"},{"$f":"IFERROR(VLOOKUP($L14,NTG!$B$7:$Q$106,13,FALSE),\"\")","v":0},{"$f":"IFERROR(VLOOKUP($L14,NTG!$B$7:$Q$106,14,FALSE),\"\")","v":0},{"$f":"IFERROR(VLOOKUP($L14,NTG!$B$7:$Q$106,15,FALSE),\"\")","v":0},{"$f":"IFERROR(VLOOKUP($L14,NTG!$B$7:$Q$106,16,FALSE),\"\")","v":0},{"$f":"IFERROR(VLOOKUP($L14,NTG!$B$7:$Q$106,10,FALSE),\"\")","v":"None"},{"$f":"IFERROR(VLOOKUP($L14,NTG!$B$7:$Q$106,11,FALSE),\"\")","v":"Any"},null,null,{"$f":"+B14","v":"Window upgrade"},{"$f":"IF(ISBLANK(H14),I14,IF(AR7=\"NA\",IFERROR(VLOOKUP(H14,EUL_basis!$A$3:$I$415,7+MATCH(K14,lookup!$AB$4:$AB$5,0),FALSE),0),IFERROR(AS7/AT7,\"NotFound\")))","v":20},{"$f":"IFERROR(VLOOKUP(INDEX(NTG_by_Date!$M$4:$M$330,M14),NTG!$A$7:$I$106,VLOOKUP(G14,lookup!$Q$4:$S$6,3,FALSE),FALSE),0)","v":0.55000000000000004},{"$f":"+C14","v":200},{"$f":"+E14","v":2},{"$f":"+AE7*AD7","v":110.00000000000001},{"$f":"+AF7*AD7","v":1.1000000000000001},{"$f":"+AE7*$AC7","v":4000},40,2200.0000000000005,22,{"$f":"+F14","v":500},{"$f":"IF(G14=\"Electric\",F14,IF(G14=\"Nat'l Gas\",0,IFERROR(ROUND(AM7*(AK7*3413/elecS2S)/((AL7*100000/gasS2S)+(AK7*3413/elecS2S)),2),0)))","v":441.87},{"$f":"AM7-AN7","v":58.129999999999995},null,{"$f":"IFERROR(VLOOKUP($H14,EUL_basis!$A$3:$P$415,3,FALSE),\"\")","v":"None"},{"$f":"IF(OR(AQ7=\"None\",AQ7=\"\"),\"NA\",AQ7&J14)","v":"NA"},{"$f":"IFERROR(VLOOKUP($H14,EUL_basis!$A$3:$T$415,20,FALSE),0)","v":0},{"$f":"IFERROR(INDEX(EUL_hou!$I$4:$I$102,MATCH(AR7,EUL_hou!$L$4:$L$102,0)),0)","v":0},{"$f":"IFERROR(MATCH(AQ7,EUL_hou!$Q$4:$AA$4,0),1)","v":1},{"$f":"INDEX(EUL_hou!$Q$6:$AA$6,AU7)","v":1}]
[null,"Project Description:","Residential whole house upgrade",null,null,null,"Project Type:","Building",null,null,null,null,null,null,{"$f":"+O7+1","v":2},"Furace upgrade","Res-sAll-mHVAC-Pkg-dn",{"$f":"IFERROR(VLOOKUP($L15,NTG!$B$7:$Q$106,5,FALSE),\"\")","v":"All package HVAC AC and HP replacements with downstream incentives"},{"$f":"IFERROR(VLOOKUP($L15,NTG!$B$7:$Q$106,12,FALSE),\"\")","v":"Res"},{"$f":"IFERROR(VLOOKUP($L15,NTG!$B$7:$Q$106,13,FALSE),\"\")","v":"HVAC"},{"$f":"IFERROR(VLOOKUP($L15,NTG!$B$7:$Q$106,14,FALSE),\"\")","v":0},{"$f":"IFERROR(VLOOKUP($L15,NTG!$B$7:$Q$106,15,FALSE),\"\")","v":0},{"$f":"IFERROR(VLOOKUP($L15,NTG!$B$7:$Q$106,16,FALSE),\"\")","v":0},{"$f":"IFERROR(VLOOKUP($L15,NTG!$B$7:$Q$106,10,FALSE),\"\")","v":"Any"},{"$f":"IFERROR(VLOOKUP($L15,NTG!$B$7:$Q$106,11,FALSE),\"\")","v":"Any"},null,1,"Furace upgrade",{"$f":"IF(ISBLANK(H15),I15,IF(AR8=\"NA\",IFERROR(VLOOKUP(H15,EUL_basis!$A$3:$I$415,7+MATCH(K15,lookup!$AB$4:$AB$5,0),FALSE),0),IFERROR(AS8/AT8,\"NotFound\")))","v":20},{"$f":"IFERROR(VLOOKUP(INDEX(NTG_by_Date!$M$4:$M$330,M15),NTG!$A$7:$I$106,VLOOKUP(G15,lookup!$Q$4:$S$6,3,FALSE),FALSE),0)","v":0.6},0,20,0,{"$f":"+AF8*AD8","v":12},0,400,0,240,{"$f":"+F15","v":300},0,{"$f":"AM8-AN8","v":300},null,{"$f":"IFERROR(VLOOKUP($H15,EUL_basis!$A$3:$P$415,3,FALSE),\"\")","v":"None"},"NA",{"$f":"IFERROR(VLOOKUP($H15,EUL_basis!$A$3:$T$415,20,FALSE),0)","v":0},{"$f":"IFERROR(INDEX(EUL_hou!$I$4:$I$102,MATCH(AR8,EUL_hou!$L$4:$L$102,0)),0)","v":0},{"$f":"IFERROR(MATCH(AQ8,EUL_hou!$Q$4:$AA$4,0),1)","v":1},{"$f":"INDEX(EUL_hou!$Q$6:$AA$6,AU8)","v":1}]
[null,"Submission Date:","2018-01-01",null,null,null,"Calculation type:","Deemed",null,null,null,null,null,null,{"$f":"+O8+1","v":3},"Air-conditioner upgrade","Res-sAll-mHVAC-Pkg-dn",{"$f":"IFERROR(VLOOKUP($L16,NTG!$B$7:$Q$106,5,FALSE),\"\")","v":"All package HVAC AC and HP replacements with downstream incentives"},{"$f":"IFERROR(VLOOKUP($L16,NTG!$B$7:$Q$106,12,FALSE),\"\")","v":"Res"},{"$f":"IFERROR(VLOOKUP($L16,NTG!$B$7:$Q$106,13,FALSE),\"\")","v":"HVAC"},{"$f":"IFERROR(VLOOKUP($L16,NTG!$B$7:$Q$106,14,FALSE),\"\")","v":0},{"$f":"IFERROR(VLOOKUP($L16,NTG!$B$7:$Q$106,15,FALSE),\"\")","v":0},{"$f":"IFERROR(VLOOKUP($L16,NTG!$B$7:$Q$106,16,FALSE),\"\")","v":0},{"$f":"IFERROR(VLOOKUP($L16,NTG!$B$7:$Q$106,10,FALSE),\"\")","v":"Any"},{"$f":"IFERROR(VLOOKUP($L16,NTG!$B$7:$Q$106,11,FALSE),\"\")","v":"Any"},null,{"$f":"+AA8+1","v":2},"Air-conditioner upgrade",{"$f":"IF(ISBLANK(H16),I16,IF(AR9=\"NA\",IFERROR(VLOOKUP(H16,EUL_basis!$A$3:$I$415,7+MATCH(K16,lookup!$AB$4:$AB$5,0),FALSE),0),IFERROR(AS9/AT9,\"NotFound\")))","v":15},{"$f":"IFERROR(VLOOKUP(INDEX(NTG_by_Date!$M$4:$M$330,M16),NTG!$A$7:$I$106,VLOOKUP(G16,lookup!$Q$4:$S$6,3,FALSE),FALSE),0)","v":0.6},320,0,192,0,4800,0,2880,0,1200,1200,0,null,{"$f":"IFERROR(VLOOKUP($H16,EUL_basis!$A$3:$P$415,3,FALSE),\"\")","v":"None"},"NA",{"$f":"IFERROR(VLOOKUP($H16,EUL_basis!$A$3:$T$415,20,FALSE),0)","v":0},{"$f":"IFERROR(INDEX(EUL_hou!$I$4:$I$102,MATCH(AR9,EUL_hou!$L$4:$L$102,0)),0)","v":0},{"$f":"IFERROR(MATCH(AQ9,EUL_hou!$Q$4:$AA$4,0),1)","v":1},{"$f":"INDEX(EUL_hou!$Q$6:$AA$6,AU9)","v":1}]
[null,"Form Completed By:","Joe Q. Implementer",null,null,null,"Claim Date Range:","after 2018",null,null,null,null,null,null,4,"DHW upgrade","Res-sAll-mDHWgt62",{"$f":"IFERROR(VLOOKUP($L17,NTG!$B$7:$Q$106,5,FALSE),\"\")","v":"Water Heater EF >0.62<0.65, Cap>30 gal."},{"$f":"IFERROR(VLOOKUP($L17,NTG!$B$7:$Q$106,12,FALSE),\"\")","v":"Res"},{"$f":"IFERROR(VLOOKUP($L17,NTG!$B$7:$Q$106,13,FALSE),\"\")","v":"SHW"},{"$f":"IFERROR(VLOOKUP($L17,NTG!$B$7:$Q$106,14,FALSE),\"\")","v":"Heating"},{"$f":"IFERROR(VLOOKUP($L17,NTG!$B$7:$Q$106,15,FALSE),\"\")","v":"WaterHtg_eq"},{"$f":"IFERROR(VLOOKUP($L17,NTG!$B$7:$Q$106,16,FALSE),\"\")","v":"Stor_EF"},{"$f":"IFERROR(VLOOKUP($L17,NTG!$B$7:$Q$106,10,FALSE),\"\")","v":"None"},{"$f":"IFERROR(VLOOKUP($L17,NTG!$B$7:$Q$106,11,FALSE),\"\")","v":"PreRebDown"},null,{"$f":"+AA9+1","v":3},"DHW upgrade",{"$f":"IF(ISBLANK(H17),I17,IF(AR10=\"NA\",IFERROR(VLOOKUP(H17,EUL_basis!$A$3:$I$415,7+MATCH(K17,lookup!$AB$4:$AB$5,0),FALSE),0),IFERROR(AS10/AT10,\"NotFound\")))","v":11},{"$f":"IFERROR(VLOOKUP(INDEX(NTG_by_Date!$M$4:$M$330,M17),NTG!$A$7:$I$106,VLOOKUP(G17,lookup!$Q$4:$S$6,3,FALSE),FALSE),0)","v":0.23},0,35,0,8.0500000000000007,0,385,0,88.550000000000011,60,0,60,null,{"$f":"IFERROR(VLOOKUP($H17,EUL_basis!$A$3:$P$415,3,FALSE),\"\")","v":"None"},"NA",{"$f":"IFERROR(VLOOKUP($H17,EUL_basis!$A$3:$T$415,20,FALSE),0)","v":0},{"$f":"IFERROR(INDEX(EUL_hou!$I$4:$I$102,MATCH(AR10,EUL_hou!$L$4:$L$102,0)),0)","v":0},{"$f":"IFERROR(MATCH(AQ10,EUL_hou!$Q$4:$AA$4,0),1)","v":1},{"$f":"INDEX(EUL_hou!$Q$6:$AA$6,AU10)","v":1}]
[null,null,null,null,null,null,null,null,null,null,null,null,null,null,5,"LED Lighting","Res-sAll-mLEDARefl",{"$f":"IFERROR(VLOOKUP($L18,NTG!$B$7:$Q$106,5,FALSE),\"\")","v":"Residential LED A-lamp and screw-in reflector, all delivery mechanisms"},{"$f":"IFERROR(VLOOKUP($L18,NTG!$B$7:$Q$106,12,FALSE),\"\")","v":"Res"},{"$f":"IFERROR(VLOOKUP($L18,NTG!$B$7:$Q$106,13,FALSE),\"\")","v":"Lighting"},{"$f":"IFERROR(VLOOKUP($L18,NTG!$B$7:$Q$106,14,FALSE),\"\")","v":"Any"},{"$f":"IFERROR(VLOOKUP($L18,NTG!$B$7:$Q$106,15,FALSE),\"\")","v":"Ltg_Lamp"},{"$f":"IFERROR(VLOOKUP($L18,NTG!$B$7:$Q$106,16,FALSE),\"\")","v":"LED_Lamp"},{"$f":"IFERROR(VLOOKUP($L18,NTG!$B$7:$Q$106,10,FALSE),\"\")","v":"None"},{"$f":"IFERROR(VLOOKUP($L18,NTG!$B$7:$Q$106,11,FALSE),\"\")","v":"Any"},null,4,"LED Lighting",{"$f":"IF(ISBLANK(H18),I18,IF(AR11=\"NA\",IFERROR(VLOOKUP(H18,EUL_basis!$A$3:$I$415,7+MATCH(K18,lookup!$AB$4:$AB$5,0),FALSE),0),IFERROR(AS11/AT11,\"NotFound\")))","v":16.042780748663102},{"$f":"IFERROR(VLOOKUP(INDEX(NTG_by_Date!$M$4:$M$330,M18),NTG!$A$7:$I$106,VLOOKUP(G18,lookup!$Q$4:$S$6,3,FALSE),FALSE),0)","v":0.91},50,0,45.5,0,802.13903743315507,0,729.94652406417117,0,50,50,0,null,{"$f":"IFERROR(VLOOKUP($H18,EUL_basis!$A$3:$P$415,3,FALSE),\"\")","v":"Res_OutGen-LED"},"Res_OutGen-LEDAny",{"$f":"IFERROR(VLOOKUP($H18,EUL_basis!$A$3:$T$415,20,FALSE),0)","v":15000},{"$f":"IFERROR(INDEX(EUL_hou!$I$4:$I$102,MATCH(AR11,EUL_hou!$L$4:$L$102,0)),0)","v":935},{"$f":"IFERROR(MATCH(AQ11,EUL_hou!$Q$4:$AA$4,0),1)","v":11},{"$f":"INDEX(EUL_hou!$Q$6:$AA$6,AU11)","v":1}]
[null,"Project Components","Energy Savings",null,null,"Measure","Primary",null,"EUL/RUL",null,"Measure",null,null,null,6,"","",{"$f":"IFERROR(VLOOKUP($L19,NTG!$B$7:$Q$106,5,FALSE),\"\")","v":""},{"$f":"IFERROR(VLOOKUP($L19,NTG!$B$7:$Q$106,12,FALSE),\"\")","v":""},{"$f":"IFERROR(VLOOKUP($L19,NTG!$B$7:$Q$106,13,FALSE),\"\")","v":""},{"$f":"IFERROR(VLOOKUP($L19,NTG!$B$7:$Q$106,14,FALSE),\"\")","v":""},{"$f":"IFERROR(VLOOKUP($L19,NTG!$B$7:$Q$106,15,FALSE),\"\")","v":""},{"$f":"IFERROR(VLOOKUP($L19,NTG!$B$7:$Q$106,16,FALSE),\"\")","v":""},{"$f":"IFERROR(VLOOKUP($L19,NTG!$B$7:$Q$106,10,FALSE),\"\")","v":""},{"$f":"IFERROR(VLOOKUP($L19,NTG!$B$7:$Q$106,11,FALSE),\"\")","v":""},null,5,0,{"$f":"IF(ISBLANK(H19),I19,IF(AR12=\"NA\",IFERROR(VLOOKUP(H19,EUL_basis!$A$3:$I$415,7+MATCH(K19,lookup!$AB$4:$AB$5,0),FALSE),0),IFERROR(AS12/AT12,\"NotFound\")))","v":0},{"$f":"IFERROR(VLOOKUP(INDEX(NTG_by_Date!$M$4:$M$330,M19),NTG!$A$7:$I$106,VLOOKUP(G19,lookup!$Q$4:$S$6,3,FALSE),FALSE),0)","v":0},0,0,0,0,0,0,0,0,0,0,0,null,{"$f":"IFERROR(VLOOKUP($H19,EUL_basis!$A$3:$P$415,3,FALSE),\"\")","v":""},"NA",{"$f":"IFERROR(VLOOKUP($H19,EUL_basis!$A$3:$T$415,20,FALSE),0)","v":0},{"$f":"IFERROR(INDEX(EUL_hou!$I$4:$I$102,MATCH(AR12,EUL_hou!$L$4:$L$102,0)),0)","v":0},{"$f":"IFERROR(MATCH(AQ12,EUL_hou!$Q$4:$AA$4,0),1)","v":1},{"$f":"INDEX(EUL_hou!$Q$6:$AA$6,AU12)","v":1}]
[null,"Measure Description","elec kWh","elec kW","gas therm","Cost","Fuel","EUL_ID","Value","Building Type","Type","NTG_ID","NTG match",null,7,"","",{"$f":"IFERROR(VLOOKUP($L20,NTG!$B$7:$Q$106,5,FALSE),\"\")","v":""},{"$f":"IFERROR(VLOOKUP($L20,NTG!$B$7:$Q$106,12,FALSE),\"\")","v":""},{"$f":"IFERROR(VLOOKUP($L20,NTG!$B$7:$Q$106,13,FALSE),\"\")","v":""},{"$f":"IFERROR(VLOOKUP($L20,NTG!$B$7:$Q$106,14,FALSE),\"\")","v":""},{"$f":"IFERROR(VLOOKUP($L20,NTG!$B$7:$Q$106,15,FALSE),\"\")","v":""},{"$f":"IFERROR(VLOOKUP($L20,NTG!$B$7:$Q$106,16,FALSE),\"\")","v":""},{"$f":"IFERROR(VLOOKUP($L20,NTG!$B$7:$Q$106,10,FALSE),\"\")","v":""},{"$f":"IFERROR(VLOOKUP($L20,NTG!$B$7:$Q$106,11,FALSE),\"\")","v":""},null,6,0,{"$f":"IF(ISBLANK(H20),I20,IF(AR13=\"NA\",IFERROR(VLOOKUP(H20,EUL_basis!$A$3:$I$415,7+MATCH(K20,lookup!$AB$4:$AB$5,0),FALSE),0),IFERROR(AS13/AT13,\"NotFound\")))","v":0},{"$f":"IFERROR(VLOOKUP(INDEX(NTG_by_Date!$M$4:$M$330,M20),NTG!$A$7:$I$106,VLOOKUP(G20,lookup!$Q$4:$S$6,3,FALSE),FALSE),0)","v":0},0,0,0,0,0,0,0,0,0,0,0,null,{"$f":"IFERROR(VLOOKUP($H20,EUL_basis!$A$3:$P$415,3,FALSE),\"\")","v":""},"NA",{"$f":"IFERROR(VLOOKUP($H20,EUL_basis!$A$3:$T$415,20,FALSE),0)","v":0},{"$f":"IFERROR(INDEX(EUL_hou!$I$4:$I$102,MATCH(AR13,EUL_hou!$L$4:$L$102,0)),0)","v":0},{"$f":"IFERROR(MATCH(AQ13,EUL_hou!$Q$4:$AA$4,0),1)","v":1},{"$f":"INDEX(EUL_hou!$Q$6:$AA$6,AU13)","v":1}]
[1,"Window upgrade",200,0,2,500,"Both","BS-Win",null,"n/a","ROB/NC/NR","Res-Default>2",{"$f":"IF(ISBLANK(L14),\"\",MATCH(L14&\"_\"&MATCH($H$10,lookup!$AE$4:$AE$8,0),NTG_by_Date!$L$4:$L$330,0))","v":236},null,8,"","",{"$f":"IFERROR(VLOOKUP($L21,NTG!$B$7:$Q$106,5,FALSE),\"\")","v":""},{"$f":"IFERROR(VLOOKUP($L21,NTG!$B$7:$Q$106,12,FALSE),\"\")","v":""},{"$f":"IFERROR(VLOOKUP($L21,NTG!$B$7:$Q$106,13,FALSE),\"\")","v":""},{"$f":"IFERROR(VLOOKUP($L21,NTG!$B$7:$Q$106,14,FALSE),\"\")","v":""},{"$f":"IFERROR(VLOOKUP($L21,NTG!$B$7:$Q$106,15,FALSE),\"\")","v":""},{"$f":"IFERROR(VLOOKUP($L21,NTG!$B$7:$Q$106,16,FALSE),\"\")","v":""},{"$f":"IFERROR(VLOOKUP($L21,NTG!$B$7:$Q$106,10,FALSE),\"\")","v":""},{"$f":"IFERROR(VLOOKUP($L21,NTG!$B$7:$Q$106,11,FALSE),\"\")","v":""},null,7,0,{"$f":"IF(ISBLANK(H21),I21,IF(AR14=\"NA\",IFERROR(VLOOKUP(H21,EUL_basis!$A$3:$I$415,7+MATCH(K21,lookup!$AB$4:$AB$5,0),FALSE),0),IFERROR(AS14/AT14,\"NotFound\")))","v":0},{"$f":"IFERROR(VLOOKUP(INDEX(NTG_by_Date!$M$4:$M$330,M21),NTG!$A$7:$I$106,VLOOKUP(G21,lookup!$Q$4:$S$6,3,FALSE),FALSE),0)","v":0},0,0,0,0,0,0,0,0,0,0,0,null,{"$f":"IFERROR(VLOOKUP($H21,EUL_basis!$A$3:$P$415,3,FALSE),\"\")","v":""},"NA",{"$f":"IFERROR(VLOOKUP($H21,EUL_basis!$A$3:$T$415,20,FALSE),0)","v":0},{"$f":"IFERROR(INDEX(EUL_hou!$I$4:$I$102,MATCH(AR14,EUL_hou!$L$4:$L$102,0)),0)","v":0},{"$f":"IFERROR(MATCH(AQ14,EUL_hou!$Q$4:$AA$4,0),1)","v":1},{"$f":"INDEX(EUL_hou!$Q$6:$AA$6,AU14)","v":1}]
[{"$f":"+A14+1","v":2},"Furace upgrade",0,0,20,300,"Nat'l Gas","HV-EffFurn",null,"n/a","ROB/NC/NR","Res-sAll-mHVAC-Pkg-dn",{"$f":"IF(ISBLANK(L15),\"\",MATCH(L15&\"_\"&MATCH($H$10,lookup!$AE$4:$AE$8,0),NTG_by_Date!$L$4:$L$330,0))","v":292},null,null,null,null,null,null,null,null,null,null,null,null,null,8,null,null,"total:",{"$f":"SUM(AE7:AE14)","v":570},{"$f":"SUM(AF7:AF14)","v":57},347.5,21.15,9602.139037433155,825,5809.9465240641712,350.55,2110,1691.87,418.13]
[{"$f":"+A15+1","v":3},"Air-conditioner upgrade",320,0,0,1200,"Electric","HV-ResAC",null,"n/a","ROB/NC/NR","Res-sAll-mHVAC-Pkg-dn",{"$f":"IF(ISBLANK(L16),\"\",MATCH(L16&\"_\"&MATCH($H$10,lookup!$AE$4:$AE$8,0),NTG_by_Date!$L$4:$L$330,0))","v":292},null,null,null,null,null,"EUL classification",null,null,null,null,null,null,null,null,null,null,null,null,null,null,null,null,null,null,null,null,null,null,null,null,"electric source-to-site efficiency:",{"$f":"ROUND(3413/7755,2)","v":0.44}]
[4,"DHW upgrade",0,0,35,60,"Nat'l Gas","WtrHt-Res-Gas",null,"n/a","ROB/NC/NR","Res-sAll-mDHWgt62",{"$f":"IF(ISBLANK(L17),\"\",MATCH(L17&\"_\"&MATCH($H$10,lookup!$AE$4:$AE$8,0),NTG_by_Date!$L$4:$L$330,0))","v":269},null,null,"Measure","EUL_ID","EUL Description","Sector","UseCategory","UseSubCategory","TechGroup","TechType",null,null,null,null,"For Electric and Gas Savings (single claim measure)",null,null,"First Year Savings",null,null,null,"Lifetime Savings",null,null,null,null,null,null,null,null,"gas source-to-site efficiency:",0.98]
[5,"LED Lighting",50,0.02,0,50,"Electric","OLtg-Res-LED-15000hr",null,"Any","ROB/NC/NR","Res-sAll-mLEDARefl",{"$f":"IF(ISBLANK(L18),\"\",MATCH(L18&\"_\"&MATCH($H$10,lookup!$AE$4:$AE$8,0),NTG_by_Date!$L$4:$L$330,0))","v":304},null,1,{"$f":"IF(ISBLANK(B14),\"\",B14)","v":"Window upgrade"},{"$f":"IF(ISBLANK(H14),\"\",H14)","v":"BS-Win"},{"$f":"IFERROR(VLOOKUP($H14,EUL_basis!$A$3:$P$415,2,FALSE),\"\")","v":"High Performance Windows"},{"$f":"IFERROR(VLOOKUP($H14,EUL_basis!$A$3:$P$415,10,FALSE),\"\")","v":"Res"},{"$f":"IFERROR(VLOOKUP($H14,EUL_basis!$A$3:$P$415,13,FALSE),\"\")","v":"BldgEnv"},{"$f":"IFERROR(VLOOKUP($H14,EUL_basis!$A$3:$P$415,14,FALSE),\"\")","v":"Fenestration"},{"$f":"IFERROR(VLOOKUP($H14,EUL_basis!$A$3:$P$415,15,FALSE),\"\")","v":"Fenest"},{"$f":"IFERROR(VLOOKUP($H14,EUL_basis!$A$3:$P$415,16,FALSE),\"\")","v":0},null,null,null,null,null,null,null," Gross",null,"Net",null," Gross",null,"Net"]
[6,null,null,null,null,null,null,null,null,null,null,null,{"$f":"IF(ISBLANK(L19),\"\",MATCH(L19&\"_\"&MATCH($H$10,lookup!$AE$4:$AE$8,0),NTG_by_Date!$L$4:$L$330,0))","v":""},null,{"$f":"+O18+1","v":2},"Furace upgrade","HV-EffFurn",{"$f":"IFERROR(VLOOKUP($H15,EUL_basis!$A$3:$P$415,2,FALSE),\"\")","v":"High Efficiency Furnace"},{"$f":"IFERROR(VLOOKUP($H15,EUL_basis!$A$3:$P$415,10,FALSE),\"\")","v":"Res"},{"$f":"IFERROR(VLOOKUP($H15,EUL_basis!$A$3:$P$415,13,FALSE),\"\")","v":"HVAC"},{"$f":"IFERROR(VLOOKUP($H15,EUL_basis!$A$3:$P$415,14,FALSE),\"\")","v":"SpaceHeat"},{"$f":"IFERROR(VLOOKUP($H15,EUL_basis!$A$3:$P$415,15,FALSE),\"\")","v":"SpaceHtg_eq"},{"$f":"IFERROR(VLOOKUP($H15,EUL_basis!$A$3:$P$415,16,FALSE),\"\")","v":"GasFurnace"},null,null,null,null,"Determination of weighted EUL and NTG","EUL","NTG","kWh","therms","kWh","therms","kWh","therms","kWh","therms"]
[7,null,null,null,null,null,null,null,null,null,null,null,{"$f":"IF(ISBLANK(L20),\"\",MATCH(L20&\"_\"&MATCH($H$10,lookup!$AE$4:$AE$8,0),NTG_by_Date!$L$4:$L$330,0))","v":""},null,{"$f":"+O19+1","v":3},"Air-conditioner upgrade","HV-ResAC",{"$f":"IFERROR(VLOOKUP($H16,EUL_basis!$A$3:$P$415,2,FALSE),\"\")","v":"High Efficiency Air Conditioner (package and split systems)"},{"$f":"IFERROR(VLOOKUP($H16,EUL_basis!$A$3:$P$415,10,FALSE),\"\")","v":"Res"},{"$f":"IFERROR(VLOOKUP($H16,EUL_basis!$A$3:$P$415,13,FALSE),\"\")","v":"HVAC"},{"$f":"IFERROR(VLOOKUP($H16,EUL_basis!$A$3:$P$415,14,FALSE),\"\")","v":"SpaceCool"},{"$f":"IFERROR(VLOOKUP($H16,EUL_basis!$A$3:$P$415,15,FALSE),\"\")","v":"dxAC_equip"},{"$f":"IFERROR(VLOOKUP($H16,EUL_basis!$A$3:$P$415,16,FALSE),\"\")","v":0},null,null,null,null,"based on correct first year net kWh & therm  and net lifetime kWh:",{"$f":"+AK15/AG15","v":16.719270572846536},{"$f":"+AK15/AI15","v":0.60506794386277574},{"$f":"+AG20/AD20","v":574.31566739686684},{"$f":"+AH20/AD20","v":34.954752130773329},{"$f":"+AG15","v":347.5},{"$f":"+AH15","v":21.15},{"$f":"+AE20*$AC20","v":9602.139037433155},584.41795868118334,5809.9465240641712,353.61257261570421]
[8,null,null,null,null,null,null,null,null,null,null,null,{"$f":"IF(ISBLANK(L21),\"\",MATCH(L21&\"_\"&MATCH($H$10,lookup!$AE$4:$AE$8,0),NTG_by_Date!$L$4:$L$330,0))","v":""},null,4,"DHW upgrade","WtrHt-Res-Gas",{"$f":"IFERROR(VLOOKUP($H17,EUL_basis!$A$3:$P$415,2,FALSE),\"\")","v":"Residential Gas Water Heater"},{"$f":"IFERROR(VLOOKUP($H17,EUL_basis!$A$3:$P$415,10,FALSE),\"\")","v":"Res"},{"$f":"IFERROR(VLOOKUP($H17,EUL_basis!$A$3:$P$415,13,FALSE),\"\")","v":"SHW"},{"$f":"IFERROR(VLOOKUP($H17,EUL_basis!$A$3:$P$415,14,FALSE),\"\")","v":"Heating"},{"$f":"IFERROR(VLOOKUP($H17,EUL_basis!$A$3:$P$415,15,FALSE),\"\")","v":"WaterHtg_eq"},{"$f":"IFERROR(VLOOKUP($H17,EUL_basis!$A$3:$P$415,16,FALSE),\"\")","v":0},null,null,null,null,"based on correct first year net kWh & therm and net lifetime therm:",{"$f":"+AL15/AH15","v":16.574468085106385},{"$f":"+AL15/AJ15","v":0.4249090909090909},{"$f":"+AG21/AD21","v":817.82199400941374},{"$f":"+AH21/AD21","v":49.775353016688058},{"$f":"+AG15","v":347.5},{"$f":"+AH15","v":21.15},13554.964539007093,825.00000000000011,5759.6276595744694,350.55]
[null,"component totals:",{"$f":"SUM(C14:C21)","v":570},{"$f":"SUM(D14:D21)","v":0.02},57,2110,null,null,null,null,null,null,null,null,5,"LED Lighting","OLtg-Res-LED-15000hr",{"$f":"IFERROR(VLOOKUP($H18,EUL_basis!$A$3:$P$415,2,FALSE),\"\")","v":"LED lamp - Outdoor- Residential - Small wattage Globe, Any Candle shape"},{"$f":"IFERROR(VLOOKUP($H18,EUL_basis!$A$3:$P$415,10,FALSE),\"\")","v":"Res"},{"$f":"IFERROR(VLOOKUP($H18,EUL_basis!$A$3:$P$415,13,FALSE),\"\")","v":"Lighting"},{"$f":"IFERROR(VLOOKUP($H18,EUL_basis!$A$3:$P$415,14,FALSE),\"\")","v":"OutGen"},{"$f":"IFERROR(VLOOKUP($H18,EUL_basis!$A$3:$P$415,15,FALSE),\"\")","v":"Ltg_Lamp"},{"$f":"IFERROR(VLOOKUP($H18,EUL_basis!$A$3:$P$415,16,FALSE),\"\")","v":"LED_lamp"},null,null,null,null,"based on correct first year net kWh and lifetime net kWh and therm:",{"$f":"+AK15/AG15","v":16.719270572846536},{"$f":"+AG15/AE15","v":0.60964912280701755},{"$f":"+AG22/AD22","v":570},{"$f":"AL15/AC22/AD22","v":34.391624634132867},{"$f":"+AG15","v":347.5},{"$f":"+AF22*AD22","v":20.96682379010732},9529.9842265225252,575.00287769784165,5809.9465240641712,350.55]
[null,null,null,null,null,null,null,null,null,null,null,null,null,null,6,"","",{"$f":"IFERROR(VLOOKUP($H19,EUL_basis!$A$3:$P$415,2,FALSE),\"\")","v":""},{"$f":"IFERROR(VLOOKUP($H19,EUL_basis!$A$3:$P$415,10,FALSE),\"\")","v":""},{"$f":"IFERROR(VLOOKUP($H19,EUL_basis!$A$3:$P$415,13,FALSE),\"\")","v":""},{"$f":"IFERROR(VLOOKUP($H19,EUL_basis!$A$3:$P$415,14,FALSE),\"\")","v":""},{"$f":"IFERROR(VLOOKUP($H19,EUL_basis!$A$3:$P$415,15,FALSE),\"\")","v":""},{"$f":"IFERROR(VLOOKUP($H19,EUL_basis!$A$3:$P$415,16,FALSE),\"\")","v":""},null,null,null,null,"based on correct first year net therm and lifetime net kWh and therm:",{"$f":"+AL15/AH15","v":16.574468085106385},{"$f":"+AH15/AF15","v":0.37105263157894736},{"$f":"AG23/AD23","v":944.70675188035284},{"$f":"+AH23/AD23","v":57},{"$f":"+AK15/AC23","v":350.5359263556046},{"$f":"+AH15","v":21.15},15658.011908825425,944.744680851064,5809.9465240641712,350.55]
[null,null,null,null,null,null,null,null,null,null,null,null,null,null,7,"","",{"$f":"IFERROR(VLOOKUP($H20,EUL_basis!$A$3:$P$415,2,FALSE),\"\")","v":""},{"$f":"IFERROR(VLOOKUP($H20,EUL_basis!$A$3:$P$415,10,FALSE),\"\")","v":""},{"$f":"IFERROR(VLOOKUP($H20,EUL_basis!$A$3:$P$415,13,FALSE),\"\")","v":""},{"$f":"IFERROR(VLOOKUP($H20,EUL_basis!$A$3:$P$415,14,FALSE),\"\")","v":""},{"$f":"IFERROR(VLOOKUP($H20,EUL_basis!$A$3:$P$415,15,FALSE),\"\")","v":""},{"$f":"IFERROR(VLOOKUP($H20,EUL_basis!$A$3:$P$415,16,FALSE),\"\")","v":""},null,null,null,null,"based on correct first year gross and net lifetime kWh:",{"$f":"+AI15/AE15","v":16.845857960409045},{"$f":"+AK15/AI15","v":0.60506794386277574},{"$f":"+AE15","v":570},{"$f":"+AF15","v":57},{"$f":"+AE24*AD24","v":344.88872800178217},{"$f":"+AF24*AD24","v":34.488872800178214},9602.139037433155,960.21390374331554,5809.9465240641721,580.99465240641712]
[null,"Claim values for the weighted measures:",null,null,null,null,null,null,null,null,null,null,null,null,8,"","",{"$f":"IFERROR(VLOOKUP($H21,EUL_basis!$A$3:$P$415,2,FALSE),\"\")","v":""},{"$f":"IFERROR(VLOOKUP($H21,EUL_basis!$A$3:$P$415,10,FALSE),\"\")","v":""},{"$f":"IFERROR(VLOOKUP($H21,EUL_basis!$A$3:$P$415,13,FALSE),\"\")","v":""},{"$f":"IFERROR(VLOOKUP($H21,EUL_basis!$A$3:$P$415,14,FALSE),\"\")","v":""},{"$f":"IFERROR(VLOOKUP($H21,EUL_basis!$A$3:$P$415,15,FALSE),\"\")","v":""},{"$f":"IFERROR(VLOOKUP($H21,EUL_basis!$A$3:$P$415,16,FALSE),\"\")","v":""},null,null,null,null,"based on correct first year gross and net lifetime therm:",{"$f":"+AJ15/AF15","v":14.473684210526315},{"$f":"+AL15/AJ15","v":0.4249090909090909},{"$f":"+AE15","v":570},{"$f":"+AF15","v":57},{"$f":"+AE25*AD25","v":242.19818181818181},{"$f":"+AF25*AD25","v":24.21981818181818},8250,825,3505.4999999999995,350.54999999999995]
[null,null,"Gross, First-year Energy Savings",null,null,null,null,null,null,"Key:    ","grey background: user input",null,null,null,null,null,null,null,null,null,null,null,null,null,null,null,null,"based on correct first year gross kWh and lifetime net kWh and therm:",{"$f":"+AI15/AE15","v":16.845857960409045},{"$f":"+AK15/AI15","v":0.60506794386277574},{"$f":"+AE15","v":570},{"$f":"AL15/AC26/AD26","v":34.391624634132867},{"$f":"+AE26*AD26","v":344.88872800178217},{"$f":"+AF26*AD26","v":20.809269603475162},9602.139037433155,579.356423614307,5809.9465240641721,350.55]
[null,"Project Component Measure","elec kWh","elec kW","gas therm","EUL Value","NTG Value","Measure Cost",null,null,"Orange font: user input from list",null,null,null,null,null,null,null,null,null,null,null,null,null,null,null,null,"based on correct first year gross therm and lifetime net kWh and therm:",{"$f":"+AC25","v":14.473684210526315},{"$f":"+AL15/AJ15","v":0.4249090909090909},{"$f":"+AK15/AC27/AD27","v":944.70675188035307},{"$f":"+AF15","v":57},{"$f":"+AE27*AD27","v":401.41448711716095},{"$f":"+AF27*AD27","v":24.21981818181818},13673.387198268267,825,5809.9465240641712,350.54999999999995]
[null,{"$f":"C7&\"_Elec\"","v":"PGE1234567_Elec"},{"$f":"+AE34","v":570},{"$f":"+D22","v":0.02},0,{"$f":"+AC34","v":16.719270572846536},{"$f":"+AD34","v":0.60964912280701755},{"$f":"+AN15","v":1691.87},null,null,"Yellow background: automatic lookup"]
[null,{"$f":"C7&\"_Gas\"","v":"PGE1234567_Gas"},0,0,{"$f":"+AF41","v":57},{"$f":"+AC41","v":16.574468085106385},{"$f":"+AD41","v":0.37105263157894736},{"$f":"+AO15","v":418.13},null,null,"green background: calculated claim values",null,null,null,null,null,null,null,null,null,null,null,null,null,null,null,null,"For Electric (kWh) Savings Only (dual claim measures)",null,null,"First Year Savings",null,null,null,"Lifetime Savings"]
[null,null,null,null,null,null,null,null,null,null,"Red Background : Invalid Input",null,null,null,null,null,null,null,null,null,null,null,null,null,null,null,null,null,null,null," Gross",null,"Net",null," Gross",null,"Net"]
[null,null,null,null,null,null,null,null,null,null,null,null,null,null,null,null,null,null,null,null,null,null,null,null,null,null,null,"Determination of weighted EUL and NTG","EUL","NTG","kWh",null,"kWh",null,"kWh",null,"kWh"]
[null,null,null,null,null,null,null,null,null,null,null,null,null,null,null,null,null,null,null,null,null,null,null,null,null,null,null,"based on correct first year net kWh & therm  and net lifetime kWh:",{"$f":"+AK15/AG15","v":16.719270572846536},{"$f":"+AK15/AI15","v":0.60506794386277574},{"$f":"+AG32/AD32","v":574.31566739686684},null,{"$f":"+AG15","v":347.5},null,{"$f":"+AE32*$AC32","v":9602.139037433155},null,{"$f":"+AG32*$AC32","v":5809.9465240641712}]
[null,null,null,null,null,null,null,null,null,null,null,null,null,null,null,null,null,null,null,null,null,null,null,null,null,null,null,"based on correct first year gross and net lifetime kWh:",{"$f":"+AI15/AE15","v":16.845857960409045},{"$f":"+AK15/AI15","v":0.60506794386277574},{"$f":"+AE15","v":570},null,{"$f":"+AE33*AD33","v":344.88872800178217},null,{"$f":"+AE33*$AC33","v":9602.139037433155},null,{"$f":"+AG33*$AC33","v":5809.9465240641721}]
[null,null,null,null,null,null,null,null,null,null,null,null,null,null,null,null,null,null,null,null,null,null,null,null,null,null,null,"based on correct first year (net & gross)  kWh  and net lifetime kWh:",{"$f":"+AK15/AG15","v":16.719270572846536},{"$f":"+AG15/AE15","v":0.60964912280701755},{"$f":"+AG34/AD34","v":570},null,{"$f":"+AG15","v":347.5},null,{"$f":"+AE34*$AC34","v":9529.9842265225252},null,{"$f":"+AG34*$AC34","v":5809.9465240641712}]
[]
[null,null,null,null,null,null,null,null,null,null,null,null,null,null,null,null,null,null,null,null,null,null,null,null,null,null,null,"For Gas (therm) Savings Only (dual claim measures)",null,null,"First Year Savings",null,null,null,"Lifetime Savings"]
[null,null,null,null,null,null,null,null,null,null,null,null,null,null,null,null,null,null,null,null,null,null,null,null,null,null,null,null,null,null," Gross",null,"Net",null," Gross",null,"Net"]
[null,null,null,null,null,null,null,null,null,null,null,null,null,null,null,null,null,null,null,null,null,null,null,null,null,null,null,"Determination of weighted EUL and NTG","EUL","NTG",null,"therms",null,"therms",null,"therms",null,"therms"]
[null,null,null,null,null,null,null,null,null,null,null,null,null,null,null,null,null,null,null,null,null,null,null,null,null,null,null,"based on correct first year net therm and net lifetime therm:",{"$f":"+AL15/AH15","v":16.574468085106385},{"$f":"+AL15/AJ15","v":0.4249090909090909},null,{"$f":"+AH39/AD39","v":49.775353016688058},null,{"$f":"+AH15","v":21.15},null,{"$f":"+AF39*$AC39","v":825.00000000000011},null,{"$f":"+AH39*$AC39","v":350.55}]
[null,null,null,null,null,null,null,null,null,null,null,null,null,null,null,null,null,null,null,null,null,null,null,null,null,null,null,"based on correct first year gross and net lifetime therm:",{"$f":"+AJ15/AF15","v":14.473684210526315},{"$f":"+AL15/AJ15","v":0.4249090909090909},null,{"$f":"+AF15","v":57},null,{"$f":"+AF40*AD40","v":24.21981818181818},null,{"$f":"+AF40*$AC40","v":825},null,{"$f":"+AH40*$AC40","v":350.54999999999995}]
[null,null,null,null,null,null,null,null,null,null,null,null,null,null,null,null,null,null,null,null,null,null,null,null,null,null,null,"based on correct first year (net & gross) therm and net lifetime therm:",{"$f":"+AL15/AH15","v":16.574468085106385},{"$f":"+AH15/AF15","v":0.37105263157894736},null,{"$f":"+AH41/AD41","v":57},null,{"$f":"+AH15","v":21.15},null,{"$f":"+AF41*$AC41","v":944.744680851064},null,{"$f":"+AH41*$AC41","v":350.55}]
[]
[null,null,null,null,null,null,null,null,null,null,null,null,null,null,null,null,null,null,null,null,null,null,null,null,null,null,null,"key: ","red","Values above component accurate values"]
[null,null,null,null,null,null,null,null,null,null,null,null,null,null,null,null,null,null,null,null,null,null,null,null,null,null,null,null,"blue","Values below component accurate values"]
[null,null,null,null,null,null,null,null,null,null,null,null,null,null,null,null,null,null,null,null,null,null,null,null,null,null,null,null,"gr back","Values match component accurate values"]

{"sheet":"EUL_basis","index":2,"n_rows":415,"n_cols":24,"rows_kept":415,"cut":false,"hidden":false,"merged":[]}
["EUL_basis table downloaded from READI:"]
[]
["EUL_ID","Description","HOU_cat","StartDate","ExpiryDate","BldgType","BldgLoc","EUL_Yrs","RUL_Yrs","Sector","Version","VersionSource","UseCategory","UseSubCategory","TechGroup","TechType","MeasType","HOU","BasisType","BasisValue","BasisDegFactor","EUL_Max_Yrs","Status","Comment"]
["Agr-DripIrr","Sprinkler to Drip/Micro Irrigation","None","2013-01-01",null,"Any","Any",20,6.7,"Ag","DEER2014","D08 v2.05","Irrigate","FarmIrrig","Irrigation",null,"Other",null,"rated years",null,null,null,"Standard"]
["Agr-GHC","Greenhouse Heat Curtain","None","2013-01-01",null,"Any","Any",5,1.7,"Ag","DEER2014","D08 v2.05","ProcHeat","EvapSepDehyd","SpaceHtg_eq",null,"Gas",null,"rated years",null,null,null,"Standard"]
["Agr-Irfilm","Infrared Film for Greenhouses","None","2013-01-01",null,"Any","Any",5,1.7,"Ag","DEER2014","D08 v2.05","BldgEnv","Fenestration","Fenest","WinFilm","GasElec",null,"rated years",null,null,null,"Standard"]
["Agr-LPSNperm","Low Pressure Sprinkler Nozzles (permanent)","None","2013-01-01",null,"Any","Any",5,1.7,"Ag","DEER2014","D08 v2.05","Irrigate","FarmIrrig","Irrigation",null,null,null,"rated years",null,null,null,"Standard"]
["Agr-LPSNport","Low Pressure Sprinkler Nozzles (portable)","None","2013-01-01",null,"Any","Any",3,1,"Ag","DEER2014","D08 v2.05","Irrigate","FarmIrrig","Irrigation",null,null,null,"rated years",null,null,null,"Standard"]
["Agr-MilkPreCool","Milk Pre-Cooler","None","2013-01-01",null,"Any","Any",15,5,"Ag","DEER2014","D08 v2.05","ProcRefrig","ProdChill",null,null,null,null,"rated years",null,null,null,"Standard"]
["Agr-VSDmilkTrnsfr","Milk Transfer Pump Variable Speed Drive","None","2013-01-01",null,"Any","Any",15,5,"Ag","DEER2014","D08 v2.05","ProcDist","Pumping","Motor_Spd","ASD","Electric",null,"rated years",null,null,null,"Standard"]
["Agr-VSDmilkVcm","Milking Vacuum Pump Variable Speed Drive","None","2013-01-01",null,"Any","Any",15,5,"Ag","DEER2014","D08 v2.05","ProcDist","Pumping","Motor_Spd","ASD","Electric",null,"rated years",null,null,null,"Standard"]
["Agr-VSDWellPmp","Well Pump Variable Speed Drive","None","2013-01-01",null,"Any","Any",10,3.3,"Ag","DEER2014","D08 v2.05","Irrigate","FarmIrrig","Motor_Spd","ASD","Electric",null,"rated years",null,null,null,"Standard"]
["Agr-WineTnkIns","Wine Tank Insulation","None","2013-01-01",null,"Any","Any",15,5,"Ag","DEER2014","D08 v2.05","ProcRefrig","ProdChill","Chiller","TankIns","Electric",null,"rated years",null,null,null,"Standard"]
["Appl-DW-Dtu","Commercial Door-type dishwasher ","None","2016-01-01",null,"Any","Any",15,5,"Com","ExAnte2015","PA workpaper","AppPlug","KitchenApp","Clean_equip","Dishwash","Electric",null,"rated years",null,null,null,"Standard","PGECOFST126"]
["Appl-EffCD","Clothes Dryer","None","2013-01-01",null,"Any","Any",12,4,"Res","ExAnte2016","PA workpaper","AppPlug","Laundry","Clean_equip","ClothesWash","Electric",null,"rated years",null,null,null,"Proposed","PGECOAPP128 Revision 0"]
["Appl-EffCW","High Efficiency Clothes Washer","None","2013-01-01",null,"Any","Any",11,3.7,"Res","DEER2014","D08 v2.05","AppPlug","Laundry","Clean_equip","ClothesWash","Electric",null,"rated years",null,null,null,"Standard"]
["Appl-EffDW","High Efficiency Dishwasher","None","2013-01-01",null,"Any","Any",11,3.7,"Res","DEER2014","D08 v2.05","AppPlug","KitchenApp","Clean_equip","DishWash","Electric",null,"rated years",null,null,null,"Standard"]
["Appl-ESFrzr","High Efficiency Freezer","None","2013-01-01",null,"Any","Any",11,3.7,"Res","DEER2014","D08 v2.05","AppPlug","KitchenApp","Ref_Storage","Freezer","Electric",null,"rated years",null,null,null,"Standard"]
["Appl-ESRefg","High Efficiency Refrigerator","None","2013-01-01",null,"Any","Any",14,4.7,"Res","DEER2014","D08 v2.05","AppPlug","KitchenApp","Ref_Storage","Refrig","Electric",null,"rated years",null,null,null,"Standard"]
["Appl-RecFrzr","Freezer Recycling (RUL)","None","2013-01-01",null,"Any","Any",null,4,"Res","DEER2014","D08 v2.05","AppPlug","KitchenApp","Ref_Storage","Freezer","Electric",null,"rated years",null,null,null,"Standard"]
["Appl-RecRef","Refrigerator Recycling (RUL)","None","2013-01-01",null,"Any","Any",null,5,"Res","DEER2014","D08 v2.05","AppPlug","KitchenApp","Ref_Storage","Refrig","Electric",null,"rated years",null,null,null,"Standard"]
["AppPlug-AllEquip-Audio","Energy Star Audio Equipment","None","2013-01-01",null,"Any","Any",3,1,"Res","DEER2014","PA workpaper","AppPlug","Electronics","Electronics","AllEquip","Electric",null,"evaluated years",null,null,null,"Proposed","Source: See work paper SCE13CS008. Source is Energy Star Consumer Electronics Calculator."]
["AppPlug-AllEquip-BRDVD","Energy Star Blu-Ray/DVD Equipment","None","2013-01-01",null,"Any","Any",3,1,"Res","DEER2014","PA workpaper","AppPlug","Electronics","Electronics","AllEquip","Electric",null,"evaluated years",null,null,null,"Proposed","Source: See work paper SCE13CS008. Source is Energy Star Consumer Electronics Calculator."]
["AppPlug-DesktopComp","Residential Desktop Computers","None","2013-01-01",null,"Any","Any",5,1.67,"Res","DEER2014","PA workpaper","AppPlug","Electronics","Electronics","DesktopComp","Electric",null,"evaluated years",null,null,null,"Proposed","Source: See work paper SCE13OE003. Internal Revenue Service - IRS website for depreciation rates and useful life calculations, FAQ page for Publication 946. 2009. < http://www.irs.gov/faqs/faq/0,,id=199619,00.html"]
["AppPlug-TV","Residential Use Energy Efficient TV","None","2013-01-01",null,"Any","Any",10,3.33,"Res","DEER2014","PA workpaper","AppPlug","Electronics","Electronics","TV","Electric",null,"evaluated years",null,null,null,"Proposed","Source: See work paper SCE13OE002. The EUP (Energy Using Products) report for the European Commission analysis assessed sales and stock data and estimated that TV sets are in use for 10 years.  "]
["BldgEnv-CoolRoof","Cool Roof - Commercial","None","2013-01-01",null,"Any","Any",15,5,"Com","DEER2014","D08 v2.05","BldgEnv","Opaque","BldgShell","CoolRoof","Electric",null,"rated years",null,null,null,"Standard"]
["BldgEnv-FlrIns","Floor Insulation - Commercial","None","2013-01-01",null,"Any","Any",20,6.7,"Com","DEER2014","D08 v2.05","BldgEnv","Opaque","BldgShell","FloorIns","GasElec",null,"rated years",null,null,null,"Standard"]
["BldgEnv-RoofIns","Roof/Ceiling Insulation - Commercial","None","2013-01-01",null,"Any","Any",20,6.7,"Com","DEER2014","D08 v2.05","BldgEnv","Opaque","BldgShell",null,"GasElec",null,"rated years",null,null,null,"Standard"]
["BlrTuneup","Boiler Tune-up","None","2013-01-01",null,"Any","Any",5,1.7,"Com","ExAnte2013","IOU Workpaper","Service","Maintenance",null,null,null,null,"rated years",null,null,null,"Standard","proposed in PGECOPRO107"]
["BS-BlowInIns","Wall Insulation (blown-in)","None","2013-01-01",null,"Any","Any",20,6.7,"Res","DEER2014","D08 v2.05","BldgEnv","Opaque","BldgShell","WallBlowIns",null,null,"rated years",null,null,null,"Standard"]
["BS-CeilIns","Roof/Ceiling Insulation - Residential","None","2013-01-01",null,"Any","Any",20,6.7,"Res","DEER2014","D08 v2.05","BldgEnv","Opaque","BldgShell",null,null,null,"rated years",null,null,null,"Standard"]
["BS-CoolAttic","Cool Attic","None","2013-01-01",null,"Any","Any",20,6.7,"Res","DEER2014","D08 v2.05","BldgEnv","Opaque","BldgShell",null,null,null,"rated years",null,null,null,"Standard"]
["BS-FlrIns","Floor Insulation - Residential","None","2013-01-01",null,"Any","Any",20,6.7,"Res","DEER2014","D08 v2.05","BldgEnv","Opaque","BldgShell","FloorIns",null,null,"rated years",null,null,null,"Standard"]
["BS-LtRoof","Cool Roof - Residential","None","2013-01-01",null,"Any","Any",15,5,"Res","DEER2014","D08 v2.05","BldgEnv","Opaque","BldgShell","CoolRoof",null,null,"rated years",null,null,null,"Standard"]
["BS-LtWalls","Light Colored Exterior Walls","None","2013-01-01",null,"Any","Any",6,2,"Res","DEER2014","D08 v2.05","BldgEnv","Opaque","BldgShell",null,null,null,"rated years",null,null,null,"Standard"]
["BS-WallIns","Wall Insulation","None","2013-01-01",null,"Any","Any",20,6.7,"Res","DEER2014","D08 v2.05","BldgEnv","Opaque","BldgShell",null,null,null,"rated years",null,null,null,"Standard"]
["BS-Win","High Performance Windows","None","2013-01-01",null,"Any","Any",20,6.7,"Res","DEER2014","D08 v2.05","BldgEnv","Fenestration","Fenest",null,null,null,"rated years",null,null,null,"Standard"]
["BS-WinFilm","Reflective Window Films & Sunscreens - Residential","None","2013-01-01",null,"Any","Any",10,3.3,"Res","DEER2014","D08 v2.05","BldgEnv","Fenestration","Fenest","WinFilm",null,null,"rated years",null,null,null,"Standard"]
["BS-Wthr","Low-Income Weatherization","None","2013-01-01",null,"Any","Any",11,3.7,"Res","DEER2014","D08 v2.05","Service","Diagnostic",null,null,null,null,"rated years",null,null,null,"Standard"]
["BS-WthrEvap","Low-Income Weatherization w/Evaporative Cooler","None","2013-01-01",null,"Any","Any",11,3.7,"Res","DEER2014","D08 v2.05","Service","Diagnostic",null,null,null,null,"rated years",null,null,null,"Standard"]
["ComLau-EffCW","High Efficiency Clothes Washer (CEE Tiers 1,2,3)","None","2013-01-01",null,"Any","Any",11,3.7,"Com","DEER2014","D08 v2.05","AppPlug","Laundry","Clean_equip","ClothesWash",null,null,"rated years",null,null,null,"Standard"]
["CompAir-CycAirDryr","Compressed Air System - Cycling-Air Dryer","None","2013-01-01",null,"Any","Any",1,1,"Com","DEER2014","PA workpaper","CompAir","ManufDryAir","AirComp","CycAirDryr",null,null,"rated years",1,null,null,"Proposed","referenced in SCE13PR007.2, values are proxy for now"]
["CompAir-Screw-VSD","Variable Speed Drive on Air Compressor Control","None","2013-01-01",null,"Any","Any",13,4.33,"Any","DEER2014","PA workpaper","CompAir",null,"Motor_Spd","ASD",null,null,"evaluated years",null,null,null,"Proposed","Source: See work paper SCE13PR005. Reference to The Connecticut Light and Power Company and The United Illuminating Company."]
["CompAir-ZeroLossCondDrn","Zero Air Loss Condensate Drains for Compressed Air Systems","None","2013-01-01",null,"Any","Any",10,3.33,"Any","DEER2014","PA workpaper","CompAir",null,null,null,null,null,"evaluated years",null,null,null,"Proposed","Source: See work paper SCE13PR009. Reference to The Connecticut Light and Power Company and The United Illuminating Company."]
["Cook-ElecCombOven","Combination Oven - Electric","None","2013-01-01",null,"Any","Any",12,4,"Com","DEER2014","D08 v2.05","FoodServ","Cooking","Cook_Equip","OvenComb",null,null,"rated years",null,null,null,"Standard"]
["Cook-ElecConvOven","Convection Oven - Electric","None","2013-01-01",null,"Any","Any",12,4,"Com","DEER2014","D08 v2.05","FoodServ","Cooking","Cook_Equip","OvenConv",null,null,"rated years",null,null,null,"Standard"]
["Cook-ElecFryer","Electric Fryer","None","2013-01-01",null,"Any","Any",12,4,"Com","DEER2014","D08 v2.05","FoodServ","Cooking","Cook_Equip","Fryer",null,null,"rated years",null,null,null,"Standard"]
["Cook-ElecGriddle","Griddle - Electric","None","2013-01-01",null,"Any","Any",12,4,"Com","DEER2014","D08 v2.05","FoodServ","Cooking","Cook_Equip","Griddle",null,null,"rated years",null,null,null,"Standard"]
["Cook-ElecStmCooker","Steam Cooker (electric)","None","2013-01-01",null,"Any","Any",12,4,"Com","DEER2014","D08 v2.05","FoodServ","Cooking","Cook_Equip","Steamer",null,null,"rated years",null,null,null,"Standard"]
["Cook-GasCombOVen","Combination Oven - Gas","None","2013-01-01",null,"Any","Any",12,4,"Com","DEER2014","D08 v2.05","FoodServ","Cooking","Cook_Equip","OvenComb","Gas",null,"rated years",null,null,null,"Standard"]
["Cook-GasConvOven","Convection Ovens - Gas","None","2013-01-01",null,"Any","Any",12,4,"Com","DEER2014","D08 v2.05","FoodServ","Cooking","Cook_Equip","OvenConv","Gas",null,"rated years",null,null,null,"Standard"]
["Cook-GasFryer","Gas Fryer","None","2013-01-01",null,"Any","Any",12,4,"Com","DEER2014","D08 v2.05","FoodServ","Cooking","Cook_Equip","Fryer","Gas",null,"rated years",null,null,null,"Standard"]
["Cook-GasGriddle","Griddle - Gas","None","2013-01-01",null,"Any","Any",12,4,"Com","DEER2014","D08 v2.05","FoodServ","Cooking","Cook_Equip","Griddle","Gas",null,"rated years",null,null,null,"Standard"]
["Cook-GasRackOven","Commercial Gas Rack Ovens","None","2013-01-01",null,"Any","Any",12,4,"Com","DEER2014","D08 v2.05","FoodServ","Cooking","Cook_Equip","OvenConv","Gas",null,"rated years",null,null,null,"Standard"]
["Cook-GasStmCooker","Steam Cooker (gas)","None","2013-01-01",null,"Any","Any",12,4,"Com","DEER2014","D08 v2.05","FoodServ","Cooking","Cook_Equip","Steamer","Gas",null,"rated years",null,null,null,"Standard"]
["Cook-GDRef","Commercial Reach-In Refrigerator / Freezer","None","2013-01-01",null,"Any","Any",12,4,"Com","DEER2014","D08 v2.05","ComRefrig","Storage","Ref_Storage","ReachIn","Electric",null,"rated years",null,null,null,"Standard"]
["Cook-HoldCab","Commercial Insulated Holding Cabinet","None","2013-01-01",null,"Any","Any",12,4,"Com","DEER2014","D08 v2.05","FoodServ","Cooking","FoodService","HoldBin","Electric",null,"rated years",null,null,null,"Standard"]
["Cook-IceMach","Ice Machine","None","2013-01-01",null,"Any","Any",10,3.3,"Com","DEER2014","D08 v2.05","ComRefrig","Equipment","Ref_SelfCon","IceMach","Electric",null,"rated years",null,null,null,"Standard"]
["Cook-LowPreRinse","Low flow Pre-rinse valve - description update required","None","2016-04-01",null,"Any","Any",5,1.7,"Com","ExAnte2016","PA workpaper","SHW","PointOfUse","WaterFixt",null,"GasElec",null,"rated years",null,null,null,"Standard","PGECOFST125 v1"]
["Cook-SDFreez","Commercial Reach-In Refrigerator / Freezer","None","2013-01-01",null,"Any","Any",12,4,"Com","DEER2014","D08 v2.05","ComRefrig","Equipment","Ref_Storage","ReachIn","Electric",null,"rated years",null,null,null,"Standard"]
["Cook-SDRef","Commercial Reach-In Refrigerator / Freezer","None","2013-01-01",null,"Any","Any",12,4,"Com","DEER2014","D08 v2.05","ComRefrig","Equipment","Ref_Storage","ReachIn",null,null,"rated years",null,null,null,"Standard"]
["Cook-StockPot","Fin bottomed stock pot","None","2013-01-01",null,"Any","Any",3,1,"Com","ExAnte2013","IOU Workpaper","FoodServ","Cooking","Cook_equip",null,null,null,"rated years",null,null,null,"Standard","proposed in PGECOFST122"]
["Cook-VatFryer","Vat Fryer","None","2013-01-01",null,"Any","Any",12,4,"Com","DEER2014","D08 v2.05","FoodServ","Cooking","Cook_Equip","Fryer",null,null,"rated years",null,null,null,"Standard"]
["EnergyPolicyManual-Min","Energy Policy Manual minimum requirements","None","2013-01-01",null,"Any","Any",3,1,"CC","ExAnte2013","IOU Workpaper",null,null,null,null,null,null,"rated years",null,null,null,"Proposed","proposed in PGECOALL102r3"]
["EUC_3.7","EUL for PGE Energy Upgrade Calififornia program - description update required","None","2016-04-01",null,"Any","Any",11.1,3.7,"Res","ExAnte2016","PA workpaper","WhlBldg","WBUpgrade","WhlBldg","WBRetPkg",null,null,"rated years",null,null,null,"Standard","PGECOALL109 v2"]
["EUC_3.8","EUL for PGE Energy Upgrade Calififornia program - description update required","None","2016-04-01",null,"Any","Any",11.4,3.8,"Res","ExAnte2016","PA workpaper","WhlBldg","WBUpgrade","WhlBldg","WBRetPkg",null,null,"rated years",null,null,null,"Standard","PGECOALL109 v2"]
["EUC_3.9","EUL for PGE Energy Upgrade Calififornia program - description update required","None","2016-04-01",null,"Any","Any",11.7,3.9,"Res","ExAnte2016","PA workpaper","WhlBldg","WBUpgrade","WhlBldg","WBRetPkg",null,null,"rated years",null,null,null,"Standard","PGECOALL109 v2"]
["EUC_4","EUL for PGE Energy Upgrade Calififornia program - description update required","None","2016-04-01",null,"Any","Any",12,4,"Res","ExAnte2016","PA workpaper","WhlBldg","WBUpgrade","WhlBldg","WBRetPkg",null,null,"rated years",null,null,null,"Standard","PGECOALL109 v2"]
["EUC_4.1","EUL for PGE Energy Upgrade Calififornia program - description update required","None","2016-04-01",null,"Any","Any",12.3,4.0999999999999996,"Res","ExAnte2016","PA workpaper","WhlBldg","WBUpgrade","WhlBldg","WBRetPkg",null,null,"rated years",null,null,null,"Standard","PGECOALL109 v2"]
["EUC_4.2","EUL for PGE Energy Upgrade Calififornia program - description update required","None","2016-04-01",null,"Any","Any",12.6,4.2,"Res","ExAnte2016","PA workpaper","WhlBldg","WBUpgrade","WhlBldg","WBRetPkg",null,null,"rated years",null,null,null,"Standard","PGECOALL109 v2"]
["EUC_4.3","EUL for PGE Energy Upgrade Calififornia program - description update required","None","2016-04-01",null,"Any","Any",12.9,4.3,"Res","ExAnte2016","PA workpaper","WhlBldg","WBUpgrade","WhlBldg","WBRetPkg",null,null,"rated years",null,null,null,"Standard","PGECOALL109 v2"]
["EUC_4.4","EUL for PGE Energy Upgrade Calififornia program - description update required","None","2016-04-01",null,"Any","Any",13.2,4.4000000000000004,"Res","ExAnte2016","PA workpaper","WhlBldg","WBUpgrade","WhlBldg","WBRetPkg",null,null,"rated years",null,null,null,"Standard","PGECOALL109 v2"]
["EUC_4.5","EUL for PGE Energy Upgrade Calififornia program - description update required","None","2016-04-01",null,"Any","Any",13.5,4.5,"Res","ExAnte2016","PA workpaper","WhlBldg","WBUpgrade","WhlBldg","WBRetPkg",null,null,"rated years",null,null,null,"Standard","PGECOALL109 v2"]
["EUC_4.6","EUL for PGE Energy Upgrade Calififornia program - description update required","None","2016-04-01",null,"Any","Any",13.8,4.5999999999999996,"Res","ExAnte2016","PA workpaper","WhlBldg","WBUpgrade","WhlBldg","WBRetPkg",null,null,"rated years",null,null,null,"Standard","PGECOALL109 v2"]
["EUC_4.7","EUL for PGE Energy Upgrade Calififornia program - description update required","None","2016-04-01",null,"Any","Any",14.1,4.7,"Res","ExAnte2016","PA workpaper","WhlBldg","WBUpgrade","WhlBldg","WBRetPkg",null,null,"rated years",null,null,null,"Standard","PGECOALL109 v2"]
["EUC_4.8","EUL for PGE Energy Upgrade Calififornia program - description update required","None","2016-04-01",null,"Any","Any",14.4,4.8,"Res","ExAnte2016","PA workpaper","WhlBldg","WBUpgrade","WhlBldg","WBRetPkg",null,null,"rated years",null,null,null,"Standard","PGECOALL109 v2"]
["EUC_4.9","EUL for PGE Energy Upgrade Calififornia program - description update required","None","2016-04-01",null,"Any","Any",14.7,4.9000000000000004,"Res","ExAnte2016","PA workpaper","WhlBldg","WBUpgrade","WhlBldg","WBRetPkg",null,null,"rated years",null,null,null,"Standard","PGECOALL109 v2"]
["EUC_5","EUL for PGE Energy Upgrade Calififornia program - description update required","None","2016-04-01",null,"Any","Any",15,5,"Res","ExAnte2016","PA workpaper","WhlBldg","WBUpgrade","WhlBldg","WBRetPkg",null,null,"rated years",null,null,null,"Standard","PGECOALL109 v2"]
["EUC_5.1","EUL for PGE Energy Upgrade Calififornia program - description update required","None","2016-04-01",null,"Any","Any",15.3,5.0999999999999996,"Res","ExAnte2016","PA workpaper","WhlBldg","WBUpgrade","WhlBldg","WBRetPkg",null,null,"rated years",null,null,null,"Standard","PGECOALL109 v2"]
["EUC_5.2","EUL for PGE Energy Upgrade Calififornia program - description update required","None","2016-04-01",null,"Any","Any",15.6,5.2,"Res","ExAnte2016","PA workpaper","WhlBldg","WBUpgrade","WhlBldg","WBRetPkg",null,null,"rated years",null,null,null,"Standard","PGECOALL109 v2"]
["EUC_5.3","EUL for PGE Energy Upgrade Calififornia program - description update required","None","2016-04-01",null,"Any","Any",15.9,5.3,"Res","ExAnte2016","PA workpaper","WhlBldg","WBUpgrade","WhlBldg","WBRetPkg",null,null,"rated years",null,null,null,"Standard","PGECOALL109 v2"]
["EUC_5.4","EUL for PGE Energy Upgrade Calififornia program - description update required","None","2016-04-01",null,"Any","Any",16.2,5.4,"Res","ExAnte2016","PA workpaper","WhlBldg","WBUpgrade","WhlBldg","WBRetPkg",null,null,"rated years",null,null,null,"Standard","PGECOALL109 v2"]
["EUC_5.5","EUL for PGE Energy Upgrade Calififornia program - description update required","None","2016-04-01",null,"Any","Any",16.5,5.5,"Res","ExAnte2016","PA workpaper","WhlBldg","WBUpgrade","WhlBldg","WBRetPkg",null,null,"rated years",null,null,null,"Standard","PGECOALL109 v2"]
["EUC_5.6","EUL for PGE Energy Upgrade Calififornia program - description update required","None","2016-04-01",null,"Any","Any",16.8,5.6,"Res","ExAnte2016","PA workpaper","WhlBldg","WBUpgrade","WhlBldg","WBRetPkg",null,null,"rated years",null,null,null,"Standard","PGECOALL109 v2"]
["EUC_5.7","EUL for PGE Energy Upgrade Calififornia program - description update required","None","2016-04-01",null,"Any","Any",17.100000000000001,5.7,"Res","ExAnte2016","PA workpaper","WhlBldg","WBUpgrade","WhlBldg","WBRetPkg",null,null,"rated years",null,null,null,"Standard","PGECOALL109 v2"]
["EUC_5.8","EUL for PGE Energy Upgrade Calififornia program - description update required","None","2016-04-01",null,"Any","Any",17.399999999999999,5.8,"Res","ExAnte2016","PA workpaper","WhlBldg","WBUpgrade","WhlBldg","WBRetPkg",null,null,"rated years",null,null,null,"Standard","PGECOALL109 v2"]
["EUC_5.9","EUL for PGE Energy Upgrade Calififornia program - description update required","None","2016-04-01",null,"Any","Any",17.7,5.9,"Res","ExAnte2016","PA workpaper","WhlBldg","WBUpgrade","WhlBldg","WBRetPkg",null,null,"rated years",null,null,null,"Standard","PGECOALL109 v2"]
["EUC_6","EUL for PGE Energy Upgrade Calififornia program - description update required","None","2016-04-01",null,"Any","Any",18,6,"Res","ExAnte2016","PA workpaper","WhlBldg","WBUpgrade","WhlBldg","WBRetPkg",null,null,"rated years",null,null,null,"Standard","PGECOALL109 v2"]
["EUC_6.1",null,"None","2016-04-01",null,"Any","Any",18.3,6.1,"Res","ExAnte2016","PA workpaper","WhlBldg","WBUpgrade","WhlBldg","WBRetPkg",null,null,"rated years",null,null,null,"Standard","PGECOALL109 v2"]
["EUC_6.2",null,"None","2016-04-01",null,"Any","Any",18.600000000000001,6.2,"Res","ExAnte2016","PA workpaper","WhlBldg","WBUpgrade","WhlBldg","WBRetPkg",null,null,"rated years",null,null,null,"Standard","PGECOALL109 v2"]
["EUC_6.3",null,"None","2016-04-01",null,"Any","Any",18.899999999999999,6.3,"Res","ExAnte2016","PA workpaper","WhlBldg","WBUpgrade","WhlBldg","WBRetPkg",null,null,"rated years",null,null,null,"Standard","PGECOALL109 v2"]
["EUC_6.4","EUL for PGE Energy Upgrade Calififornia program - description update required","None","2016-04-01",null,"Any","Any",19.2,6.4,"Res","ExAnte2016","PA workpaper","WhlBldg","WBUpgrade","WhlBldg","WBRetPkg",null,null,"rated years",null,null,null,"Standard","PGECOALL109 v2"]
["EUC_6.5","EUL for PGE Energy Upgrade Calififornia program - description update required","None","2016-04-01",null,"Any","Any",19.5,6.5,"Res","ExAnte2016","PA workpaper","WhlBldg","WBUpgrade","WhlBldg","WBRetPkg",null,null,"rated years",null,null,null,"Standard","PGECOALL109 v2"]
["EUC_6.6","EUL for PGE Energy Upgrade Calififornia program - description update required","None","2016-04-01",null,"Any","Any",19.8,6.6,"Res","ExAnte2016","PA workpaper","WhlBldg","WBUpgrade","WhlBldg","WBRetPkg",null,null,"rated years",null,null,null,"Standard","PGECOALL109 v2"]
["FoodHandWrap","Hand wrapping machine used in food service","None","2013-01-01",null,"Any","Any",10,3.33,"Com","DEER2014","PA workpaper","FoodServ","Packaging","FoodService","HandWrap",null,null,"evaluated years",null,null,null,"Proposed","requested by SCE to support WP submittal"]
["GlazDaylt-Dayltg","Daylighting - controls","None","2013-01-01",null,"Any","Any",8,2.7,"Com","DEER2014","D08 v2.05","Lighting","Controls","Ltg_Controls","LtSensor",null,null,"rated years",null,null,null,"Standard"]
["GlazDaylt-HPWinDaylt","High Performance Windows for Daylighting","None","2013-01-01",null,"Any","Any",20,6.7,"Com","DEER2014","D08 v2.05","BldgEnv","Fenestration","Fenest",null,null,null,"rated years",null,null,null,"Standard"]
["GlazDaylt-LoSHGC","Low Solar Heat Gain Coefficient Windows","None","2013-01-01",null,"Any","Any",20,6.7,"Com","DEER2014","D08 v2.05","BldgEnv","Fenestration","Fenest",null,null,null,"rated years",null,null,null,"Standard"]
["GlazDaylt-WinFilm","Reflective Window Films & Sunscreens - Commercial","None","2013-01-01",null,"Any","Any",10,3.3,"Com","DEER2014","D08 v2.05","BldgEnv","Fenestration","Fenest","WinFilm",null,null,"rated years",null,null,null,"Standard"]
["GrocDisp-ASH","Anti-Sweat Heat (ASH) Controls","None","2013-01-01",null,"Any","Any",12,4,"Com","DEER2014","D08 v2.05","ComRefrig","Display","Ref_Storage",null,null,null,"rated years",null,null,null,"Standard"]
["GrocDisp-DispCvrs","Night Covers for vertical and horizontal refrigerated display cases","None","2013-01-01",null,"Any","Any",5,1.7,"Com","DEER2014","D08 v2.05","ComRefrig","Display","Ref_Storage",null,null,null,"rated years",null,null,null,"Standard"]
["GrocDisp-DispLtgCtrl","Display Case Lighting Control","None","2013-01-01",null,"Any","Any",8,2.7,"Com","DEER2014","D08 v2.05","Lighting","RefDisplay","Ref_Storage","RefrigLtg",null,null,"rated years",null,null,null,"Standard"]
["GrocDisp-FEvapFanMtr","High Efficiency Evaporator Fan Motors","None","2013-01-01",null,"Any","Any",15,5,"Com","DEER2014","D08 v2.05","ComRefrig","Equipment","Ref_Storage","EvapFan",null,null,"rated years",null,null,null,"Standard"]
["GrocDisp-FixtDoors","New case with Doors","None","2013-01-01",null,"Any","Any",12,4,"Com","DEER2014","D08 v2.05","ComRefrig","Display","Ref_Storage",null,null,null,"rated years",null,null,null,"Standard"]
["GrocDisp-FixtDrGask","Door Gaskets on Cooler/Freezer Doors","None","2013-01-01",null,"Any","Any",4,1.3,"Com","DEER2014","D08 v2.05","ComRefrig","Display","Ref_Storage","Gasket",null,null,"rated years",null,null,null,"Standard"]
["GrocDisp-FixtLtg-LED","Display Case Lighting LED Lighting","None","2013-01-01",null,"Any","Any",16,5.3,"Com","DEER2014","D08 v2.05","Lighting","RefDisplay","Ref_Storage","RefrigLtg",null,null,"rated years",null,null,null,"Standard"]
["GrocDisp-ZeroHtDrs","Zero Heat Reach-in Glass Doors","None","2013-01-01",null,"Any","Any",12,4,"Com","DEER2014","D08 v2.05","ComRefrig","Display","Ref_Storage",null,null,null,"rated years",null,null,null,"Standard"]
["GrocSys-Cndsr","Refrigeration Upgrades (Condenser) - Grocery","None","2013-01-01",null,"Any","Any",15,5,"Com","DEER2014","D08 v2.05","ComRefrig","Equipment","Ref_Storage","Refrig_sys",null,null,"rated years",null,null,null,"Standard"]
["GrocSys-FltHdPres","Refrigeration Upgrades (Head Pressure) - Grocery","None","2013-01-01",null,"Any","Any",15,5,"Com","DEER2014","D08 v2.05","ComRefrig","Equipment","Ref_Storage","Refrig_sys",null,null,"rated years",null,null,null,"Standard"]
["GrocSys-FltSucPres","Refrigeration Upgrades (Suction Pressure) - Grocery","None","2013-01-01",null,"Any","Any",15,5,"Com","DEER2014","D08 v2.05","ComRefrig","Equipment","Ref_Storage","Refrig_sys",null,null,"rated years",null,null,null,"Standard"]
["GrocSys-HtRecov","Heat Recovery from Central Refrigeration System","None","2013-01-01",null,"Any","Any",10,3.3,"Com","DEER2014","D08 v2.05","ComRefrig","Equipment","Ref_Storage","Refrig_sys",null,null,"rated years",null,null,null,"Standard"]
["GrocSys-MechSubcl","Refrigeration  Upgrades (Subcooling) - Grocery","None","2013-01-01",null,"Any","Any",15,5,"Com","DEER2014","D08 v2.05","ComRefrig","Equipment","Ref_Storage","Refrig_sys",null,null,"rated years",null,null,null,"Standard"]
["GrocSys-Retro","Refrigeration Retrocommissioning - Grocery","None","2013-01-01",null,"Any","Any",10,3.3,"Com","DEER2014","D08 v2.05","Service","Diagnostic",null,null,null,null,"rated years",null,null,null,"Standard"]
["GrocWlkIn-DrClsr","Auto-Closer for Walk-In Cooler/Freezer Doors","None","2013-01-01",null,"Any","Any",8,2.7,"Com","DEER2014","D08 v2.05","ComRefrig","Storage","Ref_Storage",null,null,null,"rated years",null,null,null,"Standard"]
["GrocWlkIn-StripCrtn","Strip Curtains for Walk-Ins","None","2013-01-01",null,"Any","Any",4,1.3,"Com","DEER2014","D08 v2.05","ComRefrig","Storage","Ref_Storage","StripCurt",null,null,"rated years",null,null,null,"Standard"]
["GrocWlkIn-WDrGask","Door Gaskets on Cooler/Freezer Doors","None","2013-01-01",null,"Any","Any",4,1.3,"Com","DEER2014","D08 v2.05","ComRefrig","Storage","Ref_Storage","Gasket",null,null,"rated years",null,null,null,"Standard"]
["GrocWlkIn-WEvapFanMtr","High Efficiency Evaporator Fan Motors","None","2013-01-01",null,"Any","Any",15,5,"Com","DEER2014","D08 v2.05","ComRefrig","Storage","Ref_Storage",null,null,null,"rated years",null,null,null,"Standard"]
["GrocWlkIn-WEvapFMtrCtrl","Evaporator Fan Controller for Walk-In Coolers","None","2013-01-01",null,"Any","Any",16,5.3,"Com","DEER2014","D08 v2.05","ComRefrig","Storage","Ref_Storage",null,null,null,"rated years",null,null,null,"Standard"]
["HVAC-2Spd","Two-Speed Fan","None","2013-01-01",null,"Any","Any",15,5,"Com","DEER2014","D08 v2.05","HVAC","VentAirDist","HV_AirDist",null,null,null,"rated years",null,null,null,"Standard"]
["HVAC-addEcono","Add Economizer","None","2013-01-01",null,"Any","Any",10,3.3,"Com","DEER2014","D08 v2.05","HVAC","SpaceCool","HV_AirDist","AirEcono",null,null,"rated years",null,null,null,"Standard"]
["HVAC-airAC","Air Conditioners (air-cooled, split and unitary)","None","2013-01-01",null,"Any","Any",15,5,"Com","DEER2014","D08 v2.05","HVAC","SpaceCool","dxAC_equip",null,null,null,"rated years",null,null,null,"Standard"]
["HVAC-airHP","Heat Pumps (air-cooled, split and unitary)","None","2013-01-01",null,"Any","Any",15,5,"Com","DEER2014","D08 v2.05","HVAC","HeatCool","dxHP_equip",null,null,null,"rated years",null,null,null,"Standard"]
["HVAC-AtoAHtExchng","Air To Air Heat Exchanger","None","2013-01-01",null,"Any","Any",14,4.7,"Com","DEER2014","D08 v2.05","HVAC","HeatCool","HV_AirDist","HeatRecov",null,null,"rated years",null,null,null,"Standard"]
["HVAC-Blr","High Efficiency Boiler ","None","2013-01-01",null,"Any","Any",20,6.7,"Com","DEER2014","D08 v2.05","HVAC","SpaceHeat","SpaceHtg_eq",null,null,null,"rated years",null,null,null,"Standard"]
["HVAC-Blr-Res","High Efficiency Boiler ","None","2013-01-01",null,"Any","Any",20,6.7,"Res","ExAnte2013","IOU Workpaper","HVAC","SpaceHeat","WaterHtg_eq",null,null,null,"rated years",null,null,null,"Standard","proposed for PGECODHW114 - need Res Use category"]
["HVAC-Chlr","High Efficiency Chillers","None","2013-01-01",null,"Any","Any",20,6.7,"Com","DEER2014","D08 v2.05","HVAC","SpaceCool","Chiller",null,null,null,"rated years",null,null,null,"Standard"]
["HVAC-ChlrComp","Compressor Heat Recovery (w/electric water heating)","None","2013-01-01",null,"Any","Any",14,4.7,"Com","DEER2014","D08 v2.05","SHW",null,"WaterHtg_eq",null,null,null,"rated years",null,null,null,"Standard"]
["HVAC-ChlrComp-Ag","Compressor Heat Recovery (w/electric water heating)","None","2013-01-01",null,"Any","Any",14,4.7,"Ag","ExAnte2013","IOU Workpaper","ProcHeat",null,"LiquidCirc",null,null,null,"rated years",null,null,null,"Proposed","proposed in PGE3PAGR115"]
["HVAC-ClnCondCoils","Clean Condenser Coils - Commercial","None","2013-01-01",null,"Any","Any",3,1,"Com","DEER2014","D08 v2.05","Service","Maintenance","HeatReject",null,null,null,"rated years",null,null,null,"Standard"]
["HVAC-ClnEvapCoils","Clean Evaporator Coils","None","2013-01-01",null,"Any","Any",3,1,"Com","ExAnte2013","IOU Workpaper","Service","Maintenance",null,null,null,null,"rated years",null,null,null,"Standard","Proposed in PGE3PHVC158"]
["HVAC-ClTwrPkgSys","Cooling Tower for Packaged System","None","2013-01-01",null,"Any","Any",15,5,"Com","DEER2014","D08 v2.05","HVAC","HtRej","HeatReject",null,null,null,"rated years",null,null,null,"Standard"]
["HVAC-DuctInsul","Duct Insulation Material","None","2013-01-01",null,"Any","Any",20,6.7,"Com","DEER2014","D08 v2.05","HVAC","VentAirDist","HV_AirDist","DuctInsC",null,null,"rated years",null,null,null,"Standard"]
["HVAC-DuctSeal","Duct Sealing - Single Zone Package System","None","2013-01-01",null,"Any","Any",18,6,"Com","DEER2014","D08 v2.05","HVAC","VentAirDist","HV_AirDist","DuctSysC",null,null,"rated years",null,null,null,"Standard"]
["HVAC-EMS","Energy Management System","None","2013-01-01",null,"Any","Any",15,5,"Com","DEER2014","D08 v2.05","HVAC","EnvCtrl","HV_Tech","EMS",null,null,"rated years",null,null,null,"Standard"]
["HVAC-evapAC","Air Conditioners (evaporatively-cooled, split and unitary)","None","2013-01-01",null,"Any","Any",15,5,"Com","DEER2014","D08 v2.05","HVAC","SpaceCool","dxAC_equip",null,null,null,"rated years",null,null,null,"Standard"]
["HVAC-EvapCool","Evap Cool  Indirect","None","2013-01-01",null,"Any","Any",15,5,"Com","DEER2014","D08 v2.05","HVAC","SpaceCool","EvapCool_eq","ComEvap",null,null,"rated years",null,null,null,"Standard"]
["HVAC-FanPwrdMix","Fan Powered Mixing Boxes","None","2013-01-01",null,"Any","Any",10,3.3,"Com","DEER2014","D08 v2.05","HVAC","VentAirDist","HV_AirDist",null,null,null,"rated years",null,null,null,"Standard"]
["HVAC-FlowCtrl-AirFiltCtrls","Air Filter Alarm","None","2013-01-01",null,"Any","Any",5,1.67,"Res","DEER2014","PA workpaper","HVAC","VentAirDist",null,null,null,null,"evaluated years",null,null,null,"Proposed","Source: See work paper SCE13HC011. Source is manufacturer's warranty information for \"Dirty Air Filter Alarm for HVAC System\"."]
["HVAC-Frnc","High Efficiency Furnace","None","2013-01-01",null,"Any","Any",20,6.7,"Com","DEER2014","D08 v2.05","HVAC","SpaceHeat","SpaceHtg_eq","GasFurnace",null,null,"rated years",null,null,null,"Standard"]
["HVAC-HydHPVarFlow","Hydronic Heat Pump Var Flow Valve","None","2013-01-01",null,"Any","Any",10,3.3,"Com","DEER2014","D08 v2.05","HVAC","SpaceCool","dxHP_equip",null,null,null,"rated years",null,null,null,"Standard"]
["HVAC-ProgTStats","Setback Programmable Thermostats","None","2013-01-01",null,"Any","Any",11,3.7,"Com","DEER2014","D08 v2.05","HVAC","EnvCtrl","HV_Tech","Tstat",null,null,"rated years",null,null,null,"Standard"]
["HVAC-PTAC","Air Conditioners (packaged terminal AC)","None","2013-01-01",null,"Any","Any",15,5,"Com","DEER2014","D08 v2.05","HVAC","SpaceCool","dxAC_equip",null,null,null,"rated years",null,null,null,"Standard"]
["HVAC-PTACCtrl","Package Terminal AC - Controller","None","2013-01-01",null,"Gst","Any",15,5,"Com","ExAnte2010","IOU Workpaper","HVAC","SpaceCool","HV_Tech","TStat",null,null,"rated years",null,null,null,"Proposed"]
["HVAC-PTACCtrl","Package Terminal AC - Controller","None","2013-01-01",null,"Htl","Any",15,5,"Com","ExAnte2010","IOU Workpaper","HVAC","SpaceCool","HV_Tech","TStat",null,null,"rated years",null,null,null,"Proposed"]
["HVAC-PTACCtrl","Package Terminal AC - Controller","None","2013-01-01",null,"Mtl","Any",15,5,"Com","ExAnte2010","IOU Workpaper","HVAC","SpaceCool","HV_Tech","TStat",null,null,"rated years",null,null,null,"Proposed"]
["HVAC-PTHP","Heat Pumps (packaged terminal)","None","2013-01-01",null,"Any","Any",15,5,"Com","DEER2014","D08 v2.05","HVAC","HeatCool","dxHP_equip",null,null,null,"rated years",null,null,null,"Standard"]
["HVAC-QMPkg","Quality Maintenance","None","2013-01-01",null,"Any","Any",3,3,"CC","DEER2014","PA workpaper","HVAC","SpaceCool","HV_Tech","pkgEER",null,null,"rated years",3,null,null,"Proposed","referenced in SCE13HC037.3"]
["HVAC-RedcOverVent","Reducing Overventilation","None","2013-01-01",null,"Any","Any",10,3.3,"Com","DEER2014","D08 v2.05","HVAC","VentAirDist","HV_AirDist",null,null,null,"rated years",null,null,null,"Standard"]
["HVAC-RefChg","Refrigerant Charge - Commercial","None","2013-01-01",null,"Any","Any",10,3.3,"Com","DEER2014","D08 v2.05","HVAC","HeatCool","dxAC_equip","refrig",null,null,"rated years",null,null,null,"Standard"]
["HVAC-RepEcono","Repair Economizer","None","2013-01-01",null,"Any","Any",5,1.7,"Com","DEER2014","D08 v2.05","HVAC","SpaceCool","HV_AirDist","AirEcono",null,null,"rated years",null,null,null,"Standard"]
["HVAC-Reset","Water Loop Reset","None","2013-01-01",null,"Any","Any",10,3.3,"Com","DEER2014","D08 v2.05","HVAC","EnvCtrl","LiquidCirc","TempReset",null,null,"rated years",null,null,null,"Standard"]
["HVAC-RotHtRecov","Rotary Heat Recovery","None","2013-01-01",null,"Any","Any",14,4.7,"Com","DEER2014","D08 v2.05","HVAC","HeatCool","HV_AirDist","HeatRecov",null,null,"rated years",null,null,null,"Standard"]
["HVAC-StmTrp","Steam Traps - Space Heating","None","2013-01-01",null,"Any","Any",6,2,"Com","DEER2014","D08 v2.05","HVAC","SpaceHeat","SteamCirc","SteamTrap",null,null,"rated years",null,null,null,"Standard"]
["HVAC-Timeclocks","Time Clocks (heating/cooling)","None","2013-01-01",null,"Any","Any",11,3.7,"Com","DEER2014","D08 v2.05","HVAC","EnvCtrl","HV_Tech","Timer",null,null,"rated years",null,null,null,"Standard"]
["HVAC-VarFlow","Hydronic Heat Pump Var Flow Valve","None","2013-01-01",null,"Any","Any",10,3.3,"Com","DEER2014","D08 v2.05","HVAC","HeatCool","LiquidCirc","FlowTempCtrl",null,null,"rated years",null,null,null,"Standard"]
["HVAC-VAVBox","Variable Air Volume Box, VSD Fan","None","2013-01-01",null,"Any","Any",15,5,"Com","DEER2014","D08 v2.05","HVAC","VentAirDist","Motor_Spd","ASD",null,null,"rated years",null,null,null,"Standard"]
["HVAC-VSD-DCV","Variable Speed Drive controlled by CO2 sensor","None","2013-01-01",null,"Any","Any",15,5,"Com","ExAnte2013","IOU Workpaper","HVAC","HeatCool","HV_Tech","DCV",null,null,"rated years",null,null,null,"Standard","Proposed in PGECOHVC143"]
["HVAC-VSD-fan","Variable Air Volume Box, VSD Fan","None","2013-01-01",null,"Any","Any",15,5,"Com","DEER2014","D08 v2.05","HVAC","VentAirDist","Motor_Spd","ASD",null,null,"rated years",null,null,null,"Standard"]
["HVAC-VSD-pump","Variable Flow Water Loop, VSD Pump","None","2013-01-01",null,"Any","Any",15,5,"Com","DEER2014","D08 v2.05","HVAC","HeatCool","Motor_Spd","ASD",null,null,"rated years",null,null,null,"Standard"]
["HVAC-VSDSupFan","VSD Supply Fan Motors","None","2013-01-01",null,"Any","Any",15,5,"Com","DEER2014","D08 v2.05","HVAC","VentAirDist","Motor_Spd","ASD",null,null,"rated years",null,null,null,"Standard"]
["HVAC-WSHP","High Efficiency Water Source Heat Pump","None","2013-01-01",null,"Any","Any",15,5,"Com","DEER2014","D08 v2.05","HVAC","HeatCool","dxHP_equip",null,null,null,"rated years",null,null,null,"Standard"]
["HVAC-wtrAC","Air Conditioners (water-cooled, split and unitary)","None","2013-01-01",null,"Any","Any",15,5,"Com","DEER2014","D08 v2.05","HVAC","SpaceCool","dxAC_equip",null,null,null,"rated years",null,null,null,"Standard"]
["HVAC-WtrEcon","Water Side Economizer","None","2013-01-01",null,"Any","Any",15,5,"Com","DEER2014","D08 v2.05","HVAC","SpaceCool","HeatReject","WSEcono",null,null,"rated years",null,null,null,"Standard"]
["HV-CoggedBelt","Cogged Fan Belt","None","2013-01-01",null,"Asm","Any",4.7,1.6,"Com","ExAnte2013","IOU Workpaper","HVAC","VentAirDist","HV_AirDist","VentFanMtr",null,5110,"Occupied Hours",24000,1,5,"Standard","Proposed in PGECOHVC144"]
["HV-CoggedBelt","Cogged Fan Belt","None","2013-01-01",null,"ECC","Any",5,1.7,"Com","ExAnte2013","IOU Workpaper","HVAC","VentAirDist","HV_AirDist","VentFanMtr",null,3828,"Occupied Hours",24000,1,5,"Standard","Proposed in PGECOHVC144"]
["HV-CoggedBelt","Cogged Fan Belt","None","2013-01-01",null,"EPr","Any",5,1.7,"Com","ExAnte2013","IOU Workpaper","HVAC","VentAirDist","HV_AirDist","VentFanMtr",null,2616,"Occupied Hours",24000,1,5,"Standard","Proposed in PGECOHVC144"]
["HV-CoggedBelt","Cogged Fan Belt","None","2013-01-01",null,"ESe","Any",5,1.7,"Com","ExAnte2013","IOU Workpaper","HVAC","VentAirDist","HV_AirDist","VentFanMtr",null,2840,"Occupied Hours",24000,1,5,"Standard","Proposed in PGECOHVC144"]
["HV-CoggedBelt","Cogged Fan Belt","None","2013-01-01",null,"MLI","Any",5,1.7,"Ind","ExAnte2013","IOU Workpaper","HVAC","VentAirDist","HV_AirDist","VentFanMtr",null,3514,"Occupied Hours",24000,1,5,"Standard","Proposed in PGECOHVC144"]
["HV-CoggedBelt","Cogged Fan Belt","None","2013-01-01",null,"Nrs","Any",2.7,0.9,"Com","ExAnte2013","IOU Workpaper","HVAC","VentAirDist","HV_AirDist","VentFanMtr",null,8760,"Occupied Hours",24000,1,5,"Standard","Proposed in PGECOHVC144"]
["HV-CoggedBelt","Cogged Fan Belt","None","2013-01-01",null,"OfL","Any",5,1.7,"Com","ExAnte2013","IOU Workpaper","HVAC","VentAirDist","HV_AirDist","VentFanMtr",null,3974,"Occupied Hours",24000,1,5,"Standard","Proposed in PGECOHVC144"]
["HV-CoggedBelt","Cogged Fan Belt","None","2013-01-01",null,"OfS","Any",5,1.7,"Com","ExAnte2013","IOU Workpaper","HVAC","VentAirDist","HV_AirDist","VentFanMtr",null,3371,"Occupied Hours",24000,1,5,"Standard","Proposed in PGECOHVC144"]
["HV-CoggedBelt","Cogged Fan Belt","None","2013-01-01",null,"RFF","Any",3.5,1.2,"Com","ExAnte2013","IOU Workpaper","HVAC","VentAirDist","HV_AirDist","VentFanMtr",null,6935,"Occupied Hours",24000,1,5,"Standard","Proposed in PGECOHVC144"]
["HV-CoggedBelt","Cogged Fan Belt","None","2013-01-01",null,"RSD","Any",4.7,1.6,"Com","ExAnte2013","IOU Workpaper","HVAC","VentAirDist","HV_AirDist","VentFanMtr",null,5110,"Occupied Hours",24000,1,5,"Standard","Proposed in PGECOHVC144"]
["HV-CoggedBelt","Cogged Fan Belt","None","2013-01-01",null,"Rt3","Any",5,1.7,"Com","ExAnte2013","IOU Workpaper","HVAC","VentAirDist","HV_AirDist","VentFanMtr",null,4482,"Occupied Hours",24000,1,5,"Standard","Proposed in PGECOHVC144"]
["HV-CoggedBelt","Cogged Fan Belt","None","2013-01-01",null,"RtL","Any",4.4000000000000004,1.5,"Com","ExAnte2013","IOU Workpaper","HVAC","VentAirDist","HV_AirDist","VentFanMtr",null,5475,"Occupied Hours",24000,1,5,"Standard","Proposed in PGECOHVC144"]
["HV-CoggedBelt","Cogged Fan Belt","None","2013-01-01",null,"RtS","Any",5,1.7,"Com","ExAnte2013","IOU Workpaper","HVAC","VentAirDist","HV_AirDist","VentFanMtr",null,4745,"Occupied Hours",24000,1,5,"Standard","Proposed in PGECOHVC144"]
["HV-DuctSeal","Duct Sealing","None","2013-01-01",null,"Any","Any",18,6,"Res","DEER2014","D08 v2.05","HVAC","VentAirDist","HV_AirDist","DuctInsul",null,null,"rated years",null,null,null,"Standard"]
["HV-EffFurn","High Efficiency Furnace","None","2013-01-01",null,"Any","Any",20,6.7,"Res","DEER2014","D08 v2.05","HVAC","SpaceHeat","SpaceHtg_eq","GasFurnace",null,null,"rated years",null,null,null,"Standard"]
["HV-Evap","Evaporative Cooler","None","2013-01-01",null,"Any","Any",15,5,"Res","DEER2014","D08 v2.05","HVAC","SpaceCool","EvapCool_eq","ResEvap",null,null,"rated years",null,null,null,"Standard"]
["HV-ProgTstat","Programmable Thermostat","None","2013-01-01",null,"Any","Any",11,3.7,"Res","DEER2014","D08 v2.05","HVAC","EnvCtrl","HV_Tech","Tstat",null,null,"rated years",null,null,null,"Standard"]
["HV-RAC-ES","Room AC - Energy Star","None","2013-01-01",null,"Any","Any",9,3,"Res","DEER2014","D08 v2.05","HVAC","SpaceCool","dxAC_equip",null,null,null,"rated years",null,null,null,"Standard"]
["HV-RAC-RUL","Room AC - Recycling (RUL)","None","2013-01-01",null,"Any","Any",null,3,"Res","DEER2014","D08 v2.05","HVAC","SpaceCool","dxAC_equip",null,null,null,"rated years",null,null,null,"Standard"]
["HV-RefChrg","Refrigerant Charge - Residential","None","2013-01-01",null,"Any","Any",10,3.3,"Res","DEER2014","D08 v2.05","HVAC","HeatCool","dxAC_equip","refrig",null,null,"rated years",null,null,null,"Standard"]
["HV-ResAC","High Efficiency Air Conditioner (package and split systems)","None","2013-01-01",null,"Any","Any",15,5,"Res","DEER2014","D08 v2.05","HVAC","SpaceCool","dxAC_equip",null,null,null,"rated years",null,null,null,"Standard"]
["HV-ResAC-CleanCoil","Clean Condenser Coils - Residential","None","2013-01-01",null,"Any","Any",3,1,"Res","DEER2014","D08 v2.05","Service","Maintenance","HeatReject",null,null,null,"rated years",null,null,null,"Standard"]
["HV-ResEvapAC","High Efficiency Air Conditioner (Evap cooled split systems)","None","2013-01-01",null,"Any","Any",15,5,"Res","DEER2014","D08 v2.05","HVAC","SpaceCool","EvapCool_eq","ResEvap",null,null,"rated years",null,null,null,"Standard"]
["HV-ResHP","High Efficiency Heat Pump","None","2013-01-01",null,"Any","Any",15,5,"Res","DEER2014","D08 v2.05","HVAC","HeatCool","dxHP_equip",null,null,null,"rated years",null,null,null,"Standard"]
["HV-ResRCx","Residential HVAC assessment report & maintenance contract","None","2013-01-01",null,"Any","Any",5,1.7,"Res","ExAnte2013","IOU Workpaper","Service","Diagnostic",null,null,null,null,"rated years",null,null,null,"Proposed","5 years required per Residential HVAC QM dispostion"]
["HV-WHfan","Whole House Fans","None","2013-01-01",null,"Any","Any",20,6.7,"Res","DEER2014","D08 v2.05","HVAC","VentAirDist","HV_AirDist",null,null,null,"rated years",null,null,null,"Standard"]
["ILtg-CFL-12000hr-Com","CFL Lamps - Indoor- Commercial - 12,000 Rated Hours","Com_InGen-CFL","2013-01-01",null,null,null,null,null,"Com","DEER2014","D08 v2.05","Lighting","InGen","Ltg_Lamp","CFLint_lamp",null,null,"lamp rated hours",12000,1,15,"Available"]
["ILtg-CFL-12000hr-Res","CFL Lamps - Indoor- Residential - 12,000 Rated Hours","Res_InGen","2013-01-01","2015-12-31",null,null,null,null,"Res","DEER2014","D08 v2.05","Lighting","InGen","Ltg_Lamp","CFLint_lamp",null,null,"lamp rated hours",12000,0.52300000000000002,15,"Available"]
["ILtg-CFL-12000hr-ResCmn","CFL Lamps - Indoor- Residential Common Area- 12,000 Rated Hours","Res_InCmn-Lmp","2013-01-01",null,null,null,null,null,"Res","DEER2014","Lighting Disposition","Lighting","InCommon","Ltg_Lamp","CFLint_lamp",null,null,"lamp rated hours",12000,1,20,"Available"]
["ILtg-CFL-3Dim-12000hr-Res","CFL Lamps - Indoor- Residential - 12,000 Rated Hours","Res_InGen-3Dim","2013-01-01","2015-12-31",null,null,null,null,"Res","DEER2014","D08 v2.05","Lighting","InGen","Ltg_Lamp","CFLint_lamp",null,null,"lamp rated hours",12000,0.52300000000000002,15,"Available"]
["ILtg-CFL-3Dim-6000hr-Res","CFL Lamps - Indoor- Residential - 6,000 Rated Hours","Res_InGen-3Dim","2013-01-01","2015-12-31",null,null,null,null,"Res","DEER2014","D08 v2.05","Lighting","InGen","Ltg_Lamp","CFLint_lamp",null,null,"lamp rated hours",6000,0.52300000000000002,15,"Available"]
["ILtg-CFL-3Dim-8000hr-Res","CFL Lamps - Indoor- Residential - 8,000 Rated Hours","Res_InGen-3Dim","2013-01-01","2015-12-31",null,null,null,null,"Res","DEER2014","D08 v2.05","Lighting","InGen","Ltg_Lamp","CFLint_lamp",null,null,"lamp rated hours",8000,0.52300000000000002,20,"Available"]
["ILtg-CFL-3Dim-Res","CFL Lamps - Indoor- Residential - 10,000 Rated Hours","Res_InGen-3Dim","2013-01-01","2015-12-31",null,null,null,null,"Res","DEER2014","D08 v2.05","Lighting","InGen","Ltg_Lamp","CFLint_lamp",null,null,"lamp rated hours",10000,0.52300000000000002,20,"Available","fixed typo in ID (3Diim)"]
["ILtg-CFL-6000hr-Com","CFL Lamps - Indoor- Commercial - 6,000 Rated Hours","Com_InGen-CFL","2013-01-01",null,null,null,null,null,"Com","DEER2014","D08 v2.05","Lighting","InGen","Ltg_Lamp","CFLint_lamp",null,null,"lamp rated hours",6000,1,15,"Available"]
["ILtg-CFL-6000hr-Res","CFL Lamps - Indoor- Residential - 6,000 Rated Hours","Res_InGen","2013-01-01","2015-12-31",null,null,null,null,"Res","DEER2014","D08 v2.05","Lighting","InGen","Ltg_Lamp","CFLint_lamp",null,null,"lamp rated hours",6000,0.52300000000000002,15,"Available"]
["ILtg-CFL-6000hr-ResCmn","CFL Lamps - Indoor- Residential Common Area- 6,000 Rated Hours","Res_InCmn-Lmp","2013-01-01",null,null,null,null,null,"Res","DEER2014","Lighting Disposition","Lighting","InCommon","Ltg_Lamp","CFLint_lamp",null,null,"lamp rated hours",6000,1,20,"Available"]
["ILtg-CFL-8000hr-Com","CFL Lamps - Indoor- Commercial - 8,000 Rated Hours","Com_InGen-CFL","2013-01-01",null,null,null,null,null,"Com","DEER2014","D08 v2.05","Lighting","InGen","Ltg_Lamp","CFLint_lamp",null,null,"lamp rated hours",8000,1,15,"Available"]
["ILtg-CFL-8000hr-Res","CFL Lamps - Indoor- Residential - 8,000 Rated Hours","Res_InGen","2013-01-01","2015-12-31",null,null,null,null,"Res","DEER2014","D08 v2.05","Lighting","InGen","Ltg_Lamp","CFLint_lamp",null,null,"lamp rated hours",8000,0.52300000000000002,20,"Available"]
["ILtg-CFL-8000hr-ResCmn","CFL Lamps - Indoor- Residential Common Area- 8,000 Rated Hours","Res_InCmn-Lmp","2013-01-01",null,null,null,null,null,"Res","DEER2014","Lighting Disposition","Lighting","InCommon","Ltg_Lamp","CFLint_lamp",null,null,"lamp rated hours",8000,1,20,"Available"]
["ILtg-CFL-Com","CFL Lamps - Indoor- Commercial - 10,000 Rated Hours","Com_InGen-CFL","2013-01-01",null,null,null,null,null,"Com","DEER2014","D08 v2.05","Lighting","InGen","Ltg_Lamp","CFLint_lamp",null,null,"lamp rated hours",10000,1,15,"Available"]
["ILtg-CFLfix-Com","CFL Fixtures - Indoor- Commercial","None","2013-01-01",null,"Any","Any",12,4,"Com","DEER2014","D08 v2.05","Lighting","InGen","Ltg_Fixture","CFL_fixt",null,null,"rated years",null,null,null,"Standard"]
["ILtg-CFLfix-Res","CFL Fixtures - Indoor - Residential","None","2013-01-01",null,"Any","Any",16,5.33,"Res","DEER2014","D08 v2.05","Lighting","InGen","Ltg_Fixture","CFL_fixt",null,null,"rated years",null,null,16,"Standard"]
["ILtg-CFLfix-ResCmnArea","CFL Fixtures - Indoor - Residential Common Area","None","2013-01-01",null,"Any","Any",15,5,"Res","DEER2014","Lighting Disposition","Lighting","InCommon","Ltg_Fixture","CFL_fixt",null,null,"rated years",null,null,15,"Standard","supports lighting disposition measures"]
["ILtg-CFL-Res","CFL Lamps - Indoor- Residential - 10,000 Rated Hours","Res_InGen","2013-01-01","2015-12-31",null,null,null,null,"Res","DEER2014","D08 v2.05","Lighting","InGen","Ltg_Lamp","CFLint_lamp",null,null,"lamp rated hours",10000,0.52300000000000002,20,"Available"]
["ILtg-CFL-Res","CFL Lamps - Indoor- Residential","None","2016-01-01",null,"Any","Any",3.5,1.2,"Res","DEER2016","D15-UncMsr","Lighting","InGen","Ltg_Lamp","CFLint_lamp",null,null,"expected replacement cycle",null,null,null,"Available"]
["ILtg-CFL-ResCmn","CFL Lamps - Indoor- Residential Common Area- 10,000 Rated Hours","Res_InCmn-Lmp","2013-01-01",null,null,null,null,null,"Res","DEER2014","Lighting Disposition","Lighting","InCommon","Ltg_Lamp","CFLint_lamp",null,null,"lamp rated hours",10000,1,20,"Available"]
["Iltg-Com-CldCthd-25000hr","Iltg-Com-CldCthd-25000hr","Com_InGen-CFL","2013-01-01",null,null,null,null,null,"Com","DEER2014","PA workpaper","Lighting","InGen","Ltg_Lamp","CFLint_lamp",null,null,"lamp rated hours",25000,1,15,"Available"]
["ILtg-Com-LED-15000hr","LED Lamp - Indoor- Commercial - Small wattage Globe, Any Candle shape","Com_InGen-CFL","2013-01-01",null,null,null,null,null,"Com","DEER2014","Lighting Disposition","Lighting","InGen","Ltg_Lamp","LED_lamp",null,null,"lamp rated hours",15000,1,12,"Available"]
["ILtg-Com-LED-20000hr","LED Lamp - Indoor- Commercial","Com_InGen-CFL","2013-01-01",null,null,null,null,null,"Com","DEER2014","Lighting Disposition","Lighting","InGen","Ltg_Lamp","LED_lamp",null,null,"lamp rated hours",20000,1,12,"Available"]
["ILtg-Com-LED-50000hr","LED Fixture - Indoor- Commercial","Com_InGen-CFL","2013-01-01",null,null,null,null,null,"Com","DEER2014","Lighting Disposition","Lighting","InGen","Ltg_Lamp","LED_lamp",null,null,"LED fixture rated hours",50000,1,12,"Available"]
["ILtg-Com-LED-50000hr+16yr","LED Fixture - Indoor - Commercial","None","2013-01-01",null,"Any","Any",16,5.3,"Com","DEER2016","PA workpaper","Lighting","InGen","Ltg_Fixture","LED_fixt",null,4000,"LED Fixture life",50000,1,16,"Standard","requires update"]
["ILtg-Exit","Exit Lighting","None","2013-01-01",null,"Any","Any",16,5.3,"Com","DEER2014","D08 v2.05","Lighting","InExit","Ltg_Fixture","Exit_fixt",null,null,"rated years",null,null,null,"Standard"]
["ILtg-HID","HID Lighting - Any HID Fixture","Com_InGen-HB","2013-01-01",null,null,null,null,null,"Com","DEER2014","D08 v2.05","Lighting","InGen","Ltg_Fixture","HID_fixt",null,null,"electronic ballast rated hours",70000,1,15,"Available"]
["ILtg-HID-Cmn","HID Lighting - Any Fixture - Residential Common Area","Res_InCmn-Fixt","2013-01-01",null,null,null,null,null,"Res","DEER2014","Lighting Disposition","Lighting","InCommon","Ltg_Fixture","HID_fixt",null,null,"electronic ballast rated hours",70000,1,15,"Available"]
["ILtg-HPS","HID Lighting - High Pressure Sodium","Com_InGen-HB","2013-01-01",null,null,null,null,null,"Com","DEER2014","D08 v2.05","Lighting","InGen","Ltg_Fixture","HID_fixt",null,null,"electronic ballast rated hours",70000,1,15,"Available"]
["ILtg-Incand-Com","CFL Lamps - Indoor- Commercial - 10,000 Rated Hours","Com_InGen-CFL","2013-01-01",null,null,null,null,null,"Com","DEER2014","D14 v1.0.0","Lighting","InGen","Ltg_Lamp","Incan_lamp",null,null,"lamp rated hours",10000,1,15,"Available"]
["ILtg-Incand-Res","Incandescent Lamps - 2,000 Hour","Res_InGen","2013-01-01",null,null,null,null,null,"Res","DEER2014","D14 v1.0.0","Lighting","InGen","Ltg_Lamp","Incan_lamp",null,null,"lamp rated hours",2000,1,15,"Available"]
["ILtg-Induct-Elec","HID Lighting - Induction","Com_InGen-HB","2013-01-01",null,"Any","Any",null,null,"Com","DEER2014","Lighting Disposition","Lighting","InGen","Ltg_Fixture","Ind_LmpBlst",null,null,"electronic ballast rated hours",70000,1,15,"Available"]
["ILtg-LED","0.3 W LED Night Light","None","2013-01-01",null,"Any","Any",16,5.3,"Res","DEER2014","D08 v2.05","Lighting","InTask","Ltg_Plugin","PlugIn_fixt",null,null,"rated years",null,null,null,"Standard"]
["ILtg-LED-seas","LED Seasonal Light","None","2013-01-01",null,"Any","Any",16,5.3,"Res","DEER2014","D08 v2.05","Lighting","Seasonal","Ltg_Plugin","LtString",null,null,"rated years",null,null,null,"Standard"]
["ILtg-Lfluor-CommArea","Linear Fluorescents - Indoor Residential Common Area ","Res_InCmn-Fixt","2013-01-01",null,null,null,null,null,"Res","DEER2014","Lighting Disposition","Lighting","InCommon","Ltg_Fixture","LinFluor_fixt",null,null,"electronic ballast rated hours",70000,1,15,"Available"]
["ILtg-Lfluor-CommArea","Linear Fluorescents - MF Common Area","None","2013-01-01",null,"MFm","Any",15,5,"Res","DEER2014","D08 v2.05","Lighting","InGen","Ltg_Fixture","LinFluor_fixt",null,null,"electronic ballast rated hours",70000,1,15,"Standard"]
["ILtg-Lfluor-Elec","Linear Fluorescent with Electronic Ballast","Com_InGen-LF","2013-01-01",null,null,null,null,null,"Com","DEER2014","D08 v2.05","Lighting","InGen","Ltg_Fixture","LinFluor_fixt",null,null,"electronic ballast rated hours",70000,1,15,"Available"]
["ILtg-Lfluor-fix","Linear Fluorescent - Fixtures","None","2013-01-01",null,"Any","Any",16,5.3,"Com","DEER2014","D08 v2.05","Lighting","InGen","Ltg_Fixture","LinFluor_fixt",null,null,"rated years",null,null,null,"Standard"]
["ILtg-Lfluor-Mag","Linear Fluorescent with Magnetic Ballast","Com_InGen-LF","2013-01-01",null,null,null,null,null,"Com","DEER2014","D08 v2.05","Lighting","InGen","Ltg_Fixture","LinFluor_fixt",null,null,"magnetic ballast rated hours",45000,1,15,"Available"]
["ILtg-Lfluor-T12Mag","Linear Fluorescent with T12 Lamp + Magnetic Ballast","Com_InGen-LF","2013-01-01",null,null,null,null,null,"Com","DEER2014","D11 v4.00","Lighting","InGen","Ltg_Fixture","LinFluor_fixt",null,null,"T12 lamp rated hours",20000,1,15,"Available"]
["ILtg-MH","HID Lighting - Metal Halide","Com_InGen-HB","2013-01-01",null,null,null,null,null,"Com","DEER2014","D08 v2.05","Lighting","InGen","Ltg_Fixture","HID_fixt",null,null,"electronic ballast rated hours",70000,1,15,"Available"]
["ILtg-OccSens","Occupancy Sensors","None","2013-01-01",null,"Any","Any",8,2.7,"Com","DEER2014","D08 v2.05","Lighting","Controls","Ltg_Fixture","OccSensor",null,null,"rated years",null,null,null,"Standard"]
["ILtg-Res-LED-15000hr","LED lamp - Indoor - Residential - small wattage Globe, Any Candle shape","Res_InGen","2013-01-01",null,null,null,null,null,"Res","DEER2014","Lighting Disposition","Lighting","InGen","Ltg_Lamp","LED_lamp",null,null,"LED lamp rated hours",15000,1,16,"Available"]
["ILtg-Res-LED-15000hr-Cmn","LED lamp - Indoor - Residential  Common Area - small wattage Globe, Any Candle shape","Res_InCmn-Lmp","2013-01-01",null,null,null,null,null,"Res","DEER2014","Lighting Disposition","Lighting","InCommon","Ltg_Lamp","LED_lamp",null,null,"LED lamp rated hours",15000,1,16,"Available"]
["ILtg-Res-LED-20000hr","LED lamp - Indoor - Residential","Res_InGen","2013-01-01",null,null,null,null,null,"Res","DEER2014","Lighting Disposition","Lighting","InGen","Ltg_Lamp","LED_lamp",null,null,"LED lamp rated hours",20000,1,16,"Available"]
["ILtg-Res-LED-20000hr-Cmn","LED lamp - Indoor - Residential Common Area","Res_InCmn-Lmp","2013-01-01",null,null,null,null,null,"Res","DEER2014","Lighting Disposition","Lighting","InCommon","Ltg_Lamp","LED_lamp",null,null,"LED lamp rated hours",20000,1,16,"Available"]
["ILtg-Res-LED-50000hr","LED Fixture - Indoor - Residential","Res_InGen","2013-01-01",null,null,null,null,null,"Res","DEER2014","Lighting Disposition","Lighting","InGen","Ltg_Fixture","LED_fixt",null,null,"LED fixture rated hours",50000,1,16,"Available"]
["ILtg-Res-LED-50000hr+12yr","LED Fixture - Indoor - Residential","None","2016-05-01",null,"Any","Any",12,4,"Res","ExAnte2017","Disposition","Lighting","InGen","Ltg_Fixture","LED_fixt",null,null,"LED Fixture life",50000,1,null,"Standard"]
["ILtg-Res-LED-50000hr+16yr","LED Fixture - Indoor - Residential","None","2013-01-01",null,"Any","Any",16,5.3,"Res","DEER2016","PA workpaper","Lighting","InCommon","Ltg_Fixture","LED_fixt",null,4000,"LED Fixture life",50000,1,16,"Standard","requires update"]
["ILtg-Res-LED-50000hr-Cmn","LED Fixture - Indoor - Residential Common Area","Res_InCmn-Lmp","2013-01-01",null,null,null,null,null,"Res","DEER2014","Lighting Disposition","Lighting","InCommon","Ltg_Fixture","LED_fixt",null,null,"LED fixture rated hours",50000,1,16,"Available"]
["ILtg-T5","HID Lighting (T-5)","Com_InGen-HB","2013-01-01",null,null,null,null,null,"Com","DEER2014","D08 v2.05","Lighting","InGen","Ltg_Fixture","LinFluor_fixt",null,null,"electronic ballast rated hours",70000,1,15,"Available"]
["ILtg-TmClck","Timeclocks","None","2013-01-01",null,"Any","Any",8,2.7,"Com","DEER2014","D08 v2.05","Lighting","Controls","Ltg_Fixture","Timer",null,null,"rated years",null,null,null,"Standard"]
["LED-Cooler","LED Lighting in Walk-in Coolers and Freezers","None","2013-01-01",null,"Gro","Any",11,3.7,"Com","ExAnte2013","IOU Workpaper","Lighting","Refrig","Ltg_Fixture","LED_fixt",null,4380,"Lamp rated hours",50000,1,null,"Proposed","PGE3PLTG167 R0"]
["LED-sign","LED Open Signs","None","2013-01-01",null,"Any","Any",16,5.3,"Com","ExAnte2013","IOU Workpaper","Lighting","OutSign","Ltg_Fixture","LED_fixt",null,null,"rated years",null,null,null,"Proposed"]
["LtgFixture-Default","Default EUL/RUL for lighting fixtures","None","2013-01-01",null,"Any","Any",15,5,"CC","DEER2016","D16","Lighting","Any","Ltg_Fixture","Any",null,null,"rated years",null,null,15,"Proposed"]
["Motors-fan","HVAC Fan Motors","None","2013-01-01",null,"Any","Any",15,5,"Com","DEER2014","D08 v2.05","HVAC","VentAirDist","HV_AirDist",null,null,null,"rated years",null,null,null,"Standard"]
["Motors-HiEff","Premium-Efficiency Motors","None","2013-01-01",null,"Any","Any",15,5,"Com","DEER2014","D08 v2.05",null,null,"Motor",null,null,null,"rated years",null,null,null,"Standard"]
["Motors-pump","Water Loop Pumps","None","2013-01-01",null,"Any","Any",15,5,"Com","DEER2014","D08 v2.05",null,null,"LiquidCirc","PumpMtr",null,null,"rated years",null,null,null,"Standard"]
["NonRes-Behavioral","behavioral programs in non residential settings","None","2017-01-01",null,"Any","Any",2,null,"NonRes","DEER2017","D.16-08-019, section 3.11",null,null,null,null,null,null,"rated years",null,null,2,"Standard","Behavioral measures described within the 2016 rolling portfolio decision"]
["NonRes-RCx-Operational","retrocommissioning and operational programs in non residential settings","None","2017-01-01",null,"Any","Any",3,1,"NonRes","DEER2017","D.16-08-019, section 3.11",null,null,null,null,null,null,"rated years",null,null,3,"Standard","retrocommissioning and operational measures described within the 2016 rolling portfolio decision"]
["NonSav","EUL that can be specified for Non-savings measure claims so that they pass CEDARS","None","2013-01-01",null,"Any","Any",0,0,"Any","ExAnte2016","CEDARS",null,null,null,null,null,null,null,null,null,null,"Standard","used only for CEDARS value list"]
["OLtg-All-TmClk","Timeclock with or without photocell","None","2013-01-01",null,"Any","Any",8,2.7,"Com","DEER2014","D08 v2.05","Lighting","Controls","Ltg_Controls","Timer",null,null,"rated years",null,null,null,"Standard"]
["OLtg-All-TmClkPhoto","Timeclock with or without photocell","None","2013-01-01",null,"Any","Any",8,2.7,"Com","DEER2014","D08 v2.05","Lighting","Controls","Ltg_Controls",null,null,null,"rated years",null,null,null,"Standard"]
["OLtg-CFL","Outdoor CFL Lamps - 10,000 Hour","Com_OutGen","2013-01-01",null,null,null,null,null,"Com","DEER2014","D08 v2.05","Lighting","OutGen","Ltg_Lamp","CFLint_lamp",null,null,"lamp rated hours",10000,1,15,"Available"]
["OLtg-CFL","CFL Lamps - Outdoor- Residential - 10,000 Rated Hours","Res_OutGen-Lmp","2013-01-01",null,null,null,null,null,"Res","DEER2014","D08 v2.05","Lighting","OutGen","Ltg_ScrewIn","CFL_lamp",null,null,"lamp rated hours",10000,1,20,"Available"]
["OLtg-CFL","CFL Lamps - Outdoor- Residential - 10,000 Rated Hours","None","2016-01-01",null,"DMo","Any",3.5,1.2,"Res","DEER2016","D15-UncMsr","Lighting","OutGen","Ltg_ScrewIn","CFL_lamp",null,null,"expected replacement cycle",null,1,20,"Available"]
["OLtg-CFL","CFL Lamps - Outdoor- Residential - 10,000 Rated Hours","None","2016-01-01",null,"MFm","Any",3.5,1.2,"Res","DEER2016","D15-UncMsr","Lighting","OutGen","Ltg_ScrewIn","CFL_lamp",null,null,"expected replacement cycle",null,1,20,"Available"]
["OLtg-CFL","CFL Lamps - Outdoor- Residential - 10,000 Rated Hours","None","2016-01-01",null,"SFm","Any",3.5,1.2,"Res","DEER2016","D15-UncMsr","Lighting","OutGen","Ltg_ScrewIn","CFL_lamp",null,null,"expected replacement cycle",null,1,20,"Available"]
["OLtg-CFL-12000hr-Res","CFL Lamps - Outdoor- Residential - 12,000 Rated Hours","Res_OutGen-Lmp","2013-01-01",null,null,null,null,null,"Res","DEER2011","D08 v2.05","Lighting","OutGen","Ltg_ScrewIn","CFL_lamp",null,null,"lamp rated hours",12000,1,20,"Available"]
["OLtg-CFL-12000hr-Res-Cmn","CFL Lamps - Outdoor- Residential Common Area - 12,000 Rated Hours","Res_OutCmn-Lmp","2013-01-01",null,null,null,null,null,"Res","DEER2014","Lighting Disposition","Lighting","OutCommon","Ltg_Lamp","CFLint_lamp",null,null,"lamp rated hours",12000,1,20,"Available"]
["OLtg-CFL-6000hr-Res","CFL Lamps - Outdoor- Residential - 6,000 Rated Hours","Res_OutGen-Lmp","2013-01-01",null,null,null,null,null,"Res","DEER2011","D08 v2.05","Lighting","OutGen","Ltg_ScrewIn","CFL_lamp",null,null,"lamp rated hours",6000,1,20,"Available"]
["OLtg-CFL-6000hr-Res-Cmn","CFL Lamps - Outdoor- Residential Common Area - 6,000 Rated Hours","Res_OutCmn-Lmp","2013-01-01",null,null,null,null,null,"Res","DEER2014","Lighting Disposition","Lighting","OutCommon","Ltg_Lamp","CFLint_lamp",null,null,"lamp rated hours",6000,1,20,"Available"]
["OLtg-CFL-8000hr-Res","CFL Lamps - Outdoor- Residential - 8,000 Rated Hours","Res_OutGen-Lmp","2013-01-01",null,null,null,null,null,"Res","DEER2011","D08 v2.05","Lighting","OutGen","Ltg_ScrewIn","CFL_lamp",null,null,"lamp rated hours",8000,1,20,"Available"]
["OLtg-CFL-8000hr-Res-Cmn","CFL Lamps - Outdoor- Residential Common Area - 8,000 Rated Hours","Res_OutCmn-Lmp","2013-01-01",null,null,null,null,null,"Res","DEER2014","Lighting Disposition","Lighting","OutCommon","Ltg_Lamp","CFLint_lamp",null,null,"lamp rated hours",8000,1,20,"Available"]
["OLtg-CFL-Cmn","CFL Lamps - Outdoor- Residential Common Area - 10,000 Rated Hours","Res_OutCmn-Lmp","2013-01-01",null,null,null,null,null,"Res","DEER2014","Lighting Disposition","Lighting","OutCommon","Ltg_Lamp","CFLint_lamp",null,null,"lamp rated hours",10000,1,20,"Available"]
["OLtg-CFL-Dusk-to-Dawn","CFL Lamps - Outdoor Dusk to Dawn Operation","None","2013-01-01",null,"Any","Any",2.2799999999999998,0.76,"CC","DEER2014","Lighting Disposition","Lighting","OutDuskDawn","Ltg_Lamp","CFLint_lamp",null,4380,"lamp rated hours",10000,1,20,"Standard","supports lighting disposition measures"]
["OLtg-CFLfix","CFL Fixtures - Outdoor - Residential","None","2013-01-01",null,"Any","Any",16,5.3,"Res","DEER2014","D08 v2.05","Lighting","OutGen","Ltg_Fixture","CFL_fixt",null,null,"rated years",null,null,15,"Standard"]
["OLtg-CFLfix-Dusk-to-Dawn","CFL Fixtures - Outdoor - Dusk to Dawn Operation","None","2013-01-01",null,"Any","Any",15,5,"CC","DEER2014","Lighting Disposition","Lighting","OutDuskDawn","Ltg_Fixture","CFL_fixt",null,null,"rated years",null,null,15,"Standard","supports lighting disposition measures"]
["OLtg-CFLfix-ResCmnArea","CFL Fixtures - Outdoor - Residential Common Area","None","2013-01-01",null,"Any","Any",15,5,"Res","DEER2014","Lighting Disposition","Lighting","OutCommon","Ltg_Fixture","CFL_fixt",null,null,"rated years",null,null,15,"Standard","supports lighting disposition measures"]
["OLtg-Com-LED-15000hr","LED lamp - Outdoor- Commercial - Small wattage Globe, Any Candle shape","Com_OutGen","2013-01-01",null,null,null,null,null,"Com","DEER2014","Lighting Disposition","Lighting","OutGen","Ltg_Lamp","LED_lamp",null,null,"LED lamp rated hours",15000,1,12,"Available"]
["OLtg-Com-LED-20000hr","LED lamp - Outdoor- Commercial","Com_OutGen","2013-01-01",null,null,null,null,null,"Com","DEER2014","Lighting Disposition","Lighting","OutGen","Ltg_Lamp","LED_lamp",null,null,"LED lamp rated hours",20000,1,12,"Available"]
["OLtg-Com-LED-50000hr","LED Fixture - Outdoor- Commercial","Com_OutGen","2013-01-01",null,null,null,null,null,"Com","DEER2014","Lighting Disposition","Lighting","OutGen","Ltg_Fixture","LED_fixt",null,null,"LED fixture rated hours",50000,1,12,"Available"]
["OLtg-HID","Outdoor HID Lighting","Res_OutGen-Fixt","2013-01-01",null,null,null,null,null,"Res","DEER2014","D08 v2.05","Lighting","OutGen","Ltg_Fixture","HID_fixt",null,null,"electronic ballast rated hours",70000,1,15,"Available"]
["OLtg-HID-Cmn","Outdoor HID Lighting - Any Fixture - Residential Common Area","Res_OutCmn-Fixt","2013-01-01",null,null,null,null,null,"Res","DEER2014","Lighting Disposition","Lighting","OutCommon","Ltg_Fixture","HID_fixt",null,null,"electronic ballast rated hours",70000,1,15,"Available"]
["OLtg-HPS","HID Lighting - High Pressure Sodium","Com_OutGen","2013-01-01",null,null,null,null,null,"Com","DEER2014","D08 v2.05","Lighting","OutGen","Ltg_Fixture","HID_fixt",null,null,"electronic ballast rated hours",70000,1,15,"Available"]
["OLtg-Incand-Com","Incandescent Lamps - Outdoor- Commercial - 10,000 Rated Hours","Com_OutGen","2013-01-01",null,null,null,null,null,"Com","DEER2014","D14 v1.0.0","Lighting","OutGen","Ltg_Lamp","Incan_lamp",null,null,"lamp rated hours",10000,1,15,"Available"]
["OLtg-Incand-Res","Incandescent Lamps - Outdoor- Residential - 2,000 Rated Hours","Res_OutGen-Lmp","2013-01-01",null,null,null,null,null,"Res","DEER2014","D14 v1.0.0","Lighting","OutGen","Ltg_Lamp","Incan_lamp",null,null,"lamp rated hours",2000,1,15,"Available"]
["OLtg-Incand-Res-Cmn","Incandescent Lamps - Outdoor- Residential - 2,000 Rated Hours","Res_OutCmn-Lmp","2013-01-01",null,null,null,null,null,"Res","DEER2014","D14 v1.0.0","Lighting","OutCommon","Ltg_Lamp","Incan_lamp",null,null,"lamp rated hours",2000,1,15,"Available"]
["OLtg-Induct","HID Lighting - Induction","Com_OutGen","2013-01-01",null,"Any","Any",null,null,"Com","DEER2014","Lighting Disposition","Lighting","OutGen","Ltg_Fixture","Any",null,null,"electronic ballast rated hours",70000,1,15,"Available","Can refer to lamps+ballast or fixture technologies"]
["Oltg-LED","LED Lighting","None","2013-01-01",null,"Any","Any",12,4,"CC","ExAnte2010","IOU Workpaper","Lighting","OutGen","Ltg_Fixture","LED_fixt",null,4170,"lamp rated hours",50000,1,12,"Proposed"]
["OLtg-LEDfixt-Res","Outdoor LED Fixture replacement passed through from a 2013 3rd party PG&E workpaper (PGE3PLTG166).  This ID may not be used for any new measures. ","None","2013-01-01",null,"Any","Any",15,5,"Res","DEER2014","Lighting Disposition","Lighting","OutGen","Ltg_Fixture","LED_fixt",null,null,"rated years",null,null,null,"Proposed","Source: PGE3PLTG166 from Phase 1 of 2013.  Measures passed through in the 2013-14 lighting retrofit disposition"]
["OLtg-LFluor-Com","Outdoor Linear Fluorescent with Electronic Ballast","Com_OutGen","2013-01-01",null,null,null,null,null,"Com","DEER2014","D08 v2.05","Lighting","OutGen","Ltg_Fixture","LinFluor_fixt",null,null,"electronic ballast rated hours",70000,1,15,"Available"]
["OLtg-LFluor-CommArea","Linear Fluorescents - Outdoor Residential Common Area","Res_OutCmn-Fixt","2013-01-01",null,null,null,null,null,"Res","DEER2014","Lighting Disposition","Lighting","OutCommon","Ltg_Fixture","LinFluor_fixt",null,null,"electronic ballast rated hours",70000,1,15,"Available"]
["OLtg-LFluor-Dusk-to-Dawn","Linear Fluorescents - Outdoor Dusk to Dawn operation","None","2013-01-01",null,null,null,15,5,"CC","DEER2014","Lighting Disposition","Lighting","OutDuskDawn","Ltg_Fixture","LinFluor_fixt",null,4380,"electronic ballast rated hours",70000,1,15,"Available"]
["OLtg-Lfluor-Mag","Outdoor Linear Fluorescent with Magnetic Ballast","Com_OutGen","2013-01-01",null,null,null,null,null,"Com","DEER2014","D08 v2.05","Lighting","OutGen","Ltg_Fixture","LinFluor_fixt",null,null,"magnetic ballast rated hours",45000,1,15,"Available"]
["OLtg-LFluor-Res","Linear Fluorescents - Home","Res_OutGen-Fixt","2013-01-01",null,null,null,null,null,"Res","DEER2014","D08 v2.05","Lighting","OutGen","Ltg_Fixture","LinFluor_fixt",null,null,"electronic ballast rated hours",70000,1,15,"Available"]
["OLtg-MH","HID Lighting - Metal Halide","Com_OutGen","2013-01-01",null,null,null,null,null,"Com","DEER2014","D08 v2.05","Lighting","OutGen","Ltg_Fixture","HID_fixt",null,null,"electronic ballast rated hours",70000,1,15,"Available"]
["OLtg-Res-LED-15000hr","LED lamp - Outdoor- Residential - Small wattage Globe, Any Candle shape","Res_OutGen-LED","2013-01-01",null,null,null,null,null,"Res","DEER2014","Lighting Disposition","Lighting","OutGen","Ltg_Lamp","LED_lamp",null,null,"LED lamp rated hours",15000,1,16,"Available"]
["OLtg-Res-LED-15000hr-Cmn","LED lamp - Outdoor- Residential Common Area - Small wattage Globe, Any Candle shape","Res_OutCmn-Lmp","2013-01-01",null,null,null,null,null,"Res","DEER2014","Lighting Disposition","Lighting","OutCommon","Ltg_Lamp","LED_lamp",null,null,"LED lamp rated hours",15000,1,16,"Available"]
["OLtg-Res-LED-20000hr","LED lamp - Outdoor- Residential","Res_OutGen-LED","2013-01-01",null,null,null,null,null,"Res","DEER2014","Lighting Disposition","Lighting","OutGen","Ltg_Lamp","LED_lamp",null,null,"LED lamp rated hours",20000,1,16,"Available"]
["OLtg-Res-LED-20000hr-Cmn","LED lamp - Outdoor- Residential Common Area","Res_OutCmn-Lmp","2013-01-01",null,null,null,null,null,"Res","DEER2014","Lighting Disposition","Lighting","OutCommon","Ltg_Lamp","LED_lamp",null,null,"LED lamp rated hours",20000,1,16,"Available"]
["OLtg-Res-LED-50000hr","LED Fixture - Outdoor- Residential","Res_OutGen-LED","2013-01-01",null,null,null,null,null,"Res","DEER2014","Lighting Disposition","Lighting","OutGen","Ltg_Fixture","LED_fixt",null,null,"LED fixture rated hours",50000,1,16,"Available"]
["OLtg-Res-LED-50000hr-Cmn","LED Fixture - Outdoor- Residential Common Area","Res_OutCmn-Lmp","2013-01-01",null,null,null,null,null,"Res","DEER2014","Lighting Disposition","Lighting","OutCommon","Ltg_Fixture","LED_fixt",null,null,"LED fixture rated hours",50000,1,16,"Available"]
["OLtg-T5","Outdoor HID Lighting (T-5)","Com_OutGen","2013-01-01",null,null,null,null,null,"Com","DEER2014","D08 v2.05","Lighting","OutGen","Ltg_Fixture","LinFluor_fixt",null,null,"electronic ballast rated hours",70000,1,15,"Available"]
["OLtg-TmClck","Timeclock with or without photocell","None","2013-01-01",null,"Any","Any",8,2.7,"Com","DEER2014","D08 v2.05","Lighting","Controls","Ltg_Fixture",null,null,null,"rated years",null,null,null,"Standard"]
["OutD-PoolCover","Outdoor pool cover","None","2013-01-01",null,"Any","Any",5,1.7,"Com","ExAnte2013","IOU Workpaper","Recreate","Pool","PoolSpa_eq","PoolCover",null,null,"rated years",null,null,null,"Proposed","proposed in PGE3PPRO109r0"]
["OutD-PoolPump","High Efficiency Pool Pump","None","2013-01-01",null,"Any","Any",10,3.3,"Res","DEER2014","D08 v2.05","Recreate","Pool","LiquidCirc",null,null,null,"rated years",null,null,null,"Standard"]
["OzoneGen","Ozone Generator for commercial laundry","None","2013-01-01",null,"Any","Any",10,3.33,"Com","DEER2015","PA workpaper","AppPlug","Laundry","Clean_equip","ClothesWasher",null,null,"rated years",10,null,null,"Proposed","proposed in PGECOAPP123 R3, based on the typical life of the ozone generator's corona discharge unit"]
["PGE-EUC-LM005-1975","PGE Energy Upgrade California EUL for measure LM005, vintage 1975","None","2013-01-01",null,"SFm","Any",18.600000000000001,6.2,"Res","DEER2014","PA workpaper","WhlBldg","WBUpgrade","WhlBldg","WBRetPkg",null,null,"evaluated years",null,null,null,"Proposed","Based on WORKPAPER DISPOSITION for Modified Basic Path – California Public Utilities Commission by Energy Division on April 29, 2013."]
["PGE-EUC-LM005-1985","PGE Energy Upgrade California EUL for measure LM005, vintage 1985","None","2013-01-01",null,"SFm","Any",18.2,6.07,"Res","DEER2014","PA workpaper","WhlBldg","WBUpgrade","WhlBldg","WBRetPkg",null,null,"evaluated years",null,null,null,"Proposed","Based on WORKPAPER DISPOSITION for Modified Basic Path – California Public Utilities Commission by Energy Division on April 29, 2013."]
["PGE-EUC-LM005-1996","PGE Energy Upgrade California EUL for measure LM005, vintage 1996","None","2013-01-01",null,"SFm","Any",18,6,"Res","DEER2014","PA workpaper","WhlBldg","WBUpgrade","WhlBldg","WBRetPkg",null,null,"evaluated years",null,null,null,"Proposed","Based on WORKPAPER DISPOSITION for Modified Basic Path – California Public Utilities Commission by Energy Division on April 29, 2013."]
["PGE-EUC-LM081-1975","PGE Energy Upgrade California EUL for measure LM081, vintage 1975","None","2013-01-01",null,"SFm","Any",18.399999999999999,6.13,"Res","DEER2014","PA workpaper","WhlBldg","WBUpgrade","WhlBldg","WBRetPkg",null,null,"evaluated years",null,null,null,"Proposed","Based on WORKPAPER DISPOSITION for Modified Basic Path – California Public Utilities Commission by Energy Division on April 29, 2013."]
["PGE-EUC-LM081-1985","PGE Energy Upgrade California EUL for measure LM081, vintage 1985","None","2013-01-01",null,"SFm","Any",17.7,5.9,"Res","DEER2014","PA workpaper","WhlBldg","WBUpgrade","WhlBldg","WBRetPkg",null,null,"evaluated years",null,null,null,"Proposed","Based on WORKPAPER DISPOSITION for Modified Basic Path – California Public Utilities Commission by Energy Division on April 29, 2013."]
["PGE-EUC-LM081-1996","PGE Energy Upgrade California EUL for measure LM081, vintage 1996","None","2013-01-01",null,"SFm","Any",17.399999999999999,5.8,"Res","DEER2014","PA workpaper","WhlBldg","WBUpgrade","WhlBldg","WBRetPkg",null,null,"evaluated years",null,null,null,"Proposed","Based on WORKPAPER DISPOSITION for Modified Basic Path – California Public Utilities Commission by Energy Division on April 29, 2013."]
["PGE-EUC-LM125-1975","PGE Energy Upgrade California EUL for measure LM125, vintage 1975","None","2013-01-01",null,"SFm","Any",16.100000000000001,5.37,"Res","DEER2014","PA workpaper","WhlBldg","WBUpgrade","WhlBldg","WBRetPkg",null,null,"evaluated years",null,null,null,"Proposed","Based on WORKPAPER DISPOSITION for Modified Basic Path – California Public Utilities Commission by Energy Division on April 29, 2013."]
["PGE-EUC-LM125-1985","PGE Energy Upgrade California EUL for measure LM125, vintage 1985","None","2013-01-01",null,"SFm","Any",14.6,4.87,"Res","DEER2014","PA workpaper","WhlBldg","WBUpgrade","WhlBldg","WBRetPkg",null,null,"evaluated years",null,null,null,"Proposed","Based on WORKPAPER DISPOSITION for Modified Basic Path – California Public Utilities Commission by Energy Division on April 29, 2013."]
["PGE-EUC-LM125-1996","PGE Energy Upgrade California EUL for measure LM125, vintage 1996","None","2013-01-01",null,"SFm","Any",14,4.67,"Res","DEER2014","PA workpaper","WhlBldg","WBUpgrade","WhlBldg","WBRetPkg",null,null,"evaluated years",null,null,null,"Proposed","Based on WORKPAPER DISPOSITION for Modified Basic Path – California Public Utilities Commission by Energy Division on April 29, 2013."]
["PGE-EUC-LM141-1975","PGE Energy Upgrade California EUL for measure LM141, vintage 1975","None","2013-01-01",null,"SFm","Any",16.5,5.5,"Res","DEER2014","PA workpaper","WhlBldg","WBUpgrade","WhlBldg","WBRetPkg",null,null,"evaluated years",null,null,null,"Proposed","Based on WORKPAPER DISPOSITION for Modified Basic Path – California Public Utilities Commission by Energy Division on April 29, 2013."]
["PGE-EUC-LM141-1985","PGE Energy Upgrade California EUL for measure LM141, vintage 1985","None","2013-01-01",null,"SFm","Any",15.7,5.23,"Res","DEER2014","PA workpaper","WhlBldg","WBUpgrade","WhlBldg","WBRetPkg",null,null,"evaluated years",null,null,null,"Proposed","Based on WORKPAPER DISPOSITION for Modified Basic Path – California Public Utilities Commission by Energy Division on April 29, 2013."]
["PGE-EUC-LM141-1996","PGE Energy Upgrade California EUL for measure LM141, vintage 1996","None","2013-01-01",null,"SFm","Any",14.2,4.7300000000000004,"Res","DEER2014","PA workpaper","WhlBldg","WBUpgrade","WhlBldg","WBRetPkg",null,null,"evaluated years",null,null,null,"Proposed","Based on WORKPAPER DISPOSITION for Modified Basic Path – California Public Utilities Commission by Energy Division on April 29, 2013."]
["PGE-EUC-LM162-1975","PGE Energy Upgrade California EUL for measure LM162, vintage 1975","None","2013-01-01",null,"SFm","Any",17.8,5.93,"Res","DEER2014","PA workpaper","WhlBldg","WBUpgrade","WhlBldg","WBRetPkg",null,null,"evaluated years",null,null,null,"Proposed","Based on WORKPAPER DISPOSITION for Modified Basic Path – California Public Utilities Commission by Energy Division on April 29, 2013."]
["PGE-EUC-LM162-1985","PGE Energy Upgrade California EUL for measure LM162, vintage 1985","None","2013-01-01",null,"SFm","Any",17.899999999999999,5.97,"Res","DEER2014","PA workpaper","WhlBldg","WBUpgrade","WhlBldg","WBRetPkg",null,null,"evaluated years",null,null,null,"Proposed","Based on WORKPAPER DISPOSITION for Modified Basic Path – California Public Utilities Commission by Energy Division on April 29, 2013."]
["PGE-EUC-LM162-1996","PGE Energy Upgrade California EUL for measure LM162, vintage 1996","None","2013-01-01",null,"SFm","Any",17.600000000000001,5.87,"Res","DEER2014","PA workpaper","WhlBldg","WBUpgrade","WhlBldg","WBRetPkg",null,null,"evaluated years",null,null,null,"Proposed","Based on WORKPAPER DISPOSITION for Modified Basic Path – California Public Utilities Commission by Energy Division on April 29, 2013."]
["PGE-EUC-LM165-1975","PGE Energy Upgrade California EUL for measure LM165, vintage 1975","None","2013-01-01",null,"SFm","Any",19,6.33,"Res","DEER2014","PA workpaper","WhlBldg","WBUpgrade","WhlBldg","WBRetPkg",null,null,"evaluated years",null,null,null,"Proposed","Based on WORKPAPER DISPOSITION for Modified Basic Path – California Public Utilities Commission by Energy Division on April 29, 2013."]
["PGE-EUC-LM165-1985","PGE Energy Upgrade California EUL for measure LM165, vintage 1985","None","2013-01-01",null,"SFm","Any",18.8,6.27,"Res","DEER2014","PA workpaper","WhlBldg","WBUpgrade","WhlBldg","WBRetPkg",null,null,"evaluated years",null,null,null,"Proposed","Based on WORKPAPER DISPOSITION for Modified Basic Path – California Public Utilities Commission by Energy Division on April 29, 2013."]
["PGE-EUC-LM165-1996","PGE Energy Upgrade California EUL for measure LM165, vintage 1996","None","2013-01-01",null,"SFm","Any",19.100000000000001,6.37,"Res","DEER2014","PA workpaper","WhlBldg","WBUpgrade","WhlBldg","WBRetPkg",null,null,"evaluated years",null,null,null,"Proposed","Based on WORKPAPER DISPOSITION for Modified Basic Path – California Public Utilities Commission by Energy Division on April 29, 2013."]
["Plug-80plus","80 PLUS Power Supply","None","2013-01-01",null,"Any","Any",4,1.3,"Com","DEER2014","D08 v2.05","AppPlug","Office_eq","Electronics",null,null,null,"rated years",null,null,null,"Standard"]
["Plug-HiEffCopier","High Efficiency Copiers","None","2013-01-01",null,"Any","Any",6,2,"Com","DEER2014","D08 v2.05","AppPlug","Office_eq","Electronics","AllEquip",null,null,"rated years",null,null,null,"Standard"]
["Plug-OccSens","Occupancy sensors","None","2013-01-01",null,"Any","Any",8,2.7,"Com","DEER2014","D08 v2.05","AppPlug","Office_eq","Electronics","MoveSensor",null,null,"rated years",null,null,null,"Standard"]
["Plug-Software","Power Management Software","None","2013-01-01",null,"Any","Any",5,1.7,"Com","ExAnte2013","IOU Workpaper",null,null,"Electronics",null,null,null,"rated years",null,null,null,"Standard","proposed in PGECOCOM105"]
["Plug-VendCtrler","Vending Machine Controller","None","2013-01-01",null,"Any","Any",5,1.7,"Com","DEER2014","D08 v2.05","AppPlug","Vending","Electronics","MoveSensor",null,null,"rated years",null,null,null,"Standard"]
["PrcHt-Blr","High Efficiency Boiler ","None","2013-01-01",null,"Any","Any",20,6.7,"Com","DEER2014","D08 v2.05","ProcHeat",null,"WaterHtg_eq","Boiler_Et",null,null,"rated years",null,null,null,"Standard"]
["PrcHt-StmBlr","High Efficiency Boiler ","None","2013-01-01",null,"Any","Any",20,6.7,"Com","ExAnte2013","IOU Workpaper","ProcHeat",null,"SteamHtg_eq","Boiler_Et",null,null,"rated years",null,null,null,"Standard","proposed in PGECOPRO101 - different applicability from PrcHt-Blr"]
["PrcHt-StmTrp","Steam Traps - Process Heat","None","2013-01-01",null,"Any","Any",6,2,"Com","DEER2014","D08 v2.05","ProcHeat","SteamDist","SteamCirc","SteamTrap",null,null,"rated years",null,null,null,"Standard"]
["PrcHt-TankIns-Gas","Water Heater Tank Wrap","None","2013-01-01",null,"Any","Any",7,2.2999999999999998,"CC","ExAnte2013","IOU Workpaper","ProcHeat","Storage",null,"TankIns",null,null,"rated years",null,null,null,"Standard","Proposed in PGECOPRO103 - different applicability from WtrHeat-TankIns-Gas"]
["ProcDist-Motor_Spd","Variable Speed Drive on Process Fan Control","None","2013-01-01",null,"Any","Any",13,4.33,"Com","DEER2014","PA workpaper","Process",null,"Motor_Spd","ASD",null,null,"evaluated years",null,null,null,"Proposed","Source: See work paper SCE13PR008. Reference to The Connecticut Light and Power Company and The United Illuminating Company."]
["PumpCentBstr","Ag Pump - Centrifugal Booster","None","2013-01-01",null,"Any","Any",12.7,4.33,"Ag","DEER2014","PA workpaper","ProcDist","Pumping","PumpSystem","CentBstr",null,null,"evaluated years",null,null,null,"Proposed","Ag_Prog_Process_Eval_with_Appendices__CM_Final.pdf"]
["PumpSubBstr","Ag Pump - Submersible Booster","None","2013-01-01",null,"Any","Any",8.3000000000000007,2.77,"Ag","DEER2014","PA workpaper","ProcDist","Pumping","PumpSystem","SubBstr",null,null,"evaluated years",null,null,null,"Proposed","Ag_Prog_Process_Eval_with_Appendices__CM_Final.pdf"]
["PumpSubWell","Ag Pump - Submersible Well","None","2013-01-01",null,"Any","Any",6.5,2.23,"Ag","DEER2014","PA workpaper","ProcDist","Pumping","PumpSystem","SubWell",null,null,"evaluated years",null,null,null,"Proposed","Ag_Prog_Process_Eval_with_Appendices__CM_Final.pdf"]
["PumpTurbBstr","Ag Pump - Turbine Booster","None","2013-01-01",null,"Any","Any",9.3000000000000007,3.1,"Ag","DEER2014","PA workpaper","ProcDist","Pumping","PumpSystem","TurbBstr",null,null,"evaluated years",null,null,null,"Proposed","Ag_Prog_Process_Eval_with_Appendices__CM_Final.pdf"]
["PumpTurbWell","Ag Pump - Turbine Well","None","2013-01-01",null,"Any","Any",6.8,2.27,"Ag","DEER2014","PA workpaper","ProcDist","Pumping","PumpSystem","TurbWell",null,null,"evaluated years",null,null,null,"Proposed","Ag_Prog_Process_Eval_with_Appendices__CM_Final.pdf"]
["Recreate-LED_fixt-Com-DskCls","LED Pool Lighting (Dusk to Close)","None","2013-01-01",null,"Any","Any",12,4,"Com","DEER2014","PA workpaper","Lighting",null,"Ltg_Lamp","LED_lamp",null,null,"evaluated years",null,null,null,"Proposed","Source: See work paper SCE13LG071. Source is \"Workpaper Disposition for Integral LED Lamp Replacements”, May 14th 2012 "]
["Recreate-LED_fixt-Com-DskDwn","LED Pool Lighting (Dusk to Dawn)","None","2013-01-01",null,"Any","Any",4.9000000000000004,1.63,"Com","DEER2014","PA workpaper","Lighting","OutDuskDawn","Ltg_Lamp","LED_lamp",null,null,"evaluated years",null,null,null,"Proposed","Source: See work paper SCE13LG071. Source is \"Workpaper Disposition for Integral LED Lamp Replacements”, May 14th 2012 "]
["Recreate-LED_fixt-Res","LED Pool Lighting (Residential)","None","2013-01-01",null,"Any","Any",16,5.33,"Res","DEER2014","PA workpaper","Lighting",null,"Ltg_Lamp","LED_lamp",null,null,"evaluated years",null,null,null,"Proposed","Source: See work paper SCE13LG071. Source is \"Workpaper Disposition for Integral LED Lamp Replacements”, May 14th 2012 "]
["RefgWrhs-Comp","Refrigeration Upgrades (Variable Speed Compressors)\n","None","2013-01-01",null,"Any","Any",15,5,"Com","DEER2014","D08 v2.05","ProcRefrig","ProdStore","Chiller","RefWareCool",null,null,"rated years",null,null,null,"Standard"]
["RefgWrhs-Cond","Refrigeration Upgrades (Condenser) - Refg Warehouse","None","2013-01-01",null,"Any","Any",15,5,"Com","DEER2014","D08 v2.05","ProcRefrig","ProdStore","Chiller","RefWareCool",null,null,"rated years",null,null,null,"Standard"]
["RefgWrhs-FltHdPres","Refrigeration Upgrades (Suction Pressure) - Refg Warehouse","None","2013-01-01",null,"Any","Any",15,5,"Com","DEER2014","D08 v2.05","ProcRefrig","ProdStore","Chiller","RefWareCool",null,null,"rated years",null,null,null,"Standard"]
["RefgWrhs-FltSucPres","Refrigeration Upgrades (Head Pressure) - Refg Warehouse","None","2013-01-01",null,"Any","Any",15,5,"Com","DEER2014","D08 v2.05","ProcRefrig","ProdStore","Chiller","RefWareCool",null,null,"rated years",null,null,null,"Standard"]
["RefgWrhs-Retro","Refrigeration Retrocommissioning - Refg Warehouse","None","2013-01-01",null,"Any","Any",10,3.3,"Com","DEER2014","D08 v2.05","Service","RetroComm",null,null,null,null,"rated years",null,null,null,"Standard"]
["RefgWrhs-ScrollComp","Refrigeration Scroll Compressors for Bulk Tanks","None","2013-01-01",null,"Any","Any",12,4,"Com","DEER2014","D08 v2.05","ProcRefrig","ProdStore","Chiller","RefWareCool",null,null,"rated years",null,null,null,"Standard"]
["RefgWrhs-SLIns","Refrigeration Insulation for Bare Suction Lines","None","2013-01-01",null,"Any","Any",11,3.7,"Com","DEER2014","D08 v2.05","ProcRefrig","ProdStore","Chiller","RefWareCool",null,null,"rated years",null,null,null,"Standard"]
["RefgWrhs-SubClr","Refrigeration  Upgrades (Subcooling) - Refg Warehouse","None","2013-01-01",null,"Any","Any",15,5,"Com","DEER2014","D08 v2.05","ProcRefrig","ProdStore","Chiller","RefWareCool",null,null,"rated years",null,null,null,"Standard"]
["Reprog-Tstat","Reprogram thermostat","None","2013-01-01",null,"Any","Any",11,3.7,"CC","ExAnte2013","IOU Workpaper","Service","RetroComm","HV_Tech","TStat",null,null,"rated years",null,null,null,"Standard","Proposed in PGE3PHVC157"]
["Res-AirCleaner","Room Air Cleaner","None","2013-01-01",null,"Any","Any",9,3,"Res","ExAnte2016","PA workpaper","HVAC","VentAIrDist","Electronics","AllEquip",null,null,"rated years",null,null,null,"Proposed","PGECOAPP128 Revision 0"]
["Res-Plug-AdvPwrStrip","Tier 2 Advanced Power Strip","None","2015-09-01",null,"Any","Any",5,1.67,"Res","ExAnte2015","PA workpaper","AppPlug","Electronics","Electronics","OccSensPlug",null,null,"rated years",null,null,null,"Standard"]
["Res-Plug-Soundbar","Sound Bar","None","2013-01-01",null,"Any","Any",4,1.33,"Res","ExAnte2016","PA workpaper","AppPlug","Electronics","Electronics","AllEquip",null,null,"rated years",null,null,null,"Proposed","PGECOAPP128 Revision 0"]
["Res-RCx-Operational","retrocommissioning and operational programs in residential settings","None","2017-01-01",null,"Any","Any",3,1,"Res","ExAnte2016","Res Smart Thermostat disposition",null,null,null,null,null,null,"rated years",null,null,3,"Standard","The Residential Smart Thermostat disposition, dated Nov 8, 2016 extends the 2016 rolling portfolio decision to the residential sector specifically for electronic technologies that are manufactured with easily enable and disable energy efficiency features."]
["RTU-Retro","Rooftop Unit retrocommissioning","None","2013-01-01",null,"Any","Any",5,1.7,"Com","ExAnte2013","IOU Workpaper","Service ","RetroComm",null,null,null,null,"rated years",null,null,null,"Standard","Proposed in PGE3PHVC138"]
["Service-ResEnergyAu","Residential Audits","None","2013-01-01",null,"Any","Any",3,1,"Res","DEER2014","PA workpaper","WhlBldg","WBUpgrade","WhlBldg","WBRetPkg",null,null,"evaluated years",null,null,20,"Proposed","Source: See work paper SCE13MI001. EUL was obtained from Version 2 of the Policy Manual."]
["SHW-EMS","Boiler controls for hot water","None","2013-01-01",null,"Any","Any",15,5,"Res","ExAnte2013","IOU Workpaper","SHW","Heating","SHW_Tech","EMS",null,null,"rated years",null,null,null,"Proposed","proposed in PGECODHW115r1"]
["WB-13590-w10","SCE Whole Building: R30AtIns;R8DctIns;6%DctLkg;SEER14AC;STV In Heated and Cooled, One Story, 1978-1992 Vintage Whole Home Retrofit","None","2013-01-01",null,"SFm","Any",18.2,6.07,"Res","DEER2014","PA workpaper","WhlBldg","WBUpgrade","WhlBldg","WBRetPkg",null,null,"evaluated years",null,null,20,"Proposed","SCE Whole-Building upgrade - average EUL of packaged measures for specific climate zone, see SCE13MI005 workpaper."]
["WB-16063-w06","SCE Whole Building: R30AtIns;-15%BldLkg;R8DctIns;6%DctLkg;92AFUEFrn;STV In Heated Only, One Story, Pre 1978 Vintage Whole Home Retrofit","None","2013-01-01",null,"SFm","Any",19.3,6.43,"Res","DEER2014","PA workpaper","WhlBldg","WBUpgrade","WhlBldg","WBRetPkg",null,null,"evaluated years",null,null,20,"Proposed","SCE Whole-Building upgrade - average EUL of packaged measures for specific climate zone, see SCE13MI005 workpaper."]
["WB-18288-w06","SCE Whole Building: R30AtIns;R19FlrIns;-15%BldLkg;R8DctIns;6%DctLkg;STV In Heated Only, One Story, Pre 1978 Vintage Whole Home Retrofit","None","2013-01-01",null,"SFm","Any",18,6,"Res","DEER2014","PA workpaper","WhlBldg","WBUpgrade","WhlBldg","WBRetPkg",null,null,"evaluated years",null,null,20,"Proposed","SCE Whole-Building upgrade - average EUL of packaged measures for specific climate zone, see SCE13MI005 workpaper."]
["WB-18720-w10","SCE Whole Building: R30AtIns;-15%BldLkg;10%DctLkg;SEER14AC;92AFUEFrn;STVLF In Heated and Cooled, One Story, 1993-2001 Vintage Whole Home Retrofit","None","2013-01-01",null,"SFm","Any",14.8,4.93,"Res","DEER2014","PA workpaper","WhlBldg","WBUpgrade","WhlBldg","WBRetPkg",null,null,"evaluated years",null,null,20,"Proposed","SCE Whole-Building upgrade - average EUL of packaged measures for specific climate zone, see SCE13MI005 workpaper."]
["WB-19122-w10","SCE Whole Building: R30AtIns;-15%BldLkg;10%DctLkg;SEER14AC;92AFUEFrn;STV In Heated and Cooled, One Story, Pre 1978 Vintage Whole Home Retrofit","None","2013-01-01",null,"SFm","Any",18,6,"Res","DEER2014","PA workpaper","WhlBldg","WBUpgrade","WhlBldg","WBRetPkg",null,null,"evaluated years",null,null,20,"Proposed","SCE Whole-Building upgrade - average EUL of packaged measures for specific climate zone, see SCE13MI005 workpaper."]
["WB-19550-w10","SCE Whole Building: R30AtIns;R8DctIns;6%DctLkg In Heated and Cooled, One Story, Pre 1978 Vintage Whole Home Retrofit","None","2013-01-01",null,"SFm","Any",18.8,6.27,"Res","DEER2014","PA workpaper","WhlBldg","WBUpgrade","WhlBldg","WBRetPkg",null,null,"evaluated years",null,null,20,"Proposed","SCE Whole-Building upgrade - average EUL of packaged measures for specific climate zone, see SCE13MI005 workpaper."]
["WB-20558-w09","SCE Whole Building: R30AtIns;-30%BldLkg;R8DctIns;6%DctLkg;92AFUEFrn;STV In Heated Only, One Story, 1978-1992 Vintage Whole Home Retrofit","None","2013-01-01",null,"SFm","Any",18,6,"Res","DEER2014","PA workpaper","WhlBldg","WBUpgrade","WhlBldg","WBRetPkg",null,null,"evaluated years",null,null,20,"Proposed","SCE Whole-Building upgrade - average EUL of packaged measures for specific climate zone, see SCE13MI005 workpaper."]
["WB-22378-w10","SCE Whole Building: R30AtIns;R8DctIns;6%DctLkg;SEER14AC;92AFUEFrn In Heated and Cooled, One Story, Pre 1978 Vintage Whole Home Retrofit","None","2013-01-01",null,"SFm","Any",19.8,6.6,"Res","DEER2014","PA workpaper","WhlBldg","WBUpgrade","WhlBldg","WBRetPkg",null,null,"evaluated years",null,null,20,"Proposed","SCE Whole-Building upgrade - average EUL of packaged measures for specific climate zone, see SCE13MI005 workpaper."]
["WB-26618-w10","SCE Whole Building: R30AtIns;R8DctIns;6%DctLkg;92AFUEFrn;62%EFGasWtrHtr;STV In Heated and Cooled, Two Story, 1993-2001 Vintage Whole Home Retrofit","None","2013-01-01",null,"SFm","Any",17.600000000000001,5.87,"Res","DEER2014","PA workpaper","WhlBldg","WBUpgrade","WhlBldg","WBRetPkg",null,null,"evaluated years",null,null,20,"Proposed","SCE Whole-Building upgrade - average EUL of packaged measures for specific climate zone, see SCE13MI005 workpaper."]
["WB-28890-w06","SCE Whole Building: R30AtIns;-30%BldLkg;R8DctIns;6%DctLkg;STV In Heated Only, One Story, Pre 1978 Vintage Whole Home Retrofit","None","2013-01-01",null,"SFm","Any",16.600000000000001,5.53,"Res","DEER2014","PA workpaper","WhlBldg","WBUpgrade","WhlBldg","WBRetPkg",null,null,"evaluated years",null,null,20,"Proposed","SCE Whole-Building upgrade - average EUL of packaged measures for specific climate zone, see SCE13MI005 workpaper."]
["WB-29480-w08","SCE Whole Building: R30AtIns;R19FlrIns;R8DctIns;6%DctLkg In Heated and Cooled, One Story, Pre 1978 Vintage Whole Home Retrofit","None","2013-01-01",null,"SFm","Any",18.7,6.23,"Res","DEER2014","PA workpaper","WhlBldg","WBUpgrade","WhlBldg","WBRetPkg",null,null,"evaluated years",null,null,20,"Proposed","SCE Whole-Building upgrade - average EUL of packaged measures for specific climate zone, see SCE13MI005 workpaper."]
["WB-33387-w08","SCE Whole Building: R30AtIns;R8DctIns;10%DctLkg In Heated and Cooled, One Story, Pre 1978 Vintage Whole Home Retrofit","None","2013-01-01",null,"SFm","Any",18.899999999999999,6.3,"Res","DEER2014","PA workpaper","WhlBldg","WBUpgrade","WhlBldg","WBRetPkg",null,null,"evaluated years",null,null,20,"Proposed","SCE Whole-Building upgrade - average EUL of packaged measures for specific climate zone, see SCE13MI005 workpaper."]
["WB-36764-w06","SCE Whole Building: R30AtIns;R8DctIns;10%DctLkg;SEER14AC;92AFUEFrn;STV In Heated and Cooled, One Story, Pre 1978 Vintage Whole Home Retrofit","None","2013-01-01",null,"SFm","Any",19.8,6.6,"Res","DEER2014","PA workpaper","WhlBldg","WBUpgrade","WhlBldg","WBRetPkg",null,null,"evaluated years",null,null,20,"Proposed","SCE Whole-Building upgrade - average EUL of packaged measures for specific climate zone, see SCE13MI005 workpaper."]
["WB-38962-w10","SCE Whole Building: R30AtIns;-15%BldLkg;6%DctLkg;92AFUEFrn;62%EFGasWtrHtr In Heated and Cooled, One Story, 1978-1992 Vintage Whole Home Retrofit","None","2013-01-01",null,"SFm","Any",16.3,5.43,"Res","DEER2014","PA workpaper","WhlBldg","WBUpgrade","WhlBldg","WBRetPkg",null,null,"evaluated years",null,null,20,"Proposed","SCE Whole-Building upgrade - average EUL of packaged measures for specific climate zone, see SCE13MI005 workpaper."]
["WB-41522-w06","SCE Whole Building: R30AtIns;R8DctIns;6%DctLkg;SEER14AC;92AFUEFrn;STV In Heated and Cooled, One Story, Pre 1978 Vintage Whole Home Retrofit","None","2013-01-01",null,"SFm","Any",19.7,6.57,"Res","DEER2014","PA workpaper","WhlBldg","WBUpgrade","WhlBldg","WBRetPkg",null,null,"evaluated years",null,null,20,"Proposed","SCE Whole-Building upgrade - average EUL of packaged measures for specific climate zone, see SCE13MI005 workpaper."]
["WB-43723-w10","SCE Whole Building: R30AtIns;R8DctIns;6%DctLkg;92AFUEFrn In Heated and Cooled, One Story, Pre 1978 Vintage Whole Home Retrofit","None","2013-01-01",null,"SFm","Any",20,6.7,"Res","DEER2014","PA workpaper","WhlBldg","WBUpgrade","WhlBldg","WBRetPkg",null,null,"evaluated years",null,null,20,"Proposed","SCE Whole-Building upgrade - average EUL of packaged measures for specific climate zone, see SCE13MI005 workpaper. . Note: was 20.1, changed to 20 due based on 20 year maximum."]
["WB-43750-w06","SCE Whole Building: R30AtIns;R8DctIns;6%DctLkg;92AFUEFrn;62%EFGasWtrHtr;STV In Heated Only, Two Story, Pre 1978 Vintage Whole Home Retrofit","None","2013-01-01",null,"SFm","Any",17.7,5.9,"Res","DEER2014","PA workpaper","WhlBldg","WBUpgrade","WhlBldg","WBRetPkg",null,null,"evaluated years",null,null,20,"Proposed","SCE Whole-Building upgrade - average EUL of packaged measures for specific climate zone, see SCE13MI005 workpaper."]
["WB-45456-w10","SCE Whole Building: R30AtIns;-30%BldLkg;R8DctIns;6%DctLkg In Heated and Cooled, One Story, 1993-2001 Vintage Whole Home Retrofit","None","2013-01-01",null,"SFm","Any",14.5,4.83,"Res","DEER2014","PA workpaper","WhlBldg","WBUpgrade","WhlBldg","WBRetPkg",null,null,"evaluated years",null,null,20,"Proposed","SCE Whole-Building upgrade - average EUL of packaged measures for specific climate zone, see SCE13MI005 workpaper."]
["WB-52042-w09","SCE Whole Building: R30AtIns;-15%BldLkg;R8DctIns;10%DctLkg;92AFUEFrn;STV In Heated Only, Two Story, 1978-1992 Vintage Whole Home Retrofit","None","2013-01-01",null,"SFm","Any",18.2,6.07,"Res","DEER2014","PA workpaper","WhlBldg","WBUpgrade","WhlBldg","WBRetPkg",null,null,"evaluated years",null,null,20,"Proposed","SCE Whole-Building upgrade - average EUL of packaged measures for specific climate zone, see SCE13MI005 workpaper."]
["WB-52395-w10","SCE Whole Building: R30AtIns;-15%BldLkg;R8DctIns;10%DctLkg;STV In Heated and Cooled, One Story, 1978-1992 Vintage Whole Home Retrofit","None","2013-01-01",null,"SFm","Any",16.8,5.6,"Res","DEER2014","PA workpaper","WhlBldg","WBUpgrade","WhlBldg","WBRetPkg",null,null,"evaluated years",null,null,20,"Proposed","SCE Whole-Building upgrade - average EUL of packaged measures for specific climate zone, see SCE13MI005 workpaper."]
["WB-53613-w10","SCE Whole Building: R30AtIns;-30%BldLkg;R8DctIns;SEER14AC;92AFUEFrn;6%DctLkg;STV In Heated and Cooled, Two Story, Pre 1978 Vintage Whole Home Retrofit","None","2013-01-01",null,"SFm","Any",17.2,5.73,"Res","DEER2014","PA workpaper","WhlBldg","WBUpgrade","WhlBldg","WBRetPkg",null,null,"evaluated years",null,null,20,"Proposed","SCE Whole-Building upgrade - average EUL of packaged measures for specific climate zone, see SCE13MI005 workpaper."]
["WB-56139-w10","SCE Whole Building: R30AtIns;R8DctIns;6%DctLkg;SEER14AC In Heated and Cooled, Two Story, 1978-1992 Vintage Whole Home Retrofit","None","2013-01-01",null,"SFm","Any",17.899999999999999,5.97,"Res","DEER2014","PA workpaper","WhlBldg","WBUpgrade","WhlBldg","WBRetPkg",null,null,"evaluated years",null,null,20,"Proposed","SCE Whole-Building upgrade - average EUL of packaged measures for specific climate zone, see SCE13MI005 workpaper."]
["WB-56999-w08","SCE Whole Building: -15%BldLkg;R8DctIns;6%DctLkg;SEER14AC;92AFUEFrn In Heated and Cooled, Two Story, 1993-2001 Vintage Whole Home Retrofit","None","2013-01-01",null,"SFm","Any",17.100000000000001,5.7,"Res","DEER2014","PA workpaper","WhlBldg","WBUpgrade","WhlBldg","WBRetPkg",null,null,"evaluated years",null,null,20,"Proposed","SCE Whole-Building upgrade - average EUL of packaged measures for specific climate zone, see SCE13MI005 workpaper."]
["WB-57634-w10","SCE Whole Building: -30%BldLkg;10%DctLkg;SEER14AC;92AFUEFrn In Heated and Cooled, Two Story, 1993-2001 Vintage Whole Home Retrofit","None","2013-01-01",null,"SFm","Any",15.8,5.27,"Res","DEER2014","PA workpaper","WhlBldg","WBUpgrade","WhlBldg","WBRetPkg",null,null,"evaluated years",null,null,20,"Proposed","SCE Whole-Building upgrade - average EUL of packaged measures for specific climate zone, see SCE13MI005 workpaper."]
["WB-64074-w06","SCE Whole Building: -15%BldLkg;R8DctIns;6%DctLkg;SEER14AC;92AFUEFrn;STV In Heated and Cooled, One Story, Pre 1978 Vintage Whole Home Retrofit","None","2013-01-01",null,"SFm","Any",17.5,5.83,"Res","DEER2014","PA workpaper","WhlBldg","WBUpgrade","WhlBldg","WBRetPkg",null,null,"evaluated years",null,null,20,"Proposed","SCE Whole-Building upgrade - average EUL of packaged measures for specific climate zone, see SCE13MI005 workpaper."]
["WB-64187-w08","SCE Whole Building: R30AtIns;R8DctIns;10%DctLkg;STV In Heated and Cooled, Two Story, Pre 1978 Vintage Whole Home Retrofit","None","2013-01-01",null,"SFm","Any",18,6,"Res","DEER2014","PA workpaper","WhlBldg","WBUpgrade","WhlBldg","WBRetPkg",null,null,"evaluated years",null,null,20,"Proposed","SCE Whole-Building upgrade - average EUL of packaged measures for specific climate zone, see SCE13MI005 workpaper."]
["WB-64721-w10","SCE Whole Building: R30AtIns;R8DctIns;10%DctLkg;SEER14AC In Heated and Cooled, One Story, 1978-1992 Vintage Whole Home Retrofit","None","2013-01-01",null,"SFm","Any",18.5,6.17,"Res","DEER2014","PA workpaper","WhlBldg","WBUpgrade","WhlBldg","WBRetPkg",null,null,"evaluated years",null,null,20,"Proposed","SCE Whole-Building upgrade - average EUL of packaged measures for specific climate zone, see SCE13MI005 workpaper."]
["WB-66984-w10","SCE Whole Building: R30AtIns;-30%BldLkg;6%DctLkg;SEER14AC;STV In Heated and Cooled, Two Story, 1993-2001 Vintage Whole Home Retrofit","None","2013-01-01",null,"SFm","Any",14.1,4.7,"Res","DEER2014","PA workpaper","WhlBldg","WBUpgrade","WhlBldg","WBRetPkg",null,null,"evaluated years",null,null,20,"Proposed","SCE Whole-Building upgrade - average EUL of packaged measures for specific climate zone, see SCE13MI005 workpaper."]
["WB-68399-w10","SCE Whole Building: R30AtIns;R8DctIns;6%DctLkg;SEER14AC;62%EFGasWtrHtr;STV In Heated and Cooled, One Story, 1978-1992 Vintage Whole Home Retrofit","None","2013-01-01",null,"SFm","Any",16.100000000000001,5.37,"Res","DEER2014","PA workpaper","WhlBldg","WBUpgrade","WhlBldg","WBRetPkg",null,null,"evaluated years",null,null,20,"Proposed","SCE Whole-Building upgrade - average EUL of packaged measures for specific climate zone, see SCE13MI005 workpaper."]
["WB-69986-w08","SCE Whole Building: -15%BldLkg;R8DctIns;6%DctLkg;SEER14AC;92AFUEFrn;STV In Heated and Cooled, Two Story, 1993-2001 Vintage Whole Home Retrofit","None","2013-01-01",null,"SFm","Any",16.899999999999999,5.63,"Res","DEER2014","PA workpaper","WhlBldg","WBUpgrade","WhlBldg","WBRetPkg",null,null,"evaluated years",null,null,20,"Proposed","SCE Whole-Building upgrade - average EUL of packaged measures for specific climate zone, see SCE13MI005 workpaper."]
["WB-71850-w09","SCE Whole Building: R30AtIns;-15%BldLkg;R8DctIns;6%DctLkg;STV In Heated Only, One Story, Pre 1978 Vintage Whole Home Retrofit","None","2013-01-01",null,"SFm","Any",17.3,5.77,"Res","DEER2014","PA workpaper","WhlBldg","WBUpgrade","WhlBldg","WBRetPkg",null,null,"evaluated years",null,null,20,"Proposed","SCE Whole-Building upgrade - average EUL of packaged measures for specific climate zone, see SCE13MI005 workpaper."]
["WB-72848-w10","SCE Whole Building: R30AtIns;R8DctIns;6%DctLkg;SEER14AC In Heated and Cooled, One Story, 1978-1992 Vintage Whole Home Retrofit","None","2013-01-01",null,"SFm","Any",18.5,6.17,"Res","DEER2014","PA workpaper","WhlBldg","WBUpgrade","WhlBldg","WBRetPkg",null,null,"evaluated years",null,null,20,"Proposed","SCE Whole-Building upgrade - average EUL of packaged measures for specific climate zone, see SCE13MI005 workpaper."]
["WB-75270-w10","SCE Whole Building: R30AtIns;R8DctIns;92AFUEFrn;STV In Heated and Cooled, Two Story, 1978-1992 Vintage Whole Home Retrofit","None","2013-01-01",null,"SFm","Any",19.399999999999999,6.47,"Res","DEER2014","PA workpaper","WhlBldg","WBUpgrade","WhlBldg","WBRetPkg",null,null,"evaluated years",null,null,20,"Proposed","SCE Whole-Building upgrade - average EUL of packaged measures for specific climate zone, see SCE13MI005 workpaper."]
["WB-76805-w10","SCE Whole Building: R30AtIns;-15%BldLkg;R8DctIns;10%DctLkg;SEER14AC;92AFUEFrn In Heated and Cooled, Two Story, Pre 1978 Vintage Whole Home Retrofit","None","2013-01-01",null,"SFm","Any",18.100000000000001,6.03,"Res","DEER2014","PA workpaper","WhlBldg","WBUpgrade","WhlBldg","WBRetPkg",null,null,"evaluated years",null,null,20,"Proposed","SCE Whole-Building upgrade - average EUL of packaged measures for specific climate zone, see SCE13MI005 workpaper."]
["WB-79171-w06","SCE Whole Building: R30AtIns;-15%BldLkg;R8DctIns;10%DctLkg;STV In Heated Only, One Story, Pre 1978 Vintage Whole Home Retrofit","None","2013-01-01",null,"SFm","Any",17.3,5.77,"Res","DEER2014","PA workpaper","WhlBldg","WBUpgrade","WhlBldg","WBRetPkg",null,null,"evaluated years",null,null,20,"Proposed","SCE Whole-Building upgrade - average EUL of packaged measures for specific climate zone, see SCE13MI005 workpaper."]
["WB-80419-w06","SCE Whole Building: R30AtIns;-30%BldLkg;R8DctIns;10%DctLkg;STV In Heated and Cooled, Two Story, Pre 1978 Vintage Whole Home Retrofit","None","2013-01-01",null,"SFm","Any",15,5,"Res","DEER2014","PA workpaper","WhlBldg","WBUpgrade","WhlBldg","WBRetPkg",null,null,"evaluated years",null,null,20,"Proposed","SCE Whole-Building upgrade - average EUL of packaged measures for specific climate zone, see SCE13MI005 workpaper."]
["WB-81881-w10","SCE Whole Building: R30AtIns;-30%BldLkg;R8DctIns;10%DctLkg;STV In Heated and Cooled, One Story, Pre 1978 Vintage Whole Home Retrofit","None","2013-01-01",null,"SFm","Any",16.600000000000001,5.53,"Res","DEER2014","PA workpaper","WhlBldg","WBUpgrade","WhlBldg","WBRetPkg",null,null,"evaluated years",null,null,20,"Proposed","SCE Whole-Building upgrade - average EUL of packaged measures for specific climate zone, see SCE13MI005 workpaper."]
["WB-82988-w10","SCE Whole Building: R30AtIns;-15%BldLkg;R8DctIns;6%DctLkg In Heated and Cooled, Two Story, 1978-1992 Vintage Whole Home Retrofit","None","2013-01-01",null,"SFm","Any",16.8,5.6,"Res","DEER2014","PA workpaper","WhlBldg","WBUpgrade","WhlBldg","WBRetPkg",null,null,"evaluated years",null,null,20,"Proposed","SCE Whole-Building upgrade - average EUL of packaged measures for specific climate zone, see SCE13MI005 workpaper."]
["WB-87309-w10","SCE Whole Building: R30AtIns;R8DctIns;6%DctLkg In Heated and Cooled, Two Story, 1978-1992 Vintage Whole Home Retrofit","None","2013-01-01",null,"SFm","Any",18.2,6.07,"Res","DEER2014","PA workpaper","WhlBldg","WBUpgrade","WhlBldg","WBRetPkg",null,null,"evaluated years",null,null,20,"Proposed","SCE Whole-Building upgrade - average EUL of packaged measures for specific climate zone, see SCE13MI005 workpaper."]
["WB-87379-w10","SCE Whole Building: R30AtIns;-15%BldLkg;R8DctIns;6%DctLkg;STV In Heated and Cooled, One Story, Pre 1978 Vintage Whole Home Retrofit","None","2013-01-01",null,"SFm","Any",17.5,5.83,"Res","DEER2014","PA workpaper","WhlBldg","WBUpgrade","WhlBldg","WBRetPkg",null,null,"evaluated years",null,null,20,"Proposed","SCE Whole-Building upgrade - average EUL of packaged measures for specific climate zone, see SCE13MI005 workpaper."]
["WB-87576-w10","SCE Whole Building: R30AtIns;R8DctIns;10%DctLkg;SEER14AC;92AFUEFrn;STV In Heated and Cooled, One Story, 1978-1992 Vintage Whole Home Retrofit","None","2013-01-01",null,"SFm","Any",19.2,6.4,"Res","DEER2014","PA workpaper","WhlBldg","WBUpgrade","WhlBldg","WBRetPkg",null,null,"evaluated years",null,null,20,"Proposed","SCE Whole-Building upgrade - average EUL of packaged measures for specific climate zone, see SCE13MI005 workpaper."]
["WB-92396-w10","SCE Whole Building: R30AtIns;R8DctIns;6%DctLkg;SEER14AC;92AFUEFrn;STV In Heated and Cooled, One Story, 1978-1992 Vintage Whole Home Retrofit","None","2013-01-01",null,"SFm","Any",19.100000000000001,6.37,"Res","DEER2014","PA workpaper","WhlBldg","WBUpgrade","WhlBldg","WBRetPkg",null,null,"evaluated years",null,null,20,"Proposed","SCE Whole-Building upgrade - average EUL of packaged measures for specific climate zone, see SCE13MI005 workpaper."]
["WB-95864-w06","SCE Whole Building: -30%BldLkg;R8DctIns;6%DctLkg;SEER14AC;92AFUEFrn In Heated and Cooled, One Story, Pre 1978 Vintage Whole Home Retrofit","None","2013-01-01",null,"SFm","Any",17.100000000000001,5.7,"Res","DEER2014","PA workpaper","WhlBldg","WBUpgrade","WhlBldg","WBRetPkg",null,null,"evaluated years",null,null,20,"Proposed","SCE Whole-Building upgrade - average EUL of packaged measures for specific climate zone, see SCE13MI005 workpaper."]
["WB-95984-w10","SCE Whole Building: R30AtIns;10%DctLkg;SEER14AC;92AFUEFrn In Heated and Cooled, Two Story, 1993-2001 Vintage Whole Home Retrofit","None","2013-01-01",null,"SFm","Any",17.8,5.93,"Res","DEER2014","PA workpaper","WhlBldg","WBUpgrade","WhlBldg","WBRetPkg",null,null,"evaluated years",null,null,20,"Proposed","SCE Whole-Building upgrade - average EUL of packaged measures for specific climate zone, see SCE13MI005 workpaper."]
["WB-98013-w10","SCE Whole Building: R30AtIns;R8DctIns;6%DctLkg;SEER14AC;STV In Heated and Cooled, One Story, Pre 1978 Vintage Whole Home Retrofit","None","2013-01-01",null,"SFm","Any",18.5,6.17,"Res","DEER2014","PA workpaper","WhlBldg","WBUpgrade","WhlBldg","WBRetPkg",null,null,"evaluated years",null,null,20,"Proposed","SCE Whole-Building upgrade - average EUL of packaged measures for specific climate zone, see SCE13MI005 workpaper."]
["WhlBldg-WBInsFen-NEW-MfrHse","SCE: Whole Building new construction manufactured housing building shell improvements","None","2013-01-01",null,"SFm","Any",20,6.67,"Res","DEER2014","PA workpaper","WhlBldg","WBUpgrade","WhlBldg","WBRetPkg",null,null,"evaluated years",null,null,20,"Proposed","Source: See work paper SCE13BS007. Average EUL of typical measures that fall under the Building Shell category for manufactured housing."]
["WhlBldg-WBInsFen-NEW-SF","SCE: Whole Building new construction single family building shell improvements","None","2013-01-01",null,"SFm","Any",18,6,"Res","DEER2014","PA workpaper","WhlBldg","WBUpgrade","WhlBldg","WBRetPkg",null,null,"evaluated years",null,null,20,"Proposed","Source: See work paper SCE13BS008. Average EUL of typical measures that fall under the Building Shell category for single family."]
["WhlBldg-WBInsFen-RET-SF","SCE: Whole Building retrofit single family building shell improvements","None","2013-01-01",null,"SFm","Any",14,4.67,"Res","DEER2014","PA workpaper","WhlBldg","WBUpgrade","WhlBldg","WBRetPkg",null,null,"evaluated years",null,null,20,"Proposed","Source: See work paper SCE13MI004. Average EUL of typical measures that fall under the Building Shell & Non-Shell categories for single family."]
["WlHs-Upgrade","Whole House Upgrade","None","2013-01-01",null,"SFm","Any",2,0.7,"Res","ExAnte2013","IOU Workpaper","Service","RetroComm","WhlBldg","multiTech",null,null,"rated years",null,null,null,"Proposed","proposed in PGECOALL104 (as corrected verbally)"]
["WtrHt-Com","Commercial water heater","None","2013-01-01",null,"Any","Any",15,5,"Com","DEER2014","D14 v1.0.0","SHW","Heating","WaterHtg_eq",null,null,null,"rated years",null,null,null,"Standard","added 2/4/2014"]
["WtrHt-GPoolHtr","Commercial Pool Heater","None","2013-01-01",null,"Any","Any",5,1.7,"Com","DEER2014","D08 v2.05","Recreate","Pool","WaterHtg_eq",null,null,null,"rated years",null,null,null,"Standard"]
["WtrHt-HtPmp","Heat Pump Water Heater","None","2013-01-01",null,"Any","Any",10,3.3,"Res","DEER2014","D08 v2.05","SHW","Heating","WaterHtg_eq","HP_EF",null,null,"rated years",null,null,null,"Standard"]
["WtrHt-Instant-Com","Commercial Instantaneous Water Heater","None","2013-01-01",null,"Any","Any",20,6.67,"Com","DEER2014","D14 v1.0.0","SHW","Heating","WaterHtg_eq",null,null,null,"rated years",null,null,null,"Standard","added 2/4/2014"]
["WtrHt-Instant-Res","Residential Instantaneous Water Heater","None","2013-01-01",null,"Any","Any",20,6.67,"Res","DEER2014","D14 v1.0.0","SHW","Heating","WaterHtg_eq",null,null,null,"rated years",null,null,null,"Standard","added 2/4/2014"]
["WtrHt-PipeIns-Elec","Pipe Insulation - Electric Water Heater","None","2013-01-01",null,"Any","Any",13,4.3,"Com","DEER2014","D08 v2.05","SHW","Distribute","LiquidCirc","PipeIns",null,null,"rated years",null,null,null,"Standard"]
["WtrHt-PipeIns-Gas","Pipe Insulation - Gas Water Heater - Commercial","None","2013-01-01",null,"Any","Any",11,3.7,"Com","DEER2014","D08 v2.05","SHW","Distribute","LiquidCirc","PipeIns",null,null,"rated years",null,null,null,"Standard"]
["WtrHt-Res-Elec","Residential Electric Water Heater","None","2013-01-01",null,"Any","Any",13,4.33,"Res","DEER2014","D14 v1.0.0","SHW","Heating","WaterHtg_eq",null,null,null,"rated years",null,null,null,"Standard","added 2/4/2014"]
["WtrHt-Res-Gas","Residential Gas Water Heater","None","2013-01-01",null,"Any","Any",11,3.67,"Res","DEER2014","D14 v1.0.0","SHW","Heating","WaterHtg_eq",null,null,null,"rated years",null,null,null,"Standard","added 2/4/2014"]
["WtrHt-SWH","Solar Water Heating","None","2013-01-01",null,"Any","Any",15,5,"Res","DEER2014","D08 v2.05","SHW","Heating","WaterHtg_eq",null,null,null,"rated years",null,null,null,"Standard"]
["WtrHt-TankIns-Elec","Water Heater Tank Wrap - Electric","None","2013-01-01",null,"Any","Any",7,2.2999999999999998,"Com","DEER2014","D08 v2.05","SHW","Heating","WaterHtg_eq","TankIns",null,null,"rated years",null,null,null,"Standard"]
["WtrHt-TankIns-Gas","Water Heater Tank Wrap - Gas","None","2013-01-01",null,"Any","Any",7,2.2999999999999998,"Com","DEER2014","D08 v2.05","SHW","Heating","WaterHtg_eq","TankIns",null,null,"rated years",null,null,null,"Standard"]
["WtrHt-Timeclock","Circulation Pump Timeclock Retrofit","None","2013-01-01",null,"Any","Any",15,5,"Com","DEER2014","D08 v2.05","SHW","Distribute","LiquidCirc","Timer",null,null,"rated years",null,null,null,"Standard"]
["WtrHt-WH-Aertr","Faucet Aerators","None","2013-01-01",null,"Any","Any",10,3.3,"Any","DEER2014","D08 v2.05","SHW","Distribute","WaterFixt","FaucetAer",null,null,"rated years",null,null,null,"Standard","proposed in PGE3PHVC100"]
["WtrHt-WH-R4PipeIns-Elec","Pipe Insulation - Electric Water Heater","None","2013-01-01",null,"Any","Any",13,4.3,"Res","DEER2014","D08 v2.05","SHW","Distribute","LiquidCirc","PipeIns",null,null,"rated years",null,null,null,"Standard","proposed in PGE3PHVC100"]
["WtrHt-WH-R4PipeIns-Gas","Pipe Insulation - Gas Water Heater - Residential","None","2013-01-01",null,"Any","Any",11,3.7,"Res","DEER2014","D08 v2.05","SHW","Distribute","LiquidCirc","PipeIns",null,null,"rated years",null,null,null,"Standard","proposed in PGE3PHVC100"]
["WtrHt-WH-Shrhd","Low-Flow Showerhead","None","2013-01-01",null,"Any","Any",10,3.3,"Res","DEER2014","D08 v2.05","SHW","Distribute","WaterFixt","ShowerHd",null,null,"rated years",null,null,null,"Standard","proposed in PGECOLTG151"]

{"sheet":"EUL_hou","index":3,"n_rows":300,"n_cols":27,"rows_kept":300,"cut":false,"hidden":false,"merged":[[2,15,2,26]]}
["EUL_hou table downloaded from READI:"]
[]
["HOU_cat","StartDate","ExpiryDate","Sector","UseCategory","UseSubCategory","BldgType","BldgLoc","HOU","Comment",null,"lookup",null,null,null,"Valid Building Types for each EUL_ID that has an hours-of-use category (HOU_cat)"]
["Com_InGen-CFL","2016-01-01",null,"Com","Lighting","InGen-CFL","Asm","Any",1160,null,null,{"$f":"A4&G4","v":"Com_InGen-CFLAsm"},null,null,null,"HOU_cat =>","None","Com_InGen-CFL","Res_InCmn-Lmp","Com_InGen-HB","Res_InCmn-Fixt","Com_InGen-LF","Com_OutGen","Res_OutCmn-Lmp","Res_OutGen-Fixt","Res_OutCmn-Fixt","Res_OutGen-LED"]
["Com_InGen-CFL","2016-01-01",null,"Com","Lighting","InGen-CFL","Com","Any",2130,null,null,"Com_InGen-CFLCom",null,null,null,"start row",1,{"$f":"MATCH(R4,$A$4:$A$102,0)","v":1},{"$f":"MATCH(S4,$A$4:$A$102,0)","v":93},31,92,61,91,96,98,95,99]
["Com_InGen-CFL","2016-01-01",null,"Com","Lighting","InGen-CFL","ECC","Any",1460,null,null,"Com_InGen-CFLECC",null,null,null,"num rows",1,{"$f":"COUNTIF($A$4:$A$102,R4)","v":30},{"$f":"COUNTIF($A$4:$A$102,S4)","v":2},30,1,30,1,2,1,1,1]
["Com_InGen-CFL","2016-01-01",null,"Com","Lighting","InGen-CFL","EPr","Any",1150,null,null,"Com_InGen-CFLEPr",null,null,null,0,"n/a",{"$f":"IF($P7<R$6,INDEX($G$4:$G$102,R$5+$P7),\"\")","v":"Asm"},"DMo","Asm","Any","Asm","Any","DMo","Any","Any","Any"]
["Com_InGen-CFL","2016-01-01",null,"Com","Lighting","InGen-CFL","ERC","Any",998,null,null,"Com_InGen-CFLERC",null,null,null,1,{"$f":"\"\"","v":""},"Com","MFm","Com","","Com","","MFm","","",""]
["Com_InGen-CFL","2016-01-01",null,"Com","Lighting","InGen-CFL","ESe","Any",1440,null,null,"Com_InGen-CFLESe",null,null,null,{"$f":"+P8+1","v":2},null,"ECC","","ECC","","ECC","","","","",""]
["Com_InGen-CFL","2016-01-01",null,"Com","Lighting","InGen-CFL","EUn","Any",2020,null,null,"Com_InGen-CFLEUn",null,null,null,3,null,"EPr","","EPr","","EPr","","","","",""]
["Com_InGen-CFL","2016-01-01",null,"Com","Lighting","InGen-CFL","Gro","Any",4850,null,null,"Com_InGen-CFLGro",null,null,null,4,null,"ERC","","ERC","","ERC","","","","",""]
["Com_InGen-CFL","2016-01-01",null,"Com","Lighting","InGen-CFL","Hsp","Any",5340,null,null,"Com_InGen-CFLHsp",null,null,null,5,null,"ESe","","ESe","","ESe","","","","",""]
["Com_InGen-CFL","2016-01-01",null,"Com","Lighting","InGen-CFL","Htl","Any",1590,null,null,"Com_InGen-CFLHtl",null,null,null,6,null,"EUn","","EUn","","EUn","","","","",""]
["Com_InGen-CFL","2016-01-01",null,"Com","Lighting","InGen-CFL","MBT","Any",2000,null,null,"Com_InGen-CFLMBT",null,null,null,7,null,"Gro","","Gro","","Gro","","","","",""]
["Com_InGen-CFL","2016-01-01",null,"Com","Lighting","InGen-CFL","MLI","Any",2260,null,null,"Com_InGen-CFLMLI",null,null,null,8,null,"Hsp","","Hsp","","Hsp","","","","",""]
["Com_InGen-CFL","2016-01-01",null,"Com","Lighting","InGen-CFL","Mtl","Any",940,null,null,"Com_InGen-CFLMtl",null,null,null,9,null,"Htl","","Htl","","Htl","","","","",""]
["Com_InGen-CFL","2016-01-01",null,"Com","Lighting","InGen-CFL","Nrs","Any",3380,null,null,"Com_InGen-CFLNrs",null,null,null,10,null,{"$f":"IF($P17<R$6,INDEX($G$4:$G$102,R$5+$P17),\"\")","v":"MBT"},"","MBT","","MBT","","","","",""]
["Com_InGen-CFL","2016-01-01",null,"Com","Lighting","InGen-CFL","OfL","Any",1960,null,null,"Com_InGen-CFLOfL",null,null,null,11,null,"MLI","","MLI","","MLI","","","","",""]
["Com_InGen-CFL","2016-01-01",null,"Com","Lighting","InGen-CFL","OfS","Any",1380,null,null,"Com_InGen-CFLOfS",null,null,null,12,null,"Mtl","","Mtl","","Mtl","","","","",""]
["Com_InGen-CFL","2016-01-01",null,"Com","Lighting","InGen-CFL","RFF","Any",3720,null,null,"Com_InGen-CFLRFF",null,null,null,13,null,"Nrs","","Nrs","","Nrs","","","","",""]
["Com_InGen-CFL","2016-01-01",null,"Com","Lighting","InGen-CFL","RSD","Any",3680,null,null,"Com_InGen-CFLRSD",null,null,null,14,null,"OfL","","OfL","","OfL","","","","",""]
["Com_InGen-CFL","2016-01-01",null,"Com","Lighting","InGen-CFL","Rt3","Any",1890,null,null,"Com_InGen-CFLRt3",null,null,null,15,null,"OfS","","OfS","","OfS","","","","",""]
["Com_InGen-CFL","2016-01-01",null,"Com","Lighting","InGen-CFL","RtL","Any",2940,null,null,"Com_InGen-CFLRtL",null,null,null,16,null,"RFF","","RFF","","RFF","","","","",""]
["Com_InGen-CFL","2016-01-01",null,"Com","Lighting","InGen-CFL","RtS","Any",2260,null,null,"Com_InGen-CFLRtS",null,null,null,17,null,"RSD","","RSD","","RSD","","","","",""]
["Com_InGen-CFL","2016-01-01",null,"Com","Lighting","InGen-CFL","s_Agr","Any",2080,null,null,"Com_InGen-CFLs_Agr",null,null,null,18,null,"Rt3","","Rt3","","Rt3","","","","",""]
["Com_InGen-CFL","2016-01-01",null,"Com","Lighting","InGen-CFL","s_Cli","Any",2380,null,null,"Com_InGen-CFLs_Cli",null,null,null,19,null,"RtL","","RtL","","RtL","","","","",""]
["Com_InGen-CFL","2016-01-01",null,"Com","Lighting","InGen-CFL","s_FSt","Any",3560,null,null,"Com_InGen-CFLs_FSt",null,null,null,20,null,{"$f":"IF($P27<R$6,INDEX($G$4:$G$102,R$5+$P27),\"\")","v":"RtS"},"","RtS","","RtS","","","","",""]
["Com_InGen-CFL","2016-01-01",null,"Com","Lighting","InGen-CFL","s_Ind","Any",2130,null,null,"Com_InGen-CFLs_Ind",null,null,null,21,null,"s_Agr","","s_Agr","","s_Agr","","","","",""]
["Com_InGen-CFL","2016-01-01",null,"Com","Lighting","InGen-CFL","s_MiC","Any",2440,null,null,"Com_InGen-CFLs_MiC",null,null,null,22,null,"s_Cli","","s_Cli","","s_Cli","","","","",""]
["Com_InGen-CFL","2016-01-01",null,"Com","Lighting","InGen-CFL","s_TCU","Any",1790,null,null,"Com_InGen-CFLs_TCU",null,null,null,23,null,"s_FSt","","s_FSt","","s_FSt","","","","",""]
["Com_InGen-CFL","2016-01-01",null,"Com","Lighting","InGen-CFL","SCn","Any",2010,null,null,"Com_InGen-CFLSCn",null,null,null,24,null,"s_Ind","","s_Ind","","s_Ind","","","","",""]
["Com_InGen-CFL","2016-01-01",null,"Com","Lighting","InGen-CFL","SUn","Any",1340,null,null,"Com_InGen-CFLSUn",null,null,null,25,null,"s_MiC","","s_MiC","","s_MiC","","","","",""]
["Com_InGen-CFL","2016-01-01",null,"Com","Lighting","InGen-CFL","WRf","Any",4640,null,null,"Com_InGen-CFLWRf",null,null,null,26,null,"s_TCU","","s_TCU","","s_TCU","","","","",""]
["Com_InGen-HB","2016-01-01",null,"Com","Lighting","InGen-HB","Asm","Any",1620,null,null,"Com_InGen-HBAsm",null,null,null,27,null,"SCn","","SCn","","SCn","","","","",""]
["Com_InGen-HB","2016-01-01",null,"Com","Lighting","InGen-HB","Com","Any",3010,null,null,"Com_InGen-HBCom",null,null,null,28,null,"SUn","","SUn","","SUn","","","","",""]
["Com_InGen-HB","2016-01-01",null,"Com","Lighting","InGen-HB","ECC","Any",2320,null,null,"Com_InGen-HBECC",null,null,null,29,null,"WRf","","WRf","","WRf","","","","",""]
["Com_InGen-HB","2016-01-01",null,"Com","Lighting","InGen-HB","EPr","Any",2090,null,null,{"$f":"A37&G37","v":"Com_InGen-HBEPr"}]
["Com_InGen-HB","2016-01-01",null,"Com","Lighting","InGen-HB","ERC","Any",957,null,null,"Com_InGen-HBERC"]
["Com_InGen-HB","2016-01-01",null,"Com","Lighting","InGen-HB","ESe","Any",2190,null,null,"Com_InGen-HBESe"]
["Com_InGen-HB","2016-01-01",null,"Com","Lighting","InGen-HB","EUn","Any",2480,null,null,"Com_InGen-HBEUn"]
["Com_InGen-HB","2016-01-01",null,"Com","Lighting","InGen-HB","Gro","Any",5390,null,null,"Com_InGen-HBGro"]
["Com_InGen-HB","2016-01-01",null,"Com","Lighting","InGen-HB","Hsp","Any",5840,null,null,"Com_InGen-HBHsp"]
["Com_InGen-HB","2016-01-01",null,"Com","Lighting","InGen-HB","Htl","Any",5240,null,null,"Com_InGen-HBHtl"]
["Com_InGen-HB","2016-01-01",null,"Com","Lighting","InGen-HB","MBT","Any",2720,null,null,"Com_InGen-HBMBT"]
["Com_InGen-HB","2016-01-01",null,"Com","Lighting","InGen-HB","MLI","Any",2910,null,null,"Com_InGen-HBMLI"]
["Com_InGen-HB","2016-01-01",null,"Com","Lighting","InGen-HB","Mtl","Any",4060,null,null,"Com_InGen-HBMtl"]
["Com_InGen-HB","2016-01-01",null,"Com","Lighting","InGen-HB","Nrs","Any",3740,null,null,"Com_InGen-HBNrs"]
["Com_InGen-HB","2016-01-01",null,"Com","Lighting","InGen-HB","OfL","Any",2700,null,null,"Com_InGen-HBOfL"]
["Com_InGen-HB","2016-01-01",null,"Com","Lighting","InGen-HB","OfS","Any",1830,null,null,"Com_InGen-HBOfS"]
["Com_InGen-HB","2016-01-01",null,"Com","Lighting","InGen-HB","RFF","Any",3400,null,null,"Com_InGen-HBRFF"]
["Com_InGen-HB","2016-01-01",null,"Com","Lighting","InGen-HB","RSD","Any",3820,null,null,"Com_InGen-HBRSD"]
["Com_InGen-HB","2016-01-01",null,"Com","Lighting","InGen-HB","Rt3","Any",5580,null,null,"Com_InGen-HBRt3"]
["Com_InGen-HB","2016-01-01",null,"Com","Lighting","InGen-HB","RtL","Any",4050,null,null,"Com_InGen-HBRtL"]
["Com_InGen-HB","2016-01-01",null,"Com","Lighting","InGen-HB","RtS","Any",2290,null,null,"Com_InGen-HBRtS"]
["Com_InGen-HB","2016-01-01",null,"Com","Lighting","InGen-HB","s_Agr","Any",2690,null,null,"Com_InGen-HBs_Agr"]
["Com_InGen-HB","2016-01-01",null,"Com","Lighting","InGen-HB","s_Cli","Any",2790,null,null,"Com_InGen-HBs_Cli"]
["Com_InGen-HB","2016-01-01",null,"Com","Lighting","InGen-HB","s_FSt","Any",3840,null,null,"Com_InGen-HBs_FSt"]
["Com_InGen-HB","2016-01-01",null,"Com","Lighting","InGen-HB","s_Ind","Any",2820,null,null,"Com_InGen-HBs_Ind"]
["Com_InGen-HB","2016-01-01",null,"Com","Lighting","InGen-HB","s_MiC","Any",2650,null,null,"Com_InGen-HBs_MiC"]
["Com_InGen-HB","2016-01-01",null,"Com","Lighting","InGen-HB","s_TCU","Any",2380,null,null,"Com_InGen-HBs_TCU"]
["Com_InGen-HB","2016-01-01",null,"Com","Lighting","InGen-HB","SCn","Any",2290,null,null,"Com_InGen-HBSCn"]
["Com_InGen-HB","2016-01-01",null,"Com","Lighting","InGen-HB","SUn","Any",2160,null,null,"Com_InGen-HBSUn"]
["Com_InGen-HB","2016-01-01",null,"Com","Lighting","InGen-HB","WRf","Any",4590,null,null,"Com_InGen-HBWRf"]
["Com_InGen-LF","2016-01-01",null,"Com","Lighting","InGen-LF","Asm","Any",1130,null,null,"Com_InGen-LFAsm"]
["Com_InGen-LF","2016-01-01",null,"Com","Lighting","InGen-LF","Com","Any",2430,null,null,"Com_InGen-LFCom"]
["Com_InGen-LF","2016-01-01",null,"Com","Lighting","InGen-LF","ECC","Any",2160,null,null,"Com_InGen-LFECC"]
["Com_InGen-LF","2016-01-01",null,"Com","Lighting","InGen-LF","EPr","Any",1170,null,null,"Com_InGen-LFEPr"]
["Com_InGen-LF","2016-01-01",null,"Com","Lighting","InGen-LF","ERC","Any",957,null,null,"Com_InGen-LFERC"]
["Com_InGen-LF","2016-01-01",null,"Com","Lighting","InGen-LF","ESe","Any",1590,null,null,"Com_InGen-LFESe"]
["Com_InGen-LF","2016-01-01",null,"Com","Lighting","InGen-LF","EUn","Any",1980,null,null,"Com_InGen-LFEUn"]
["Com_InGen-LF","2016-01-01",null,"Com","Lighting","InGen-LF","Gro","Any",4710,null,null,"Com_InGen-LFGro"]
["Com_InGen-LF","2016-01-01",null,"Com","Lighting","InGen-LF","Hsp","Any",5080,null,null,"Com_InGen-LFHsp"]
["Com_InGen-LF","2016-01-01",null,"Com","Lighting","InGen-LF","Htl","Any",1210,null,null,"Com_InGen-LFHtl"]
["Com_InGen-LF","2016-01-01",null,"Com","Lighting","InGen-LF","MBT","Any",2220,null,null,"Com_InGen-LFMBT"]
["Com_InGen-LF","2016-01-01",null,"Com","Lighting","InGen-LF","MLI","Any",2320,null,null,"Com_InGen-LFMLI"]
["Com_InGen-LF","2016-01-01",null,"Com","Lighting","InGen-LF","Mtl","Any",1000,null,null,"Com_InGen-LFMtl"]
["Com_InGen-LF","2016-01-01",null,"Com","Lighting","InGen-LF","Nrs","Any",3960,null,null,"Com_InGen-LFNrs"]
["Com_InGen-LF","2016-01-01",null,"Com","Lighting","InGen-LF","OfL","Any",2070,null,null,"Com_InGen-LFOfL"]
["Com_InGen-LF","2016-01-01",null,"Com","Lighting","InGen-LF","OfS","Any",1530,null,null,"Com_InGen-LFOfS"]
["Com_InGen-LF","2016-01-01",null,"Com","Lighting","InGen-LF","RFF","Any",3880,null,null,"Com_InGen-LFRFF"]
["Com_InGen-LF","2016-01-01",null,"Com","Lighting","InGen-LF","RSD","Any",3120,null,null,"Com_InGen-LFRSD"]
["Com_InGen-LF","2016-01-01",null,"Com","Lighting","InGen-LF","Rt3","Any",5250,null,null,"Com_InGen-LFRt3"]
["Com_InGen-LF","2016-01-01",null,"Com","Lighting","InGen-LF","RtL","Any",3050,null,null,"Com_InGen-LFRtL"]
["Com_InGen-LF","2016-01-01",null,"Com","Lighting","InGen-LF","RtS","Any",2740,null,null,"Com_InGen-LFRtS"]
["Com_InGen-LF","2016-01-01",null,"Com","Lighting","InGen-LF","s_Agr","Any",2160,null,null,"Com_InGen-LFs_Agr"]
["Com_InGen-LF","2016-01-01",null,"Com","Lighting","InGen-LF","s_Cli","Any",2750,null,null,"Com_InGen-LFs_Cli"]
["Com_InGen-LF","2016-01-01",null,"Com","Lighting","InGen-LF","s_FSt","Any",3730,null,null,"Com_InGen-LFs_FSt"]
["Com_InGen-LF","2016-01-01",null,"Com","Lighting","InGen-LF","s_Ind","Any",2270,null,null,"Com_InGen-LFs_Ind"]
["Com_InGen-LF","2016-01-01",null,"Com","Lighting","InGen-LF","s_MiC","Any",2460,null,null,"Com_InGen-LFs_MiC"]
["Com_InGen-LF","2016-01-01",null,"Com","Lighting","InGen-LF","s_TCU","Any",1960,null,null,"Com_InGen-LFs_TCU"]
["Com_InGen-LF","2016-01-01",null,"Com","Lighting","InGen-LF","SCn","Any",2030,null,null,"Com_InGen-LFSCn"]
["Com_InGen-LF","2016-01-01",null,"Com","Lighting","InGen-LF","SUn","Any",1870,null,null,"Com_InGen-LFSUn"]
["Com_InGen-LF","2016-01-01",null,"Com","Lighting","InGen-LF","WRf","Any",4470,null,null,"Com_InGen-LFWRf"]
["Com_OutGen","2013-01-01",null,"Com","Lighting","OutGen","Any","Any",4100,null,null,"Com_OutGenAny"]
["Res_InCmn-Fixt","2013-01-01",null,"Res","Lighting","InCommon","Any","Any",4340,"All other technologies not listed for Res_InCmn-Lmp",null,"Res_InCmn-FixtAny"]
["Res_InCmn-Lmp","2013-01-01",null,"Res","Lighting","InCommon","DMo","Any",6142,"from Guidance doc: Screw-in CFL, screw-in LED, pin-based CFL, MR-16",null,"Res_InCmn-LmpDMo"]
["Res_InCmn-Lmp","2013-01-01",null,"Res","Lighting","InCommon","MFm","Any",6142,"from Guidance doc: Screw-in CFL, screw-in LED, pin-based CFL, MR-16",null,"Res_InCmn-LmpMFm"]
["Res_OutCmn-Fixt","2013-01-01",null,"Res","Lighting","OutCommon","Any","Any",4340,"All other technologies not listed for Res_OutCmn-Lmp",null,"Res_OutCmn-FixtAny"]
["Res_OutCmn-Lmp","2013-01-01",null,"Res","Lighting","OutCommon","DMo","Any",3390,"from Guidance doc: Screw-in CFL, screw-in LED, pin-based CFL, MR-16",null,"Res_OutCmn-LmpDMo"]
["Res_OutCmn-Lmp","2013-01-01",null,"Res","Lighting","OutCommon","MFm","Any",3390,"from Guidance doc: Screw-in CFL, screw-in LED, pin-based CFL, MR-16",null,"Res_OutCmn-LmpMFm"]
["Res_OutGen-Fixt","2013-01-01",null,"Res","Lighting","OutGen","Any","Any",4100,null,null,{"$f":"A101&G101","v":"Res_OutGen-FixtAny"}]
["Res_OutGen-LED","2016-01-01",null,"Res","Lighting","OutGen","Any","Any",935,null,null,"Res_OutGen-LEDAny"]
[]
[]
["HOU_cat","StartDate","ExpiryDate","Sector","UseCategory","UseSubCategory","BldgType","BldgLoc","HOU","Comment"]
["Com_InGen-CFL","2013-01-01","2015-12-31","Com","Lighting","InGen-CFL","Asm","Any",2250]
["Com_InGen-CFL","2016-01-01",null,"Com","Lighting","InGen-CFL","Asm","Any",1160]
["Com_InGen-CFL","2013-01-01","2015-12-31","Com","Lighting","InGen-CFL","Com","Any",3000]
["Com_InGen-CFL","2016-01-01",null,"Com","Lighting","InGen-CFL","Com","Any",2130]
["Com_InGen-CFL","2013-01-01","2015-12-31","Com","Lighting","InGen-CFL","ECC","Any",2310]
["Com_InGen-CFL","2016-01-01",null,"Com","Lighting","InGen-CFL","ECC","Any",1460]
["Com_InGen-CFL","2013-01-01","2015-12-31","Com","Lighting","InGen-CFL","EPr","Any",2110]
["Com_InGen-CFL","2016-01-01",null,"Com","Lighting","InGen-CFL","EPr","Any",1150]
["Com_InGen-CFL","2013-01-01","2015-12-31","Com","Lighting","InGen-CFL","ERC","Any",2390]
["Com_InGen-CFL","2016-01-01",null,"Com","Lighting","InGen-CFL","ERC","Any",998]
["Com_InGen-CFL","2013-01-01","2015-12-31","Com","Lighting","InGen-CFL","ESe","Any",2210]
["Com_InGen-CFL","2016-01-01",null,"Com","Lighting","InGen-CFL","ESe","Any",1440]
["Com_InGen-CFL","2013-01-01","2015-12-31","Com","Lighting","InGen-CFL","EUn","Any",2260]
["Com_InGen-CFL","2016-01-01",null,"Com","Lighting","InGen-CFL","EUn","Any",2020]
["Com_InGen-CFL","2013-01-01","2015-12-31","Com","Lighting","InGen-CFL","Gro","Any",3850]
["Com_InGen-CFL","2016-01-01",null,"Com","Lighting","InGen-CFL","Gro","Any",4850]
["Com_InGen-CFL","2013-01-01","2015-12-31","Com","Lighting","InGen-CFL","Hsp","Any",4180]
["Com_InGen-CFL","2016-01-01",null,"Com","Lighting","InGen-CFL","Hsp","Any",5340]
["Com_InGen-CFL","2013-01-01","2015-12-31","Com","Lighting","InGen-CFL","Htl","Any",1650]
["Com_InGen-CFL","2016-01-01",null,"Com","Lighting","InGen-CFL","Htl","Any",1590]
["Com_InGen-CFL","2013-01-01","2015-12-31","Com","Lighting","InGen-CFL","MBT","Any",3040]
["Com_InGen-CFL","2016-01-01",null,"Com","Lighting","InGen-CFL","MBT","Any",2000]
["Com_InGen-CFL","2013-01-01","2015-12-31","Com","Lighting","InGen-CFL","MLI","Any",2580]
["Com_InGen-CFL","2016-01-01",null,"Com","Lighting","InGen-CFL","MLI","Any",2260]
["Com_InGen-CFL","2013-01-01","2015-12-31","Com","Lighting","InGen-CFL","Mtl","Any",1330]
["Com_InGen-CFL","2016-01-01",null,"Com","Lighting","InGen-CFL","Mtl","Any",940]
["Com_InGen-CFL","2013-01-01","2015-12-31","Com","Lighting","InGen-CFL","Nrs","Any",3520]
["Com_InGen-CFL","2016-01-01",null,"Com","Lighting","InGen-CFL","Nrs","Any",3380]
["Com_InGen-CFL","2013-01-01","2015-12-31","Com","Lighting","InGen-CFL","OfL","Any",2880]
["Com_InGen-CFL","2016-01-01",null,"Com","Lighting","InGen-CFL","OfL","Any",1960]
["Com_InGen-CFL","2013-01-01","2015-12-31","Com","Lighting","InGen-CFL","OfS","Any",2720]
["Com_InGen-CFL","2016-01-01",null,"Com","Lighting","InGen-CFL","OfS","Any",1380]
["Com_InGen-CFL","2013-01-01","2015-12-31","Com","Lighting","InGen-CFL","RFF","Any",4810]
["Com_InGen-CFL","2016-01-01",null,"Com","Lighting","InGen-CFL","RFF","Any",3720]
["Com_InGen-CFL","2013-01-01","2015-12-31","Com","Lighting","InGen-CFL","RSD","Any",4830]
["Com_InGen-CFL","2016-01-01",null,"Com","Lighting","InGen-CFL","RSD","Any",3680]
["Com_InGen-CFL","2013-01-01","2015-12-31","Com","Lighting","InGen-CFL","Rt3","Any",3710]
["Com_InGen-CFL","2016-01-01",null,"Com","Lighting","InGen-CFL","Rt3","Any",1890]
["Com_InGen-CFL","2013-01-01","2015-12-31","Com","Lighting","InGen-CFL","RtL","Any",4350]
["Com_InGen-CFL","2016-01-01",null,"Com","Lighting","InGen-CFL","RtL","Any",2940]
["Com_InGen-CFL","2013-01-01","2015-12-31","Com","Lighting","InGen-CFL","RtS","Any",4010]
["Com_InGen-CFL","2016-01-01",null,"Com","Lighting","InGen-CFL","RtS","Any",2260]
["Com_InGen-CFL","2013-01-01","2015-12-31","Com","Lighting","InGen-CFL","s_Agr","Any",2610]
["Com_InGen-CFL","2016-01-01",null,"Com","Lighting","InGen-CFL","s_Agr","Any",2080]
["Com_InGen-CFL","2013-01-01","2015-12-31","Com","Lighting","InGen-CFL","s_Cli","Any",3120]
["Com_InGen-CFL","2016-01-01",null,"Com","Lighting","InGen-CFL","s_Cli","Any",2380]
["Com_InGen-CFL","2013-01-01","2015-12-31","Com","Lighting","InGen-CFL","SCn","Any",2740]
["Com_InGen-CFL","2016-01-01",null,"Com","Lighting","InGen-CFL","SCn","Any",2010]
["Com_InGen-CFL","2013-01-01","2015-12-31","Com","Lighting","InGen-CFL","s_FSt","Any",3930]
["Com_InGen-CFL","2016-01-01",null,"Com","Lighting","InGen-CFL","s_FSt","Any",3560]
["Com_InGen-CFL","2013-01-01","2015-12-31","Com","Lighting","InGen-CFL","s_Ind","Any",2810]
["Com_InGen-CFL","2016-01-01",null,"Com","Lighting","InGen-CFL","s_Ind","Any",2130]
["Com_InGen-CFL","2013-01-01","2015-12-31","Com","Lighting","InGen-CFL","s_MiC","Any",3850]
["Com_InGen-CFL","2016-01-01",null,"Com","Lighting","InGen-CFL","s_MiC","Any",2440]
["Com_InGen-CFL","2013-01-01","2015-12-31","Com","Lighting","InGen-CFL","s_TCU","Any",2730]
["Com_InGen-CFL","2016-01-01",null,"Com","Lighting","InGen-CFL","s_TCU","Any",1790]
["Com_InGen-CFL","2013-01-01","2015-12-31","Com","Lighting","InGen-CFL","SUn","Any",2740]
["Com_InGen-CFL","2016-01-01",null,"Com","Lighting","InGen-CFL","SUn","Any",1340]
["Com_InGen-CFL","2013-01-01","2015-12-31","Com","Lighting","InGen-CFL","WRf","Any",4660]
["Com_InGen-CFL","2016-01-01",null,"Com","Lighting","InGen-CFL","WRf","Any",4640]
["Com_InGen-HB","2013-01-01","2015-12-31","Com","Lighting","InGen-HB","Asm","Any",2530]
["Com_InGen-HB","2016-01-01",null,"Com","Lighting","InGen-HB","Asm","Any",1620]
["Com_InGen-HB","2013-01-01","2015-12-31","Com","Lighting","InGen-HB","Com","Any",3090]
["Com_InGen-HB","2016-01-01",null,"Com","Lighting","InGen-HB","Com","Any",3010]
["Com_InGen-HB","2013-01-01","2015-12-31","Com","Lighting","InGen-HB","ECC","Any",2270]
["Com_InGen-HB","2016-01-01",null,"Com","Lighting","InGen-HB","ECC","Any",2320]
["Com_InGen-HB","2013-01-01","2015-12-31","Com","Lighting","InGen-HB","EPr","Any",1950]
["Com_InGen-HB","2016-01-01",null,"Com","Lighting","InGen-HB","EPr","Any",2090]
["Com_InGen-HB","2013-01-01","2015-12-31","Com","Lighting","InGen-HB","ERC","Any",2190]
["Com_InGen-HB","2016-01-01",null,"Com","Lighting","InGen-HB","ERC","Any",957]
["Com_InGen-HB","2013-01-01","2015-12-31","Com","Lighting","InGen-HB","ESe","Any",2110]
["Com_InGen-HB","2016-01-01",null,"Com","Lighting","InGen-HB","ESe","Any",2190]
["Com_InGen-HB","2013-01-01","2015-12-31","Com","Lighting","InGen-HB","EUn","Any",2200]
["Com_InGen-HB","2016-01-01",null,"Com","Lighting","InGen-HB","EUn","Any",2480]
["Com_InGen-HB","2013-01-01","2015-12-31","Com","Lighting","InGen-HB","Gro","Any",4850]
["Com_InGen-HB","2016-01-01",null,"Com","Lighting","InGen-HB","Gro","Any",5390]
["Com_InGen-HB","2013-01-01","2015-12-31","Com","Lighting","InGen-HB","Hsp","Any",5240]
["Com_InGen-HB","2016-01-01",null,"Com","Lighting","InGen-HB","Hsp","Any",5840]
["Com_InGen-HB","2013-01-01","2015-12-31","Com","Lighting","InGen-HB","Htl","Any",1910]
["Com_InGen-HB","2016-01-01",null,"Com","Lighting","InGen-HB","Htl","Any",5240]
["Com_InGen-HB","2013-01-01","2015-12-31","Com","Lighting","InGen-HB","MBT","Any",3420]
["Com_InGen-HB","2016-01-01",null,"Com","Lighting","InGen-HB","MBT","Any",2720]
["Com_InGen-HB","2013-01-01","2015-12-31","Com","Lighting","InGen-HB","MLI","Any",3210]
["Com_InGen-HB","2016-01-01",null,"Com","Lighting","InGen-HB","MLI","Any",2910]
["Com_InGen-HB","2013-01-01","2015-12-31","Com","Lighting","InGen-HB","Mtl","Any",1500]
["Com_InGen-HB","2016-01-01",null,"Com","Lighting","InGen-HB","Mtl","Any",4060]
["Com_InGen-HB","2013-01-01","2015-12-31","Com","Lighting","InGen-HB","Nrs","Any",4080]
["Com_InGen-HB","2016-01-01",null,"Com","Lighting","InGen-HB","Nrs","Any",3740]
["Com_InGen-HB","2013-01-01","2015-12-31","Com","Lighting","InGen-HB","OfL","Any",2490]
["Com_InGen-HB","2016-01-01",null,"Com","Lighting","InGen-HB","OfL","Any",2700]
["Com_InGen-HB","2013-01-01","2015-12-31","Com","Lighting","InGen-HB","OfS","Any",2250]
["Com_InGen-HB","2016-01-01",null,"Com","Lighting","InGen-HB","OfS","Any",1830]
["Com_InGen-HB","2013-01-01","2015-12-31","Com","Lighting","InGen-HB","RFF","Any",4840]
["Com_InGen-HB","2016-01-01",null,"Com","Lighting","InGen-HB","RFF","Any",3400]
["Com_InGen-HB","2013-01-01","2015-12-31","Com","Lighting","InGen-HB","RSD","Any",4830]
["Com_InGen-HB","2016-01-01",null,"Com","Lighting","InGen-HB","RSD","Any",3820]
["Com_InGen-HB","2013-01-01","2015-12-31","Com","Lighting","InGen-HB","Rt3","Any",3370]
["Com_InGen-HB","2016-01-01",null,"Com","Lighting","InGen-HB","Rt3","Any",5580]
["Com_InGen-HB","2013-01-01","2015-12-31","Com","Lighting","InGen-HB","RtL","Any",4260]
["Com_InGen-HB","2016-01-01",null,"Com","Lighting","InGen-HB","RtL","Any",4050]
["Com_InGen-HB","2013-01-01","2015-12-31","Com","Lighting","InGen-HB","RtS","Any",3380]
["Com_InGen-HB","2016-01-01",null,"Com","Lighting","InGen-HB","RtS","Any",2290]
["Com_InGen-HB","2013-01-01","2015-12-31","Com","Lighting","InGen-HB","s_Agr","Any",3020]
["Com_InGen-HB","2016-01-01",null,"Com","Lighting","InGen-HB","s_Agr","Any",2690]
["Com_InGen-HB","2013-01-01","2015-12-31","Com","Lighting","InGen-HB","s_Cli","Any",3160]
["Com_InGen-HB","2016-01-01",null,"Com","Lighting","InGen-HB","s_Cli","Any",2790]
["Com_InGen-HB","2013-01-01","2015-12-31","Com","Lighting","InGen-HB","SCn","Any",3390]
["Com_InGen-HB","2016-01-01",null,"Com","Lighting","InGen-HB","SCn","Any",2290]
["Com_InGen-HB","2013-01-01","2015-12-31","Com","Lighting","InGen-HB","s_FSt","Any",4110]
["Com_InGen-HB","2016-01-01",null,"Com","Lighting","InGen-HB","s_FSt","Any",3840]
["Com_InGen-HB","2013-01-01","2015-12-31","Com","Lighting","InGen-HB","s_Ind","Any",3320]
["Com_InGen-HB","2016-01-01",null,"Com","Lighting","InGen-HB","s_Ind","Any",2820]
["Com_InGen-HB","2013-01-01","2015-12-31","Com","Lighting","InGen-HB","s_MiC","Any",3490]
["Com_InGen-HB","2016-01-01",null,"Com","Lighting","InGen-HB","s_MiC","Any",2650]
["Com_InGen-HB","2013-01-01","2015-12-31","Com","Lighting","InGen-HB","s_TCU","Any",2950]
["Com_InGen-HB","2016-01-01",null,"Com","Lighting","InGen-HB","s_TCU","Any",2380]
["Com_InGen-HB","2013-01-01","2015-12-31","Com","Lighting","InGen-HB","SUn","Any",3390]
["Com_InGen-HB","2016-01-01",null,"Com","Lighting","InGen-HB","SUn","Any",2160]
["Com_InGen-HB","2013-01-01","2015-12-31","Com","Lighting","InGen-HB","WRf","Any",4540]
["Com_InGen-HB","2016-01-01",null,"Com","Lighting","InGen-HB","WRf","Any",4590]
["Com_InGen-LF","2013-01-01","2015-12-31","Com","Lighting","InGen-LF","Asm","Any",2530]
["Com_InGen-LF","2016-01-01",null,"Com","Lighting","InGen-LF","Asm","Any",1130]
["Com_InGen-LF","2013-01-01","2015-12-31","Com","Lighting","InGen-LF","Com","Any",3090]
["Com_InGen-LF","2016-01-01",null,"Com","Lighting","InGen-LF","Com","Any",2430]
["Com_InGen-LF","2013-01-01","2015-12-31","Com","Lighting","InGen-LF","ECC","Any",2270]
["Com_InGen-LF","2016-01-01",null,"Com","Lighting","InGen-LF","ECC","Any",2160]
["Com_InGen-LF","2013-01-01","2015-12-31","Com","Lighting","InGen-LF","EPr","Any",1950]
["Com_InGen-LF","2016-01-01",null,"Com","Lighting","InGen-LF","EPr","Any",1170]
["Com_InGen-LF","2013-01-01","2015-12-31","Com","Lighting","InGen-LF","ERC","Any",2190]
["Com_InGen-LF","2016-01-01",null,"Com","Lighting","InGen-LF","ERC","Any",957]
["Com_InGen-LF","2013-01-01","2015-12-31","Com","Lighting","InGen-LF","ESe","Any",2110]
["Com_InGen-LF","2016-01-01",null,"Com","Lighting","InGen-LF","ESe","Any",1590]
["Com_InGen-LF","2013-01-01","2015-12-31","Com","Lighting","InGen-LF","EUn","Any",2200]
["Com_InGen-LF","2016-01-01",null,"Com","Lighting","InGen-LF","EUn","Any",1980]
["Com_InGen-LF","2013-01-01","2015-12-31","Com","Lighting","InGen-LF","Gro","Any",4850]
["Com_InGen-LF","2016-01-01",null,"Com","Lighting","InGen-LF","Gro","Any",4710]
["Com_InGen-LF","2013-01-01","2015-12-31","Com","Lighting","InGen-LF","Hsp","Any",5240]
["Com_InGen-LF","2016-01-01",null,"Com","Lighting","InGen-LF","Hsp","Any",5080]
["Com_InGen-LF","2013-01-01","2015-12-31","Com","Lighting","InGen-LF","Htl","Any",1910]
["Com_InGen-LF","2016-01-01",null,"Com","Lighting","InGen-LF","Htl","Any",1210]
["Com_InGen-LF","2013-01-01","2015-12-31","Com","Lighting","InGen-LF","MBT","Any",3420]
["Com_InGen-LF","2016-01-01",null,"Com","Lighting","InGen-LF","MBT","Any",2220]
["Com_InGen-LF","2013-01-01","2015-12-31","Com","Lighting","InGen-LF","MLI","Any",3210]
["Com_InGen-LF","2016-01-01",null,"Com","Lighting","InGen-LF","MLI","Any",2320]
["Com_InGen-LF","2013-01-01","2015-12-31","Com","Lighting","InGen-LF","Mtl","Any",1500]
["Com_InGen-LF","2016-01-01",null,"Com","Lighting","InGen-LF","Mtl","Any",1000]
["Com_InGen-LF","2013-01-01","2015-12-31","Com","Lighting","InGen-LF","Nrs","Any",4080]
["Com_InGen-LF","2016-01-01",null,"Com","Lighting","InGen-LF","Nrs","Any",3960]
["Com_InGen-LF","2013-01-01","2015-12-31","Com","Lighting","InGen-LF","OfL","Any",2490]
["Com_InGen-LF","2016-01-01",null,"Com","Lighting","InGen-LF","OfL","Any",2070]
["Com_InGen-LF","2013-01-01","2015-12-31","Com","Lighting","InGen-LF","OfS","Any",2250]
["Com_InGen-LF","2016-01-01",null,"Com","Lighting","InGen-LF","OfS","Any",1530]
["Com_InGen-LF","2013-01-01","2015-12-31","Com","Lighting","InGen-LF","RFF","Any",4840]
["Com_InGen-LF","2016-01-01",null,"Com","Lighting","InGen-LF","RFF","Any",3880]
["Com_InGen-LF","2013-01-01","2015-12-31","Com","Lighting","InGen-LF","RSD","Any",4830]
["Com_InGen-LF","2016-01-01",null,"Com","Lighting","InGen-LF","RSD","Any",3120]
["Com_InGen-LF","2013-01-01","2015-12-31","Com","Lighting","InGen-LF","Rt3","Any",3370]
["Com_InGen-LF","2016-01-01",null,"Com","Lighting","InGen-LF","Rt3","Any",5250]
["Com_InGen-LF","2013-01-01","2015-12-31","Com","Lighting","InGen-LF","RtL","Any",4260]
["Com_InGen-LF","2016-01-01",null,"Com","Lighting","InGen-LF","RtL","Any",3050]
["Com_InGen-LF","2013-01-01","2015-12-31","Com","Lighting","InGen-LF","RtS","Any",3380]
["Com_InGen-LF","2016-01-01",null,"Com","Lighting","InGen-LF","RtS","Any",2740]
["Com_InGen-LF","2013-01-01","2015-12-31","Com","Lighting","InGen-LF","s_Agr","Any",3020]
["Com_InGen-LF","2016-01-01",null,"Com","Lighting","InGen-LF","s_Agr","Any",2160]
["Com_InGen-LF","2013-01-01","2015-12-31","Com","Lighting","InGen-LF","s_Cli","Any",3160]
["Com_InGen-LF","2016-01-01",null,"Com","Lighting","InGen-LF","s_Cli","Any",2750]
["Com_InGen-LF","2013-01-01","2015-12-31","Com","Lighting","InGen-LF","SCn","Any",3390]
["Com_InGen-LF","2016-01-01",null,"Com","Lighting","InGen-LF","SCn","Any",2030]
["Com_InGen-LF","2013-01-01","2015-12-31","Com","Lighting","InGen-LF","s_FSt","Any",4110]
["Com_InGen-LF","2016-01-01",null,"Com","Lighting","InGen-LF","s_FSt","Any",3730]
["Com_InGen-LF","2013-01-01","2015-12-31","Com","Lighting","InGen-LF","s_Ind","Any",3320]
["Com_InGen-LF","2016-01-01",null,"Com","Lighting","InGen-LF","s_Ind","Any",2270]
["Com_InGen-LF","2013-01-01","2015-12-31","Com","Lighting","InGen-LF","s_MiC","Any",3490]
["Com_InGen-LF","2016-01-01",null,"Com","Lighting","InGen-LF","s_MiC","Any",2460]
["Com_InGen-LF","2013-01-01","2015-12-31","Com","Lighting","InGen-LF","s_TCU","Any",2950]
["Com_InGen-LF","2016-01-01",null,"Com","Lighting","InGen-LF","s_TCU","Any",1960]
["Com_InGen-LF","2013-01-01","2015-12-31","Com","Lighting","InGen-LF","SUn","Any",3390]
["Com_InGen-LF","2016-01-01",null,"Com","Lighting","InGen-LF","SUn","Any",1870]
["Com_InGen-LF","2013-01-01","2015-12-31","Com","Lighting","InGen-LF","WRf","Any",4540]
["Com_InGen-LF","2016-01-01",null,"Com","Lighting","InGen-LF","WRf","Any",4470]
["Com_OutGen","2013-01-01",null,"Com","Lighting","OutGen","Any","Any",4100]
["Res_InCmn-Fixt","2013-01-01",null,"Res","Lighting","InCommon","Any","Any",4340,"All other technologies not listed for Res_InCmn-Lmp"]
["Res_InCmn-Lmp","2013-01-01",null,"Res","Lighting","InCommon","DMo","Any",6142,"from Guidance doc: Screw-in CFL, screw-in LED, pin-based CFL, MR-16"]
["Res_InCmn-Lmp","2013-01-01",null,"Res","Lighting","InCommon","MFm","Any",6142,"from Guidance doc: Screw-in CFL, screw-in LED, pin-based CFL, MR-16"]
["Res_InGen","2013-01-01","2015-12-31","Res","Lighting","InGen","Any","Any",541]
["Res_InGen-3Dim","2013-01-01","2015-12-31","Res","Lighting","InGen","Any","Any",427,"from Guidance: Residential, Dimmable or 3-way screw-in CFLs"]
["Res_OutCmn-Fixt","2013-01-01",null,"Res","Lighting","OutCommon","Any","Any",4340,"All other technologies not listed for Res_OutCmn-Lmp"]
["Res_OutCmn-Lmp","2013-01-01",null,"Res","Lighting","OutCommon","DMo","Any",3390,"from Guidance doc: Screw-in CFL, screw-in LED, pin-based CFL, MR-16"]
["Res_OutCmn-Lmp","2013-01-01",null,"Res","Lighting","OutCommon","MFm","Any",3390,"from Guidance doc: Screw-in CFL, screw-in LED, pin-based CFL, MR-16"]
["Res_OutGen-Fixt","2013-01-01",null,"Res","Lighting","OutGen","Any","Any",4100]
["Res_OutGen-LED","2013-01-01","2015-12-31","Res","Lighting","OutGen","Any","Any",1249]
["Res_OutGen-LED","2016-01-01",null,"Res","Lighting","OutGen","Any","Any",935]
["Res_OutGen-Lmp","2013-01-01","2015-12-31","Res","Lighting","OutGen","DMo","Any",1131]
["Res_OutGen-Lmp","2013-01-01","2015-12-31","Res","Lighting","OutGen","MFm","Any",4100]
["Res_OutGen-Lmp","2013-01-01","2015-12-31","Res","Lighting","OutGen","SFm","Any",1131]

{"sheet":"NTG","index":4,"n_rows":106,"n_cols":30,"rows_kept":106,"cut":false,"hidden":false,"merged":[[5,18,5,22]]}
["Ex Ante database Support Table Export"]
["Support Table Group: cpCostEff"]
["Support Table: NTG",null,null,null,null,null,null,null,null,null,null,null,null,null,null,null,null,null,null,null,null,null,null,null,null,null,"Calc Type Index:",{"$f":"MATCH('Project Components'!H9,lookup!U4:U6,0)","v":1}]
["This file created on 2/9/2018 8:42:28 PM while connected to AmazonWS-RDS as sptviewer.",null,null,null,null,null,null,null,null,null,null,null,null,null,null,null,null,null,null,null,null,null,null,null,null,null,"NTG selection table height",{"$f":"INDEX(AA6:AC6,CTind)","v":80}]
["Program/Database Description: READI v.2.4.7 (Current Ex Ante data) options: include Non-DEER data; 1/1/2013 - 12/31/2025"]
[null,null,null,null,null,null,null,null,null,null,null,null,null,null,null,null,null,null,"Date Dependency",null,null,null,null,null,null,null,{"$f":"COUNTA(AA8:AA106)","v":80},{"$f":"COUNTA(AB8:AB106)","v":19},3,80]
["Lookup","NTG","Version","StartDate","ExpiryDate","NTG_Measure_Type","NTGR_kWh","NTGR_therm","BldgType","BldgVint","NTG_Qualifier","Measure_Delivery","Sector","UseCategory","UseSubCategory","TechGroup","TechType","Documentation","before 2016","Jan2016 - Dec2016","Jan2017 - Jun2017","Jul2017 - Dec2018","after 2018",null,null,"ALL NTG","Deemed","Custom","NMEC","Current Selection"]
[{"$f":"B8&C8","v":"Agric-Default>2yrsDEER2014"},"Agric-Default>2yrs","DEER2014","2013-01-01",null,"All other EEMs with no evaluated NTGR; existing EEM in programs with same delivery mechanism for more than 2 years",0.6,0.6,"Any","Any","None","Any","Ag",null,null,null,null,"2011 DEER Update Report - Section 15 Table 15-3",true,true,true,true,true,null,null,"Agric-Default>2yrs","Agric-Default>2yrs","NonRes-sAg-mCust-ci","NonRes-sAll-mCust",{"$f":"IF(ISBLANK(INDEX(AA8:AC8,$AB$3)),\"\",INDEX(AA8:AC8,$AB$3))","v":"Agric-Default>2yrs"}]
["Agric-Sprklr-AllDEER2016","Agric-Sprklr-All","DEER2016","2016-01-01","2018-12-31","Agricultural water conserving sprinkler technologies; deemed; all delivery mechanisms except upstream",0.4,0.4,"Any","Any","None","NonUpStrm","Ag",null,null,null,null,"2013 ESPI Report: 2013 Sprinkler and Pipe Insulation NTGR Evaluation Report Table 1-5",false,true,true,true,false,null,null,"Agric-Sprklr-All","Agric-Sprklr-All","NonRes-sAll-mCFL-ci","NonRes-sAll-mCust-Elec","Agric-Sprklr-All"]
["Agric-Sprklr-AllDEER2019","Agric-Sprklr-All","DEER2019","2019-01-01",null,"Agricultural water conserving sprinkler technologies; deemed; all delivery mechanisms except upstream",0.5,0.5,"Any","Any","NonUpStrm","NonUpStrm","Ag",null,null,null,null,"June 2017 DEER Update; 2013 ESPI Report: 2013 Sprinkler and Pipe Insulation NTGR Evaluation Report Table 1-5",false,false,false,false,true,null,null,"Agric-Sprklr-All","Agric-Sprklr-All","NonRes-sAll-mCust","NonRes-sAll-mCust-Gas","Agric-Sprklr-All"]
["Agricult-Default-HTR-diDEER2014","Agricult-Default-HTR-di","DEER2014","2013-01-01",null,"All other EEM with no evaluated NTGR; direct install to hard-to-reach only.",0.85,0.85,"Any","Any","HTR","DirInstall","Ag",null,null,null,null,"2011 DEER Update Report - Section 15 Table 15-3",true,true,true,true,true,null,null,"Agricult-Default-HTR-di","Agricult-Default-HTR-di","NonRes-sAll-mCust-Elec",null,"Agricult-Default-HTR-di"]
["All-Default<=2yrsDEER2014","All-Default<=2yrs","DEER2014","2013-01-01",null,"All other EEM with no evaluated NTGR; new technology in program for 2 or fewer years ",0.7,0.7,"Any","Any","None","Any","Any",null,null,null,null,null,true,true,true,true,true,null,null,"All-Default<=2yrs","All-Default<=2yrs","NonRes-sAll-mCustElec-bd",null,"All-Default<=2yrs"]
["Com-Default>2yrsDEER2014","Com-Default>2yrs","DEER2014","2013-01-01",null,"All other EEMs with no evaluated NTGR; existing EEM in programs with same delivery mechanism for more than 2 years",0.6,0.6,"Any","Any","None","Any","Com",null,null,null,null,"2011 DEER Update Report - Section 15 Table 15-3",true,true,true,true,true,null,null,"Com-Default>2yrs","Com-Default>2yrs","NonRes-sAll-mCust-Gas",null,"Com-Default>2yrs"]
["Com-Default-HTR-diDEER2014","Com-Default-HTR-di","DEER2014","2013-01-01",null,"All other EEM with no evaluated NTGR; direct install to hard-to-reach only.",0.85,0.85,"Any","Any","HTR","DirInstall","Com",null,null,null,null,"2011 DEER Update Report - Section 15 Table 15-3",true,true,true,true,true,null,null,"Com-Default-HTR-di","Com-Default-HTR-di","NonRes-sAll-mHVAC-Chiller",null,"Com-Default-HTR-di"]
["ConstrainedAreaProgramDEER2015","ConstrainedAreaProgram","DEER2015","2015-01-01",null,"All programs targeting local T&D or generation constrained area",0.85,0.85,"Any","Any","None","Any","Any",null,null,null,null,"CPUC (Decision) D.14-10-046",true,true,true,true,true,null,null,"ConstrainedAreaProgram","ConstrainedAreaProgram","NonRes-sAll-mLtg-ci",null,"ConstrainedAreaProgram"]
["ET-DefaultDEER2014","ET-Default","DEER2014","2013-01-01",null,"Emerging Technologies approved by ED through work paper review",0.85,0.85,"Any","Any","None","Any","Any",null,null,null,null,null,true,true,true,true,true,null,null,"ET-Default","ET-Default","NonRes-sAll-mLtg-ci",null,"ET-Default"]
["EUC-DefaultDEER2014","EUC-Default","DEER2014","2013-01-01","2015-12-31","Energy Upgrade California",0.85,0.85,"Any","Any","None","Any","Res",null,null,null,null,null,true,false,false,false,false,null,null,"EUC-Default","EUC-Default","NonRes-sAll-mPipeIns",null,"EUC-Default"]
["EUC-DefaultDEER2016","EUC-Default","DEER2016","2016-01-01",null,"Energy Upgrade California",0.7,0.7,"Any","Any","None","Any","Res",null,null,null,null,"2013 ESPI MEMO Energy Upgrade California (EUC) Review",false,true,true,true,true,null,null,"EUC-Default","EUC-Default","NonRes-sAll-mPipeIns-ci",null,"EUC-Default"]
["Ind-Default>2yrsDEER2014","Ind-Default>2yrs","DEER2014","2013-01-01",null,"All other EEMs with no evaluated NTGR; existing EEM in programs with same delivery mechanism for more than 2 years",0.6,0.6,"Any","Any","None","Any","Ind",null,null,null,null,"2011 DEER Update Report - Section 15 Table 15-3",true,true,true,true,true,null,null,"Ind-Default>2yrs","Ind-Default>2yrs","NonRes-sAll-mPipeIns-ci",null,"Ind-Default>2yrs"]
["Ind-Default-HTR-diDEER2014","Ind-Default-HTR-di","DEER2014","2013-01-01",null,"All other EEM with no evaluated NTGR; direct install to hard-to-reach only.",0.85,0.85,"Any","Any","HTR","DirInstall","Ind",null,null,null,null,"2011 DEER Update Report - Section 15 Table 15-3",true,true,true,true,true,null,null,"Ind-Default-HTR-di","Ind-Default-HTR-di","NonRes-sAll-mPOC",null,"Ind-Default-HTR-di"]
["K-12School-ComCollegeDEER2015","K-12School-ComCollege","DEER2015","2015-01-01",null,"All K-12 and community college projects",0.85,0.85,"ECC","Any","None","Any","Com",null,null,null,null,"CPUC (Decision) D.14-10-046",true,true,true,true,true,null,null,"K-12School-ComCollege","K-12School-ComCollege","NonRes-sAll-mRCx-ci",null,"K-12School-ComCollege"]
["K-12School-ComCollegeDEER2015","K-12School-ComCollege","DEER2015","2015-01-01",null,"All K-12 and community college projects",0.85,0.85,"EPr","Any","None","Any","Com",null,null,null,null,"CPUC (Decision) D.14-10-046",true,true,true,true,true,null,null,"K-12School-ComCollege","K-12School-ComCollege","NonRes-sAll-mStmTrp-ci",null,"K-12School-ComCollege"]
["K-12School-ComCollegeDEER2015","K-12School-ComCollege","DEER2015","2015-01-01",null,"All K-12 and community college projects",0.85,0.85,"ERC","Any","None","Any","Com",null,null,null,null,"CPUC (Decision) D.14-10-046",true,true,true,true,true,null,null,"K-12School-ComCollege","K-12School-ComCollege","NonRes-sAll-mT5T8-ci",null,"K-12School-ComCollege"]
["K-12School-ComCollegeDEER2015","K-12School-ComCollege","DEER2015","2015-01-01",null,"All K-12 and community college projects",0.85,0.85,"ESe","Any","None","Any","Com",null,null,null,null,"CPUC (Decision) D.14-10-046",true,true,true,true,true,null,null,"K-12School-ComCollege","K-12School-ComCollege","NonRes-sAll-NC",null,"K-12School-ComCollege"]
["NonRes-sAg-mCust-ciDEER2014","NonRes-sAg-mCust-ci","DEER2014","2013-01-01",null,"All other custom either electric or natural gas measures",0.7,0.7,"Any","Any","None","CustIncentDown","Ag",null,null,null,null,"2011 DEER Update Report - Section 9 Table 9-5",true,true,true,true,true,null,null,"NonRes-sAg-mCust-ci","NonRes-sAll-mCFL","NonRes-sGHS-mHtCrtn-ci",null,"NonRes-sAll-mCFL"]
["NonRes-sAll-mCFLDEER2014","NonRes-sAll-mCFL","DEER2014","2013-01-01","2017-06-30","CFL-screw in, All.",0.54,0.54,"Any","Any","None","PreRebUp","Com","Lighting","InGen","Ltg_Lamp","CFLint_lamp","2011 DEER Update Report - Section 8, Table 8-1",true,true,true,false,false,null,null,"NonRes-sAll-mCFL","NonRes-sAll-mCFL","NonRes-sGHS-mIRF-ci",null,"NonRes-sAll-mCFL"]
["NonRes-sAll-mCFLExAnte2017","NonRes-sAll-mCFL","ExAnte2017","2017-07-01",null,"All nonresidential CFLs, all delivery mechanisms",0.85,0.85,"Any","Any","None","PreRebUp","NonRes","Lighting","Any","Ltg_Lamp","CFLint_lamp","2017 Phase 1 Screw-in lamp disposition, Table 4",false,false,false,true,true,null,null,"NonRes-sAll-mCFL","NonRes-sAll-mCFL-All",null,null,"NonRes-sAll-mCFL-All"]
["NonRes-sAll-mCFL-AllDEER2016","NonRes-sAll-mCFL-All","DEER2016","2016-01-01","2017-06-30","Nonresidential CFLs: deemed; all delivery mechanisms except upstream",0.6,0.6,"Any","Any","None","NonUpStrm","NonRes","Lighting","Any",null,null,"2011 DEER Update Report - Section 7, Table 7-3",true,true,true,false,false,null,null,"NonRes-sAll-mCFL-All","NonRes-sAll-mCFL-dir",null,null,"NonRes-sAll-mCFL-dir"]
["NonRes-sAll-mCFL-ciDEER2014","NonRes-sAll-mCFL-ci","DEER2014","2013-01-01","2015-12-31","CFLs",0.53,0.53,"Any","Any","None","CustIncentDown","Com","Lighting","InGen",null,null,"2011 DEER Update Report - Section 7, Table 7-3",true,false,false,false,false,null,null,"NonRes-sAll-mCFL-ci","NonRes-sAll-mCFL-dn",null,null,"NonRes-sAll-mCFL-dn"]
["NonRes-sAll-mCFL-dirDEER2014","NonRes-sAll-mCFL-dir","DEER2014","2013-01-01","2015-12-31","CFLs",0.8,0.8,"Any","Any","HTR","DirInstall","Com","Lighting","InGen",null,null,"2011 DEER Update Report - Section 7, Table 7-3",true,false,false,false,false,null,null,"NonRes-sAll-mCFL-dir","NonRes-sAll-mELtg-DnStrmDeemed",null,null,"NonRes-sAll-mELtg-DnStrmDeemed"]
["NonRes-sAll-mCFL-dnDEER2014","NonRes-sAll-mCFL-dn","DEER2014","2013-01-01","2015-12-31","CFLs",0.53,0.53,"Any","Any","None","PreRebDown","Com","Lighting","InGen",null,null,"2011 DEER Update Report - Section 7, Table 7-3",true,false,false,false,false,null,null,"NonRes-sAll-mCFL-dn","NonRes-sAll-mHVAC-DX-up",null,null,"NonRes-sAll-mHVAC-DX-up"]
["NonRes-sAll-mCustDEER2014","NonRes-sAll-mCust","DEER2014","2013-01-01",null,"Custom Mixed Electric and Natural Gas Measures",0.6,0.5,"Any","Any","None","CustIncentDown","NonRes",null,null,null,null,"2011 DEER Update Report - Section 9 Table 9-5",true,true,true,true,true,null,null,"NonRes-sAll-mCust","NonRes-sAll-mHVAC-DX-up",null,null,"NonRes-sAll-mHVAC-DX-up"]
["NonRes-sAll-mCust-ElecDEER2014","NonRes-sAll-mCust-Elec","DEER2014","2013-01-01",null,"Custom Electric Measures  (that may have natural gas impacts due to the electric measures)",0.6,0.6,"Any","Any","None","CustIncentDown","NonRes",null,null,null,null,null,true,true,true,true,true,null,null,"NonRes-sAll-mCust-Elec","NonRes-sAll-mHVAC-Pkg",null,null,"NonRes-sAll-mHVAC-Pkg"]
["NonRes-sAll-mCustElec-bdDEER2014","NonRes-sAll-mCustElec-bd","DEER2014","2013-01-01","2015-12-31","Custom Electric Measures, RFP or Bid",0.7,0.7,"Any","Any","None","CustIncent","NonRes",null,null,null,null,"2011 DEER Update Report - Section 9 Table 9-5",true,false,false,false,false,null,null,"NonRes-sAll-mCustElec-bd","NonRes-sAll-mHVAC-Pkg",null,null,"NonRes-sAll-mHVAC-Pkg"]
["NonRes-sAll-mCust-GasDEER2014","NonRes-sAll-mCust-Gas","DEER2014","2013-01-01",null,"Custom Natural Gas Measures (that may have electric savings due to the natural gas measures)",0.5,0.5,"Any","Any","None","CustIncentDown","NonRes",null,null,null,null,null,true,true,true,true,true,null,null,"NonRes-sAll-mCust-Gas","NonRes-sAll-mHVAC-RCA",null,null,"NonRes-sAll-mHVAC-RCA"]
["NonRes-sAll-mELtg-DnStrmDeemedDEER2019","NonRes-sAll-mELtg-DnStrmDeemed","DEER2019","2019-01-01",null,"LED outdoor lighting fixtures, deemed + downstream\r\n",0.45,0.45,"Any","Any","Any","Any","NonRes","Lighting","OutGen","Ltg_Lamp","LED_Lamp","June 2017 DEER Update; 2015 Nonresidential ESPI Deemed Lighting Impact Evaluation",false,false,false,false,true,null,null,"NonRes-sAll-mELtg-DnStrmDeemed","NonRes-sAll-mLEDARefl",null,null,"NonRes-sAll-mLEDARefl"]
["NonRes-sAll-mHVAC-ChillerDEER2014","NonRes-sAll-mHVAC-Chiller","DEER2014","2013-01-01",null,"All chiller replacements - space cooling applications",0.57999999999999996,0.57999999999999996,"Any","Ex","None","CustIncentDown","Com","HVAC","SpaceCool","Chiller",null,"2011 DEER Update Report - Section 10 Table 10-6",true,true,true,true,true,null,null,"NonRes-sAll-mHVAC-Chiller","NonRes-sAll-mLEDSpcl",null,null,"NonRes-sAll-mLEDSpcl"]
["NonRes-sAll-mHVAC-DX-upDEER2014","NonRes-sAll-mHVAC-DX-up","DEER2014","2013-01-01","2015-12-31","All package and split system AC & HP replacements",0.85,0.85,"Any","Ex","None","PreRebUp","Com","HVAC","SpaceCool","dxAC_equip",null,"2011 DEER Update Report - Section 10 Table 10-6",true,false,false,false,false,null,null,"NonRes-sAll-mHVAC-DX-up","NonRes-sAll-mLFDL-Deemed",null,null,"NonRes-sAll-mLFDL-Deemed"]
["NonRes-sAll-mHVAC-DX-upDEER2016","NonRes-sAll-mHVAC-DX-up","DEER2016","2016-01-01",null,"Nonresidential Package HVAC Equipment: deemed; upstream delivery",0.75,0.75,"Any","Ex","None","PreRebUp","Com","HVAC",null,null,null,"WO32 HVAC Impact Evaluation Report Table 35",false,true,true,true,true,null,null,"NonRes-sAll-mHVAC-DX-up","NonRes-sAll-mLFHB-Deemed",null,null,"NonRes-sAll-mLFHB-Deemed"]
[{"$f":"B40&C40","v":"NonRes-sAll-mHVAC-PkgDEER2017"},"NonRes-sAll-mHVAC-Pkg","DEER2017","2017-01-01","2018-12-31","All package HVAC AC and HP replacements with downstream incentives",0.75,0.75,"Any","Any","Any","Any","NonRes","HVAC",null,null,null,"June 2017 DEER Update",false,false,true,true,false,null,null,"NonRes-sAll-mHVAC-Pkg","NonRes-sAll-mLFHBT5-Deemed",null,null,{"$f":"IF(ISBLANK(INDEX(AA40:AC40,$AB$3)),\"\",INDEX(AA40:AC40,$AB$3))","v":"NonRes-sAll-mLFHBT5-Deemed"}]
["NonRes-sAll-mHVAC-PkgDEER2019","NonRes-sAll-mHVAC-Pkg","DEER2019","2019-01-01",null,"All package HVAC AC and HP replacements with downstream incentives",0.6,0.6,"Any","Any","Any","Any","NonRes","HVAC",null,null,null,"June 2017 DEER Update",false,false,false,false,true,null,null,"NonRes-sAll-mHVAC-Pkg","NonRes-sAll-mLFOth-Deemed",null,null,"NonRes-sAll-mLFOth-Deemed"]
["NonRes-sAll-mHVAC-RCADEER2014","NonRes-sAll-mHVAC-RCA","DEER2014","2013-01-01",null,"HVAC Maintenance: Refrigerant Charge Adjustment (RCA); all delivery mechanisms except upstream",0.73,0.73,"Any","Ex","None","NonUpStrm","Com","Service","Diagnostic","dxAC_equip","SpltSEER","2011 DEER Update Report - Section 10 Table 10-6",true,true,true,true,true,null,null,"NonRes-sAll-mHVAC-RCA","NonRes-sAll-mLtgCtrl",null,null,"NonRes-sAll-mLtgCtrl"]
["NonRes-sAll-mLEDAReflExAnte2017","NonRes-sAll-mLEDARefl","ExAnte2017","2017-07-01",null,"Nonresidential LED A-lamp and screw-in reflector, all delivery mechanisms",0.91,0.91,"Any","Any","None","Any","NonRes","Lighting","Any","Ltg_Lamp","LED_Lamp","2017 Phase 1 Screw-in lamp disposition, Table 4",false,false,false,true,true,null,null,"NonRes-sAll-mLEDARefl","NonRes-sAll-mLtgCtrl-htr",null,null,"NonRes-sAll-mLtgCtrl-htr"]
["NonRes-sAll-mLEDSpclExAnte2017","NonRes-sAll-mLEDSpcl","ExAnte2017","2017-07-01",null,"All nonresidential specialty LED lamps (other than A-lamp and screw-in reflector)",0.6,0.6,"Any","Any","None","Any","NonRes","Lighting","Any","Ltg_Lamp","CFLint_Lamp","2017 Phase 1 Screw-in lamp disposition, Table 4",false,false,false,true,true,null,null,"NonRes-sAll-mLEDSpcl","NonRes-sAll-MLtgLED-Deemed",null,null,"NonRes-sAll-MLtgLED-Deemed"]
["NonRes-sAll-mLFDL-DeemedDEER2016","NonRes-sAll-mLFDL-Deemed","DEER2016","2016-01-01",null,"Nonresidential Linear Fluorescent: delamping; deemed; all delivery mechanisms except upstream",0.65,0.65,"Any","Any","None","NonUpStrm","NonRes","Lighting","Any",null,null,"2013 ESPI Report: 2013 Deemed ESPI Lighting Evaluation Table 3-18",false,true,true,true,true,null,null,"NonRes-sAll-mLFDL-Deemed","NonRes-sAll-mOccSens",null,null,"NonRes-sAll-mOccSens"]
["NonRes-sAll-mLFHB-DeemedDEER2016","NonRes-sAll-mLFHB-Deemed","DEER2016","2016-01-01",null,"Nonresidential Linear Fluorescent: high bay applications; deemed; all delivery mechanisms",0.65,0.65,"Any","Any","None","Any","NonRes","Lighting","Any",null,null,"2013 ESPI Report: 2013 Deemed ESPI Lighting Evaluation Table 3-18",false,true,true,true,true,null,null,"NonRes-sAll-mLFHB-Deemed","NonRes-sAll-mPipeIns-deemed",null,null,"NonRes-sAll-mPipeIns-deemed"]
["NonRes-sAll-mLFHBT5-DeemedDEER2016","NonRes-sAll-mLFHBT5-Deemed","DEER2016","2016-01-01",null,"Nonresidential Linear Fluorescent: T5 lamps; high bay applications; deemed; all delivery mechanisms",0.65,0.65,"Any","Any","None","Any","NonRes","Lighting","Any",null,null,"2013 ESPI Report: 2013 Deemed ESPI Lighting Evaluation Table 3-18",false,true,true,true,true,null,null,"NonRes-sAll-mLFHBT5-Deemed","NonRes-sAll-mPipeIns-deemed",null,null,"NonRes-sAll-mPipeIns-deemed"]
["NonRes-sAll-mLFOth-DeemedDEER2016","NonRes-sAll-mLFOth-Deemed","DEER2016","2016-01-01",null,"Nonresidential Linear Fluorescent: measures not listed elsewhere; deemed; all delivery mechanisms",0.6,0.6,"Any","Any","None","Any","NonRes","Lighting","Any",null,null,null,false,true,true,true,true,null,null,"NonRes-sAll-mLFOth-Deemed","NonRes-sAll-mPmpTst",null,null,"NonRes-sAll-mPmpTst"]
["NonRes-sAll-mLtg-ciDEER2016","NonRes-sAll-mLtg-ci","DEER2016","2016-01-01","2018-12-31","Nonresidential Lighting: all technologies except screw-in lamps; custom; all delivery mechanisms",0.55000000000000004,0.55000000000000004,"Any","Any","None","CustIncent","NonRes","Lighting",null,null,null,null,false,true,true,true,false,null,null,"NonRes-sAll-mLtg-ci","NonRes-sAll-mRCx-dn",null,null,"NonRes-sAll-mRCx-dn"]
["NonRes-sAll-mLtg-ciDEER2019","NonRes-sAll-mLtg-ci","DEER2019","2019-01-01",null,"Nonresidential Lighting: all technologies except screw-in lamps; custom; all delivery mechanisms",0.5,0.5,"Any","Any","CustIncent","CustIncent","NonRes","Lighting",null,null,null,"June 2017 DEER Update; 2015 Nonresidential ESPI Custom Lighting Impact Evaluation",false,false,false,false,true,null,null,"NonRes-sAll-mLtg-ci","NonRes-sAll-mRfg-DG",null,null,"NonRes-sAll-mRfg-DG"]
["NonRes-sAll-mLtgCtrlDEER2014","NonRes-sAll-mLtgCtrl","DEER2014","2013-01-01",null,"Lighting controls (not listed elsewhere)",0.6,0.6,"Any","Any","None","PreRebDown","Com","Lighting",null,"Ltg_Controls",null,"2011 DEER Update Report - Section 7, Table 7-3",true,true,true,true,true,null,null,"NonRes-sAll-mLtgCtrl","NonRes-sAll-mRfg-SC",null,null,"NonRes-sAll-mRfg-SC"]
["NonRes-sAll-mLtgCtrl-htrDEER2014","NonRes-sAll-mLtgCtrl-htr","DEER2014","2013-01-01",null,"Lighting controls (not listed elsewhere)",0.89,0.89,"Any","Any","HTR","DirInstall","Com","Lighting",null,"Ltg_Controls",null,"2011 DEER Update Report - Section 7, Table 7-3",true,true,true,true,true,null,null,"NonRes-sAll-mLtgCtrl-htr","NonRes-sAll-mStmTrp-dn",null,null,"NonRes-sAll-mStmTrp-dn"]
["NonRes-sAll-MLtgLED-DeemedDEER2016","NonRes-sAll-MLtgLED-Deemed","DEER2016","2016-01-01","2017-06-30","Nonresidential LED: replacing CFL or incandescent lamps; deemed; all delivery mechanisms except upstream",0.6,0.6,"Any","Any","None","NonUpStrm","NonRes","Lighting","Any",null,null,"2013 ESPI Report: 2013 Deemed ESPI Lighting Evaluation Table 3-18",true,true,true,false,false,null,null,"NonRes-sAll-MLtgLED-Deemed","NonRes-sAll-mT5T8-dn",null,null,"NonRes-sAll-mT5T8-dn"]
["NonRes-sAll-mOccSensDEER2014","NonRes-sAll-mOccSens","DEER2014","2013-01-01",null,"Occupancy Sensors",0.6,0.6,"Any","Any","None","PreRebDown","Com","Lighting",null,"Ltg_Controls","OccSensor","2011 DEER Update Report - Section 7, Table 7-3",true,true,true,true,true,null,null,"NonRes-sAll-mOccSens","NonRes-sAll-mT8-dir",null,null,"NonRes-sAll-mT8-dir"]
["NonRes-sAll-mPipeInsDEER2014","NonRes-sAll-mPipeIns","DEER2014","2013-01-01","2015-12-31","Pipe insulation - industrial processes only",0.71,0.71,"Any","Ex","None","CustIncentDown","Ind","ProcDist",null,null,"PipeIns","2011 DEER Update Report - Section 9 Table 9-5",true,false,false,false,false,null,null,"NonRes-sAll-mPipeIns","NonRes-sGHS-mHtCrtn-dn",null,null,"NonRes-sGHS-mHtCrtn-dn"]
["NonRes-sAll-mPipeIns-ciDEER2016","NonRes-sAll-mPipeIns-ci","DEER2016","2016-01-01","2018-12-31","Pipe insulation: non-HVAC or DHW applications; custom; all delivery mechanisms",0.6,0.6,"Any","Ex","None","CustIncent","Ind","ProcDist",null,null,"PipeIns",null,false,true,true,true,false,null,null,"NonRes-sAll-mPipeIns-ci","NonRes-sGHS-mIRF-dn",null,null,"NonRes-sGHS-mIRF-dn"]
["NonRes-sAll-mPipeIns-ciDEER2019","NonRes-sAll-mPipeIns-ci","DEER2019","2019-01-01",null,"Pipe insulation: non-HVAC or DHW applications; custom; all delivery mechanisms",0.45,0.45,"Any","Ex","CustIncent","CustIncent","Ind","ProcDist",null,null,"PipeIns","June 2017 DEER Update; 2015 Nonresidential Downstream ESPI Deemed Pipe Insulation Impact Evaluation",false,false,false,false,true,null,null,"NonRes-sAll-mPipeIns-ci","Res-Default>2",null,null,"Res-Default>2"]
["NonRes-sAll-mPipeIns-deemedDEER2016","NonRes-sAll-mPipeIns-deemed","DEER2016","2016-01-01","2018-12-31","Pipe insulation: non-HVAC or DHW applications; deemed; all delivery mechanisms except upstream",0.6,0.6,"Any","Ex","None","NonUpStrm","Ind","ProcDist",null,null,"PipeIns","2013 ESPI Report: 2013 Sprinkler and Pipe Insulation NTGR Evaluation Report Table 1-5",false,true,true,true,false,null,null,"NonRes-sAll-mPipeIns-deemed","Res-Default-HTR-di",null,null,"Res-Default-HTR-di"]
["NonRes-sAll-mPipeIns-deemedDEER2019","NonRes-sAll-mPipeIns-deemed","DEER2019","2019-01-01",null,"Pipe insulation: non-HVAC or DHW applications; deemed; all delivery mechanisms except upstream",0.45,0.45,"Any","Ex","NonUpStrm","NonUpStrm","Ind","ProcDist",null,null,"PipeIns","June 2017 DEER Update; 2015 Nonresidential Downstream ESPI Deemed Pipe Insulation Impact Evaluation\r\n",false,false,false,false,true,null,null,"NonRes-sAll-mPipeIns-deemed","Res-mDHWaerator",null,null,"Res-mDHWaerator"]
["NonRes-sAll-mPmpTstDEER2014","NonRes-sAll-mPmpTst","DEER2014","2013-01-01","2015-12-31","Pump testing services",0.63,0.63,"Any","Any","None","Any","Ag","Service","Diagnostic",null,null,"2011 DEER Update Report - Section 9 Table 9-5",true,false,false,false,false,null,null,"NonRes-sAll-mPmpTst","Res-mDHWaerator",null,null,"Res-mDHWaerator"]
["NonRes-sAll-mPOCDEER2014","NonRes-sAll-mPOC","DEER2014","2013-01-01",null,"Pump-off controller for existing oil well",0.45,0.45,"Any","Ex","None","CustIncentDown","Ind","ProcDist","Pumping","RodPumps","PumpCtrl","2011 DEER Update Report - Section 9",true,true,true,true,true,null,null,"NonRes-sAll-mPOC","Res-sAll-mCFL",null,null,"Res-sAll-mCFL"]
["NonRes-sAll-mRCx-ciDEER2014","NonRes-sAll-mRCx-ci","DEER2014","2013-01-01","2015-12-31","Retro-commissioning services, electric & nat. gas measures",0.8,0.82,"Any","Ex","None","CustIncentDown","Com","Service","RetroComm",null,null,"2011 DEER Update Report - Section 10 Table 10-6",true,false,false,false,false,null,null,"NonRes-sAll-mRCx-ci","Res-sAll-mCFLgt30w-up",null,null,"Res-sAll-mCFLgt30w-up"]
["NonRes-sAll-mRCx-dnDEER2014","NonRes-sAll-mRCx-dn","DEER2014","2013-01-01","2015-12-31","Retro-commissioning services, electric & nat. gas measures; all delivery mechanisms except upstream",0.8,0.82,"Any","Ex","None","NonUpStrm","Com","Service","RetroComm",null,null,"2011 DEER Update Report - Section 10 Table 10-6",true,false,false,false,false,null,null,"NonRes-sAll-mRCx-dn","Res-sAll-mCFLlte30w-up",null,null,"Res-sAll-mCFLlte30w-up"]
["NonRes-sAll-mRfg-DGDEER2014","NonRes-sAll-mRfg-DG","DEER2014","2013-01-01",null,"Door Gaskets",0.19,0.19,"Any","Any","None","Any","Com","ComRefrig","Display","Ref_Storage","Gasket","2011 DEER Update Report - Section 11 Table 11-3",true,true,true,true,true,null,null,"NonRes-sAll-mRfg-DG","Res-sAll-mCFL-up",null,null,"Res-sAll-mCFL-up"]
["NonRes-sAll-mRfg-SCDEER2014","NonRes-sAll-mRfg-SC","DEER2014","2013-01-01",null,"Strip Door Curtains",0.4,0.4,"Any","Any","None","PreRebDown","Com","ComRefrig","Storage","Ref_Storage","StripCurt","2011 DEER Update Report - Section 11 Table 11-3",true,true,true,true,true,null,null,"NonRes-sAll-mRfg-SC","Res-sAll-mCFL-up",null,null,"Res-sAll-mCFL-up"]
["NonRes-sAll-mStmTrp-ciDEER2014","NonRes-sAll-mStmTrp-ci","DEER2014","2013-01-01",null,"Steam Traps - industrial non-HVAC application, high & low pressure",0.52,0.52,"Any","Ex","None","CustIncentDown","Ind","ProcHeat","SteamDist","SteamCirc","SteamTrap","2011 DEER Update Report - Section 9 Table 9-5",true,true,true,true,true,null,null,"NonRes-sAll-mStmTrp-ci","Res-sAll-mCW",null,null,"Res-sAll-mCW"]
["NonRes-sAll-mStmTrp-dnDEER2014","NonRes-sAll-mStmTrp-dn","DEER2014","2013-01-01",null,"Steam Traps - small commerical non-HVAC application",0.68,0.68,"Any","Ex","None","PreRebDown","Com","ProcHeat","SteamDist","SteamCirc","SteamTrap","2011 DEER Update Report - Section 9 Table 9-1",true,true,true,true,true,null,null,"NonRes-sAll-mStmTrp-dn","Res-sAll-mDHWgt62",null,null,"Res-sAll-mDHWgt62"]
["NonRes-sAll-mT5T8-ciDEER2014","NonRes-sAll-mT5T8-ci","DEER2014","2013-01-01","2015-12-31","T5 and T8 lamps",0.7,0.7,"Any","Any","None","CustIncentDown","Com","Lighting","InGen","Ltg_Fixture","LinFluor_fixt","2011 DEER Update Report - Section 7, Table 7-3",true,false,false,false,false,null,null,"NonRes-sAll-mT5T8-ci","Res-sAll-mDHWshwr",null,null,"Res-sAll-mDHWshwr"]
["NonRes-sAll-mT5T8-dnDEER2014","NonRes-sAll-mT5T8-dn","DEER2014","2013-01-01","2015-12-31","T5 and T8 lamps",0.7,0.7,"Any","Any","None","PreRebDown","Com","Lighting","InGen","Ltg_Fixture","LinFluor_fixt","2011 DEER Update Report - Section 7, Table 7-3",true,false,false,false,false,null,null,"NonRes-sAll-mT5T8-dn","Res-sAll-mDuctSeal",null,null,"Res-sAll-mDuctSeal"]
["NonRes-sAll-mT8-dirDEER2014","NonRes-sAll-mT8-dir","DEER2014","2013-01-01","2015-12-31","T8 lamps",0.89,0.89,"Any","Any","HTR","DirInstall","Com","Lighting","InGen","Ltg_Fixture","LinFluor_fixt","2011 DEER Update Report - Section 7, Table 7-3",true,false,false,false,false,null,null,"NonRes-sAll-mT8-dir","Res-sAll-mELtg-DnStrmDeemed",null,null,"Res-sAll-mELtg-DnStrmDeemed"]
["NonRes-sAll-NCDEER2016","NonRes-sAll-NC","DEER2016","2016-01-01",null,"Nonresidential New Construction: all measures; custom; all delivery mechanisms",0.5,0.5,"Any","Any","None","CustIncent","NonRes",null,null,null,null,"2013 ESPI MEMO NRNC Whole Building Table 1",false,true,true,true,true,null,null,"NonRes-sAll-NC","Res-sAll-mFrzrRec",null,null,"Res-sAll-mFrzrRec"]
[{"$f":"B72&C72","v":"NonRes-sGHS-mHtCrtn-ciDEER2014"},"NonRes-sGHS-mHtCrtn-ci","DEER2014","2013-01-01",null,"Greenhouse heat curtain",0.63,0.63,"GHs","Any","None","CustIncentDown","Ag","BldgEnv",null,"BldgShell","ThermCurtain","2011 DEER Update Report - Section 9 Table 9-5",true,true,true,true,true,null,null,"NonRes-sGHS-mHtCrtn-ci","Res-sAll-mFrzrRec",null,null,{"$f":"IF(ISBLANK(INDEX(AA72:AC72,$AB$3)),\"\",INDEX(AA72:AC72,$AB$3))","v":"Res-sAll-mFrzrRec"}]
["NonRes-sGHS-mHtCrtn-dnDEER2014","NonRes-sGHS-mHtCrtn-dn","DEER2014","2013-01-01",null,"Greenhouse heat curtain",0.63,0.63,"GHs","Any","None","PreRebDown","Ag","BldgEnv",null,"BldgShell","ThermCurtain","2011 DEER Update Report - Section 9 Table 9-5",true,true,true,true,true,null,null,"NonRes-sGHS-mHtCrtn-dn","Res-sAll-mHVAC-DX-up",null,null,"Res-sAll-mHVAC-DX-up"]
["NonRes-sGHS-mIRF-ciDEER2014","NonRes-sGHS-mIRF-ci","DEER2014","2013-01-01",null,"Greenhouse infrared film",0.46,0.46,"GHs","Any","None","CustIncentDown","Ag","BldgEnv",null,"BldgShell","IRFilm","2011 DEER Update Report - Section 9 Table 9-5",true,true,true,true,true,null,null,"NonRes-sGHS-mIRF-ci","Res-sAll-mHVAC-Pkg-dn",null,null,"Res-sAll-mHVAC-Pkg-dn"]
["NonRes-sGHS-mIRF-dnDEER2014","NonRes-sGHS-mIRF-dn","DEER2014","2013-01-01",null,"Greenhouse infrared film",0.46,0.46,"GHs","Any","None","PreRebDown","Ag","BldgEnv",null,"BldgShell","IRFilm","2011 DEER Update Report - Section 9 Table 9-5",true,true,true,true,true,null,null,"NonRes-sGHS-mIRF-dn","Res-sAll-mHVAC-Pkg-dn",null,null,"Res-sAll-mHVAC-Pkg-dn"]
["Res-Default>2DEER2014","Res-Default>2","DEER2014","2013-01-01",null,"All other EEM with no evaluated NTGR; existing EEM with same delivery mechanism for more than 2 years",0.55000000000000004,0.55000000000000004,"Any","Any","None","Any","Res",null,null,null,null,"2011 DEER Update Report - Section 15 Table 15-3",true,true,true,true,true,null,null,"Res-Default>2","Res-sAll-mHVAC-RCA",null,null,"Res-sAll-mHVAC-RCA"]
["Res-Default-HTR-diDEER2014","Res-Default-HTR-di","DEER2014","2013-01-01",null,"All other EEM with no evaluated NTGR; direct install hard-to-reach only.",0.85,0.85,"Any","Any","HTR","DirInstall","Res",null,null,null,null,"2011 DEER Update Report - Section 15 Table 15-3",true,true,true,true,true,null,null,"Res-Default-HTR-di","Res-sAll-mHVAC-RmAC-dn",null,null,"Res-sAll-mHVAC-RmAC-dn"]
["Res-mDHWaeratorDEER2014","Res-mDHWaerator","DEER2014","2013-01-01",null,"Faucet aerators",0.59,0.59,"Any","Ex","None","DirInstall","Res","SHW","Distribute","WaterFixt","FaucetAer","2011 DEER Update Report - Section 13 Table 13-4",true,true,true,true,true,null,null,"Res-mDHWaerator","Res-sAll-mLEDARefl",null,null,"Res-sAll-mLEDARefl"]
["Res-mDHWaeratorDEER2014","Res-mDHWaerator","DEER2014","2013-01-01",null,"Faucet aerators",0.65,0.65,"MFm","Ex","None","DirInstall","Res","SHW","Distribute","WaterFixt","FaucetAer","2011 DEER Update Report - Section 13 Table 13-4",true,true,true,true,true,null,null,"Res-mDHWaerator","Res-sAll-mLEDSpcl",null,null,"Res-sAll-mLEDSpcl"]
["Res-sAll-mCFLExAnte2017","Res-sAll-mCFL","ExAnte2017","2017-07-01",null,"All residential CFLs, all delivery mechanisms",0.85,0.85,"Any","Any","None","Any","Res","Lighting","Any","Ltg_Lamp","CFLint_Lamp","2017 Phase 1 Screw-in lamp disposition, Table 4",false,false,false,true,true,null,null,"Res-sAll-mCFL","Res-sAll-MLtgLED-Deemed",null,null,"Res-sAll-MLtgLED-Deemed"]
["Res-sAll-mCFLgt30w-upDEER2015","Res-sAll-mCFLgt30w-up","DEER2015","2016-01-01","2015-12-31","CFL-screw in, greater than 30 watts",0.54,0.54,"Any","Any","None","PreRebUp","Res","Lighting","Any","Ltg_Lamp","CFLint_lamp",null,true,false,false,false,false,null,null,"Res-sAll-mCFLgt30w-up","Res-sAll-mRefgRec",null,null,"Res-sAll-mRefgRec"]
["Res-sAll-mCFLlte30w-upDEER2015","Res-sAll-mCFLlte30w-up","DEER2015","2016-01-01","2015-12-31","CFL-screw in, 30 watts and less",0.9,0.9,"Any","Any","None","PreRebUp","Res","Lighting","Any","Ltg_Lamp","CFLint_lamp",null,true,false,false,false,false,null,null,"Res-sAll-mCFLlte30w-up","Res-sAll-mRefgRec",null,null,"Res-sAll-mRefgRec"]
["Res-sAll-mCFL-upDEER2014","Res-sAll-mCFL-up","DEER2014","2013-01-01","2015-12-31","CFL-screw in, All.",0.54,0.54,"Any","Any","None","PreRebUp","Res","Lighting","InGen","Ltg_Lamp","CFLint_lamp","2011 DEER Update Report - Section 8, Table 8-1",true,false,false,false,false,null,null,"Res-sAll-mCFL-up","Res-sSF-mACgt14-dn",null,null,"Res-sSF-mACgt14-dn"]
["Res-sAll-mCFL-upDEER2016","Res-sAll-mCFL-up","DEER2016","2016-01-01","2017-06-30","CFL-screw in,All.",0.9,0.9,"Any","Any","None","PreRebUp","Res","Lighting","Any","Ltg_Lamp","CFLint_lamp",null,true,true,true,false,false,null,null,"Res-sAll-mCFL-up","Res-sSF-mACgt16-dn",null,null,"Res-sSF-mACgt16-dn"]
["Res-sAll-mCWDEER2014","Res-sAll-mCW","DEER2014","2013-01-01",null,"Clothes washer MEF 10% > Energy Star",0.31,0.31,"Any","Any","None","PreRebDown","Res","AppPlug","Laundry","Clean_equip","ClothesWash","2011 DEER Update Report - Section 14 Table 14-3",true,true,true,true,true,null,null,"Res-sAll-mCW","Res-sSF-mHPes",null,null,"Res-sSF-mHPes"]
["Res-sAll-mDHWgt62DEER2014","Res-sAll-mDHWgt62","DEER2014","2013-01-01",null,"Water Heater EF >0.62<0.65, Cap>30 gal.",0.23,0.23,"Any","Any","None","PreRebDown","Res","SHW","Heating","WaterHtg_eq","Stor_EF","2011 DEER Update Report - Section 13 Table 13-4",true,true,true,true,true,null,null,"Res-sAll-mDHWgt62","Res-sSF-mShellIns",null,null,"Res-sSF-mShellIns"]
["Res-sAll-mDHWshwrDEER2014","Res-sAll-mDHWshwr","DEER2014","2013-01-01",null,"Low flow showerheads",0.7,0.7,"Any","Ex","None","DirInstall","Res","SHW","Distribute","WaterFixt","ShowerHd","2011 DEER Update Report - Section 13 Table 13-4",true,true,true,true,true,null,null,"Res-sAll-mDHWshwr","TV-UpStream",null,null,"TV-UpStream"]
["Res-sAll-mDuctSealDEER2014","Res-sAll-mDuctSeal","DEER2014","2013-01-01",null,"Duct Sealing",0.78,0.78,"Any","Ex","None","PreReb","Res","HVAC","VentAirDist","HV_AirDist","DuctInsul","2011 DEER Update Report - Section 12 Table 12-3",true,true,true,true,true,null,null,"Res-sAll-mDuctSeal"]
["Res-sAll-mELtg-DnStrmDeemedDEER2019","Res-sAll-mELtg-DnStrmDeemed","DEER2019","2019-01-01",null,"LED outdoor lighting fixtures, deemed + downstream\r\n",0.45,0.45,"Any","Any","Any","Any","Res","Lighting","OutGen","Ltg_Lamp","LED_Lamp","June 2017 DEER Update; 2015 Nonresidential ESPI Deemed Lighting Impact Evaluation",false,false,false,false,true,null,null,"Res-sAll-mELtg-DnStrmDeemed"]
["Res-sAll-mFrzrRecDEER2014","Res-sAll-mFrzrRec","DEER2014","2013-01-01","2015-12-31","Freezer, Efficiency characteristics of recycled unit",0.7,0.7,"Any","Any","None","PreRebDI","Res","AppPlug","KitchenApp","Ref_Storage","Freezer","2011 DEER Update Report - Section 14 Table 14-3",true,false,false,false,false,null,null,"Res-sAll-mFrzrRec"]
["Res-sAll-mFrzrRecDEER2016","Res-sAll-mFrzrRec","DEER2016","2016-01-01",null,"Freezer, Efficiency characteristics of recycled unit",0.95,0.8,"Any","Any","None","PreReb","Res","AppPlug","KitchenApp","Ref_Storage","Freezer","DEER1015 Update - Refrigerator and Freezer Appliance Recyling Measures, Table 10",false,true,true,true,true,null,null,"Res-sAll-mFrzrRec"]
["Res-sAll-mHVAC-DX-upDEER2016","Res-sAll-mHVAC-DX-up","DEER2016","2016-01-01",null,"Residential Package HVAC Equipment: deemed; upstream delivery",0.75,0.75,"Any","Ex","None","PreRebUp","Res","HVAC",null,null,null,null,false,true,true,true,true,null,null,"Res-sAll-mHVAC-DX-up"]
["Res-sAll-mHVAC-Pkg-dnDEER2017","Res-sAll-mHVAC-Pkg-dn","DEER2017","2017-01-01","2018-12-31","All package HVAC AC and HP replacements with downstream incentives",0.75,0.75,"Any","Any","Any","Any","Res","HVAC",null,null,null,"June 2017 DEER Update",false,false,true,true,false,null,null,"Res-sAll-mHVAC-Pkg-dn"]
["Res-sAll-mHVAC-Pkg-dnDEER2019","Res-sAll-mHVAC-Pkg-dn","DEER2019","2019-01-01",null,"All package HVAC AC and HP replacements with downstream incentives",0.6,0.6,"Any","Any","Any","Any","Res","HVAC",null,null,null,"June 2017 DEER Update",false,false,false,false,true,null,null,"Res-sAll-mHVAC-Pkg-dn"]
["Res-sAll-mHVAC-RCADEER2014","Res-sAll-mHVAC-RCA","DEER2014","2013-01-01",null,"HVAC Maintenance: Refrigerant Charge Adjustment (RCA)",0.78,0.78,"Any","Ex","None","PreReb","Res","Service","Diagnostic","dxAC_equip",null,"2011 DEER Update Report - Section 12 Table 12-3",true,true,true,true,true,null,null,"Res-sAll-mHVAC-RCA"]
["Res-sAll-mHVAC-RmAC-dnDEER2014","Res-sAll-mHVAC-RmAC-dn","DEER2014","2013-01-01",null,"Energy Star Room AC and HP",0.36,0.36,"Any","Ex","None","PreRebDown","Res","HVAC","SpaceCool",null,null,"2011 DEER Update Report - Section 12 Table 12-3",true,true,true,true,true,null,null,"Res-sAll-mHVAC-RmAC-dn"]
["Res-sAll-mLEDAReflExAnte2017","Res-sAll-mLEDARefl","ExAnte2017","2017-07-01",null,"Residential LED A-lamp and screw-in reflector, all delivery mechanisms",0.91,0.91,"Any","Any","None","Any","Res","Lighting","Any","Ltg_Lamp","LED_Lamp","2017 Phase 1 Screw-in lamp disposition, Table 4",false,false,false,true,true,null,null,"Res-sAll-mLEDARefl"]
["Res-sAll-mLEDSpclExAnte2017","Res-sAll-mLEDSpcl","ExAnte2017","2017-07-01",null,"All residential specialty LED lamps (other than A-lamp and screw-in reflector)",0.6,0.6,"Any","Any","None","Any","Res","Lighting","Any","Ltg_Lamp","LED_Lamp","2017 Phase 1 Screw-in lamp disposition, Table 4",false,false,false,true,true,null,null,"Res-sAll-mLEDSpcl"]
["Res-sAll-MLtgLED-DeemedDEER2016","Res-sAll-MLtgLED-Deemed","DEER2016","2016-01-01","2017-06-30","Residential LED: replacing CFL or incandescent lamps; deemed; all delivery mechanisms except upstream",0.6,0.6,"Any","Any","None","NonUpStrm","Res","Lighting","Any",null,null,null,true,true,true,false,false,null,null,"Res-sAll-MLtgLED-Deemed"]
["Res-sAll-mRefgRecDEER2014","Res-sAll-mRefgRec","DEER2014","2013-01-01","2015-12-31","Refrigerator, Efficiency characteristics of recycled unit",0.53,0.53,"Any","Any","None","PreRebDI","Res","AppPlug","KitchenApp","Ref_Storage","RefrigFrz","2011 DEER Update Report - Section 14 Table 14-3",true,false,false,false,false,null,null,"Res-sAll-mRefgRec"]
["Res-sAll-mRefgRecDEER2016","Res-sAll-mRefgRec","DEER2016","2016-01-01",null,"Refrigerator, Efficiency characteristics of recycled unit",0.8,0.8,"Any","Any","None","PreReb","Res","AppPlug","KitchenApp","Ref_Storage","RefrigFrz","DEER1015 Update - Refrigerator and Freezer Appliance Recyling Measures, Table 10",false,true,true,true,true,null,null,"Res-sAll-mRefgRec"]
["Res-sSF-mACgt14-dnDEER2014","Res-sSF-mACgt14-dn","DEER2014","2013-01-01","2015-12-31","Central AC>=14 SEER",0.55000000000000004,0.55000000000000004,"SFm","Ex","None","PreRebDown","Res","HVAC","SpaceCool","dxAC_equip","SpltSEER","2011 DEER Update Report - Section 12 Table 12-3",true,false,false,false,false,null,null,"Res-sSF-mACgt14-dn"]
["Res-sSF-mACgt16-dnDEER2014","Res-sSF-mACgt16-dn","DEER2014","2013-01-01","2015-12-31","Central AC>=16 SEER, EER>=13",0.8,0.8,"SFm","Ex","None","PreRebDown","Res","HVAC","SpaceCool","dxAC_equip","SpltSEER","2011 DEER Update Report - Section 12.4",true,false,false,false,false,null,null,"Res-sSF-mACgt16-dn"]
[{"$f":"B104&C104","v":"Res-sSF-mHPesDEER2014"},"Res-sSF-mHPes","DEER2014","2013-01-01","2015-12-31","Heat Pump - Energy Star",0.55000000000000004,0.55000000000000004,"SFm","Ex","None","PreRebDown","Res","HVAC","HeatCool","dxHP_equip","SpltSEER","2011 DEER Update Report - Section 12 Table 12-3",true,false,false,false,false,null,null,"Res-sSF-mHPes"]
["Res-sSF-mShellInsDEER2014","Res-sSF-mShellIns","DEER2014","2013-01-01",null,"Wall and Ceiling Insulation",0.28000000000000003,0.28000000000000003,"SFm","Ex","None","PreRebDown","Res","BldgEnv","Opaque","BldgShell",null,"2011 DEER Update Report - Section 12 Table 12-3",true,true,true,true,true,null,null,"Res-sSF-mShellIns"]
["TV-UpStreamDEER2015","TV-UpStream","DEER2015","2013-01-01",null,"Television",0.1,0.1,"Any","Any","None","Any","Any","AppPlug","Electronics","Electronics","TV","from PGE_tea-ED-10-31-14.xlsx",true,true,true,true,true,null,null,"TV-UpStream"]

{"sheet":"NTG_by_Date","index":5,"n_rows":502,"n_cols":13,"rows_kept":502,"cut":false,"hidden":false,"merged":[[1,11,1,12]]}
[null,null,null,null,null,null,null,null,null,null,null,"Derived from READI NTG table"]
[null,"NTG Matrix of Date Range Applicability",null,null,null,null,null,null,null,null,null,"Sorted list of valid NTG_IDs + DateRange Index with their associated NTG lookup value"]
["NTG_ID","DEERversion",1,2,3,4,5,null,"NTG & DateRangeIndex","NTG Lookup Value",null,"NTG & DateRangeIndex","NTG Lookup Value"]
["Agric-Default>2yrs","DEER2014",{"$f":"IF(VLOOKUP($A4&$B4,NTG!$A$8:$W$106,18+C$3,FALSE),$A4&\"_\"&C$3,\"\")","v":"Agric-Default>2yrs_1"},{"$f":"IF(VLOOKUP($A4&$B4,NTG!$A$8:$W$106,18+D$3,FALSE),$A4&\"_\"&D$3,\"\")","v":"Agric-Default>2yrs_2"},{"$f":"IF(VLOOKUP($A4&$B4,NTG!$A$8:$W$106,18+E$3,FALSE),$A4&\"_\"&E$3,\"\")","v":"Agric-Default>2yrs_3"},{"$f":"IF(VLOOKUP($A4&$B4,NTG!$A$8:$W$106,18+F$3,FALSE),$A4&\"_\"&F$3,\"\")","v":"Agric-Default>2yrs_4"},{"$f":"IF(VLOOKUP($A4&$B4,NTG!$A$8:$W$106,18+G$3,FALSE),$A4&\"_\"&G$3,\"\")","v":"Agric-Default>2yrs_5"},1,{"$f":"+C4","v":"Agric-Default>2yrs_1"},{"$f":"+A4&B4","v":"Agric-Default>2yrsDEER2014"},null,"Agric-Default>2yrs_1","Agric-Default>2yrsDEER2014"]
["Agric-Sprklr-All","DEER2016",{"$f":"IF(VLOOKUP($A5&$B5,NTG!$A$8:$W$106,18+C$3,FALSE),$A5&\"_\"&C$3,\"\")","v":""},{"$f":"IF(VLOOKUP($A5&$B5,NTG!$A$8:$W$106,18+D$3,FALSE),$A5&\"_\"&D$3,\"\")","v":"Agric-Sprklr-All_2"},{"$f":"IF(VLOOKUP($A5&$B5,NTG!$A$8:$W$106,18+E$3,FALSE),$A5&\"_\"&E$3,\"\")","v":"Agric-Sprklr-All_3"},{"$f":"IF(VLOOKUP($A5&$B5,NTG!$A$8:$W$106,18+F$3,FALSE),$A5&\"_\"&F$3,\"\")","v":"Agric-Sprklr-All_4"},{"$f":"IF(VLOOKUP($A5&$B5,NTG!$A$8:$W$106,18+G$3,FALSE),$A5&\"_\"&G$3,\"\")","v":""},{"$f":"+H4+1","v":2},{"$f":"+C5","v":""},{"$f":"+A5&B5","v":"Agric-Sprklr-AllDEER2016"},null,"Agric-Default>2yrs_2","Agric-Default>2yrsDEER2014"]
["Agric-Sprklr-All","DEER2019",{"$f":"IF(VLOOKUP($A6&$B6,NTG!$A$8:$W$106,18+C$3,FALSE),$A6&\"_\"&C$3,\"\")","v":""},{"$f":"IF(VLOOKUP($A6&$B6,NTG!$A$8:$W$106,18+D$3,FALSE),$A6&\"_\"&D$3,\"\")","v":""},{"$f":"IF(VLOOKUP($A6&$B6,NTG!$A$8:$W$106,18+E$3,FALSE),$A6&\"_\"&E$3,\"\")","v":""},{"$f":"IF(VLOOKUP($A6&$B6,NTG!$A$8:$W$106,18+F$3,FALSE),$A6&\"_\"&F$3,\"\")","v":""},{"$f":"IF(VLOOKUP($A6&$B6,NTG!$A$8:$W$106,18+G$3,FALSE),$A6&\"_\"&G$3,\"\")","v":"Agric-Sprklr-All_5"},{"$f":"+H5+1","v":3},"","Agric-Sprklr-AllDEER2019",null,"Agric-Default>2yrs_3","Agric-Default>2yrsDEER2014"]
["Agricult-Default-HTR-di","DEER2014",{"$f":"IF(VLOOKUP($A7&$B7,NTG!$A$8:$W$106,18+C$3,FALSE),$A7&\"_\"&C$3,\"\")","v":"Agricult-Default-HTR-di_1"},{"$f":"IF(VLOOKUP($A7&$B7,NTG!$A$8:$W$106,18+D$3,FALSE),$A7&\"_\"&D$3,\"\")","v":"Agricult-Default-HTR-di_2"},{"$f":"IF(VLOOKUP($A7&$B7,NTG!$A$8:$W$106,18+E$3,FALSE),$A7&\"_\"&E$3,\"\")","v":"Agricult-Default-HTR-di_3"},{"$f":"IF(VLOOKUP($A7&$B7,NTG!$A$8:$W$106,18+F$3,FALSE),$A7&\"_\"&F$3,\"\")","v":"Agricult-Default-HTR-di_4"},{"$f":"IF(VLOOKUP($A7&$B7,NTG!$A$8:$W$106,18+G$3,FALSE),$A7&\"_\"&G$3,\"\")","v":"Agricult-Default-HTR-di_5"},4,"Agricult-Default-HTR-di_1","Agricult-Default-HTR-diDEER2014",null,"Agric-Default>2yrs_4","Agric-Default>2yrsDEER2014"]
["All-Default<=2yrs","DEER2014",{"$f":"IF(VLOOKUP($A8&$B8,NTG!$A$8:$W$106,18+C$3,FALSE),$A8&\"_\"&C$3,\"\")","v":"All-Default<=2yrs_1"},{"$f":"IF(VLOOKUP($A8&$B8,NTG!$A$8:$W$106,18+D$3,FALSE),$A8&\"_\"&D$3,\"\")","v":"All-Default<=2yrs_2"},{"$f":"IF(VLOOKUP($A8&$B8,NTG!$A$8:$W$106,18+E$3,FALSE),$A8&\"_\"&E$3,\"\")","v":"All-Default<=2yrs_3"},{"$f":"IF(VLOOKUP($A8&$B8,NTG!$A$8:$W$106,18+F$3,FALSE),$A8&\"_\"&F$3,\"\")","v":"All-Default<=2yrs_4"},{"$f":"IF(VLOOKUP($A8&$B8,NTG!$A$8:$W$106,18+G$3,FALSE),$A8&\"_\"&G$3,\"\")","v":"All-Default<=2yrs_5"},5,"All-Default<=2yrs_1","All-Default<=2yrsDEER2014",null,"Agric-Default>2yrs_5","Agric-Default>2yrsDEER2014"]
["Com-Default>2yrs","DEER2014",{"$f":"IF(VLOOKUP($A9&$B9,NTG!$A$8:$W$106,18+C$3,FALSE),$A9&\"_\"&C$3,\"\")","v":"Com-Default>2yrs_1"},{"$f":"IF(VLOOKUP($A9&$B9,NTG!$A$8:$W$106,18+D$3,FALSE),$A9&\"_\"&D$3,\"\")","v":"Com-Default>2yrs_2"},{"$f":"IF(VLOOKUP($A9&$B9,NTG!$A$8:$W$106,18+E$3,FALSE),$A9&\"_\"&E$3,\"\")","v":"Com-Default>2yrs_3"},{"$f":"IF(VLOOKUP($A9&$B9,NTG!$A$8:$W$106,18+F$3,FALSE),$A9&\"_\"&F$3,\"\")","v":"Com-Default>2yrs_4"},{"$f":"IF(VLOOKUP($A9&$B9,NTG!$A$8:$W$106,18+G$3,FALSE),$A9&\"_\"&G$3,\"\")","v":"Com-Default>2yrs_5"},6,"Com-Default>2yrs_1","Com-Default>2yrsDEER2014",null,"Agric-Sprklr-All_2","Agric-Sprklr-AllDEER2016"]
["Com-Default-HTR-di","DEER2014",{"$f":"IF(VLOOKUP($A10&$B10,NTG!$A$8:$W$106,18+C$3,FALSE),$A10&\"_\"&C$3,\"\")","v":"Com-Default-HTR-di_1"},{"$f":"IF(VLOOKUP($A10&$B10,NTG!$A$8:$W$106,18+D$3,FALSE),$A10&\"_\"&D$3,\"\")","v":"Com-Default-HTR-di_2"},{"$f":"IF(VLOOKUP($A10&$B10,NTG!$A$8:$W$106,18+E$3,FALSE),$A10&\"_\"&E$3,\"\")","v":"Com-Default-HTR-di_3"},{"$f":"IF(VLOOKUP($A10&$B10,NTG!$A$8:$W$106,18+F$3,FALSE),$A10&\"_\"&F$3,\"\")","v":"Com-Default-HTR-di_4"},{"$f":"IF(VLOOKUP($A10&$B10,NTG!$A$8:$W$106,18+G$3,FALSE),$A10&\"_\"&G$3,\"\")","v":"Com-Default-HTR-di_5"},7,"Com-Default-HTR-di_1","Com-Default-HTR-diDEER2014",null,"Agric-Sprklr-All_3","Agric-Sprklr-AllDEER2016"]
["ConstrainedAreaProgram","DEER2015",{"$f":"IF(VLOOKUP($A11&$B11,NTG!$A$8:$W$106,18+C$3,FALSE),$A11&\"_\"&C$3,\"\")","v":"ConstrainedAreaProgram_1"},{"$f":"IF(VLOOKUP($A11&$B11,NTG!$A$8:$W$106,18+D$3,FALSE),$A11&\"_\"&D$3,\"\")","v":"ConstrainedAreaProgram_2"},{"$f":"IF(VLOOKUP($A11&$B11,NTG!$A$8:$W$106,18+E$3,FALSE),$A11&\"_\"&E$3,\"\")","v":"ConstrainedAreaProgram_3"},{"$f":"IF(VLOOKUP($A11&$B11,NTG!$A$8:$W$106,18+F$3,FALSE),$A11&\"_\"&F$3,\"\")","v":"ConstrainedAreaProgram_4"},{"$f":"IF(VLOOKUP($A11&$B11,NTG!$A$8:$W$106,18+G$3,FALSE),$A11&\"_\"&G$3,\"\")","v":"ConstrainedAreaProgram_5"},8,"ConstrainedAreaProgram_1","ConstrainedAreaProgramDEER2015",null,"Agric-Sprklr-All_4","Agric-Sprklr-AllDEER2016"]
["ET-Default","DEER2014",{"$f":"IF(VLOOKUP($A12&$B12,NTG!$A$8:$W$106,18+C$3,FALSE),$A12&\"_\"&C$3,\"\")","v":"ET-Default_1"},{"$f":"IF(VLOOKUP($A12&$B12,NTG!$A$8:$W$106,18+D$3,FALSE),$A12&\"_\"&D$3,\"\")","v":"ET-Default_2"},{"$f":"IF(VLOOKUP($A12&$B12,NTG!$A$8:$W$106,18+E$3,FALSE),$A12&\"_\"&E$3,\"\")","v":"ET-Default_3"},{"$f":"IF(VLOOKUP($A12&$B12,NTG!$A$8:$W$106,18+F$3,FALSE),$A12&\"_\"&F$3,\"\")","v":"ET-Default_4"},{"$f":"IF(VLOOKUP($A12&$B12,NTG!$A$8:$W$106,18+G$3,FALSE),$A12&\"_\"&G$3,\"\")","v":"ET-Default_5"},9,"ET-Default_1","ET-DefaultDEER2014",null,"Agric-Sprklr-All_5","Agric-Sprklr-AllDEER2019"]
["EUC-Default","DEER2014",{"$f":"IF(VLOOKUP($A13&$B13,NTG!$A$8:$W$106,18+C$3,FALSE),$A13&\"_\"&C$3,\"\")","v":"EUC-Default_1"},{"$f":"IF(VLOOKUP($A13&$B13,NTG!$A$8:$W$106,18+D$3,FALSE),$A13&\"_\"&D$3,\"\")","v":""},{"$f":"IF(VLOOKUP($A13&$B13,NTG!$A$8:$W$106,18+E$3,FALSE),$A13&\"_\"&E$3,\"\")","v":""},{"$f":"IF(VLOOKUP($A13&$B13,NTG!$A$8:$W$106,18+F$3,FALSE),$A13&\"_\"&F$3,\"\")","v":""},{"$f":"IF(VLOOKUP($A13&$B13,NTG!$A$8:$W$106,18+G$3,FALSE),$A13&\"_\"&G$3,\"\")","v":""},10,"EUC-Default_1","EUC-DefaultDEER2014",null,"Agricult-Default-HTR-di_1","Agricult-Default-HTR-diDEER2014"]
["EUC-Default","DEER2016",{"$f":"IF(VLOOKUP($A14&$B14,NTG!$A$8:$W$106,18+C$3,FALSE),$A14&\"_\"&C$3,\"\")","v":""},{"$f":"IF(VLOOKUP($A14&$B14,NTG!$A$8:$W$106,18+D$3,FALSE),$A14&\"_\"&D$3,\"\")","v":"EUC-Default_2"},{"$f":"IF(VLOOKUP($A14&$B14,NTG!$A$8:$W$106,18+E$3,FALSE),$A14&\"_\"&E$3,\"\")","v":"EUC-Default_3"},{"$f":"IF(VLOOKUP($A14&$B14,NTG!$A$8:$W$106,18+F$3,FALSE),$A14&\"_\"&F$3,\"\")","v":"EUC-Default_4"},{"$f":"IF(VLOOKUP($A14&$B14,NTG!$A$8:$W$106,18+G$3,FALSE),$A14&\"_\"&G$3,\"\")","v":"EUC-Default_5"},11,"","EUC-DefaultDEER2016",null,"Agricult-Default-HTR-di_2","Agricult-Default-HTR-diDEER2014"]
["Ind-Default>2yrs","DEER2014",{"$f":"IF(VLOOKUP($A15&$B15,NTG!$A$8:$W$106,18+C$3,FALSE),$A15&\"_\"&C$3,\"\")","v":"Ind-Default>2yrs_1"},{"$f":"IF(VLOOKUP($A15&$B15,NTG!$A$8:$W$106,18+D$3,FALSE),$A15&\"_\"&D$3,\"\")","v":"Ind-Default>2yrs_2"},{"$f":"IF(VLOOKUP($A15&$B15,NTG!$A$8:$W$106,18+E$3,FALSE),$A15&\"_\"&E$3,\"\")","v":"Ind-Default>2yrs_3"},{"$f":"IF(VLOOKUP($A15&$B15,NTG!$A$8:$W$106,18+F$3,FALSE),$A15&\"_\"&F$3,\"\")","v":"Ind-Default>2yrs_4"},{"$f":"IF(VLOOKUP($A15&$B15,NTG!$A$8:$W$106,18+G$3,FALSE),$A15&\"_\"&G$3,\"\")","v":"Ind-Default>2yrs_5"},12,"Ind-Default>2yrs_1","Ind-Default>2yrsDEER2014",null,"Agricult-Default-HTR-di_3","Agricult-Default-HTR-diDEER2014"]
["Ind-Default-HTR-di","DEER2014",{"$f":"IF(VLOOKUP($A16&$B16,NTG!$A$8:$W$106,18+C$3,FALSE),$A16&\"_\"&C$3,\"\")","v":"Ind-Default-HTR-di_1"},{"$f":"IF(VLOOKUP($A16&$B16,NTG!$A$8:$W$106,18+D$3,FALSE),$A16&\"_\"&D$3,\"\")","v":"Ind-Default-HTR-di_2"},{"$f":"IF(VLOOKUP($A16&$B16,NTG!$A$8:$W$106,18+E$3,FALSE),$A16&\"_\"&E$3,\"\")","v":"Ind-Default-HTR-di_3"},{"$f":"IF(VLOOKUP($A16&$B16,NTG!$A$8:$W$106,18+F$3,FALSE),$A16&\"_\"&F$3,\"\")","v":"Ind-Default-HTR-di_4"},{"$f":"IF(VLOOKUP($A16&$B16,NTG!$A$8:$W$106,18+G$3,FALSE),$A16&\"_\"&G$3,\"\")","v":"Ind-Default-HTR-di_5"},13,"Ind-Default-HTR-di_1","Ind-Default-HTR-diDEER2014",null,"Agricult-Default-HTR-di_4","Agricult-Default-HTR-diDEER2014"]
["K-12School-ComCollege","DEER2015",{"$f":"IF(VLOOKUP($A17&$B17,NTG!$A$8:$W$106,18+C$3,FALSE),$A17&\"_\"&C$3,\"\")","v":"K-12School-ComCollege_1"},{"$f":"IF(VLOOKUP($A17&$B17,NTG!$A$8:$W$106,18+D$3,FALSE),$A17&\"_\"&D$3,\"\")","v":"K-12School-ComCollege_2"},{"$f":"IF(VLOOKUP($A17&$B17,NTG!$A$8:$W$106,18+E$3,FALSE),$A17&\"_\"&E$3,\"\")","v":"K-12School-ComCollege_3"},{"$f":"IF(VLOOKUP($A17&$B17,NTG!$A$8:$W$106,18+F$3,FALSE),$A17&\"_\"&F$3,\"\")","v":"K-12School-ComCollege_4"},{"$f":"IF(VLOOKUP($A17&$B17,NTG!$A$8:$W$106,18+G$3,FALSE),$A17&\"_\"&G$3,\"\")","v":"K-12School-ComCollege_5"},14,"K-12School-ComCollege_1","K-12School-ComCollegeDEER2015",null,"Agricult-Default-HTR-di_5","Agricult-Default-HTR-diDEER2014"]
["K-12School-ComCollege","DEER2015",{"$f":"IF(VLOOKUP($A18&$B18,NTG!$A$8:$W$106,18+C$3,FALSE),$A18&\"_\"&C$3,\"\")","v":"K-12School-ComCollege_1"},{"$f":"IF(VLOOKUP($A18&$B18,NTG!$A$8:$W$106,18+D$3,FALSE),$A18&\"_\"&D$3,\"\")","v":"K-12School-ComCollege_2"},{"$f":"IF(VLOOKUP($A18&$B18,NTG!$A$8:$W$106,18+E$3,FALSE),$A18&\"_\"&E$3,\"\")","v":"K-12School-ComCollege_3"},{"$f":"IF(VLOOKUP($A18&$B18,NTG!$A$8:$W$106,18+F$3,FALSE),$A18&\"_\"&F$3,\"\")","v":"K-12School-ComCollege_4"},{"$f":"IF(VLOOKUP($A18&$B18,NTG!$A$8:$W$106,18+G$3,FALSE),$A18&\"_\"&G$3,\"\")","v":"K-12School-ComCollege_5"},15,"K-12School-ComCollege_1","K-12School-ComCollegeDEER2015",null,"All-Default<=2yrs_1","All-Default<=2yrsDEER2014"]
["K-12School-ComCollege","DEER2015",{"$f":"IF(VLOOKUP($A19&$B19,NTG!$A$8:$W$106,18+C$3,FALSE),$A19&\"_\"&C$3,\"\")","v":"K-12School-ComCollege_1"},{"$f":"IF(VLOOKUP($A19&$B19,NTG!$A$8:$W$106,18+D$3,FALSE),$A19&\"_\"&D$3,\"\")","v":"K-12School-ComCollege_2"},{"$f":"IF(VLOOKUP($A19&$B19,NTG!$A$8:$W$106,18+E$3,FALSE),$A19&\"_\"&E$3,\"\")","v":"K-12School-ComCollege_3"},{"$f":"IF(VLOOKUP($A19&$B19,NTG!$A$8:$W$106,18+F$3,FALSE),$A19&\"_\"&F$3,\"\")","v":"K-12School-ComCollege_4"},{"$f":"IF(VLOOKUP($A19&$B19,NTG!$A$8:$W$106,18+G$3,FALSE),$A19&\"_\"&G$3,\"\")","v":"K-12School-ComCollege_5"},16,"K-12School-ComCollege_1","K-12School-ComCollegeDEER2015",null,"All-Default<=2yrs_2","All-Default<=2yrsDEER2014"]
["K-12School-ComCollege","DEER2015",{"$f":"IF(VLOOKUP($A20&$B20,NTG!$A$8:$W$106,18+C$3,FALSE),$A20&\"_\"&C$3,\"\")","v":"K-12School-ComCollege_1"},{"$f":"IF(VLOOKUP($A20&$B20,NTG!$A$8:$W$106,18+D$3,FALSE),$A20&\"_\"&D$3,\"\")","v":"K-12School-ComCollege_2"},{"$f":"IF(VLOOKUP($A20&$B20,NTG!$A$8:$W$106,18+E$3,FALSE),$A20&\"_\"&E$3,\"\")","v":"K-12School-ComCollege_3"},{"$f":"IF(VLOOKUP($A20&$B20,NTG!$A$8:$W$106,18+F$3,FALSE),$A20&\"_\"&F$3,\"\")","v":"K-12School-ComCollege_4"},{"$f":"IF(VLOOKUP($A20&$B20,NTG!$A$8:$W$106,18+G$3,FALSE),$A20&\"_\"&G$3,\"\")","v":"K-12School-ComCollege_5"},17,"K-12School-ComCollege_1","K-12School-ComCollegeDEER2015",null,"All-Default<=2yrs_3","All-Default<=2yrsDEER2014"]
["NonRes-sAg-mCust-ci","DEER2014",{"$f":"IF(VLOOKUP($A21&$B21,NTG!$A$8:$W$106,18+C$3,FALSE),$A21&\"_\"&C$3,\"\")","v":"NonRes-sAg-mCust-ci_1"},{"$f":"IF(VLOOKUP($A21&$B21,NTG!$A$8:$W$106,18+D$3,FALSE),$A21&\"_\"&D$3,\"\")","v":"NonRes-sAg-mCust-ci_2"},{"$f":"IF(VLOOKUP($A21&$B21,NTG!$A$8:$W$106,18+E$3,FALSE),$A21&\"_\"&E$3,\"\")","v":"NonRes-sAg-mCust-ci_3"},{"$f":"IF(VLOOKUP($A21&$B21,NTG!$A$8:$W$106,18+F$3,FALSE),$A21&\"_\"&F$3,\"\")","v":"NonRes-sAg-mCust-ci_4"},{"$f":"IF(VLOOKUP($A21&$B21,NTG!$A$8:$W$106,18+G$3,FALSE),$A21&\"_\"&G$3,\"\")","v":"NonRes-sAg-mCust-ci_5"},18,"NonRes-sAg-mCust-ci_1","NonRes-sAg-mCust-ciDEER2014",null,"All-Default<=2yrs_4","All-Default<=2yrsDEER2014"]
["NonRes-sAll-mCFL","DEER2014",{"$f":"IF(VLOOKUP($A22&$B22,NTG!$A$8:$W$106,18+C$3,FALSE),$A22&\"_\"&C$3,\"\")","v":"NonRes-sAll-mCFL_1"},{"$f":"IF(VLOOKUP($A22&$B22,NTG!$A$8:$W$106,18+D$3,FALSE),$A22&\"_\"&D$3,\"\")","v":"NonRes-sAll-mCFL_2"},{"$f":"IF(VLOOKUP($A22&$B22,NTG!$A$8:$W$106,18+E$3,FALSE),$A22&\"_\"&E$3,\"\")","v":"NonRes-sAll-mCFL_3"},{"$f":"IF(VLOOKUP($A22&$B22,NTG!$A$8:$W$106,18+F$3,FALSE),$A22&\"_\"&F$3,\"\")","v":""},{"$f":"IF(VLOOKUP($A22&$B22,NTG!$A$8:$W$106,18+G$3,FALSE),$A22&\"_\"&G$3,\"\")","v":""},19,"NonRes-sAll-mCFL_1","NonRes-sAll-mCFLDEER2014",null,"All-Default<=2yrs_5","All-Default<=2yrsDEER2014"]
["NonRes-sAll-mCFL","ExAnte2017",{"$f":"IF(VLOOKUP($A23&$B23,NTG!$A$8:$W$106,18+C$3,FALSE),$A23&\"_\"&C$3,\"\")","v":""},{"$f":"IF(VLOOKUP($A23&$B23,NTG!$A$8:$W$106,18+D$3,FALSE),$A23&\"_\"&D$3,\"\")","v":""},{"$f":"IF(VLOOKUP($A23&$B23,NTG!$A$8:$W$106,18+E$3,FALSE),$A23&\"_\"&E$3,\"\")","v":""},{"$f":"IF(VLOOKUP($A23&$B23,NTG!$A$8:$W$106,18+F$3,FALSE),$A23&\"_\"&F$3,\"\")","v":"NonRes-sAll-mCFL_4"},{"$f":"IF(VLOOKUP($A23&$B23,NTG!$A$8:$W$106,18+G$3,FALSE),$A23&\"_\"&G$3,\"\")","v":"NonRes-sAll-mCFL_5"},20,"","NonRes-sAll-mCFLExAnte2017",null,"Com-Default>2yrs_1","Com-Default>2yrsDEER2014"]
["NonRes-sAll-mCFL-All","DEER2016",{"$f":"IF(VLOOKUP($A24&$B24,NTG!$A$8:$W$106,18+C$3,FALSE),$A24&\"_\"&C$3,\"\")","v":"NonRes-sAll-mCFL-All_1"},{"$f":"IF(VLOOKUP($A24&$B24,NTG!$A$8:$W$106,18+D$3,FALSE),$A24&\"_\"&D$3,\"\")","v":"NonRes-sAll-mCFL-All_2"},{"$f":"IF(VLOOKUP($A24&$B24,NTG!$A$8:$W$106,18+E$3,FALSE),$A24&\"_\"&E$3,\"\")","v":"NonRes-sAll-mCFL-All_3"},{"$f":"IF(VLOOKUP($A24&$B24,NTG!$A$8:$W$106,18+F$3,FALSE),$A24&\"_\"&F$3,\"\")","v":""},{"$f":"IF(VLOOKUP($A24&$B24,NTG!$A$8:$W$106,18+G$3,FALSE),$A24&\"_\"&G$3,\"\")","v":""},21,"NonRes-sAll-mCFL-All_1","NonRes-sAll-mCFL-AllDEER2016",null,"Com-Default>2yrs_2","Com-Default>2yrsDEER2014"]
["NonRes-sAll-mCFL-ci","DEER2014",{"$f":"IF(VLOOKUP($A25&$B25,NTG!$A$8:$W$106,18+C$3,FALSE),$A25&\"_\"&C$3,\"\")","v":"NonRes-sAll-mCFL-ci_1"},{"$f":"IF(VLOOKUP($A25&$B25,NTG!$A$8:$W$106,18+D$3,FALSE),$A25&\"_\"&D$3,\"\")","v":""},{"$f":"IF(VLOOKUP($A25&$B25,NTG!$A$8:$W$106,18+E$3,FALSE),$A25&\"_\"&E$3,\"\")","v":""},{"$f":"IF(VLOOKUP($A25&$B25,NTG!$A$8:$W$106,18+F$3,FALSE),$A25&\"_\"&F$3,\"\")","v":""},{"$f":"IF(VLOOKUP($A25&$B25,NTG!$A$8:$W$106,18+G$3,FALSE),$A25&\"_\"&G$3,\"\")","v":""},22,"NonRes-sAll-mCFL-ci_1","NonRes-sAll-mCFL-ciDEER2014",null,"Com-Default>2yrs_3","Com-Default>2yrsDEER2014"]
["NonRes-sAll-mCFL-dir","DEER2014",{"$f":"IF(VLOOKUP($A26&$B26,NTG!$A$8:$W$106,18+C$3,FALSE),$A26&\"_\"&C$3,\"\")","v":"NonRes-sAll-mCFL-dir_1"},{"$f":"IF(VLOOKUP($A26&$B26,NTG!$A$8:$W$106,18+D$3,FALSE),$A26&\"_\"&D$3,\"\")","v":""},{"$f":"IF(VLOOKUP($A26&$B26,NTG!$A$8:$W$106,18+E$3,FALSE),$A26&\"_\"&E$3,\"\")","v":""},{"$f":"IF(VLOOKUP($A26&$B26,NTG!$A$8:$W$106,18+F$3,FALSE),$A26&\"_\"&F$3,\"\")","v":""},{"$f":"IF(VLOOKUP($A26&$B26,NTG!$A$8:$W$106,18+G$3,FALSE),$A26&\"_\"&G$3,\"\")","v":""},23,"NonRes-sAll-mCFL-dir_1","NonRes-sAll-mCFL-dirDEER2014",null,"Com-Default>2yrs_4","Com-Default>2yrsDEER2014"]
["NonRes-sAll-mCFL-dn","DEER2014",{"$f":"IF(VLOOKUP($A27&$B27,NTG!$A$8:$W$106,18+C$3,FALSE),$A27&\"_\"&C$3,\"\")","v":"NonRes-sAll-mCFL-dn_1"},{"$f":"IF(VLOOKUP($A27&$B27,NTG!$A$8:$W$106,18+D$3,FALSE),$A27&\"_\"&D$3,\"\")","v":""},{"$f":"IF(VLOOKUP($A27&$B27,NTG!$A$8:$W$106,18+E$3,FALSE),$A27&\"_\"&E$3,\"\")","v":""},{"$f":"IF(VLOOKUP($A27&$B27,NTG!$A$8:$W$106,18+F$3,FALSE),$A27&\"_\"&F$3,\"\")","v":""},{"$f":"IF(VLOOKUP($A27&$B27,NTG!$A$8:$W$106,18+G$3,FALSE),$A27&\"_\"&G$3,\"\")","v":""},24,"NonRes-sAll-mCFL-dn_1","NonRes-sAll-mCFL-dnDEER2014",null,"Com-Default>2yrs_5","Com-Default>2yrsDEER2014"]
["NonRes-sAll-mCust","DEER2014",{"$f":"IF(VLOOKUP($A28&$B28,NTG!$A$8:$W$106,18+C$3,FALSE),$A28&\"_\"&C$3,\"\")","v":"NonRes-sAll-mCust_1"},{"$f":"IF(VLOOKUP($A28&$B28,NTG!$A$8:$W$106,18+D$3,FALSE),$A28&\"_\"&D$3,\"\")","v":"NonRes-sAll-mCust_2"},{"$f":"IF(VLOOKUP($A28&$B28,NTG!$A$8:$W$106,18+E$3,FALSE),$A28&\"_\"&E$3,\"\")","v":"NonRes-sAll-mCust_3"},{"$f":"IF(VLOOKUP($A28&$B28,NTG!$A$8:$W$106,18+F$3,FALSE),$A28&\"_\"&F$3,\"\")","v":"NonRes-sAll-mCust_4"},{"$f":"IF(VLOOKUP($A28&$B28,NTG!$A$8:$W$106,18+G$3,FALSE),$A28&\"_\"&G$3,\"\")","v":"NonRes-sAll-mCust_5"},25,"NonRes-sAll-mCust_1","NonRes-sAll-mCustDEER2014",null,"Com-Default-HTR-di_1","Com-Default-HTR-diDEER2014"]
["NonRes-sAll-mCust-Elec","DEER2014",{"$f":"IF(VLOOKUP($A29&$B29,NTG!$A$8:$W$106,18+C$3,FALSE),$A29&\"_\"&C$3,\"\")","v":"NonRes-sAll-mCust-Elec_1"},{"$f":"IF(VLOOKUP($A29&$B29,NTG!$A$8:$W$106,18+D$3,FALSE),$A29&\"_\"&D$3,\"\")","v":"NonRes-sAll-mCust-Elec_2"},{"$f":"IF(VLOOKUP($A29&$B29,NTG!$A$8:$W$106,18+E$3,FALSE),$A29&\"_\"&E$3,\"\")","v":"NonRes-sAll-mCust-Elec_3"},{"$f":"IF(VLOOKUP($A29&$B29,NTG!$A$8:$W$106,18+F$3,FALSE),$A29&\"_\"&F$3,\"\")","v":"NonRes-sAll-mCust-Elec_4"},{"$f":"IF(VLOOKUP($A29&$B29,NTG!$A$8:$W$106,18+G$3,FALSE),$A29&\"_\"&G$3,\"\")","v":"NonRes-sAll-mCust-Elec_5"},26,"NonRes-sAll-mCust-Elec_1","NonRes-sAll-mCust-ElecDEER2014",null,"Com-Default-HTR-di_2","Com-Default-HTR-diDEER2014"]
["NonRes-sAll-mCustElec-bd","DEER2014",{"$f":"IF(VLOOKUP($A30&$B30,NTG!$A$8:$W$106,18+C$3,FALSE),$A30&\"_\"&C$3,\"\")","v":"NonRes-sAll-mCustElec-bd_1"},{"$f":"IF(VLOOKUP($A30&$B30,NTG!$A$8:$W$106,18+D$3,FALSE),$A30&\"_\"&D$3,\"\")","v":""},{"$f":"IF(VLOOKUP($A30&$B30,NTG!$A$8:$W$106,18+E$3,FALSE),$A30&\"_\"&E$3,\"\")","v":""},{"$f":"IF(VLOOKUP($A30&$B30,NTG!$A$8:$W$106,18+F$3,FALSE),$A30&\"_\"&F$3,\"\")","v":""},{"$f":"IF(VLOOKUP($A30&$B30,NTG!$A$8:$W$106,18+G$3,FALSE),$A30&\"_\"&G$3,\"\")","v":""},27,"NonRes-sAll-mCustElec-bd_1","NonRes-sAll-mCustElec-bdDEER2014",null,"Com-Default-HTR-di_3","Com-Default-HTR-diDEER2014"]
["NonRes-sAll-mCust-Gas","DEER2014",{"$f":"IF(VLOOKUP($A31&$B31,NTG!$A$8:$W$106,18+C$3,FALSE),$A31&\"_\"&C$3,\"\")","v":"NonRes-sAll-mCust-Gas_1"},{"$f":"IF(VLOOKUP($A31&$B31,NTG!$A$8:$W$106,18+D$3,FALSE),$A31&\"_\"&D$3,\"\")","v":"NonRes-sAll-mCust-Gas_2"},{"$f":"IF(VLOOKUP($A31&$B31,NTG!$A$8:$W$106,18+E$3,FALSE),$A31&\"_\"&E$3,\"\")","v":"NonRes-sAll-mCust-Gas_3"},{"$f":"IF(VLOOKUP($A31&$B31,NTG!$A$8:$W$106,18+F$3,FALSE),$A31&\"_\"&F$3,\"\")","v":"NonRes-sAll-mCust-Gas_4"},{"$f":"IF(VLOOKUP($A31&$B31,NTG!$A$8:$W$106,18+G$3,FALSE),$A31&\"_\"&G$3,\"\")","v":"NonRes-sAll-mCust-Gas_5"},28,"NonRes-sAll-mCust-Gas_1","NonRes-sAll-mCust-GasDEER2014",null,"Com-Default-HTR-di_4","Com-Default-HTR-diDEER2014"]
["NonRes-sAll-mELtg-DnStrmDeemed","DEER2019",{"$f":"IF(VLOOKUP($A32&$B32,NTG!$A$8:$W$106,18+C$3,FALSE),$A32&\"_\"&C$3,\"\")","v":""},{"$f":"IF(VLOOKUP($A32&$B32,NTG!$A$8:$W$106,18+D$3,FALSE),$A32&\"_\"&D$3,\"\")","v":""},{"$f":"IF(VLOOKUP($A32&$B32,NTG!$A$8:$W$106,18+E$3,FALSE),$A32&\"_\"&E$3,\"\")","v":""},{"$f":"IF(VLOOKUP($A32&$B32,NTG!$A$8:$W$106,18+F$3,FALSE),$A32&\"_\"&F$3,\"\")","v":""},{"$f":"IF(VLOOKUP($A32&$B32,NTG!$A$8:$W$106,18+G$3,FALSE),$A32&\"_\"&G$3,\"\")","v":"NonRes-sAll-mELtg-DnStrmDeemed_5"},29,"","NonRes-sAll-mELtg-DnStrmDeemedDEER2019",null,"Com-Default-HTR-di_5","Com-Default-HTR-diDEER2014"]
["NonRes-sAll-mHVAC-Chiller","DEER2014",{"$f":"IF(VLOOKUP($A33&$B33,NTG!$A$8:$W$106,18+C$3,FALSE),$A33&\"_\"&C$3,\"\")","v":"NonRes-sAll-mHVAC-Chiller_1"},{"$f":"IF(VLOOKUP($A33&$B33,NTG!$A$8:$W$106,18+D$3,FALSE),$A33&\"_\"&D$3,\"\")","v":"NonRes-sAll-mHVAC-Chiller_2"},{"$f":"IF(VLOOKUP($A33&$B33,NTG!$A$8:$W$106,18+E$3,FALSE),$A33&\"_\"&E$3,\"\")","v":"NonRes-sAll-mHVAC-Chiller_3"},{"$f":"IF(VLOOKUP($A33&$B33,NTG!$A$8:$W$106,18+F$3,FALSE),$A33&\"_\"&F$3,\"\")","v":"NonRes-sAll-mHVAC-Chiller_4"},{"$f":"IF(VLOOKUP($A33&$B33,NTG!$A$8:$W$106,18+G$3,FALSE),$A33&\"_\"&G$3,\"\")","v":"NonRes-sAll-mHVAC-Chiller_5"},30,"NonRes-sAll-mHVAC-Chiller_1","NonRes-sAll-mHVAC-ChillerDEER2014",null,"ConstrainedAreaProgram_1","ConstrainedAreaProgramDEER2015"]
["NonRes-sAll-mHVAC-DX-up","DEER2014",{"$f":"IF(VLOOKUP($A34&$B34,NTG!$A$8:$W$106,18+C$3,FALSE),$A34&\"_\"&C$3,\"\")","v":"NonRes-sAll-mHVAC-DX-up_1"},{"$f":"IF(VLOOKUP($A34&$B34,NTG!$A$8:$W$106,18+D$3,FALSE),$A34&\"_\"&D$3,\"\")","v":""},{"$f":"IF(VLOOKUP($A34&$B34,NTG!$A$8:$W$106,18+E$3,FALSE),$A34&\"_\"&E$3,\"\")","v":""},{"$f":"IF(VLOOKUP($A34&$B34,NTG!$A$8:$W$106,18+F$3,FALSE),$A34&\"_\"&F$3,\"\")","v":""},{"$f":"IF(VLOOKUP($A34&$B34,NTG!$A$8:$W$106,18+G$3,FALSE),$A34&\"_\"&G$3,\"\")","v":""},31,"NonRes-sAll-mHVAC-DX-up_1","NonRes-sAll-mHVAC-DX-upDEER2014",null,"ConstrainedAreaProgram_2","ConstrainedAreaProgramDEER2015"]
["NonRes-sAll-mHVAC-DX-up","DEER2016",{"$f":"IF(VLOOKUP($A35&$B35,NTG!$A$8:$W$106,18+C$3,FALSE),$A35&\"_\"&C$3,\"\")","v":""},{"$f":"IF(VLOOKUP($A35&$B35,NTG!$A$8:$W$106,18+D$3,FALSE),$A35&\"_\"&D$3,\"\")","v":"NonRes-sAll-mHVAC-DX-up_2"},{"$f":"IF(VLOOKUP($A35&$B35,NTG!$A$8:$W$106,18+E$3,FALSE),$A35&\"_\"&E$3,\"\")","v":"NonRes-sAll-mHVAC-DX-up_3"},{"$f":"IF(VLOOKUP($A35&$B35,NTG!$A$8:$W$106,18+F$3,FALSE),$A35&\"_\"&F$3,\"\")","v":"NonRes-sAll-mHVAC-DX-up_4"},{"$f":"IF(VLOOKUP($A35&$B35,NTG!$A$8:$W$106,18+G$3,FALSE),$A35&\"_\"&G$3,\"\")","v":"NonRes-sAll-mHVAC-DX-up_5"},32,"","NonRes-sAll-mHVAC-DX-upDEER2016",null,"ConstrainedAreaProgram_3","ConstrainedAreaProgramDEER2015"]
["NonRes-sAll-mHVAC-Pkg","DEER2017",{"$f":"IF(VLOOKUP($A36&$B36,NTG!$A$8:$W$106,18+C$3,FALSE),$A36&\"_\"&C$3,\"\")","v":""},{"$f":"IF(VLOOKUP($A36&$B36,NTG!$A$8:$W$106,18+D$3,FALSE),$A36&\"_\"&D$3,\"\")","v":""},{"$f":"IF(VLOOKUP($A36&$B36,NTG!$A$8:$W$106,18+E$3,FALSE),$A36&\"_\"&E$3,\"\")","v":"NonRes-sAll-mHVAC-Pkg_3"},{"$f":"IF(VLOOKUP($A36&$B36,NTG!$A$8:$W$106,18+F$3,FALSE),$A36&\"_\"&F$3,\"\")","v":"NonRes-sAll-mHVAC-Pkg_4"},{"$f":"IF(VLOOKUP($A36&$B36,NTG!$A$8:$W$106,18+G$3,FALSE),$A36&\"_\"&G$3,\"\")","v":""},33,"","NonRes-sAll-mHVAC-PkgDEER2017",null,"ConstrainedAreaProgram_4","ConstrainedAreaProgramDEER2015"]
["NonRes-sAll-mHVAC-Pkg","DEER2019",{"$f":"IF(VLOOKUP($A37&$B37,NTG!$A$8:$W$106,18+C$3,FALSE),$A37&\"_\"&C$3,\"\")","v":""},{"$f":"IF(VLOOKUP($A37&$B37,NTG!$A$8:$W$106,18+D$3,FALSE),$A37&\"_\"&D$3,\"\")","v":""},{"$f":"IF(VLOOKUP($A37&$B37,NTG!$A$8:$W$106,18+E$3,FALSE),$A37&\"_\"&E$3,\"\")","v":""},{"$f":"IF(VLOOKUP($A37&$B37,NTG!$A$8:$W$106,18+F$3,FALSE),$A37&\"_\"&F$3,\"\")","v":""},{"$f":"IF(VLOOKUP($A37&$B37,NTG!$A$8:$W$106,18+G$3,FALSE),$A37&\"_\"&G$3,\"\")","v":"NonRes-sAll-mHVAC-Pkg_5"},34,"","NonRes-sAll-mHVAC-PkgDEER2019",null,"ConstrainedAreaProgram_5","ConstrainedAreaProgramDEER2015"]
["NonRes-sAll-mHVAC-RCA","DEER2014",{"$f":"IF(VLOOKUP($A38&$B38,NTG!$A$8:$W$106,18+C$3,FALSE),$A38&\"_\"&C$3,\"\")","v":"NonRes-sAll-mHVAC-RCA_1"},{"$f":"IF(VLOOKUP($A38&$B38,NTG!$A$8:$W$106,18+D$3,FALSE),$A38&\"_\"&D$3,\"\")","v":"NonRes-sAll-mHVAC-RCA_2"},{"$f":"IF(VLOOKUP($A38&$B38,NTG!$A$8:$W$106,18+E$3,FALSE),$A38&\"_\"&E$3,\"\")","v":"NonRes-sAll-mHVAC-RCA_3"},{"$f":"IF(VLOOKUP($A38&$B38,NTG!$A$8:$W$106,18+F$3,FALSE),$A38&\"_\"&F$3,\"\")","v":"NonRes-sAll-mHVAC-RCA_4"},{"$f":"IF(VLOOKUP($A38&$B38,NTG!$A$8:$W$106,18+G$3,FALSE),$A38&\"_\"&G$3,\"\")","v":"NonRes-sAll-mHVAC-RCA_5"},35,"NonRes-sAll-mHVAC-RCA_1","NonRes-sAll-mHVAC-RCADEER2014",null,"ET-Default_1","ET-DefaultDEER2014"]
["NonRes-sAll-mLEDARefl","ExAnte2017",{"$f":"IF(VLOOKUP($A39&$B39,NTG!$A$8:$W$106,18+C$3,FALSE),$A39&\"_\"&C$3,\"\")","v":""},{"$f":"IF(VLOOKUP($A39&$B39,NTG!$A$8:$W$106,18+D$3,FALSE),$A39&\"_\"&D$3,\"\")","v":""},{"$f":"IF(VLOOKUP($A39&$B39,NTG!$A$8:$W$106,18+E$3,FALSE),$A39&\"_\"&E$3,\"\")","v":""},{"$f":"IF(VLOOKUP($A39&$B39,NTG!$A$8:$W$106,18+F$3,FALSE),$A39&\"_\"&F$3,\"\")","v":"NonRes-sAll-mLEDARefl_4"},{"$f":"IF(VLOOKUP($A39&$B39,NTG!$A$8:$W$106,18+G$3,FALSE),$A39&\"_\"&G$3,\"\")","v":"NonRes-sAll-mLEDARefl_5"},36,"","NonRes-sAll-mLEDAReflExAnte2017",null,"ET-Default_2","ET-DefaultDEER2014"]
["NonRes-sAll-mLEDSpcl","ExAnte2017",{"$f":"IF(VLOOKUP($A40&$B40,NTG!$A$8:$W$106,18+C$3,FALSE),$A40&\"_\"&C$3,\"\")","v":""},{"$f":"IF(VLOOKUP($A40&$B40,NTG!$A$8:$W$106,18+D$3,FALSE),$A40&\"_\"&D$3,\"\")","v":""},{"$f":"IF(VLOOKUP($A40&$B40,NTG!$A$8:$W$106,18+E$3,FALSE),$A40&\"_\"&E$3,\"\")","v":""},{"$f":"IF(VLOOKUP($A40&$B40,NTG!$A$8:$W$106,18+F$3,FALSE),$A40&\"_\"&F$3,\"\")","v":"NonRes-sAll-mLEDSpcl_4"},{"$f":"IF(VLOOKUP($A40&$B40,NTG!$A$8:$W$106,18+G$3,FALSE),$A40&\"_\"&G$3,\"\")","v":"NonRes-sAll-mLEDSpcl_5"},37,"","NonRes-sAll-mLEDSpclExAnte2017",null,"ET-Default_3","ET-DefaultDEER2014"]
["NonRes-sAll-mLFDL-Deemed","DEER2016",{"$f":"IF(VLOOKUP($A41&$B41,NTG!$A$8:$W$106,18+C$3,FALSE),$A41&\"_\"&C$3,\"\")","v":""},{"$f":"IF(VLOOKUP($A41&$B41,NTG!$A$8:$W$106,18+D$3,FALSE),$A41&\"_\"&D$3,\"\")","v":"NonRes-sAll-mLFDL-Deemed_2"},{"$f":"IF(VLOOKUP($A41&$B41,NTG!$A$8:$W$106,18+E$3,FALSE),$A41&\"_\"&E$3,\"\")","v":"NonRes-sAll-mLFDL-Deemed_3"},{"$f":"IF(VLOOKUP($A41&$B41,NTG!$A$8:$W$106,18+F$3,FALSE),$A41&\"_\"&F$3,\"\")","v":"NonRes-sAll-mLFDL-Deemed_4"},{"$f":"IF(VLOOKUP($A41&$B41,NTG!$A$8:$W$106,18+G$3,FALSE),$A41&\"_\"&G$3,\"\")","v":"NonRes-sAll-mLFDL-Deemed_5"},38,"","NonRes-sAll-mLFDL-DeemedDEER2016",null,"ET-Default_4","ET-DefaultDEER2014"]
["NonRes-sAll-mLFHB-Deemed","DEER2016",{"$f":"IF(VLOOKUP($A42&$B42,NTG!$A$8:$W$106,18+C$3,FALSE),$A42&\"_\"&C$3,\"\")","v":""},{"$f":"IF(VLOOKUP($A42&$B42,NTG!$A$8:$W$106,18+D$3,FALSE),$A42&\"_\"&D$3,\"\")","v":"NonRes-sAll-mLFHB-Deemed_2"},{"$f":"IF(VLOOKUP($A42&$B42,NTG!$A$8:$W$106,18+E$3,FALSE),$A42&\"_\"&E$3,\"\")","v":"NonRes-sAll-mLFHB-Deemed_3"},{"$f":"IF(VLOOKUP($A42&$B42,NTG!$A$8:$W$106,18+F$3,FALSE),$A42&\"_\"&F$3,\"\")","v":"NonRes-sAll-mLFHB-Deemed_4"},{"$f":"IF(VLOOKUP($A42&$B42,NTG!$A$8:$W$106,18+G$3,FALSE),$A42&\"_\"&G$3,\"\")","v":"NonRes-sAll-mLFHB-Deemed_5"},39,"","NonRes-sAll-mLFHB-DeemedDEER2016",null,"ET-Default_5","ET-DefaultDEER2014"]
["NonRes-sAll-mLFHBT5-Deemed","DEER2016",{"$f":"IF(VLOOKUP($A43&$B43,NTG!$A$8:$W$106,18+C$3,FALSE),$A43&\"_\"&C$3,\"\")","v":""},{"$f":"IF(VLOOKUP($A43&$B43,NTG!$A$8:$W$106,18+D$3,FALSE),$A43&\"_\"&D$3,\"\")","v":"NonRes-sAll-mLFHBT5-Deemed_2"},{"$f":"IF(VLOOKUP($A43&$B43,NTG!$A$8:$W$106,18+E$3,FALSE),$A43&\"_\"&E$3,\"\")","v":"NonRes-sAll-mLFHBT5-Deemed_3"},{"$f":"IF(VLOOKUP($A43&$B43,NTG!$A$8:$W$106,18+F$3,FALSE),$A43&\"_\"&F$3,\"\")","v":"NonRes-sAll-mLFHBT5-Deemed_4"},{"$f":"IF(VLOOKUP($A43&$B43,NTG!$A$8:$W$106,18+G$3,FALSE),$A43&\"_\"&G$3,\"\")","v":"NonRes-sAll-mLFHBT5-Deemed_5"},40,"","NonRes-sAll-mLFHBT5-DeemedDEER2016",null,"EUC-Default_1","EUC-DefaultDEER2014"]
["NonRes-sAll-mLFOth-Deemed","DEER2016",{"$f":"IF(VLOOKUP($A44&$B44,NTG!$A$8:$W$106,18+C$3,FALSE),$A44&\"_\"&C$3,\"\")","v":""},{"$f":"IF(VLOOKUP($A44&$B44,NTG!$A$8:$W$106,18+D$3,FALSE),$A44&\"_\"&D$3,\"\")","v":"NonRes-sAll-mLFOth-Deemed_2"},{"$f":"IF(VLOOKUP($A44&$B44,NTG!$A$8:$W$106,18+E$3,FALSE),$A44&\"_\"&E$3,\"\")","v":"NonRes-sAll-mLFOth-Deemed_3"},{"$f":"IF(VLOOKUP($A44&$B44,NTG!$A$8:$W$106,18+F$3,FALSE),$A44&\"_\"&F$3,\"\")","v":"NonRes-sAll-mLFOth-Deemed_4"},{"$f":"IF(VLOOKUP($A44&$B44,NTG!$A$8:$W$106,18+G$3,FALSE),$A44&\"_\"&G$3,\"\")","v":"NonRes-sAll-mLFOth-Deemed_5"},41,"","NonRes-sAll-mLFOth-DeemedDEER2016",null,"EUC-Default_2","EUC-DefaultDEER2016"]
["NonRes-sAll-mLtg-ci","DEER2016",{"$f":"IF(VLOOKUP($A45&$B45,NTG!$A$8:$W$106,18+C$3,FALSE),$A45&\"_\"&C$3,\"\")","v":""},{"$f":"IF(VLOOKUP($A45&$B45,NTG!$A$8:$W$106,18+D$3,FALSE),$A45&\"_\"&D$3,\"\")","v":"NonRes-sAll-mLtg-ci_2"},{"$f":"IF(VLOOKUP($A45&$B45,NTG!$A$8:$W$106,18+E$3,FALSE),$A45&\"_\"&E$3,\"\")","v":"NonRes-sAll-mLtg-ci_3"},{"$f":"IF(VLOOKUP($A45&$B45,NTG!$A$8:$W$106,18+F$3,FALSE),$A45&\"_\"&F$3,\"\")","v":"NonRes-sAll-mLtg-ci_4"},{"$f":"IF(VLOOKUP($A45&$B45,NTG!$A$8:$W$106,18+G$3,FALSE),$A45&\"_\"&G$3,\"\")","v":""},42,"","NonRes-sAll-mLtg-ciDEER2016",null,"EUC-Default_3","EUC-DefaultDEER2016"]
["NonRes-sAll-mLtg-ci","DEER2019",{"$f":"IF(VLOOKUP($A46&$B46,NTG!$A$8:$W$106,18+C$3,FALSE),$A46&\"_\"&C$3,\"\")","v":""},{"$f":"IF(VLOOKUP($A46&$B46,NTG!$A$8:$W$106,18+D$3,FALSE),$A46&\"_\"&D$3,\"\")","v":""},{"$f":"IF(VLOOKUP($A46&$B46,NTG!$A$8:$W$106,18+E$3,FALSE),$A46&\"_\"&E$3,\"\")","v":""},{"$f":"IF(VLOOKUP($A46&$B46,NTG!$A$8:$W$106,18+F$3,FALSE),$A46&\"_\"&F$3,\"\")","v":""},{"$f":"IF(VLOOKUP($A46&$B46,NTG!$A$8:$W$106,18+G$3,FALSE),$A46&\"_\"&G$3,\"\")","v":"NonRes-sAll-mLtg-ci_5"},43,"","NonRes-sAll-mLtg-ciDEER2019",null,"EUC-Default_4","EUC-DefaultDEER2016"]
["NonRes-sAll-mLtgCtrl","DEER2014",{"$f":"IF(VLOOKUP($A47&$B47,NTG!$A$8:$W$106,18+C$3,FALSE),$A47&\"_\"&C$3,\"\")","v":"NonRes-sAll-mLtgCtrl_1"},{"$f":"IF(VLOOKUP($A47&$B47,NTG!$A$8:$W$106,18+D$3,FALSE),$A47&\"_\"&D$3,\"\")","v":"NonRes-sAll-mLtgCtrl_2"},{"$f":"IF(VLOOKUP($A47&$B47,NTG!$A$8:$W$106,18+E$3,FALSE),$A47&\"_\"&E$3,\"\")","v":"NonRes-sAll-mLtgCtrl_3"},{"$f":"IF(VLOOKUP($A47&$B47,NTG!$A$8:$W$106,18+F$3,FALSE),$A47&\"_\"&F$3,\"\")","v":"NonRes-sAll-mLtgCtrl_4"},{"$f":"IF(VLOOKUP($A47&$B47,NTG!$A$8:$W$106,18+G$3,FALSE),$A47&\"_\"&G$3,\"\")","v":"NonRes-sAll-mLtgCtrl_5"},44,"NonRes-sAll-mLtgCtrl_1","NonRes-sAll-mLtgCtrlDEER2014",null,"EUC-Default_5","EUC-DefaultDEER2016"]
["NonRes-sAll-mLtgCtrl-htr","DEER2014",{"$f":"IF(VLOOKUP($A48&$B48,NTG!$A$8:$W$106,18+C$3,FALSE),$A48&\"_\"&C$3,\"\")","v":"NonRes-sAll-mLtgCtrl-htr_1"},{"$f":"IF(VLOOKUP($A48&$B48,NTG!$A$8:$W$106,18+D$3,FALSE),$A48&\"_\"&D$3,\"\")","v":"NonRes-sAll-mLtgCtrl-htr_2"},{"$f":"IF(VLOOKUP($A48&$B48,NTG!$A$8:$W$106,18+E$3,FALSE),$A48&\"_\"&E$3,\"\")","v":"NonRes-sAll-mLtgCtrl-htr_3"},{"$f":"IF(VLOOKUP($A48&$B48,NTG!$A$8:$W$106,18+F$3,FALSE),$A48&\"_\"&F$3,\"\")","v":"NonRes-sAll-mLtgCtrl-htr_4"},{"$f":"IF(VLOOKUP($A48&$B48,NTG!$A$8:$W$106,18+G$3,FALSE),$A48&\"_\"&G$3,\"\")","v":"NonRes-sAll-mLtgCtrl-htr_5"},45,"NonRes-sAll-mLtgCtrl-htr_1","NonRes-sAll-mLtgCtrl-htrDEER2014",null,"Ind-Default>2yrs_1","Ind-Default>2yrsDEER2014"]
["NonRes-sAll-MLtgLED-Deemed","DEER2016",{"$f":"IF(VLOOKUP($A49&$B49,NTG!$A$8:$W$106,18+C$3,FALSE),$A49&\"_\"&C$3,\"\")","v":"NonRes-sAll-MLtgLED-Deemed_1"},{"$f":"IF(VLOOKUP($A49&$B49,NTG!$A$8:$W$106,18+D$3,FALSE),$A49&\"_\"&D$3,\"\")","v":"NonRes-sAll-MLtgLED-Deemed_2"},{"$f":"IF(VLOOKUP($A49&$B49,NTG!$A$8:$W$106,18+E$3,FALSE),$A49&\"_\"&E$3,\"\")","v":"NonRes-sAll-MLtgLED-Deemed_3"},{"$f":"IF(VLOOKUP($A49&$B49,NTG!$A$8:$W$106,18+F$3,FALSE),$A49&\"_\"&F$3,\"\")","v":""},{"$f":"IF(VLOOKUP($A49&$B49,NTG!$A$8:$W$106,18+G$3,FALSE),$A49&\"_\"&G$3,\"\")","v":""},46,"NonRes-sAll-MLtgLED-Deemed_1","NonRes-sAll-MLtgLED-DeemedDEER2016",null,"Ind-Default>2yrs_2","Ind-Default>2yrsDEER2014"]
["NonRes-sAll-mOccSens","DEER2014",{"$f":"IF(VLOOKUP($A50&$B50,NTG!$A$8:$W$106,18+C$3,FALSE),$A50&\"_\"&C$3,\"\")","v":"NonRes-sAll-mOccSens_1"},{"$f":"IF(VLOOKUP($A50&$B50,NTG!$A$8:$W$106,18+D$3,FALSE),$A50&\"_\"&D$3,\"\")","v":"NonRes-sAll-mOccSens_2"},{"$f":"IF(VLOOKUP($A50&$B50,NTG!$A$8:$W$106,18+E$3,FALSE),$A50&\"_\"&E$3,\"\")","v":"NonRes-sAll-mOccSens_3"},{"$f":"IF(VLOOKUP($A50&$B50,NTG!$A$8:$W$106,18+F$3,FALSE),$A50&\"_\"&F$3,\"\")","v":"NonRes-sAll-mOccSens_4"},{"$f":"IF(VLOOKUP($A50&$B50,NTG!$A$8:$W$106,18+G$3,FALSE),$A50&\"_\"&G$3,\"\")","v":"NonRes-sAll-mOccSens_5"},47,"NonRes-sAll-mOccSens_1","NonRes-sAll-mOccSensDEER2014",null,"Ind-Default>2yrs_3","Ind-Default>2yrsDEER2014"]
["NonRes-sAll-mPipeIns","DEER2014",{"$f":"IF(VLOOKUP($A51&$B51,NTG!$A$8:$W$106,18+C$3,FALSE),$A51&\"_\"&C$3,\"\")","v":"NonRes-sAll-mPipeIns_1"},{"$f":"IF(VLOOKUP($A51&$B51,NTG!$A$8:$W$106,18+D$3,FALSE),$A51&\"_\"&D$3,\"\")","v":""},{"$f":"IF(VLOOKUP($A51&$B51,NTG!$A$8:$W$106,18+E$3,FALSE),$A51&\"_\"&E$3,\"\")","v":""},{"$f":"IF(VLOOKUP($A51&$B51,NTG!$A$8:$W$106,18+F$3,FALSE),$A51&\"_\"&F$3,\"\")","v":""},{"$f":"IF(VLOOKUP($A51&$B51,NTG!$A$8:$W$106,18+G$3,FALSE),$A51&\"_\"&G$3,\"\")","v":""},48,"NonRes-sAll-mPipeIns_1","NonRes-sAll-mPipeInsDEER2014",null,"Ind-Default>2yrs_4","Ind-Default>2yrsDEER2014"]
["NonRes-sAll-mPipeIns-ci","DEER2016",{"$f":"IF(VLOOKUP($A52&$B52,NTG!$A$8:$W$106,18+C$3,FALSE),$A52&\"_\"&C$3,\"\")","v":""},{"$f":"IF(VLOOKUP($A52&$B52,NTG!$A$8:$W$106,18+D$3,FALSE),$A52&\"_\"&D$3,\"\")","v":"NonRes-sAll-mPipeIns-ci_2"},{"$f":"IF(VLOOKUP($A52&$B52,NTG!$A$8:$W$106,18+E$3,FALSE),$A52&\"_\"&E$3,\"\")","v":"NonRes-sAll-mPipeIns-ci_3"},{"$f":"IF(VLOOKUP($A52&$B52,NTG!$A$8:$W$106,18+F$3,FALSE),$A52&\"_\"&F$3,\"\")","v":"NonRes-sAll-mPipeIns-ci_4"},{"$f":"IF(VLOOKUP($A52&$B52,NTG!$A$8:$W$106,18+G$3,FALSE),$A52&\"_\"&G$3,\"\")","v":""},49,"","NonRes-sAll-mPipeIns-ciDEER2016",null,"Ind-Default>2yrs_5","Ind-Default>2yrsDEER2014"]
["NonRes-sAll-mPipeIns-ci","DEER2019",{"$f":"IF(VLOOKUP($A53&$B53,NTG!$A$8:$W$106,18+C$3,FALSE),$A53&\"_\"&C$3,\"\")","v":""},{"$f":"IF(VLOOKUP($A53&$B53,NTG!$A$8:$W$106,18+D$3,FALSE),$A53&\"_\"&D$3,\"\")","v":""},{"$f":"IF(VLOOKUP($A53&$B53,NTG!$A$8:$W$106,18+E$3,FALSE),$A53&\"_\"&E$3,\"\")","v":""},{"$f":"IF(VLOOKUP($A53&$B53,NTG!$A$8:$W$106,18+F$3,FALSE),$A53&\"_\"&F$3,\"\")","v":""},{"$f":"IF(VLOOKUP($A53&$B53,NTG!$A$8:$W$106,18+G$3,FALSE),$A53&\"_\"&G$3,\"\")","v":"NonRes-sAll-mPipeIns-ci_5"},50,"","NonRes-sAll-mPipeIns-ciDEER2019",null,"Ind-Default-HTR-di_1","Ind-Default-HTR-diDEER2014"]
["NonRes-sAll-mPipeIns-deemed","DEER2016",{"$f":"IF(VLOOKUP($A54&$B54,NTG!$A$8:$W$106,18+C$3,FALSE),$A54&\"_\"&C$3,\"\")","v":""},{"$f":"IF(VLOOKUP($A54&$B54,NTG!$A$8:$W$106,18+D$3,FALSE),$A54&\"_\"&D$3,\"\")","v":"NonRes-sAll-mPipeIns-deemed_2"},{"$f":"IF(VLOOKUP($A54&$B54,NTG!$A$8:$W$106,18+E$3,FALSE),$A54&\"_\"&E$3,\"\")","v":"NonRes-sAll-mPipeIns-deemed_3"},{"$f":"IF(VLOOKUP($A54&$B54,NTG!$A$8:$W$106,18+F$3,FALSE),$A54&\"_\"&F$3,\"\")","v":"NonRes-sAll-mPipeIns-deemed_4"},{"$f":"IF(VLOOKUP($A54&$B54,NTG!$A$8:$W$106,18+G$3,FALSE),$A54&\"_\"&G$3,\"\")","v":""},51,"","NonRes-sAll-mPipeIns-deemedDEER2016",null,"Ind-Default-HTR-di_2","Ind-Default-HTR-diDEER2014"]
["NonRes-sAll-mPipeIns-deemed","DEER2019",{"$f":"IF(VLOOKUP($A55&$B55,NTG!$A$8:$W$106,18+C$3,FALSE),$A55&\"_\"&C$3,\"\")","v":""},{"$f":"IF(VLOOKUP($A55&$B55,NTG!$A$8:$W$106,18+D$3,FALSE),$A55&\"_\"&D$3,\"\")","v":""},{"$f":"IF(VLOOKUP($A55&$B55,NTG!$A$8:$W$106,18+E$3,FALSE),$A55&\"_\"&E$3,\"\")","v":""},{"$f":"IF(VLOOKUP($A55&$B55,NTG!$A$8:$W$106,18+F$3,FALSE),$A55&\"_\"&F$3,\"\")","v":""},{"$f":"IF(VLOOKUP($A55&$B55,NTG!$A$8:$W$106,18+G$3,FALSE),$A55&\"_\"&G$3,\"\")","v":"NonRes-sAll-mPipeIns-deemed_5"},52,"","NonRes-sAll-mPipeIns-deemedDEER2019",null,"Ind-Default-HTR-di_3","Ind-Default-HTR-diDEER2014"]
["NonRes-sAll-mPmpTst","DEER2014",{"$f":"IF(VLOOKUP($A56&$B56,NTG!$A$8:$W$106,18+C$3,FALSE),$A56&\"_\"&C$3,\"\")","v":"NonRes-sAll-mPmpTst_1"},{"$f":"IF(VLOOKUP($A56&$B56,NTG!$A$8:$W$106,18+D$3,FALSE),$A56&\"_\"&D$3,\"\")","v":""},{"$f":"IF(VLOOKUP($A56&$B56,NTG!$A$8:$W$106,18+E$3,FALSE),$A56&\"_\"&E$3,\"\")","v":""},{"$f":"IF(VLOOKUP($A56&$B56,NTG!$A$8:$W$106,18+F$3,FALSE),$A56&\"_\"&F$3,\"\")","v":""},{"$f":"IF(VLOOKUP($A56&$B56,NTG!$A$8:$W$106,18+G$3,FALSE),$A56&\"_\"&G$3,\"\")","v":""},53,"NonRes-sAll-mPmpTst_1","NonRes-sAll-mPmpTstDEER2014",null,"Ind-Default-HTR-di_4","Ind-Default-HTR-diDEER2014"]
["NonRes-sAll-mPOC","DEER2014",{"$f":"IF(VLOOKUP($A57&$B57,NTG!$A$8:$W$106,18+C$3,FALSE),$A57&\"_\"&C$3,\"\")","v":"NonRes-sAll-mPOC_1"},{"$f":"IF(VLOOKUP($A57&$B57,NTG!$A$8:$W$106,18+D$3,FALSE),$A57&\"_\"&D$3,\"\")","v":"NonRes-sAll-mPOC_2"},{"$f":"IF(VLOOKUP($A57&$B57,NTG!$A$8:$W$106,18+E$3,FALSE),$A57&\"_\"&E$3,\"\")","v":"NonRes-sAll-mPOC_3"},{"$f":"IF(VLOOKUP($A57&$B57,NTG!$A$8:$W$106,18+F$3,FALSE),$A57&\"_\"&F$3,\"\")","v":"NonRes-sAll-mPOC_4"},{"$f":"IF(VLOOKUP($A57&$B57,NTG!$A$8:$W$106,18+G$3,FALSE),$A57&\"_\"&G$3,\"\")","v":"NonRes-sAll-mPOC_5"},54,"NonRes-sAll-mPOC_1","NonRes-sAll-mPOCDEER2014",null,"Ind-Default-HTR-di_5","Ind-Default-HTR-diDEER2014"]
["NonRes-sAll-mRCx-ci","DEER2014",{"$f":"IF(VLOOKUP($A58&$B58,NTG!$A$8:$W$106,18+C$3,FALSE),$A58&\"_\"&C$3,\"\")","v":"NonRes-sAll-mRCx-ci_1"},{"$f":"IF(VLOOKUP($A58&$B58,NTG!$A$8:$W$106,18+D$3,FALSE),$A58&\"_\"&D$3,\"\")","v":""},{"$f":"IF(VLOOKUP($A58&$B58,NTG!$A$8:$W$106,18+E$3,FALSE),$A58&\"_\"&E$3,\"\")","v":""},{"$f":"IF(VLOOKUP($A58&$B58,NTG!$A$8:$W$106,18+F$3,FALSE),$A58&\"_\"&F$3,\"\")","v":""},{"$f":"IF(VLOOKUP($A58&$B58,NTG!$A$8:$W$106,18+G$3,FALSE),$A58&\"_\"&G$3,\"\")","v":""},55,"NonRes-sAll-mRCx-ci_1","NonRes-sAll-mRCx-ciDEER2014",null,"K-12School-ComCollege_1","K-12School-ComCollegeDEER2015"]
["NonRes-sAll-mRCx-dn","DEER2014",{"$f":"IF(VLOOKUP($A59&$B59,NTG!$A$8:$W$106,18+C$3,FALSE),$A59&\"_\"&C$3,\"\")","v":"NonRes-sAll-mRCx-dn_1"},{"$f":"IF(VLOOKUP($A59&$B59,NTG!$A$8:$W$106,18+D$3,FALSE),$A59&\"_\"&D$3,\"\")","v":""},{"$f":"IF(VLOOKUP($A59&$B59,NTG!$A$8:$W$106,18+E$3,FALSE),$A59&\"_\"&E$3,\"\")","v":""},{"$f":"IF(VLOOKUP($A59&$B59,NTG!$A$8:$W$106,18+F$3,FALSE),$A59&\"_\"&F$3,\"\")","v":""},{"$f":"IF(VLOOKUP($A59&$B59,NTG!$A$8:$W$106,18+G$3,FALSE),$A59&\"_\"&G$3,\"\")","v":""},56,"NonRes-sAll-mRCx-dn_1","NonRes-sAll-mRCx-dnDEER2014",null,"K-12School-ComCollege_1","K-12School-ComCollegeDEER2015"]
["NonRes-sAll-mRfg-DG","DEER2014",{"$f":"IF(VLOOKUP($A60&$B60,NTG!$A$8:$W$106,18+C$3,FALSE),$A60&\"_\"&C$3,\"\")","v":"NonRes-sAll-mRfg-DG_1"},{"$f":"IF(VLOOKUP($A60&$B60,NTG!$A$8:$W$106,18+D$3,FALSE),$A60&\"_\"&D$3,\"\")","v":"NonRes-sAll-mRfg-DG_2"},{"$f":"IF(VLOOKUP($A60&$B60,NTG!$A$8:$W$106,18+E$3,FALSE),$A60&\"_\"&E$3,\"\")","v":"NonRes-sAll-mRfg-DG_3"},{"$f":"IF(VLOOKUP($A60&$B60,NTG!$A$8:$W$106,18+F$3,FALSE),$A60&\"_\"&F$3,\"\")","v":"NonRes-sAll-mRfg-DG_4"},{"$f":"IF(VLOOKUP($A60&$B60,NTG!$A$8:$W$106,18+G$3,FALSE),$A60&\"_\"&G$3,\"\")","v":"NonRes-sAll-mRfg-DG_5"},57,"NonRes-sAll-mRfg-DG_1","NonRes-sAll-mRfg-DGDEER2014",null,"K-12School-ComCollege_1","K-12School-ComCollegeDEER2015"]
["NonRes-sAll-mRfg-SC","DEER2014",{"$f":"IF(VLOOKUP($A61&$B61,NTG!$A$8:$W$106,18+C$3,FALSE),$A61&\"_\"&C$3,\"\")","v":"NonRes-sAll-mRfg-SC_1"},{"$f":"IF(VLOOKUP($A61&$B61,NTG!$A$8:$W$106,18+D$3,FALSE),$A61&\"_\"&D$3,\"\")","v":"NonRes-sAll-mRfg-SC_2"},{"$f":"IF(VLOOKUP($A61&$B61,NTG!$A$8:$W$106,18+E$3,FALSE),$A61&\"_\"&E$3,\"\")","v":"NonRes-sAll-mRfg-SC_3"},{"$f":"IF(VLOOKUP($A61&$B61,NTG!$A$8:$W$106,18+F$3,FALSE),$A61&\"_\"&F$3,\"\")","v":"NonRes-sAll-mRfg-SC_4"},{"$f":"IF(VLOOKUP($A61&$B61,NTG!$A$8:$W$106,18+G$3,FALSE),$A61&\"_\"&G$3,\"\")","v":"NonRes-sAll-mRfg-SC_5"},58,"NonRes-sAll-mRfg-SC_1","NonRes-sAll-mRfg-SCDEER2014",null,"K-12School-ComCollege_1","K-12School-ComCollegeDEER2015"]
["NonRes-sAll-mStmTrp-ci","DEER2014",{"$f":"IF(VLOOKUP($A62&$B62,NTG!$A$8:$W$106,18+C$3,FALSE),$A62&\"_\"&C$3,\"\")","v":"NonRes-sAll-mStmTrp-ci_1"},{"$f":"IF(VLOOKUP($A62&$B62,NTG!$A$8:$W$106,18+D$3,FALSE),$A62&\"_\"&D$3,\"\")","v":"NonRes-sAll-mStmTrp-ci_2"},{"$f":"IF(VLOOKUP($A62&$B62,NTG!$A$8:$W$106,18+E$3,FALSE),$A62&\"_\"&E$3,\"\")","v":"NonRes-sAll-mStmTrp-ci_3"},{"$f":"IF(VLOOKUP($A62&$B62,NTG!$A$8:$W$106,18+F$3,FALSE),$A62&\"_\"&F$3,\"\")","v":"NonRes-sAll-mStmTrp-ci_4"},{"$f":"IF(VLOOKUP($A62&$B62,NTG!$A$8:$W$106,18+G$3,FALSE),$A62&\"_\"&G$3,\"\")","v":"NonRes-sAll-mStmTrp-ci_5"},59,"NonRes-sAll-mStmTrp-ci_1","NonRes-sAll-mStmTrp-ciDEER2014",null,"K-12School-ComCollege_2","K-12School-ComCollegeDEER2015"]
["NonRes-sAll-mStmTrp-dn","DEER2014",{"$f":"IF(VLOOKUP($A63&$B63,NTG!$A$8:$W$106,18+C$3,FALSE),$A63&\"_\"&C$3,\"\")","v":"NonRes-sAll-mStmTrp-dn_1"},{"$f":"IF(VLOOKUP($A63&$B63,NTG!$A$8:$W$106,18+D$3,FALSE),$A63&\"_\"&D$3,\"\")","v":"NonRes-sAll-mStmTrp-dn_2"},{"$f":"IF(VLOOKUP($A63&$B63,NTG!$A$8:$W$106,18+E$3,FALSE),$A63&\"_\"&E$3,\"\")","v":"NonRes-sAll-mStmTrp-dn_3"},{"$f":"IF(VLOOKUP($A63&$B63,NTG!$A$8:$W$106,18+F$3,FALSE),$A63&\"_\"&F$3,\"\")","v":"NonRes-sAll-mStmTrp-dn_4"},{"$f":"IF(VLOOKUP($A63&$B63,NTG!$A$8:$W$106,18+G$3,FALSE),$A63&\"_\"&G$3,\"\")","v":"NonRes-sAll-mStmTrp-dn_5"},60,"NonRes-sAll-mStmTrp-dn_1","NonRes-sAll-mStmTrp-dnDEER2014",null,"K-12School-ComCollege_2","K-12School-ComCollegeDEER2015"]
["NonRes-sAll-mT5T8-ci","DEER2014",{"$f":"IF(VLOOKUP($A64&$B64,NTG!$A$8:$W$106,18+C$3,FALSE),$A64&\"_\"&C$3,\"\")","v":"NonRes-sAll-mT5T8-ci_1"},{"$f":"IF(VLOOKUP($A64&$B64,NTG!$A$8:$W$106,18+D$3,FALSE),$A64&\"_\"&D$3,\"\")","v":""},{"$f":"IF(VLOOKUP($A64&$B64,NTG!$A$8:$W$106,18+E$3,FALSE),$A64&\"_\"&E$3,\"\")","v":""},{"$f":"IF(VLOOKUP($A64&$B64,NTG!$A$8:$W$106,18+F$3,FALSE),$A64&\"_\"&F$3,\"\")","v":""},{"$f":"IF(VLOOKUP($A64&$B64,NTG!$A$8:$W$106,18+G$3,FALSE),$A64&\"_\"&G$3,\"\")","v":""},61,"NonRes-sAll-mT5T8-ci_1","NonRes-sAll-mT5T8-ciDEER2014",null,"K-12School-ComCollege_2","K-12School-ComCollegeDEER2015"]
["NonRes-sAll-mT5T8-dn","DEER2014",{"$f":"IF(VLOOKUP($A65&$B65,NTG!$A$8:$W$106,18+C$3,FALSE),$A65&\"_\"&C$3,\"\")","v":"NonRes-sAll-mT5T8-dn_1"},{"$f":"IF(VLOOKUP($A65&$B65,NTG!$A$8:$W$106,18+D$3,FALSE),$A65&\"_\"&D$3,\"\")","v":""},{"$f":"IF(VLOOKUP($A65&$B65,NTG!$A$8:$W$106,18+E$3,FALSE),$A65&\"_\"&E$3,\"\")","v":""},{"$f":"IF(VLOOKUP($A65&$B65,NTG!$A$8:$W$106,18+F$3,FALSE),$A65&\"_\"&F$3,\"\")","v":""},{"$f":"IF(VLOOKUP($A65&$B65,NTG!$A$8:$W$106,18+G$3,FALSE),$A65&\"_\"&G$3,\"\")","v":""},62,"NonRes-sAll-mT5T8-dn_1","NonRes-sAll-mT5T8-dnDEER2014",null,"K-12School-ComCollege_2","K-12School-ComCollegeDEER2015"]
["NonRes-sAll-mT8-dir","DEER2014",{"$f":"IF(VLOOKUP($A66&$B66,NTG!$A$8:$W$106,18+C$3,FALSE),$A66&\"_\"&C$3,\"\")","v":"NonRes-sAll-mT8-dir_1"},{"$f":"IF(VLOOKUP($A66&$B66,NTG!$A$8:$W$106,18+D$3,FALSE),$A66&\"_\"&D$3,\"\")","v":""},{"$f":"IF(VLOOKUP($A66&$B66,NTG!$A$8:$W$106,18+E$3,FALSE),$A66&\"_\"&E$3,\"\")","v":""},{"$f":"IF(VLOOKUP($A66&$B66,NTG!$A$8:$W$106,18+F$3,FALSE),$A66&\"_\"&F$3,\"\")","v":""},{"$f":"IF(VLOOKUP($A66&$B66,NTG!$A$8:$W$106,18+G$3,FALSE),$A66&\"_\"&G$3,\"\")","v":""},63,"NonRes-sAll-mT8-dir_1","NonRes-sAll-mT8-dirDEER2014",null,"K-12School-ComCollege_3","K-12School-ComCollegeDEER2015"]
["NonRes-sAll-NC","DEER2016",{"$f":"IF(VLOOKUP($A67&$B67,NTG!$A$8:$W$106,18+C$3,FALSE),$A67&\"_\"&C$3,\"\")","v":""},{"$f":"IF(VLOOKUP($A67&$B67,NTG!$A$8:$W$106,18+D$3,FALSE),$A67&\"_\"&D$3,\"\")","v":"NonRes-sAll-NC_2"},{"$f":"IF(VLOOKUP($A67&$B67,NTG!$A$8:$W$106,18+E$3,FALSE),$A67&\"_\"&E$3,\"\")","v":"NonRes-sAll-NC_3"},{"$f":"IF(VLOOKUP($A67&$B67,NTG!$A$8:$W$106,18+F$3,FALSE),$A67&\"_\"&F$3,\"\")","v":"NonRes-sAll-NC_4"},{"$f":"IF(VLOOKUP($A67&$B67,NTG!$A$8:$W$106,18+G$3,FALSE),$A67&\"_\"&G$3,\"\")","v":"NonRes-sAll-NC_5"},64,"","NonRes-sAll-NCDEER2016",null,"K-12School-ComCollege_3","K-12School-ComCollegeDEER2015"]
["NonRes-sGHS-mHtCrtn-ci","DEER2014",{"$f":"IF(VLOOKUP($A68&$B68,NTG!$A$8:$W$106,18+C$3,FALSE),$A68&\"_\"&C$3,\"\")","v":"NonRes-sGHS-mHtCrtn-ci_1"},{"$f":"IF(VLOOKUP($A68&$B68,NTG!$A$8:$W$106,18+D$3,FALSE),$A68&\"_\"&D$3,\"\")","v":"NonRes-sGHS-mHtCrtn-ci_2"},{"$f":"IF(VLOOKUP($A68&$B68,NTG!$A$8:$W$106,18+E$3,FALSE),$A68&\"_\"&E$3,\"\")","v":"NonRes-sGHS-mHtCrtn-ci_3"},{"$f":"IF(VLOOKUP($A68&$B68,NTG!$A$8:$W$106,18+F$3,FALSE),$A68&\"_\"&F$3,\"\")","v":"NonRes-sGHS-mHtCrtn-ci_4"},{"$f":"IF(VLOOKUP($A68&$B68,NTG!$A$8:$W$106,18+G$3,FALSE),$A68&\"_\"&G$3,\"\")","v":"NonRes-sGHS-mHtCrtn-ci_5"},65,"NonRes-sGHS-mHtCrtn-ci_1","NonRes-sGHS-mHtCrtn-ciDEER2014",null,"K-12School-ComCollege_3","K-12School-ComCollegeDEER2015"]
["NonRes-sGHS-mHtCrtn-dn","DEER2014",{"$f":"IF(VLOOKUP($A69&$B69,NTG!$A$8:$W$106,18+C$3,FALSE),$A69&\"_\"&C$3,\"\")","v":"NonRes-sGHS-mHtCrtn-dn_1"},{"$f":"IF(VLOOKUP($A69&$B69,NTG!$A$8:$W$106,18+D$3,FALSE),$A69&\"_\"&D$3,\"\")","v":"NonRes-sGHS-mHtCrtn-dn_2"},{"$f":"IF(VLOOKUP($A69&$B69,NTG!$A$8:$W$106,18+E$3,FALSE),$A69&\"_\"&E$3,\"\")","v":"NonRes-sGHS-mHtCrtn-dn_3"},{"$f":"IF(VLOOKUP($A69&$B69,NTG!$A$8:$W$106,18+F$3,FALSE),$A69&\"_\"&F$3,\"\")","v":"NonRes-sGHS-mHtCrtn-dn_4"},{"$f":"IF(VLOOKUP($A69&$B69,NTG!$A$8:$W$106,18+G$3,FALSE),$A69&\"_\"&G$3,\"\")","v":"NonRes-sGHS-mHtCrtn-dn_5"},66,{"$f":"+C69","v":"NonRes-sGHS-mHtCrtn-dn_1"},{"$f":"+A69&B69","v":"NonRes-sGHS-mHtCrtn-dnDEER2014"},null,"K-12School-ComCollege_3","K-12School-ComCollegeDEER2015"]
["NonRes-sGHS-mIRF-ci","DEER2014",{"$f":"IF(VLOOKUP($A70&$B70,NTG!$A$8:$W$106,18+C$3,FALSE),$A70&\"_\"&C$3,\"\")","v":"NonRes-sGHS-mIRF-ci_1"},{"$f":"IF(VLOOKUP($A70&$B70,NTG!$A$8:$W$106,18+D$3,FALSE),$A70&\"_\"&D$3,\"\")","v":"NonRes-sGHS-mIRF-ci_2"},{"$f":"IF(VLOOKUP($A70&$B70,NTG!$A$8:$W$106,18+E$3,FALSE),$A70&\"_\"&E$3,\"\")","v":"NonRes-sGHS-mIRF-ci_3"},{"$f":"IF(VLOOKUP($A70&$B70,NTG!$A$8:$W$106,18+F$3,FALSE),$A70&\"_\"&F$3,\"\")","v":"NonRes-sGHS-mIRF-ci_4"},{"$f":"IF(VLOOKUP($A70&$B70,NTG!$A$8:$W$106,18+G$3,FALSE),$A70&\"_\"&G$3,\"\")","v":"NonRes-sGHS-mIRF-ci_5"},{"$f":"+H69+1","v":67},"NonRes-sGHS-mIRF-ci_1","NonRes-sGHS-mIRF-ciDEER2014",null,"K-12School-ComCollege_4","K-12School-ComCollegeDEER2015"]
["NonRes-sGHS-mIRF-dn","DEER2014",{"$f":"IF(VLOOKUP($A71&$B71,NTG!$A$8:$W$106,18+C$3,FALSE),$A71&\"_\"&C$3,\"\")","v":"NonRes-sGHS-mIRF-dn_1"},{"$f":"IF(VLOOKUP($A71&$B71,NTG!$A$8:$W$106,18+D$3,FALSE),$A71&\"_\"&D$3,\"\")","v":"NonRes-sGHS-mIRF-dn_2"},{"$f":"IF(VLOOKUP($A71&$B71,NTG!$A$8:$W$106,18+E$3,FALSE),$A71&\"_\"&E$3,\"\")","v":"NonRes-sGHS-mIRF-dn_3"},{"$f":"IF(VLOOKUP($A71&$B71,NTG!$A$8:$W$106,18+F$3,FALSE),$A71&\"_\"&F$3,\"\")","v":"NonRes-sGHS-mIRF-dn_4"},{"$f":"IF(VLOOKUP($A71&$B71,NTG!$A$8:$W$106,18+G$3,FALSE),$A71&\"_\"&G$3,\"\")","v":"NonRes-sGHS-mIRF-dn_5"},68,"NonRes-sGHS-mIRF-dn_1","NonRes-sGHS-mIRF-dnDEER2014",null,"K-12School-ComCollege_4","K-12School-ComCollegeDEER2015"]
["Res-Default>2","DEER2014",{"$f":"IF(VLOOKUP($A72&$B72,NTG!$A$8:$W$106,18+C$3,FALSE),$A72&\"_\"&C$3,\"\")","v":"Res-Default>2_1"},{"$f":"IF(VLOOKUP($A72&$B72,NTG!$A$8:$W$106,18+D$3,FALSE),$A72&\"_\"&D$3,\"\")","v":"Res-Default>2_2"},{"$f":"IF(VLOOKUP($A72&$B72,NTG!$A$8:$W$106,18+E$3,FALSE),$A72&\"_\"&E$3,\"\")","v":"Res-Default>2_3"},{"$f":"IF(VLOOKUP($A72&$B72,NTG!$A$8:$W$106,18+F$3,FALSE),$A72&\"_\"&F$3,\"\")","v":"Res-Default>2_4"},{"$f":"IF(VLOOKUP($A72&$B72,NTG!$A$8:$W$106,18+G$3,FALSE),$A72&\"_\"&G$3,\"\")","v":"Res-Default>2_5"},69,"Res-Default>2_1","Res-Default>2DEER2014",null,"K-12School-ComCollege_4","K-12School-ComCollegeDEER2015"]
["Res-Default-HTR-di","DEER2014",{"$f":"IF(VLOOKUP($A73&$B73,NTG!$A$8:$W$106,18+C$3,FALSE),$A73&\"_\"&C$3,\"\")","v":"Res-Default-HTR-di_1"},{"$f":"IF(VLOOKUP($A73&$B73,NTG!$A$8:$W$106,18+D$3,FALSE),$A73&\"_\"&D$3,\"\")","v":"Res-Default-HTR-di_2"},{"$f":"IF(VLOOKUP($A73&$B73,NTG!$A$8:$W$106,18+E$3,FALSE),$A73&\"_\"&E$3,\"\")","v":"Res-Default-HTR-di_3"},{"$f":"IF(VLOOKUP($A73&$B73,NTG!$A$8:$W$106,18+F$3,FALSE),$A73&\"_\"&F$3,\"\")","v":"Res-Default-HTR-di_4"},{"$f":"IF(VLOOKUP($A73&$B73,NTG!$A$8:$W$106,18+G$3,FALSE),$A73&\"_\"&G$3,\"\")","v":"Res-Default-HTR-di_5"},70,"Res-Default-HTR-di_1","Res-Default-HTR-diDEER2014",null,"K-12School-ComCollege_4","K-12School-ComCollegeDEER2015"]
["Res-mDHWaerator","DEER2014",{"$f":"IF(VLOOKUP($A74&$B74,NTG!$A$8:$W$106,18+C$3,FALSE),$A74&\"_\"&C$3,\"\")","v":"Res-mDHWaerator_1"},{"$f":"IF(VLOOKUP($A74&$B74,NTG!$A$8:$W$106,18+D$3,FALSE),$A74&\"_\"&D$3,\"\")","v":"Res-mDHWaerator_2"},{"$f":"IF(VLOOKUP($A74&$B74,NTG!$A$8:$W$106,18+E$3,FALSE),$A74&\"_\"&E$3,\"\")","v":"Res-mDHWaerator_3"},{"$f":"IF(VLOOKUP($A74&$B74,NTG!$A$8:$W$106,18+F$3,FALSE),$A74&\"_\"&F$3,\"\")","v":"Res-mDHWaerator_4"},{"$f":"IF(VLOOKUP($A74&$B74,NTG!$A$8:$W$106,18+G$3,FALSE),$A74&\"_\"&G$3,\"\")","v":"Res-mDHWaerator_5"},71,"Res-mDHWaerator_1","Res-mDHWaeratorDEER2014",null,"K-12School-ComCollege_5","K-12School-ComCollegeDEER2015"]
["Res-mDHWaerator","DEER2014",{"$f":"IF(VLOOKUP($A75&$B75,NTG!$A$8:$W$106,18+C$3,FALSE),$A75&\"_\"&C$3,\"\")","v":"Res-mDHWaerator_1"},{"$f":"IF(VLOOKUP($A75&$B75,NTG!$A$8:$W$106,18+D$3,FALSE),$A75&\"_\"&D$3,\"\")","v":"Res-mDHWaerator_2"},{"$f":"IF(VLOOKUP($A75&$B75,NTG!$A$8:$W$106,18+E$3,FALSE),$A75&\"_\"&E$3,\"\")","v":"Res-mDHWaerator_3"},{"$f":"IF(VLOOKUP($A75&$B75,NTG!$A$8:$W$106,18+F$3,FALSE),$A75&\"_\"&F$3,\"\")","v":"Res-mDHWaerator_4"},{"$f":"IF(VLOOKUP($A75&$B75,NTG!$A$8:$W$106,18+G$3,FALSE),$A75&\"_\"&G$3,\"\")","v":"Res-mDHWaerator_5"},72,"Res-mDHWaerator_1","Res-mDHWaeratorDEER2014",null,"K-12School-ComCollege_5","K-12School-ComCollegeDEER2015"]
["Res-sAll-mCFL","ExAnte2017",{"$f":"IF(VLOOKUP($A76&$B76,NTG!$A$8:$W$106,18+C$3,FALSE),$A76&\"_\"&C$3,\"\")","v":""},{"$f":"IF(VLOOKUP($A76&$B76,NTG!$A$8:$W$106,18+D$3,FALSE),$A76&\"_\"&D$3,\"\")","v":""},{"$f":"IF(VLOOKUP($A76&$B76,NTG!$A$8:$W$106,18+E$3,FALSE),$A76&\"_\"&E$3,\"\")","v":""},{"$f":"IF(VLOOKUP($A76&$B76,NTG!$A$8:$W$106,18+F$3,FALSE),$A76&\"_\"&F$3,\"\")","v":"Res-sAll-mCFL_4"},{"$f":"IF(VLOOKUP($A76&$B76,NTG!$A$8:$W$106,18+G$3,FALSE),$A76&\"_\"&G$3,\"\")","v":"Res-sAll-mCFL_5"},73,"","Res-sAll-mCFLExAnte2017",null,"K-12School-ComCollege_5","K-12School-ComCollegeDEER2015"]
["Res-sAll-mCFLgt30w-up","DEER2015",{"$f":"IF(VLOOKUP($A77&$B77,NTG!$A$8:$W$106,18+C$3,FALSE),$A77&\"_\"&C$3,\"\")","v":"Res-sAll-mCFLgt30w-up_1"},{"$f":"IF(VLOOKUP($A77&$B77,NTG!$A$8:$W$106,18+D$3,FALSE),$A77&\"_\"&D$3,\"\")","v":""},{"$f":"IF(VLOOKUP($A77&$B77,NTG!$A$8:$W$106,18+E$3,FALSE),$A77&\"_\"&E$3,\"\")","v":""},{"$f":"IF(VLOOKUP($A77&$B77,NTG!$A$8:$W$106,18+F$3,FALSE),$A77&\"_\"&F$3,\"\")","v":""},{"$f":"IF(VLOOKUP($A77&$B77,NTG!$A$8:$W$106,18+G$3,FALSE),$A77&\"_\"&G$3,\"\")","v":""},74,"Res-sAll-mCFLgt30w-up_1","Res-sAll-mCFLgt30w-upDEER2015",null,"K-12School-ComCollege_5","K-12School-ComCollegeDEER2015"]
["Res-sAll-mCFLlte30w-up","DEER2015",{"$f":"IF(VLOOKUP($A78&$B78,NTG!$A$8:$W$106,18+C$3,FALSE),$A78&\"_\"&C$3,\"\")","v":"Res-sAll-mCFLlte30w-up_1"},{"$f":"IF(VLOOKUP($A78&$B78,NTG!$A$8:$W$106,18+D$3,FALSE),$A78&\"_\"&D$3,\"\")","v":""},{"$f":"IF(VLOOKUP($A78&$B78,NTG!$A$8:$W$106,18+E$3,FALSE),$A78&\"_\"&E$3,\"\")","v":""},{"$f":"IF(VLOOKUP($A78&$B78,NTG!$A$8:$W$106,18+F$3,FALSE),$A78&\"_\"&F$3,\"\")","v":""},{"$f":"IF(VLOOKUP($A78&$B78,NTG!$A$8:$W$106,18+G$3,FALSE),$A78&\"_\"&G$3,\"\")","v":""},75,"Res-sAll-mCFLlte30w-up_1","Res-sAll-mCFLlte30w-upDEER2015",null,"NonRes-sAg-mCust-ci_1","NonRes-sAg-mCust-ciDEER2014"]
["Res-sAll-mCFL-up","DEER2014",{"$f":"IF(VLOOKUP($A79&$B79,NTG!$A$8:$W$106,18+C$3,FALSE),$A79&\"_\"&C$3,\"\")","v":"Res-sAll-mCFL-up_1"},{"$f":"IF(VLOOKUP($A79&$B79,NTG!$A$8:$W$106,18+D$3,FALSE),$A79&\"_\"&D$3,\"\")","v":""},{"$f":"IF(VLOOKUP($A79&$B79,NTG!$A$8:$W$106,18+E$3,FALSE),$A79&\"_\"&E$3,\"\")","v":""},{"$f":"IF(VLOOKUP($A79&$B79,NTG!$A$8:$W$106,18+F$3,FALSE),$A79&\"_\"&F$3,\"\")","v":""},{"$f":"IF(VLOOKUP($A79&$B79,NTG!$A$8:$W$106,18+G$3,FALSE),$A79&\"_\"&G$3,\"\")","v":""},76,"Res-sAll-mCFL-up_1","Res-sAll-mCFL-upDEER2014",null,"NonRes-sAg-mCust-ci_2","NonRes-sAg-mCust-ciDEER2014"]
["Res-sAll-mCFL-up","DEER2016",{"$f":"IF(VLOOKUP($A80&$B80,NTG!$A$8:$W$106,18+C$3,FALSE),$A80&\"_\"&C$3,\"\")","v":"Res-sAll-mCFL-up_1"},{"$f":"IF(VLOOKUP($A80&$B80,NTG!$A$8:$W$106,18+D$3,FALSE),$A80&\"_\"&D$3,\"\")","v":"Res-sAll-mCFL-up_2"},{"$f":"IF(VLOOKUP($A80&$B80,NTG!$A$8:$W$106,18+E$3,FALSE),$A80&\"_\"&E$3,\"\")","v":"Res-sAll-mCFL-up_3"},{"$f":"IF(VLOOKUP($A80&$B80,NTG!$A$8:$W$106,18+F$3,FALSE),$A80&\"_\"&F$3,\"\")","v":""},{"$f":"IF(VLOOKUP($A80&$B80,NTG!$A$8:$W$106,18+G$3,FALSE),$A80&\"_\"&G$3,\"\")","v":""},77,"Res-sAll-mCFL-up_1","Res-sAll-mCFL-upDEER2016",null,"NonRes-sAg-mCust-ci_3","NonRes-sAg-mCust-ciDEER2014"]
["Res-sAll-mCW","DEER2014",{"$f":"IF(VLOOKUP($A81&$B81,NTG!$A$8:$W$106,18+C$3,FALSE),$A81&\"_\"&C$3,\"\")","v":"Res-sAll-mCW_1"},{"$f":"IF(VLOOKUP($A81&$B81,NTG!$A$8:$W$106,18+D$3,FALSE),$A81&\"_\"&D$3,\"\")","v":"Res-sAll-mCW_2"},{"$f":"IF(VLOOKUP($A81&$B81,NTG!$A$8:$W$106,18+E$3,FALSE),$A81&\"_\"&E$3,\"\")","v":"Res-sAll-mCW_3"},{"$f":"IF(VLOOKUP($A81&$B81,NTG!$A$8:$W$106,18+F$3,FALSE),$A81&\"_\"&F$3,\"\")","v":"Res-sAll-mCW_4"},{"$f":"IF(VLOOKUP($A81&$B81,NTG!$A$8:$W$106,18+G$3,FALSE),$A81&\"_\"&G$3,\"\")","v":"Res-sAll-mCW_5"},78,"Res-sAll-mCW_1","Res-sAll-mCWDEER2014",null,"NonRes-sAg-mCust-ci_4","NonRes-sAg-mCust-ciDEER2014"]
["Res-sAll-mDHWgt62","DEER2014",{"$f":"IF(VLOOKUP($A82&$B82,NTG!$A$8:$W$106,18+C$3,FALSE),$A82&\"_\"&C$3,\"\")","v":"Res-sAll-mDHWgt62_1"},{"$f":"IF(VLOOKUP($A82&$B82,NTG!$A$8:$W$106,18+D$3,FALSE),$A82&\"_\"&D$3,\"\")","v":"Res-sAll-mDHWgt62_2"},{"$f":"IF(VLOOKUP($A82&$B82,NTG!$A$8:$W$106,18+E$3,FALSE),$A82&\"_\"&E$3,\"\")","v":"Res-sAll-mDHWgt62_3"},{"$f":"IF(VLOOKUP($A82&$B82,NTG!$A$8:$W$106,18+F$3,FALSE),$A82&\"_\"&F$3,\"\")","v":"Res-sAll-mDHWgt62_4"},{"$f":"IF(VLOOKUP($A82&$B82,NTG!$A$8:$W$106,18+G$3,FALSE),$A82&\"_\"&G$3,\"\")","v":"Res-sAll-mDHWgt62_5"},79,"Res-sAll-mDHWgt62_1","Res-sAll-mDHWgt62DEER2014",null,"NonRes-sAg-mCust-ci_5","NonRes-sAg-mCust-ciDEER2014"]
["Res-sAll-mDHWshwr","DEER2014",{"$f":"IF(VLOOKUP($A83&$B83,NTG!$A$8:$W$106,18+C$3,FALSE),$A83&\"_\"&C$3,\"\")","v":"Res-sAll-mDHWshwr_1"},{"$f":"IF(VLOOKUP($A83&$B83,NTG!$A$8:$W$106,18+D$3,FALSE),$A83&\"_\"&D$3,\"\")","v":"Res-sAll-mDHWshwr_2"},{"$f":"IF(VLOOKUP($A83&$B83,NTG!$A$8:$W$106,18+E$3,FALSE),$A83&\"_\"&E$3,\"\")","v":"Res-sAll-mDHWshwr_3"},{"$f":"IF(VLOOKUP($A83&$B83,NTG!$A$8:$W$106,18+F$3,FALSE),$A83&\"_\"&F$3,\"\")","v":"Res-sAll-mDHWshwr_4"},{"$f":"IF(VLOOKUP($A83&$B83,NTG!$A$8:$W$106,18+G$3,FALSE),$A83&\"_\"&G$3,\"\")","v":"Res-sAll-mDHWshwr_5"},80,"Res-sAll-mDHWshwr_1","Res-sAll-mDHWshwrDEER2014",null,"NonRes-sAll-mCFL_1","NonRes-sAll-mCFLDEER2014"]
["Res-sAll-mDuctSeal","DEER2014",{"$f":"IF(VLOOKUP($A84&$B84,NTG!$A$8:$W$106,18+C$3,FALSE),$A84&\"_\"&C$3,\"\")","v":"Res-sAll-mDuctSeal_1"},{"$f":"IF(VLOOKUP($A84&$B84,NTG!$A$8:$W$106,18+D$3,FALSE),$A84&\"_\"&D$3,\"\")","v":"Res-sAll-mDuctSeal_2"},{"$f":"IF(VLOOKUP($A84&$B84,NTG!$A$8:$W$106,18+E$3,FALSE),$A84&\"_\"&E$3,\"\")","v":"Res-sAll-mDuctSeal_3"},{"$f":"IF(VLOOKUP($A84&$B84,NTG!$A$8:$W$106,18+F$3,FALSE),$A84&\"_\"&F$3,\"\")","v":"Res-sAll-mDuctSeal_4"},{"$f":"IF(VLOOKUP($A84&$B84,NTG!$A$8:$W$106,18+G$3,FALSE),$A84&\"_\"&G$3,\"\")","v":"Res-sAll-mDuctSeal_5"},81,"Res-sAll-mDuctSeal_1","Res-sAll-mDuctSealDEER2014",null,"NonRes-sAll-mCFL_2","NonRes-sAll-mCFLDEER2014"]
["Res-sAll-mELtg-DnStrmDeemed","DEER2019",{"$f":"IF(VLOOKUP($A85&$B85,NTG!$A$8:$W$106,18+C$3,FALSE),$A85&\"_\"&C$3,\"\")","v":""},{"$f":"IF(VLOOKUP($A85&$B85,NTG!$A$8:$W$106,18+D$3,FALSE),$A85&\"_\"&D$3,\"\")","v":""},{"$f":"IF(VLOOKUP($A85&$B85,NTG!$A$8:$W$106,18+E$3,FALSE),$A85&\"_\"&E$3,\"\")","v":""},{"$f":"IF(VLOOKUP($A85&$B85,NTG!$A$8:$W$106,18+F$3,FALSE),$A85&\"_\"&F$3,\"\")","v":""},{"$f":"IF(VLOOKUP($A85&$B85,NTG!$A$8:$W$106,18+G$3,FALSE),$A85&\"_\"&G$3,\"\")","v":"Res-sAll-mELtg-DnStrmDeemed_5"},82,"","Res-sAll-mELtg-DnStrmDeemedDEER2019",null,"NonRes-sAll-mCFL_3","NonRes-sAll-mCFLDEER2014"]
["Res-sAll-mFrzrRec","DEER2014",{"$f":"IF(VLOOKUP($A86&$B86,NTG!$A$8:$W$106,18+C$3,FALSE),$A86&\"_\"&C$3,\"\")","v":"Res-sAll-mFrzrRec_1"},{"$f":"IF(VLOOKUP($A86&$B86,NTG!$A$8:$W$106,18+D$3,FALSE),$A86&\"_\"&D$3,\"\")","v":""},{"$f":"IF(VLOOKUP($A86&$B86,NTG!$A$8:$W$106,18+E$3,FALSE),$A86&\"_\"&E$3,\"\")","v":""},{"$f":"IF(VLOOKUP($A86&$B86,NTG!$A$8:$W$106,18+F$3,FALSE),$A86&\"_\"&F$3,\"\")","v":""},{"$f":"IF(VLOOKUP($A86&$B86,NTG!$A$8:$W$106,18+G$3,FALSE),$A86&\"_\"&G$3,\"\")","v":""},83,"Res-sAll-mFrzrRec_1","Res-sAll-mFrzrRecDEER2014",null,"NonRes-sAll-mCFL_4","NonRes-sAll-mCFLExAnte2017"]
["Res-sAll-mFrzrRec","DEER2016",{"$f":"IF(VLOOKUP($A87&$B87,NTG!$A$8:$W$106,18+C$3,FALSE),$A87&\"_\"&C$3,\"\")","v":""},{"$f":"IF(VLOOKUP($A87&$B87,NTG!$A$8:$W$106,18+D$3,FALSE),$A87&\"_\"&D$3,\"\")","v":"Res-sAll-mFrzrRec_2"},{"$f":"IF(VLOOKUP($A87&$B87,NTG!$A$8:$W$106,18+E$3,FALSE),$A87&\"_\"&E$3,\"\")","v":"Res-sAll-mFrzrRec_3"},{"$f":"IF(VLOOKUP($A87&$B87,NTG!$A$8:$W$106,18+F$3,FALSE),$A87&\"_\"&F$3,\"\")","v":"Res-sAll-mFrzrRec_4"},{"$f":"IF(VLOOKUP($A87&$B87,NTG!$A$8:$W$106,18+G$3,FALSE),$A87&\"_\"&G$3,\"\")","v":"Res-sAll-mFrzrRec_5"},84,"","Res-sAll-mFrzrRecDEER2016",null,"NonRes-sAll-mCFL_5","NonRes-sAll-mCFLExAnte2017"]
["Res-sAll-mHVAC-DX-up","DEER2016",{"$f":"IF(VLOOKUP($A88&$B88,NTG!$A$8:$W$106,18+C$3,FALSE),$A88&\"_\"&C$3,\"\")","v":""},{"$f":"IF(VLOOKUP($A88&$B88,NTG!$A$8:$W$106,18+D$3,FALSE),$A88&\"_\"&D$3,\"\")","v":"Res-sAll-mHVAC-DX-up_2"},{"$f":"IF(VLOOKUP($A88&$B88,NTG!$A$8:$W$106,18+E$3,FALSE),$A88&\"_\"&E$3,\"\")","v":"Res-sAll-mHVAC-DX-up_3"},{"$f":"IF(VLOOKUP($A88&$B88,NTG!$A$8:$W$106,18+F$3,FALSE),$A88&\"_\"&F$3,\"\")","v":"Res-sAll-mHVAC-DX-up_4"},{"$f":"IF(VLOOKUP($A88&$B88,NTG!$A$8:$W$106,18+G$3,FALSE),$A88&\"_\"&G$3,\"\")","v":"Res-sAll-mHVAC-DX-up_5"},85,"","Res-sAll-mHVAC-DX-upDEER2016",null,"NonRes-sAll-mCFL-All_1","NonRes-sAll-mCFL-AllDEER2016"]
["Res-sAll-mHVAC-Pkg-dn","DEER2017",{"$f":"IF(VLOOKUP($A89&$B89,NTG!$A$8:$W$106,18+C$3,FALSE),$A89&\"_\"&C$3,\"\")","v":""},{"$f":"IF(VLOOKUP($A89&$B89,NTG!$A$8:$W$106,18+D$3,FALSE),$A89&\"_\"&D$3,\"\")","v":""},{"$f":"IF(VLOOKUP($A89&$B89,NTG!$A$8:$W$106,18+E$3,FALSE),$A89&\"_\"&E$3,\"\")","v":"Res-sAll-mHVAC-Pkg-dn_3"},{"$f":"IF(VLOOKUP($A89&$B89,NTG!$A$8:$W$106,18+F$3,FALSE),$A89&\"_\"&F$3,\"\")","v":"Res-sAll-mHVAC-Pkg-dn_4"},{"$f":"IF(VLOOKUP($A89&$B89,NTG!$A$8:$W$106,18+G$3,FALSE),$A89&\"_\"&G$3,\"\")","v":""},86,"","Res-sAll-mHVAC-Pkg-dnDEER2017",null,"NonRes-sAll-mCFL-All_2","NonRes-sAll-mCFL-AllDEER2016"]
["Res-sAll-mHVAC-Pkg-dn","DEER2019",{"$f":"IF(VLOOKUP($A90&$B90,NTG!$A$8:$W$106,18+C$3,FALSE),$A90&\"_\"&C$3,\"\")","v":""},{"$f":"IF(VLOOKUP($A90&$B90,NTG!$A$8:$W$106,18+D$3,FALSE),$A90&\"_\"&D$3,\"\")","v":""},{"$f":"IF(VLOOKUP($A90&$B90,NTG!$A$8:$W$106,18+E$3,FALSE),$A90&\"_\"&E$3,\"\")","v":""},{"$f":"IF(VLOOKUP($A90&$B90,NTG!$A$8:$W$106,18+F$3,FALSE),$A90&\"_\"&F$3,\"\")","v":""},{"$f":"IF(VLOOKUP($A90&$B90,NTG!$A$8:$W$106,18+G$3,FALSE),$A90&\"_\"&G$3,\"\")","v":"Res-sAll-mHVAC-Pkg-dn_5"},87,"","Res-sAll-mHVAC-Pkg-dnDEER2019",null,"NonRes-sAll-mCFL-All_3","NonRes-sAll-mCFL-AllDEER2016"]
["Res-sAll-mHVAC-RCA","DEER2014",{"$f":"IF(VLOOKUP($A91&$B91,NTG!$A$8:$W$106,18+C$3,FALSE),$A91&\"_\"&C$3,\"\")","v":"Res-sAll-mHVAC-RCA_1"},{"$f":"IF(VLOOKUP($A91&$B91,NTG!$A$8:$W$106,18+D$3,FALSE),$A91&\"_\"&D$3,\"\")","v":"Res-sAll-mHVAC-RCA_2"},{"$f":"IF(VLOOKUP($A91&$B91,NTG!$A$8:$W$106,18+E$3,FALSE),$A91&\"_\"&E$3,\"\")","v":"Res-sAll-mHVAC-RCA_3"},{"$f":"IF(VLOOKUP($A91&$B91,NTG!$A$8:$W$106,18+F$3,FALSE),$A91&\"_\"&F$3,\"\")","v":"Res-sAll-mHVAC-RCA_4"},{"$f":"IF(VLOOKUP($A91&$B91,NTG!$A$8:$W$106,18+G$3,FALSE),$A91&\"_\"&G$3,\"\")","v":"Res-sAll-mHVAC-RCA_5"},88,"Res-sAll-mHVAC-RCA_1","Res-sAll-mHVAC-RCADEER2014",null,"NonRes-sAll-mCFL-ci_1","NonRes-sAll-mCFL-ciDEER2014"]
["Res-sAll-mHVAC-RmAC-dn","DEER2014",{"$f":"IF(VLOOKUP($A92&$B92,NTG!$A$8:$W$106,18+C$3,FALSE),$A92&\"_\"&C$3,\"\")","v":"Res-sAll-mHVAC-RmAC-dn_1"},{"$f":"IF(VLOOKUP($A92&$B92,NTG!$A$8:$W$106,18+D$3,FALSE),$A92&\"_\"&D$3,\"\")","v":"Res-sAll-mHVAC-RmAC-dn_2"},{"$f":"IF(VLOOKUP($A92&$B92,NTG!$A$8:$W$106,18+E$3,FALSE),$A92&\"_\"&E$3,\"\")","v":"Res-sAll-mHVAC-RmAC-dn_3"},{"$f":"IF(VLOOKUP($A92&$B92,NTG!$A$8:$W$106,18+F$3,FALSE),$A92&\"_\"&F$3,\"\")","v":"Res-sAll-mHVAC-RmAC-dn_4"},{"$f":"IF(VLOOKUP($A92&$B92,NTG!$A$8:$W$106,18+G$3,FALSE),$A92&\"_\"&G$3,\"\")","v":"Res-sAll-mHVAC-RmAC-dn_5"},89,"Res-sAll-mHVAC-RmAC-dn_1","Res-sAll-mHVAC-RmAC-dnDEER2014",null,"NonRes-sAll-mCFL-dir_1","NonRes-sAll-mCFL-dirDEER2014"]
["Res-sAll-mLEDARefl","ExAnte2017",{"$f":"IF(VLOOKUP($A93&$B93,NTG!$A$8:$W$106,18+C$3,FALSE),$A93&\"_\"&C$3,\"\")","v":""},{"$f":"IF(VLOOKUP($A93&$B93,NTG!$A$8:$W$106,18+D$3,FALSE),$A93&\"_\"&D$3,\"\")","v":""},{"$f":"IF(VLOOKUP($A93&$B93,NTG!$A$8:$W$106,18+E$3,FALSE),$A93&\"_\"&E$3,\"\")","v":""},{"$f":"IF(VLOOKUP($A93&$B93,NTG!$A$8:$W$106,18+F$3,FALSE),$A93&\"_\"&F$3,\"\")","v":"Res-sAll-mLEDARefl_4"},{"$f":"IF(VLOOKUP($A93&$B93,NTG!$A$8:$W$106,18+G$3,FALSE),$A93&\"_\"&G$3,\"\")","v":"Res-sAll-mLEDARefl_5"},90,"","Res-sAll-mLEDAReflExAnte2017",null,"NonRes-sAll-mCFL-dn_1","NonRes-sAll-mCFL-dnDEER2014"]
["Res-sAll-mLEDSpcl","ExAnte2017",{"$f":"IF(VLOOKUP($A94&$B94,NTG!$A$8:$W$106,18+C$3,FALSE),$A94&\"_\"&C$3,\"\")","v":""},{"$f":"IF(VLOOKUP($A94&$B94,NTG!$A$8:$W$106,18+D$3,FALSE),$A94&\"_\"&D$3,\"\")","v":""},{"$f":"IF(VLOOKUP($A94&$B94,NTG!$A$8:$W$106,18+E$3,FALSE),$A94&\"_\"&E$3,\"\")","v":""},{"$f":"IF(VLOOKUP($A94&$B94,NTG!$A$8:$W$106,18+F$3,FALSE),$A94&\"_\"&F$3,\"\")","v":"Res-sAll-mLEDSpcl_4"},{"$f":"IF(VLOOKUP($A94&$B94,NTG!$A$8:$W$106,18+G$3,FALSE),$A94&\"_\"&G$3,\"\")","v":"Res-sAll-mLEDSpcl_5"},91,"","Res-sAll-mLEDSpclExAnte2017",null,"NonRes-sAll-mCust_1","NonRes-sAll-mCustDEER2014"]
["Res-sAll-MLtgLED-Deemed","DEER2016",{"$f":"IF(VLOOKUP($A95&$B95,NTG!$A$8:$W$106,18+C$3,FALSE),$A95&\"_\"&C$3,\"\")","v":"Res-sAll-MLtgLED-Deemed_1"},{"$f":"IF(VLOOKUP($A95&$B95,NTG!$A$8:$W$106,18+D$3,FALSE),$A95&\"_\"&D$3,\"\")","v":"Res-sAll-MLtgLED-Deemed_2"},{"$f":"IF(VLOOKUP($A95&$B95,NTG!$A$8:$W$106,18+E$3,FALSE),$A95&\"_\"&E$3,\"\")","v":"Res-sAll-MLtgLED-Deemed_3"},{"$f":"IF(VLOOKUP($A95&$B95,NTG!$A$8:$W$106,18+F$3,FALSE),$A95&\"_\"&F$3,\"\")","v":""},{"$f":"IF(VLOOKUP($A95&$B95,NTG!$A$8:$W$106,18+G$3,FALSE),$A95&\"_\"&G$3,\"\")","v":""},92,"Res-sAll-MLtgLED-Deemed_1","Res-sAll-MLtgLED-DeemedDEER2016",null,"NonRes-sAll-mCust_2","NonRes-sAll-mCustDEER2014"]
["Res-sAll-mRefgRec","DEER2014",{"$f":"IF(VLOOKUP($A96&$B96,NTG!$A$8:$W$106,18+C$3,FALSE),$A96&\"_\"&C$3,\"\")","v":"Res-sAll-mRefgRec_1"},{"$f":"IF(VLOOKUP($A96&$B96,NTG!$A$8:$W$106,18+D$3,FALSE),$A96&\"_\"&D$3,\"\")","v":""},{"$f":"IF(VLOOKUP($A96&$B96,NTG!$A$8:$W$106,18+E$3,FALSE),$A96&\"_\"&E$3,\"\")","v":""},{"$f":"IF(VLOOKUP($A96&$B96,NTG!$A$8:$W$106,18+F$3,FALSE),$A96&\"_\"&F$3,\"\")","v":""},{"$f":"IF(VLOOKUP($A96&$B96,NTG!$A$8:$W$106,18+G$3,FALSE),$A96&\"_\"&G$3,\"\")","v":""},93,"Res-sAll-mRefgRec_1","Res-sAll-mRefgRecDEER2014",null,"NonRes-sAll-mCust_3","NonRes-sAll-mCustDEER2014"]
["Res-sAll-mRefgRec","DEER2016",{"$f":"IF(VLOOKUP($A97&$B97,NTG!$A$8:$W$106,18+C$3,FALSE),$A97&\"_\"&C$3,\"\")","v":""},{"$f":"IF(VLOOKUP($A97&$B97,NTG!$A$8:$W$106,18+D$3,FALSE),$A97&\"_\"&D$3,\"\")","v":"Res-sAll-mRefgRec_2"},{"$f":"IF(VLOOKUP($A97&$B97,NTG!$A$8:$W$106,18+E$3,FALSE),$A97&\"_\"&E$3,\"\")","v":"Res-sAll-mRefgRec_3"},{"$f":"IF(VLOOKUP($A97&$B97,NTG!$A$8:$W$106,18+F$3,FALSE),$A97&\"_\"&F$3,\"\")","v":"Res-sAll-mRefgRec_4"},{"$f":"IF(VLOOKUP($A97&$B97,NTG!$A$8:$W$106,18+G$3,FALSE),$A97&\"_\"&G$3,\"\")","v":"Res-sAll-mRefgRec_5"},94,"","Res-sAll-mRefgRecDEER2016",null,"NonRes-sAll-mCust_4","NonRes-sAll-mCustDEER2014"]
["Res-sSF-mACgt14-dn","DEER2014",{"$f":"IF(VLOOKUP($A98&$B98,NTG!$A$8:$W$106,18+C$3,FALSE),$A98&\"_\"&C$3,\"\")","v":"Res-sSF-mACgt14-dn_1"},{"$f":"IF(VLOOKUP($A98&$B98,NTG!$A$8:$W$106,18+D$3,FALSE),$A98&\"_\"&D$3,\"\")","v":""},{"$f":"IF(VLOOKUP($A98&$B98,NTG!$A$8:$W$106,18+E$3,FALSE),$A98&\"_\"&E$3,\"\")","v":""},{"$f":"IF(VLOOKUP($A98&$B98,NTG!$A$8:$W$106,18+F$3,FALSE),$A98&\"_\"&F$3,\"\")","v":""},{"$f":"IF(VLOOKUP($A98&$B98,NTG!$A$8:$W$106,18+G$3,FALSE),$A98&\"_\"&G$3,\"\")","v":""},95,"Res-sSF-mACgt14-dn_1","Res-sSF-mACgt14-dnDEER2014",null,"NonRes-sAll-mCust_5","NonRes-sAll-mCustDEER2014"]
["Res-sSF-mACgt16-dn","DEER2014",{"$f":"IF(VLOOKUP($A99&$B99,NTG!$A$8:$W$106,18+C$3,FALSE),$A99&\"_\"&C$3,\"\")","v":"Res-sSF-mACgt16-dn_1"},{"$f":"IF(VLOOKUP($A99&$B99,NTG!$A$8:$W$106,18+D$3,FALSE),$A99&\"_\"&D$3,\"\")","v":""},{"$f":"IF(VLOOKUP($A99&$B99,NTG!$A$8:$W$106,18+E$3,FALSE),$A99&\"_\"&E$3,\"\")","v":""},{"$f":"IF(VLOOKUP($A99&$B99,NTG!$A$8:$W$106,18+F$3,FALSE),$A99&\"_\"&F$3,\"\")","v":""},{"$f":"IF(VLOOKUP($A99&$B99,NTG!$A$8:$W$106,18+G$3,FALSE),$A99&\"_\"&G$3,\"\")","v":""},96,"Res-sSF-mACgt16-dn_1","Res-sSF-mACgt16-dnDEER2014",null,"NonRes-sAll-mCust-Elec_1","NonRes-sAll-mCust-ElecDEER2014"]
["Res-sSF-mHPes","DEER2014",{"$f":"IF(VLOOKUP($A100&$B100,NTG!$A$8:$W$106,18+C$3,FALSE),$A100&\"_\"&C$3,\"\")","v":"Res-sSF-mHPes_1"},{"$f":"IF(VLOOKUP($A100&$B100,NTG!$A$8:$W$106,18+D$3,FALSE),$A100&\"_\"&D$3,\"\")","v":""},{"$f":"IF(VLOOKUP($A100&$B100,NTG!$A$8:$W$106,18+E$3,FALSE),$A100&\"_\"&E$3,\"\")","v":""},{"$f":"IF(VLOOKUP($A100&$B100,NTG!$A$8:$W$106,18+F$3,FALSE),$A100&\"_\"&F$3,\"\")","v":""},{"$f":"IF(VLOOKUP($A100&$B100,NTG!$A$8:$W$106,18+G$3,FALSE),$A100&\"_\"&G$3,\"\")","v":""},97,"Res-sSF-mHPes_1","Res-sSF-mHPesDEER2014",null,"NonRes-sAll-mCust-Elec_2","NonRes-sAll-mCust-ElecDEER2014"]
["Res-sSF-mShellIns","DEER2014",{"$f":"IF(VLOOKUP($A101&$B101,NTG!$A$8:$W$106,18+C$3,FALSE),$A101&\"_\"&C$3,\"\")","v":"Res-sSF-mShellIns_1"},{"$f":"IF(VLOOKUP($A101&$B101,NTG!$A$8:$W$106,18+D$3,FALSE),$A101&\"_\"&D$3,\"\")","v":"Res-sSF-mShellIns_2"},{"$f":"IF(VLOOKUP($A101&$B101,NTG!$A$8:$W$106,18+E$3,FALSE),$A101&\"_\"&E$3,\"\")","v":"Res-sSF-mShellIns_3"},{"$f":"IF(VLOOKUP($A101&$B101,NTG!$A$8:$W$106,18+F$3,FALSE),$A101&\"_\"&F$3,\"\")","v":"Res-sSF-mShellIns_4"},{"$f":"IF(VLOOKUP($A101&$B101,NTG!$A$8:$W$106,18+G$3,FALSE),$A101&\"_\"&G$3,\"\")","v":"Res-sSF-mShellIns_5"},98,"Res-sSF-mShellIns_1","Res-sSF-mShellInsDEER2014",null,"NonRes-sAll-mCust-Elec_3","NonRes-sAll-mCust-ElecDEER2014"]
["TV-UpStream","DEER2015",{"$f":"IF(VLOOKUP($A102&$B102,NTG!$A$8:$W$106,18+C$3,FALSE),$A102&\"_\"&C$3,\"\")","v":"TV-UpStream_1"},{"$f":"IF(VLOOKUP($A102&$B102,NTG!$A$8:$W$106,18+D$3,FALSE),$A102&\"_\"&D$3,\"\")","v":"TV-UpStream_2"},{"$f":"IF(VLOOKUP($A102&$B102,NTG!$A$8:$W$106,18+E$3,FALSE),$A102&\"_\"&E$3,\"\")","v":"TV-UpStream_3"},{"$f":"IF(VLOOKUP($A102&$B102,NTG!$A$8:$W$106,18+F$3,FALSE),$A102&\"_\"&F$3,\"\")","v":"TV-UpStream_4"},{"$f":"IF(VLOOKUP($A102&$B102,NTG!$A$8:$W$106,18+G$3,FALSE),$A102&\"_\"&G$3,\"\")","v":"TV-UpStream_5"},99,"TV-UpStream_1","TV-UpStreamDEER2015",null,"NonRes-sAll-mCust-Elec_4","NonRes-sAll-mCust-ElecDEER2014"]
[null,null,null,null,null,null,null,null,null,null,null,"NonRes-sAll-mCust-Elec_5","NonRes-sAll-mCust-ElecDEER2014"]
[null,null,null,null,null,null,null,1,{"$f":"+D4","v":"Agric-Default>2yrs_2"},{"$f":"+A4&B4","v":"Agric-Default>2yrsDEER2014"},null,"NonRes-sAll-mCustElec-bd_1","NonRes-sAll-mCustElec-bdDEER2014"]
[null,null,null,null,null,null,null,{"$f":"+H104+1","v":2},{"$f":"+D5","v":"Agric-Sprklr-All_2"},{"$f":"+A5&B5","v":"Agric-Sprklr-AllDEER2016"},null,"NonRes-sAll-mCust-Gas_1","NonRes-sAll-mCust-GasDEER2014"]
[null,null,null,null,null,null,null,{"$f":"+H105+1","v":3},"","Agric-Sprklr-AllDEER2019",null,"NonRes-sAll-mCust-Gas_2","NonRes-sAll-mCust-GasDEER2014"]
[null,null,null,null,null,null,null,4,"Agricult-Default-HTR-di_2","Agricult-Default-HTR-diDEER2014",null,"NonRes-sAll-mCust-Gas_3","NonRes-sAll-mCust-GasDEER2014"]
[null,null,null,null,null,null,null,5,"All-Default<=2yrs_2","All-Default<=2yrsDEER2014",null,"NonRes-sAll-mCust-Gas_4","NonRes-sAll-mCust-GasDEER2014"]
[null,null,null,null,null,null,null,6,"Com-Default>2yrs_2","Com-Default>2yrsDEER2014",null,"NonRes-sAll-mCust-Gas_5","NonRes-sAll-mCust-GasDEER2014"]
[null,null,null,null,null,null,null,7,"Com-Default-HTR-di_2","Com-Default-HTR-diDEER2014",null,"NonRes-sAll-mELtg-DnStrmDeemed_5","NonRes-sAll-mELtg-DnStrmDeemedDEER2019"]
[null,null,null,null,null,null,null,8,"ConstrainedAreaProgram_2","ConstrainedAreaProgramDEER2015",null,"NonRes-sAll-mHVAC-Chiller_1","NonRes-sAll-mHVAC-ChillerDEER2014"]
[null,null,null,null,null,null,null,9,"ET-Default_2","ET-DefaultDEER2014",null,"NonRes-sAll-mHVAC-Chiller_2","NonRes-sAll-mHVAC-ChillerDEER2014"]
[null,null,null,null,null,null,null,10,"","EUC-DefaultDEER2014",null,"NonRes-sAll-mHVAC-Chiller_3","NonRes-sAll-mHVAC-ChillerDEER2014"]
[null,null,null,null,null,null,null,11,"EUC-Default_2","EUC-DefaultDEER2016",null,"NonRes-sAll-mHVAC-Chiller_4","NonRes-sAll-mHVAC-ChillerDEER2014"]
[null,null,null,null,null,null,null,12,"Ind-Default>2yrs_2","Ind-Default>2yrsDEER2014",null,"NonRes-sAll-mHVAC-Chiller_5","NonRes-sAll-mHVAC-ChillerDEER2014"]
[null,null,null,null,null,null,null,13,"Ind-Default-HTR-di_2","Ind-Default-HTR-diDEER2014",null,"NonRes-sAll-mHVAC-DX-up_1","NonRes-sAll-mHVAC-DX-upDEER2014"]
[null,null,null,null,null,null,null,14,"K-12School-ComCollege_2","K-12School-ComCollegeDEER2015",null,"NonRes-sAll-mHVAC-DX-up_2","NonRes-sAll-mHVAC-DX-upDEER2016"]
[null,null,null,null,null,null,null,15,"K-12School-ComCollege_2","K-12School-ComCollegeDEER2015",null,"NonRes-sAll-mHVAC-DX-up_3","NonRes-sAll-mHVAC-DX-upDEER2016"]
[null,null,null,null,null,null,null,16,"K-12School-ComCollege_2","K-12School-ComCollegeDEER2015",null,"NonRes-sAll-mHVAC-DX-up_4","NonRes-sAll-mHVAC-DX-upDEER2016"]
[null,null,null,null,null,null,null,17,"K-12School-ComCollege_2","K-12School-ComCollegeDEER2015",null,"NonRes-sAll-mHVAC-DX-up_5","NonRes-sAll-mHVAC-DX-upDEER2016"]
[null,null,null,null,null,null,null,18,"NonRes-sAg-mCust-ci_2","NonRes-sAg-mCust-ciDEER2014",null,"NonRes-sAll-mHVAC-Pkg_3","NonRes-sAll-mHVAC-PkgDEER2017"]
[null,null,null,null,null,null,null,19,"NonRes-sAll-mCFL_2","NonRes-sAll-mCFLDEER2014",null,"NonRes-sAll-mHVAC-Pkg_4","NonRes-sAll-mHVAC-PkgDEER2017"]
[null,null,null,null,null,null,null,20,"","NonRes-sAll-mCFLExAnte2017",null,"NonRes-sAll-mHVAC-Pkg_5","NonRes-sAll-mHVAC-PkgDEER2019"]
[null,null,null,null,null,null,null,21,"NonRes-sAll-mCFL-All_2","NonRes-sAll-mCFL-AllDEER2016",null,"NonRes-sAll-mHVAC-RCA_1","NonRes-sAll-mHVAC-RCADEER2014"]
[null,null,null,null,null,null,null,22,"","NonRes-sAll-mCFL-ciDEER2014",null,"NonRes-sAll-mHVAC-RCA_2","NonRes-sAll-mHVAC-RCADEER2014"]
[null,null,null,null,null,null,null,23,"","NonRes-sAll-mCFL-dirDEER2014",null,"NonRes-sAll-mHVAC-RCA_3","NonRes-sAll-mHVAC-RCADEER2014"]
[null,null,null,null,null,null,null,24,"","NonRes-sAll-mCFL-dnDEER2014",null,"NonRes-sAll-mHVAC-RCA_4","NonRes-sAll-mHVAC-RCADEER2014"]
[null,null,null,null,null,null,null,25,"NonRes-sAll-mCust_2","NonRes-sAll-mCustDEER2014",null,"NonRes-sAll-mHVAC-RCA_5","NonRes-sAll-mHVAC-RCADEER2014"]
[null,null,null,null,null,null,null,26,"NonRes-sAll-mCust-Elec_2","NonRes-sAll-mCust-ElecDEER2014",null,"NonRes-sAll-mLEDARefl_4","NonRes-sAll-mLEDAReflExAnte2017"]
[null,null,null,null,null,null,null,27,"","NonRes-sAll-mCustElec-bdDEER2014",null,"NonRes-sAll-mLEDARefl_5","NonRes-sAll-mLEDAReflExAnte2017"]
[null,null,null,null,null,null,null,28,"NonRes-sAll-mCust-Gas_2","NonRes-sAll-mCust-GasDEER2014",null,"NonRes-sAll-mLEDSpcl_4","NonRes-sAll-mLEDSpclExAnte2017"]
[null,null,null,null,null,null,null,29,"","NonRes-sAll-mELtg-DnStrmDeemedDEER2019",null,"NonRes-sAll-mLEDSpcl_5","NonRes-sAll-mLEDSpclExAnte2017"]
[null,null,null,null,null,null,null,30,"NonRes-sAll-mHVAC-Chiller_2","NonRes-sAll-mHVAC-ChillerDEER2014",null,"NonRes-sAll-mLFDL-Deemed_2","NonRes-sAll-mLFDL-DeemedDEER2016"]
[null,null,null,null,null,null,null,31,"","NonRes-sAll-mHVAC-DX-upDEER2014",null,"NonRes-sAll-mLFDL-Deemed_3","NonRes-sAll-mLFDL-DeemedDEER2016"]
[null,null,null,null,null,null,null,32,"NonRes-sAll-mHVAC-DX-up_2","NonRes-sAll-mHVAC-DX-upDEER2016",null,"NonRes-sAll-mLFDL-Deemed_4","NonRes-sAll-mLFDL-DeemedDEER2016"]
[null,null,null,null,null,null,null,33,"","NonRes-sAll-mHVAC-PkgDEER2017",null,"NonRes-sAll-mLFDL-Deemed_5","NonRes-sAll-mLFDL-DeemedDEER2016"]
[null,null,null,null,null,null,null,34,"","NonRes-sAll-mHVAC-PkgDEER2019",null,"NonRes-sAll-mLFHB-Deemed_2","NonRes-sAll-mLFHB-DeemedDEER2016"]
[null,null,null,null,null,null,null,35,"NonRes-sAll-mHVAC-RCA_2","NonRes-sAll-mHVAC-RCADEER2014",null,"NonRes-sAll-mLFHB-Deemed_3","NonRes-sAll-mLFHB-DeemedDEER2016"]
[null,null,null,null,null,null,null,36,"","NonRes-sAll-mLEDAReflExAnte2017",null,"NonRes-sAll-mLFHB-Deemed_4","NonRes-sAll-mLFHB-DeemedDEER2016"]
[null,null,null,null,null,null,null,37,"","NonRes-sAll-mLEDSpclExAnte2017",null,"NonRes-sAll-mLFHB-Deemed_5","NonRes-sAll-mLFHB-DeemedDEER2016"]
[null,null,null,null,null,null,null,38,"NonRes-sAll-mLFDL-Deemed_2","NonRes-sAll-mLFDL-DeemedDEER2016",null,"NonRes-sAll-mLFHBT5-Deemed_2","NonRes-sAll-mLFHBT5-DeemedDEER2016"]
[null,null,null,null,null,null,null,39,"NonRes-sAll-mLFHB-Deemed_2","NonRes-sAll-mLFHB-DeemedDEER2016",null,"NonRes-sAll-mLFHBT5-Deemed_3","NonRes-sAll-mLFHBT5-DeemedDEER2016"]
[null,null,null,null,null,null,null,40,"NonRes-sAll-mLFHBT5-Deemed_2","NonRes-sAll-mLFHBT5-DeemedDEER2016",null,"NonRes-sAll-mLFHBT5-Deemed_4","NonRes-sAll-mLFHBT5-DeemedDEER2016"]
[null,null,null,null,null,null,null,41,"NonRes-sAll-mLFOth-Deemed_2","NonRes-sAll-mLFOth-DeemedDEER2016",null,"NonRes-sAll-mLFHBT5-Deemed_5","NonRes-sAll-mLFHBT5-DeemedDEER2016"]
[null,null,null,null,null,null,null,42,"NonRes-sAll-mLtg-ci_2","NonRes-sAll-mLtg-ciDEER2016",null,"NonRes-sAll-mLFOth-Deemed_2","NonRes-sAll-mLFOth-DeemedDEER2016"]
[null,null,null,null,null,null,null,43,"","NonRes-sAll-mLtg-ciDEER2019",null,"NonRes-sAll-mLFOth-Deemed_3","NonRes-sAll-mLFOth-DeemedDEER2016"]
[null,null,null,null,null,null,null,44,"NonRes-sAll-mLtgCtrl_2","NonRes-sAll-mLtgCtrlDEER2014",null,"NonRes-sAll-mLFOth-Deemed_4","NonRes-sAll-mLFOth-DeemedDEER2016"]
[null,null,null,null,null,null,null,45,"NonRes-sAll-mLtgCtrl-htr_2","NonRes-sAll-mLtgCtrl-htrDEER2014",null,"NonRes-sAll-mLFOth-Deemed_5","NonRes-sAll-mLFOth-DeemedDEER2016"]
[null,null,null,null,null,null,null,46,"NonRes-sAll-MLtgLED-Deemed_2","NonRes-sAll-MLtgLED-DeemedDEER2016",null,"NonRes-sAll-mLtg-ci_2","NonRes-sAll-mLtg-ciDEER2016"]
[null,null,null,null,null,null,null,47,"NonRes-sAll-mOccSens_2","NonRes-sAll-mOccSensDEER2014",null,"NonRes-sAll-mLtg-ci_3","NonRes-sAll-mLtg-ciDEER2016"]
[null,null,null,null,null,null,null,48,"","NonRes-sAll-mPipeInsDEER2014",null,"NonRes-sAll-mLtg-ci_4","NonRes-sAll-mLtg-ciDEER2016"]
[null,null,null,null,null,null,null,49,"NonRes-sAll-mPipeIns-ci_2","NonRes-sAll-mPipeIns-ciDEER2016",null,"NonRes-sAll-mLtg-ci_5","NonRes-sAll-mLtg-ciDEER2019"]
[null,null,null,null,null,null,null,50,"","NonRes-sAll-mPipeIns-ciDEER2019",null,"NonRes-sAll-mLtgCtrl_1","NonRes-sAll-mLtgCtrlDEER2014"]
[null,null,null,null,null,null,null,51,"NonRes-sAll-mPipeIns-deemed_2","NonRes-sAll-mPipeIns-deemedDEER2016",null,"NonRes-sAll-mLtgCtrl_2","NonRes-sAll-mLtgCtrlDEER2014"]
[null,null,null,null,null,null,null,52,"","NonRes-sAll-mPipeIns-deemedDEER2019",null,"NonRes-sAll-mLtgCtrl_3","NonRes-sAll-mLtgCtrlDEER2014"]
[null,null,null,null,null,null,null,53,"","NonRes-sAll-mPmpTstDEER2014",null,"NonRes-sAll-mLtgCtrl_4","NonRes-sAll-mLtgCtrlDEER2014"]
[null,null,null,null,null,null,null,54,"NonRes-sAll-mPOC_2","NonRes-sAll-mPOCDEER2014",null,"NonRes-sAll-mLtgCtrl_5","NonRes-sAll-mLtgCtrlDEER2014"]
[null,null,null,null,null,null,null,55,"","NonRes-sAll-mRCx-ciDEER2014",null,"NonRes-sAll-mLtgCtrl-htr_1","NonRes-sAll-mLtgCtrl-htrDEER2014"]
[null,null,null,null,null,null,null,56,"","NonRes-sAll-mRCx-dnDEER2014",null,"NonRes-sAll-mLtgCtrl-htr_2","NonRes-sAll-mLtgCtrl-htrDEER2014"]
[null,null,null,null,null,null,null,57,"NonRes-sAll-mRfg-DG_2","NonRes-sAll-mRfg-DGDEER2014",null,"NonRes-sAll-mLtgCtrl-htr_3","NonRes-sAll-mLtgCtrl-htrDEER2014"]
[null,null,null,null,null,null,null,58,"NonRes-sAll-mRfg-SC_2","NonRes-sAll-mRfg-SCDEER2014",null,"NonRes-sAll-mLtgCtrl-htr_4","NonRes-sAll-mLtgCtrl-htrDEER2014"]
[null,null,null,null,null,null,null,59,"NonRes-sAll-mStmTrp-ci_2","NonRes-sAll-mStmTrp-ciDEER2014",null,"NonRes-sAll-mLtgCtrl-htr_5","NonRes-sAll-mLtgCtrl-htrDEER2014"]
[null,null,null,null,null,null,null,60,"NonRes-sAll-mStmTrp-dn_2","NonRes-sAll-mStmTrp-dnDEER2014",null,"NonRes-sAll-MLtgLED-Deemed_1","NonRes-sAll-MLtgLED-DeemedDEER2016"]
[null,null,null,null,null,null,null,61,"","NonRes-sAll-mT5T8-ciDEER2014",null,"NonRes-sAll-MLtgLED-Deemed_2","NonRes-sAll-MLtgLED-DeemedDEER2016"]
[null,null,null,null,null,null,null,62,"","NonRes-sAll-mT5T8-dnDEER2014",null,"NonRes-sAll-MLtgLED-Deemed_3","NonRes-sAll-MLtgLED-DeemedDEER2016"]
[null,null,null,null,null,null,null,63,"","NonRes-sAll-mT8-dirDEER2014",null,"NonRes-sAll-mOccSens_1","NonRes-sAll-mOccSensDEER2014"]
[null,null,null,null,null,null,null,64,"NonRes-sAll-NC_2","NonRes-sAll-NCDEER2016",null,"NonRes-sAll-mOccSens_2","NonRes-sAll-mOccSensDEER2014"]
[null,null,null,null,null,null,null,65,"NonRes-sGHS-mHtCrtn-ci_2","NonRes-sGHS-mHtCrtn-ciDEER2014",null,"NonRes-sAll-mOccSens_3","NonRes-sAll-mOccSensDEER2014"]
[null,null,null,null,null,null,null,66,{"$f":"+D69","v":"NonRes-sGHS-mHtCrtn-dn_2"},{"$f":"+A69&B69","v":"NonRes-sGHS-mHtCrtn-dnDEER2014"},null,"NonRes-sAll-mOccSens_4","NonRes-sAll-mOccSensDEER2014"]
[null,null,null,null,null,null,null,{"$f":"+H169+1","v":67},"NonRes-sGHS-mIRF-ci_2","NonRes-sGHS-mIRF-ciDEER2014",null,"NonRes-sAll-mOccSens_5","NonRes-sAll-mOccSensDEER2014"]
[null,null,null,null,null,null,null,68,"NonRes-sGHS-mIRF-dn_2","NonRes-sGHS-mIRF-dnDEER2014",null,"NonRes-sAll-mPipeIns_1","NonRes-sAll-mPipeInsDEER2014"]
[null,null,null,null,null,null,null,69,"Res-Default>2_2","Res-Default>2DEER2014",null,"NonRes-sAll-mPipeIns-ci_2","NonRes-sAll-mPipeIns-ciDEER2016"]
[null,null,null,null,null,null,null,70,"Res-Default-HTR-di_2","Res-Default-HTR-diDEER2014",null,"NonRes-sAll-mPipeIns-ci_3","NonRes-sAll-mPipeIns-ciDEER2016"]
[null,null,null,null,null,null,null,71,"Res-mDHWaerator_2","Res-mDHWaeratorDEER2014",null,"NonRes-sAll-mPipeIns-ci_4","NonRes-sAll-mPipeIns-ciDEER2016"]
[null,null,null,null,null,null,null,72,"Res-mDHWaerator_2","Res-mDHWaeratorDEER2014",null,"NonRes-sAll-mPipeIns-ci_5","NonRes-sAll-mPipeIns-ciDEER2019"]
[null,null,null,null,null,null,null,73,"","Res-sAll-mCFLExAnte2017",null,"NonRes-sAll-mPipeIns-deemed_2","NonRes-sAll-mPipeIns-deemedDEER2016"]
[null,null,null,null,null,null,null,74,"","Res-sAll-mCFLgt30w-upDEER2015",null,"NonRes-sAll-mPipeIns-deemed_3","NonRes-sAll-mPipeIns-deemedDEER2016"]
[null,null,null,null,null,null,null,75,"","Res-sAll-mCFLlte30w-upDEER2015",null,"NonRes-sAll-mPipeIns-deemed_4","NonRes-sAll-mPipeIns-deemedDEER2016"]
[null,null,null,null,null,null,null,76,"","Res-sAll-mCFL-upDEER2014",null,"NonRes-sAll-mPipeIns-deemed_5","NonRes-sAll-mPipeIns-deemedDEER2019"]
[null,null,null,null,null,null,null,77,"Res-sAll-mCFL-up_2","Res-sAll-mCFL-upDEER2016",null,"NonRes-sAll-mPmpTst_1","NonRes-sAll-mPmpTstDEER2014"]
[null,null,null,null,null,null,null,78,"Res-sAll-mCW_2","Res-sAll-mCWDEER2014",null,"NonRes-sAll-mPOC_1","NonRes-sAll-mPOCDEER2014"]
[null,null,null,null,null,null,null,79,"Res-sAll-mDHWgt62_2","Res-sAll-mDHWgt62DEER2014",null,"NonRes-sAll-mPOC_2","NonRes-sAll-mPOCDEER2014"]
[null,null,null,null,null,null,null,80,"Res-sAll-mDHWshwr_2","Res-sAll-mDHWshwrDEER2014",null,"NonRes-sAll-mPOC_3","NonRes-sAll-mPOCDEER2014"]
[null,null,null,null,null,null,null,81,"Res-sAll-mDuctSeal_2","Res-sAll-mDuctSealDEER2014",null,"NonRes-sAll-mPOC_4","NonRes-sAll-mPOCDEER2014"]
[null,null,null,null,null,null,null,82,"","Res-sAll-mELtg-DnStrmDeemedDEER2019",null,"NonRes-sAll-mPOC_5","NonRes-sAll-mPOCDEER2014"]
[null,null,null,null,null,null,null,83,"","Res-sAll-mFrzrRecDEER2014",null,"NonRes-sAll-mRCx-ci_1","NonRes-sAll-mRCx-ciDEER2014"]
[null,null,null,null,null,null,null,84,"Res-sAll-mFrzrRec_2","Res-sAll-mFrzrRecDEER2016",null,"NonRes-sAll-mRCx-dn_1","NonRes-sAll-mRCx-dnDEER2014"]
[null,null,null,null,null,null,null,85,"Res-sAll-mHVAC-DX-up_2","Res-sAll-mHVAC-DX-upDEER2016",null,"NonRes-sAll-mRfg-DG_1","NonRes-sAll-mRfg-DGDEER2014"]
[null,null,null,null,null,null,null,86,"","Res-sAll-mHVAC-Pkg-dnDEER2017",null,"NonRes-sAll-mRfg-DG_2","NonRes-sAll-mRfg-DGDEER2014"]
[null,null,null,null,null,null,null,87,"","Res-sAll-mHVAC-Pkg-dnDEER2019",null,"NonRes-sAll-mRfg-DG_3","NonRes-sAll-mRfg-DGDEER2014"]
[null,null,null,null,null,null,null,88,"Res-sAll-mHVAC-RCA_2","Res-sAll-mHVAC-RCADEER2014",null,"NonRes-sAll-mRfg-DG_4","NonRes-sAll-mRfg-DGDEER2014"]
[null,null,null,null,null,null,null,89,"Res-sAll-mHVAC-RmAC-dn_2","Res-sAll-mHVAC-RmAC-dnDEER2014",null,"NonRes-sAll-mRfg-DG_5","NonRes-sAll-mRfg-DGDEER2014"]
[null,null,null,null,null,null,null,90,"","Res-sAll-mLEDAReflExAnte2017",null,"NonRes-sAll-mRfg-SC_1","NonRes-sAll-mRfg-SCDEER2014"]
[null,null,null,null,null,null,null,91,"","Res-sAll-mLEDSpclExAnte2017",null,"NonRes-sAll-mRfg-SC_2","NonRes-sAll-mRfg-SCDEER2014"]
[null,null,null,null,null,null,null,92,"Res-sAll-MLtgLED-Deemed_2","Res-sAll-MLtgLED-DeemedDEER2016",null,"NonRes-sAll-mRfg-SC_3","NonRes-sAll-mRfg-SCDEER2014"]
[null,null,null,null,null,null,null,93,"","Res-sAll-mRefgRecDEER2014",null,"NonRes-sAll-mRfg-SC_4","NonRes-sAll-mRfg-SCDEER2014"]
[null,null,null,null,null,null,null,94,"Res-sAll-mRefgRec_2","Res-sAll-mRefgRecDEER2016",null,"NonRes-sAll-mRfg-SC_5","NonRes-sAll-mRfg-SCDEER2014"]
[null,null,null,null,null,null,null,95,"","Res-sSF-mACgt14-dnDEER2014",null,"NonRes-sAll-mStmTrp-ci_1","NonRes-sAll-mStmTrp-ciDEER2014"]
[null,null,null,null,null,null,null,96,"","Res-sSF-mACgt16-dnDEER2014",null,"NonRes-sAll-mStmTrp-ci_2","NonRes-sAll-mStmTrp-ciDEER2014"]
[null,null,null,null,null,null,null,97,"","Res-sSF-mHPesDEER2014",null,"NonRes-sAll-mStmTrp-ci_3","NonRes-sAll-mStmTrp-ciDEER2014"]
[null,null,null,null,null,null,null,98,"Res-sSF-mShellIns_2","Res-sSF-mShellInsDEER2014",null,"NonRes-sAll-mStmTrp-ci_4","NonRes-sAll-mStmTrp-ciDEER2014"]
[null,null,null,null,null,null,null,99,"TV-UpStream_2","TV-UpStreamDEER2015",null,"NonRes-sAll-mStmTrp-ci_5","NonRes-sAll-mStmTrp-ciDEER2014"]
[null,null,null,null,null,null,null,null,null,null,null,"NonRes-sAll-mStmTrp-dn_1","NonRes-sAll-mStmTrp-dnDEER2014"]
[null,null,null,null,null,null,null,1,{"$f":"+E4","v":"Agric-Default>2yrs_3"},{"$f":"+A4&B4","v":"Agric-Default>2yrsDEER2014"},null,"NonRes-sAll-mStmTrp-dn_2","NonRes-sAll-mStmTrp-dnDEER2014"]
[null,null,null,null,null,null,null,{"$f":"+H204+1","v":2},{"$f":"+E5","v":"Agric-Sprklr-All_3"},{"$f":"+A5&B5","v":"Agric-Sprklr-AllDEER2016"},null,"NonRes-sAll-mStmTrp-dn_3","NonRes-sAll-mStmTrp-dnDEER2014"]
[null,null,null,null,null,null,null,{"$f":"+H205+1","v":3},"","Agric-Sprklr-AllDEER2019",null,"NonRes-sAll-mStmTrp-dn_4","NonRes-sAll-mStmTrp-dnDEER2014"]
[null,null,null,null,null,null,null,4,"Agricult-Default-HTR-di_3","Agricult-Default-HTR-diDEER2014",null,"NonRes-sAll-mStmTrp-dn_5","NonRes-sAll-mStmTrp-dnDEER2014"]
[null,null,null,null,null,null,null,5,"All-Default<=2yrs_3","All-Default<=2yrsDEER2014",null,"NonRes-sAll-mT5T8-ci_1","NonRes-sAll-mT5T8-ciDEER2014"]
[null,null,null,null,null,null,null,6,"Com-Default>2yrs_3","Com-Default>2yrsDEER2014",null,"NonRes-sAll-mT5T8-dn_1","NonRes-sAll-mT5T8-dnDEER2014"]
[null,null,null,null,null,null,null,7,"Com-Default-HTR-di_3","Com-Default-HTR-diDEER2014",null,"NonRes-sAll-mT8-dir_1","NonRes-sAll-mT8-dirDEER2014"]
[null,null,null,null,null,null,null,8,"ConstrainedAreaProgram_3","ConstrainedAreaProgramDEER2015",null,"NonRes-sAll-NC_2","NonRes-sAll-NCDEER2016"]
[null,null,null,null,null,null,null,9,"ET-Default_3","ET-DefaultDEER2014",null,"NonRes-sAll-NC_3","NonRes-sAll-NCDEER2016"]
[null,null,null,null,null,null,null,10,"","EUC-DefaultDEER2014",null,"NonRes-sAll-NC_4","NonRes-sAll-NCDEER2016"]
[null,null,null,null,null,null,null,11,"EUC-Default_3","EUC-DefaultDEER2016",null,"NonRes-sAll-NC_5","NonRes-sAll-NCDEER2016"]
[null,null,null,null,null,null,null,12,"Ind-Default>2yrs_3","Ind-Default>2yrsDEER2014",null,"NonRes-sGHS-mHtCrtn-ci_1","NonRes-sGHS-mHtCrtn-ciDEER2014"]
[null,null,null,null,null,null,null,13,"Ind-Default-HTR-di_3","Ind-Default-HTR-diDEER2014",null,"NonRes-sGHS-mHtCrtn-ci_2","NonRes-sGHS-mHtCrtn-ciDEER2014"]
[null,null,null,null,null,null,null,14,"K-12School-ComCollege_3","K-12School-ComCollegeDEER2015",null,"NonRes-sGHS-mHtCrtn-ci_3","NonRes-sGHS-mHtCrtn-ciDEER2014"]
[null,null,null,null,null,null,null,15,"K-12School-ComCollege_3","K-12School-ComCollegeDEER2015",null,"NonRes-sGHS-mHtCrtn-ci_4","NonRes-sGHS-mHtCrtn-ciDEER2014"]
[null,null,null,null,null,null,null,16,"K-12School-ComCollege_3","K-12School-ComCollegeDEER2015",null,"NonRes-sGHS-mHtCrtn-ci_5","NonRes-sGHS-mHtCrtn-ciDEER2014"]
[null,null,null,null,null,null,null,17,"K-12School-ComCollege_3","K-12School-ComCollegeDEER2015",null,"NonRes-sGHS-mHtCrtn-dn_1","NonRes-sGHS-mHtCrtn-dnDEER2014"]
[null,null,null,null,null,null,null,18,"NonRes-sAg-mCust-ci_3","NonRes-sAg-mCust-ciDEER2014",null,"NonRes-sGHS-mHtCrtn-dn_2","NonRes-sGHS-mHtCrtn-dnDEER2014"]
[null,null,null,null,null,null,null,19,"NonRes-sAll-mCFL_3","NonRes-sAll-mCFLDEER2014",null,"NonRes-sGHS-mHtCrtn-dn_3","NonRes-sGHS-mHtCrtn-dnDEER2014"]
[null,null,null,null,null,null,null,20,"","NonRes-sAll-mCFLExAnte2017",null,"NonRes-sGHS-mHtCrtn-dn_4","NonRes-sGHS-mHtCrtn-dnDEER2014"]
[null,null,null,null,null,null,null,21,"NonRes-sAll-mCFL-All_3","NonRes-sAll-mCFL-AllDEER2016",null,"NonRes-sGHS-mHtCrtn-dn_5","NonRes-sGHS-mHtCrtn-dnDEER2014"]
[null,null,null,null,null,null,null,22,"","NonRes-sAll-mCFL-ciDEER2014",null,"NonRes-sGHS-mIRF-ci_1","NonRes-sGHS-mIRF-ciDEER2014"]
[null,null,null,null,null,null,null,23,"","NonRes-sAll-mCFL-dirDEER2014",null,"NonRes-sGHS-mIRF-ci_2","NonRes-sGHS-mIRF-ciDEER2014"]
[null,null,null,null,null,null,null,24,"","NonRes-sAll-mCFL-dnDEER2014",null,"NonRes-sGHS-mIRF-ci_3","NonRes-sGHS-mIRF-ciDEER2014"]
[null,null,null,null,null,null,null,25,"NonRes-sAll-mCust_3","NonRes-sAll-mCustDEER2014",null,"NonRes-sGHS-mIRF-ci_4","NonRes-sGHS-mIRF-ciDEER2014"]
[null,null,null,null,null,null,null,26,"NonRes-sAll-mCust-Elec_3","NonRes-sAll-mCust-ElecDEER2014",null,"NonRes-sGHS-mIRF-ci_5","NonRes-sGHS-mIRF-ciDEER2014"]
[null,null,null,null,null,null,null,27,"","NonRes-sAll-mCustElec-bdDEER2014",null,"NonRes-sGHS-mIRF-dn_1","NonRes-sGHS-mIRF-dnDEER2014"]
[null,null,null,null,null,null,null,28,"NonRes-sAll-mCust-Gas_3","NonRes-sAll-mCust-GasDEER2014",null,"NonRes-sGHS-mIRF-dn_2","NonRes-sGHS-mIRF-dnDEER2014"]
[null,null,null,null,null,null,null,29,"","NonRes-sAll-mELtg-DnStrmDeemedDEER2019",null,"NonRes-sGHS-mIRF-dn_3","NonRes-sGHS-mIRF-dnDEER2014"]
[null,null,null,null,null,null,null,30,"NonRes-sAll-mHVAC-Chiller_3","NonRes-sAll-mHVAC-ChillerDEER2014",null,"NonRes-sGHS-mIRF-dn_4","NonRes-sGHS-mIRF-dnDEER2014"]
[null,null,null,null,null,null,null,31,"","NonRes-sAll-mHVAC-DX-upDEER2014",null,"NonRes-sGHS-mIRF-dn_5","NonRes-sGHS-mIRF-dnDEER2014"]
[null,null,null,null,null,null,null,32,"NonRes-sAll-mHVAC-DX-up_3","NonRes-sAll-mHVAC-DX-upDEER2016",null,"Res-Default>2_1","Res-Default>2DEER2014"]
[null,null,null,null,null,null,null,33,"NonRes-sAll-mHVAC-Pkg_3","NonRes-sAll-mHVAC-PkgDEER2017",null,"Res-Default>2_2","Res-Default>2DEER2014"]
[null,null,null,null,null,null,null,34,"","NonRes-sAll-mHVAC-PkgDEER2019",null,"Res-Default>2_3","Res-Default>2DEER2014"]
[null,null,null,null,null,null,null,35,"NonRes-sAll-mHVAC-RCA_3","NonRes-sAll-mHVAC-RCADEER2014",null,"Res-Default>2_4","Res-Default>2DEER2014"]
[null,null,null,null,null,null,null,36,"","NonRes-sAll-mLEDAReflExAnte2017",null,"Res-Default>2_5","Res-Default>2DEER2014"]
[null,null,null,null,null,null,null,37,"","NonRes-sAll-mLEDSpclExAnte2017",null,"Res-Default-HTR-di_1","Res-Default-HTR-diDEER2014"]
[null,null,null,null,null,null,null,38,"NonRes-sAll-mLFDL-Deemed_3","NonRes-sAll-mLFDL-DeemedDEER2016",null,"Res-Default-HTR-di_2","Res-Default-HTR-diDEER2014"]
[null,null,null,null,null,null,null,39,"NonRes-sAll-mLFHB-Deemed_3","NonRes-sAll-mLFHB-DeemedDEER2016",null,"Res-Default-HTR-di_3","Res-Default-HTR-diDEER2014"]
[null,null,null,null,null,null,null,40,"NonRes-sAll-mLFHBT5-Deemed_3","NonRes-sAll-mLFHBT5-DeemedDEER2016",null,"Res-Default-HTR-di_4","Res-Default-HTR-diDEER2014"]
[null,null,null,null,null,null,null,41,"NonRes-sAll-mLFOth-Deemed_3","NonRes-sAll-mLFOth-DeemedDEER2016",null,"Res-Default-HTR-di_5","Res-Default-HTR-diDEER2014"]
[null,null,null,null,null,null,null,42,"NonRes-sAll-mLtg-ci_3","NonRes-sAll-mLtg-ciDEER2016",null,"Res-mDHWaerator_1","Res-mDHWaeratorDEER2014"]
[null,null,null,null,null,null,null,43,"","NonRes-sAll-mLtg-ciDEER2019",null,"Res-mDHWaerator_1","Res-mDHWaeratorDEER2014"]
[null,null,null,null,null,null,null,44,"NonRes-sAll-mLtgCtrl_3","NonRes-sAll-mLtgCtrlDEER2014",null,"Res-mDHWaerator_2","Res-mDHWaeratorDEER2014"]
[null,null,null,null,null,null,null,45,"NonRes-sAll-mLtgCtrl-htr_3","NonRes-sAll-mLtgCtrl-htrDEER2014",null,"Res-mDHWaerator_2","Res-mDHWaeratorDEER2014"]
[null,null,null,null,null,null,null,46,"NonRes-sAll-MLtgLED-Deemed_3","NonRes-sAll-MLtgLED-DeemedDEER2016",null,"Res-mDHWaerator_3","Res-mDHWaeratorDEER2014"]
[null,null,null,null,null,null,null,47,"NonRes-sAll-mOccSens_3","NonRes-sAll-mOccSensDEER2014",null,"Res-mDHWaerator_3","Res-mDHWaeratorDEER2014"]
[null,null,null,null,null,null,null,48,"","NonRes-sAll-mPipeInsDEER2014",null,"Res-mDHWaerator_4","Res-mDHWaeratorDEER2014"]
[null,null,null,null,null,null,null,49,"NonRes-sAll-mPipeIns-ci_3","NonRes-sAll-mPipeIns-ciDEER2016",null,"Res-mDHWaerator_4","Res-mDHWaeratorDEER2014"]
[null,null,null,null,null,null,null,50,"","NonRes-sAll-mPipeIns-ciDEER2019",null,"Res-mDHWaerator_5","Res-mDHWaeratorDEER2014"]
[null,null,null,null,null,null,null,51,"NonRes-sAll-mPipeIns-deemed_3","NonRes-sAll-mPipeIns-deemedDEER2016",null,"Res-mDHWaerator_5","Res-mDHWaeratorDEER2014"]
[null,null,null,null,null,null,null,52,"","NonRes-sAll-mPipeIns-deemedDEER2019",null,"Res-sAll-mCFL_4","Res-sAll-mCFLExAnte2017"]
[null,null,null,null,null,null,null,53,"","NonRes-sAll-mPmpTstDEER2014",null,"Res-sAll-mCFL_5","Res-sAll-mCFLExAnte2017"]
[null,null,null,null,null,null,null,54,"NonRes-sAll-mPOC_3","NonRes-sAll-mPOCDEER2014",null,"Res-sAll-mCFLgt30w-up_1","Res-sAll-mCFLgt30w-upDEER2015"]
[null,null,null,null,null,null,null,55,"","NonRes-sAll-mRCx-ciDEER2014",null,"Res-sAll-mCFLlte30w-up_1","Res-sAll-mCFLlte30w-upDEER2015"]
[null,null,null,null,null,null,null,56,"","NonRes-sAll-mRCx-dnDEER2014",null,"Res-sAll-mCFL-up_1","Res-sAll-mCFL-upDEER2014"]
[null,null,null,null,null,null,null,57,"NonRes-sAll-mRfg-DG_3","NonRes-sAll-mRfg-DGDEER2014",null,"Res-sAll-mCFL-up_1","Res-sAll-mCFL-upDEER2016"]
[null,null,null,null,null,null,null,58,"NonRes-sAll-mRfg-SC_3","NonRes-sAll-mRfg-SCDEER2014",null,"Res-sAll-mCFL-up_2","Res-sAll-mCFL-upDEER2016"]
[null,null,null,null,null,null,null,59,"NonRes-sAll-mStmTrp-ci_3","NonRes-sAll-mStmTrp-ciDEER2014",null,"Res-sAll-mCFL-up_3","Res-sAll-mCFL-upDEER2016"]
[null,null,null,null,null,null,null,60,"NonRes-sAll-mStmTrp-dn_3","NonRes-sAll-mStmTrp-dnDEER2014",null,"Res-sAll-mCW_1","Res-sAll-mCWDEER2014"]
[null,null,null,null,null,null,null,61,"","NonRes-sAll-mT5T8-ciDEER2014",null,"Res-sAll-mCW_2","Res-sAll-mCWDEER2014"]
[null,null,null,null,null,null,null,62,"","NonRes-sAll-mT5T8-dnDEER2014",null,"Res-sAll-mCW_3","Res-sAll-mCWDEER2014"]
[null,null,null,null,null,null,null,63,"","NonRes-sAll-mT8-dirDEER2014",null,"Res-sAll-mCW_4","Res-sAll-mCWDEER2014"]
[null,null,null,null,null,null,null,64,"NonRes-sAll-NC_3","NonRes-sAll-NCDEER2016",null,"Res-sAll-mCW_5","Res-sAll-mCWDEER2014"]
[null,null,null,null,null,null,null,65,"NonRes-sGHS-mHtCrtn-ci_3","NonRes-sGHS-mHtCrtn-ciDEER2014",null,"Res-sAll-mDHWgt62_1","Res-sAll-mDHWgt62DEER2014"]
[null,null,null,null,null,null,null,66,{"$f":"+E69","v":"NonRes-sGHS-mHtCrtn-dn_3"},{"$f":"+A69&B69","v":"NonRes-sGHS-mHtCrtn-dnDEER2014"},null,"Res-sAll-mDHWgt62_2","Res-sAll-mDHWgt62DEER2014"]
[null,null,null,null,null,null,null,{"$f":"+H269+1","v":67},"NonRes-sGHS-mIRF-ci_3","NonRes-sGHS-mIRF-ciDEER2014",null,"Res-sAll-mDHWgt62_3","Res-sAll-mDHWgt62DEER2014"]
[null,null,null,null,null,null,null,68,"NonRes-sGHS-mIRF-dn_3","NonRes-sGHS-mIRF-dnDEER2014",null,"Res-sAll-mDHWgt62_4","Res-sAll-mDHWgt62DEER2014"]
[null,null,null,null,null,null,null,69,"Res-Default>2_3","Res-Default>2DEER2014",null,"Res-sAll-mDHWgt62_5","Res-sAll-mDHWgt62DEER2014"]
[null,null,null,null,null,null,null,70,"Res-Default-HTR-di_3","Res-Default-HTR-diDEER2014",null,"Res-sAll-mDHWshwr_1","Res-sAll-mDHWshwrDEER2014"]
[null,null,null,null,null,null,null,71,"Res-mDHWaerator_3","Res-mDHWaeratorDEER2014",null,"Res-sAll-mDHWshwr_2","Res-sAll-mDHWshwrDEER2014"]
[null,null,null,null,null,null,null,72,"Res-mDHWaerator_3","Res-mDHWaeratorDEER2014",null,"Res-sAll-mDHWshwr_3","Res-sAll-mDHWshwrDEER2014"]
[null,null,null,null,null,null,null,73,"","Res-sAll-mCFLExAnte2017",null,"Res-sAll-mDHWshwr_4","Res-sAll-mDHWshwrDEER2014"]
[null,null,null,null,null,null,null,74,"","Res-sAll-mCFLgt30w-upDEER2015",null,"Res-sAll-mDHWshwr_5","Res-sAll-mDHWshwrDEER2014"]
[null,null,null,null,null,null,null,75,"","Res-sAll-mCFLlte30w-upDEER2015",null,"Res-sAll-mDuctSeal_1","Res-sAll-mDuctSealDEER2014"]
[null,null,null,null,null,null,null,76,"","Res-sAll-mCFL-upDEER2014",null,"Res-sAll-mDuctSeal_2","Res-sAll-mDuctSealDEER2014"]
[null,null,null,null,null,null,null,77,"Res-sAll-mCFL-up_3","Res-sAll-mCFL-upDEER2016",null,"Res-sAll-mDuctSeal_3","Res-sAll-mDuctSealDEER2014"]
[null,null,null,null,null,null,null,78,"Res-sAll-mCW_3","Res-sAll-mCWDEER2014",null,"Res-sAll-mDuctSeal_4","Res-sAll-mDuctSealDEER2014"]
[null,null,null,null,null,null,null,79,"Res-sAll-mDHWgt62_3","Res-sAll-mDHWgt62DEER2014",null,"Res-sAll-mDuctSeal_5","Res-sAll-mDuctSealDEER2014"]
[null,null,null,null,null,null,null,80,"Res-sAll-mDHWshwr_3","Res-sAll-mDHWshwrDEER2014",null,"Res-sAll-mELtg-DnStrmDeemed_5","Res-sAll-mELtg-DnStrmDeemedDEER2019"]
[null,null,null,null,null,null,null,81,"Res-sAll-mDuctSeal_3","Res-sAll-mDuctSealDEER2014",null,"Res-sAll-mFrzrRec_1","Res-sAll-mFrzrRecDEER2014"]
[null,null,null,null,null,null,null,82,"","Res-sAll-mELtg-DnStrmDeemedDEER2019",null,"Res-sAll-mFrzrRec_2","Res-sAll-mFrzrRecDEER2016"]
[null,null,null,null,null,null,null,83,"","Res-sAll-mFrzrRecDEER2014",null,"Res-sAll-mFrzrRec_3","Res-sAll-mFrzrRecDEER2016"]
[null,null,null,null,null,null,null,84,"Res-sAll-mFrzrRec_3","Res-sAll-mFrzrRecDEER2016",null,"Res-sAll-mFrzrRec_4","Res-sAll-mFrzrRecDEER2016"]
[null,null,null,null,null,null,null,85,"Res-sAll-mHVAC-DX-up_3","Res-sAll-mHVAC-DX-upDEER2016",null,"Res-sAll-mFrzrRec_5","Res-sAll-mFrzrRecDEER2016"]
[null,null,null,null,null,null,null,86,"Res-sAll-mHVAC-Pkg-dn_3","Res-sAll-mHVAC-Pkg-dnDEER2017",null,"Res-sAll-mHVAC-DX-up_2","Res-sAll-mHVAC-DX-upDEER2016"]
[null,null,null,null,null,null,null,87,"","Res-sAll-mHVAC-Pkg-dnDEER2019",null,"Res-sAll-mHVAC-DX-up_3","Res-sAll-mHVAC-DX-upDEER2016"]
[null,null,null,null,null,null,null,88,"Res-sAll-mHVAC-RCA_3","Res-sAll-mHVAC-RCADEER2014",null,"Res-sAll-mHVAC-DX-up_4","Res-sAll-mHVAC-DX-upDEER2016"]
[null,null,null,null,null,null,null,89,"Res-sAll-mHVAC-RmAC-dn_3","Res-sAll-mHVAC-RmAC-dnDEER2014",null,"Res-sAll-mHVAC-DX-up_5","Res-sAll-mHVAC-DX-upDEER2016"]
[null,null,null,null,null,null,null,90,"","Res-sAll-mLEDAReflExAnte2017",null,"Res-sAll-mHVAC-Pkg-dn_3","Res-sAll-mHVAC-Pkg-dnDEER2017"]
[null,null,null,null,null,null,null,91,"","Res-sAll-mLEDSpclExAnte2017",null,"Res-sAll-mHVAC-Pkg-dn_4","Res-sAll-mHVAC-Pkg-dnDEER2017"]
[null,null,null,null,null,null,null,92,"Res-sAll-MLtgLED-Deemed_3","Res-sAll-MLtgLED-DeemedDEER2016",null,"Res-sAll-mHVAC-Pkg-dn_5","Res-sAll-mHVAC-Pkg-dnDEER2019"]
[null,null,null,null,null,null,null,93,"","Res-sAll-mRefgRecDEER2014",null,"Res-sAll-mHVAC-RCA_1","Res-sAll-mHVAC-RCADEER2014"]
[null,null,null,null,null,null,null,94,"Res-sAll-mRefgRec_3","Res-sAll-mRefgRecDEER2016",null,"Res-sAll-mHVAC-RCA_2","Res-sAll-mHVAC-RCADEER2014"]
[null,null,null,null,null,null,null,95,"","Res-sSF-mACgt14-dnDEER2014",null,"Res-sAll-mHVAC-RCA_3","Res-sAll-mHVAC-RCADEER2014"]
[null,null,null,null,null,null,null,96,"","Res-sSF-mACgt16-dnDEER2014",null,"Res-sAll-mHVAC-RCA_4","Res-sAll-mHVAC-RCADEER2014"]
[null,null,null,null,null,null,null,97,"","Res-sSF-mHPesDEER2014",null,"Res-sAll-mHVAC-RCA_5","Res-sAll-mHVAC-RCADEER2014"]
[null,null,null,null,null,null,null,98,"Res-sSF-mShellIns_3","Res-sSF-mShellInsDEER2014",null,"Res-sAll-mHVAC-RmAC-dn_1","Res-sAll-mHVAC-RmAC-dnDEER2014"]
[null,null,null,null,null,null,null,99,"TV-UpStream_3","TV-UpStreamDEER2015",null,"Res-sAll-mHVAC-RmAC-dn_2","Res-sAll-mHVAC-RmAC-dnDEER2014"]
[null,null,null,null,null,null,null,null,null,null,null,"Res-sAll-mHVAC-RmAC-dn_3","Res-sAll-mHVAC-RmAC-dnDEER2014"]
[null,null,null,null,null,null,null,1,{"$f":"+F4","v":"Agric-Default>2yrs_4"},{"$f":"+A4&B4","v":"Agric-Default>2yrsDEER2014"},null,"Res-sAll-mHVAC-RmAC-dn_4","Res-sAll-mHVAC-RmAC-dnDEER2014"]
[null,null,null,null,null,null,null,{"$f":"+H304+1","v":2},{"$f":"+F5","v":"Agric-Sprklr-All_4"},{"$f":"+A5&B5","v":"Agric-Sprklr-AllDEER2016"},null,"Res-sAll-mHVAC-RmAC-dn_5","Res-sAll-mHVAC-RmAC-dnDEER2014"]
[null,null,null,null,null,null,null,{"$f":"+H305+1","v":3},"","Agric-Sprklr-AllDEER2019",null,"Res-sAll-mLEDARefl_4","Res-sAll-mLEDAReflExAnte2017"]
[null,null,null,null,null,null,null,4,"Agricult-Default-HTR-di_4","Agricult-Default-HTR-diDEER2014",null,"Res-sAll-mLEDARefl_5","Res-sAll-mLEDAReflExAnte2017"]
[null,null,null,null,null,null,null,5,"All-Default<=2yrs_4","All-Default<=2yrsDEER2014",null,"Res-sAll-mLEDSpcl_4","Res-sAll-mLEDSpclExAnte2017"]
[null,null,null,null,null,null,null,6,"Com-Default>2yrs_4","Com-Default>2yrsDEER2014",null,"Res-sAll-mLEDSpcl_5","Res-sAll-mLEDSpclExAnte2017"]
[null,null,null,null,null,null,null,7,"Com-Default-HTR-di_4","Com-Default-HTR-diDEER2014",null,"Res-sAll-MLtgLED-Deemed_1","Res-sAll-MLtgLED-DeemedDEER2016"]
[null,null,null,null,null,null,null,8,"ConstrainedAreaProgram_4","ConstrainedAreaProgramDEER2015",null,"Res-sAll-MLtgLED-Deemed_2","Res-sAll-MLtgLED-DeemedDEER2016"]
[null,null,null,null,null,null,null,9,"ET-Default_4","ET-DefaultDEER2014",null,"Res-sAll-MLtgLED-Deemed_3","Res-sAll-MLtgLED-DeemedDEER2016"]
[null,null,null,null,null,null,null,10,"","EUC-DefaultDEER2014",null,"Res-sAll-mRefgRec_1","Res-sAll-mRefgRecDEER2014"]
[null,null,null,null,null,null,null,11,"EUC-Default_4","EUC-DefaultDEER2016",null,"Res-sAll-mRefgRec_2","Res-sAll-mRefgRecDEER2016"]
[null,null,null,null,null,null,null,12,"Ind-Default>2yrs_4","Ind-Default>2yrsDEER2014",null,"Res-sAll-mRefgRec_3","Res-sAll-mRefgRecDEER2016"]
[null,null,null,null,null,null,null,13,"Ind-Default-HTR-di_4","Ind-Default-HTR-diDEER2014",null,"Res-sAll-mRefgRec_4","Res-sAll-mRefgRecDEER2016"]
[null,null,null,null,null,null,null,14,"K-12School-ComCollege_4","K-12School-ComCollegeDEER2015",null,"Res-sAll-mRefgRec_5","Res-sAll-mRefgRecDEER2016"]
[null,null,null,null,null,null,null,15,"K-12School-ComCollege_4","K-12School-ComCollegeDEER2015",null,"Res-sSF-mACgt14-dn_1","Res-sSF-mACgt14-dnDEER2014"]
[null,null,null,null,null,null,null,16,"K-12School-ComCollege_4","K-12School-ComCollegeDEER2015",null,"Res-sSF-mACgt16-dn_1","Res-sSF-mACgt16-dnDEER2014"]
[null,null,null,null,null,null,null,17,"K-12School-ComCollege_4","K-12School-ComCollegeDEER2015",null,"Res-sSF-mHPes_1","Res-sSF-mHPesDEER2014"]
[null,null,null,null,null,null,null,18,"NonRes-sAg-mCust-ci_4","NonRes-sAg-mCust-ciDEER2014",null,"Res-sSF-mShellIns_1","Res-sSF-mShellInsDEER2014"]
[null,null,null,null,null,null,null,19,"","NonRes-sAll-mCFLDEER2014",null,"Res-sSF-mShellIns_2","Res-sSF-mShellInsDEER2014"]
[null,null,null,null,null,null,null,20,"NonRes-sAll-mCFL_4","NonRes-sAll-mCFLExAnte2017",null,"Res-sSF-mShellIns_3","Res-sSF-mShellInsDEER2014"]
[null,null,null,null,null,null,null,21,"","NonRes-sAll-mCFL-AllDEER2016",null,"Res-sSF-mShellIns_4","Res-sSF-mShellInsDEER2014"]
[null,null,null,null,null,null,null,22,"","NonRes-sAll-mCFL-ciDEER2014",null,"Res-sSF-mShellIns_5","Res-sSF-mShellInsDEER2014"]
[null,null,null,null,null,null,null,23,"","NonRes-sAll-mCFL-dirDEER2014",null,"TV-UpStream_1","TV-UpStreamDEER2015"]
[null,null,null,null,null,null,null,24,"","NonRes-sAll-mCFL-dnDEER2014",null,"TV-UpStream_2","TV-UpStreamDEER2015"]
[null,null,null,null,null,null,null,25,"NonRes-sAll-mCust_4","NonRes-sAll-mCustDEER2014",null,"TV-UpStream_3","TV-UpStreamDEER2015"]
[null,null,null,null,null,null,null,26,"NonRes-sAll-mCust-Elec_4","NonRes-sAll-mCust-ElecDEER2014",null,"TV-UpStream_4","TV-UpStreamDEER2015"]
[null,null,null,null,null,null,null,27,"","NonRes-sAll-mCustElec-bdDEER2014",null,"TV-UpStream_5","TV-UpStreamDEER2015"]
[null,null,null,null,null,null,null,28,"NonRes-sAll-mCust-Gas_4","NonRes-sAll-mCust-GasDEER2014"]
[null,null,null,null,null,null,null,29,"","NonRes-sAll-mELtg-DnStrmDeemedDEER2019"]
[null,null,null,null,null,null,null,30,"NonRes-sAll-mHVAC-Chiller_4","NonRes-sAll-mHVAC-ChillerDEER2014"]
[null,null,null,null,null,null,null,31,"","NonRes-sAll-mHVAC-DX-upDEER2014"]
[null,null,null,null,null,null,null,32,"NonRes-sAll-mHVAC-DX-up_4","NonRes-sAll-mHVAC-DX-upDEER2016"]
[null,null,null,null,null,null,null,33,"NonRes-sAll-mHVAC-Pkg_4","NonRes-sAll-mHVAC-PkgDEER2017"]
[null,null,null,null,null,null,null,34,"","NonRes-sAll-mHVAC-PkgDEER2019"]
[null,null,null,null,null,null,null,35,"NonRes-sAll-mHVAC-RCA_4","NonRes-sAll-mHVAC-RCADEER2014"]
[null,null,null,null,null,null,null,36,"NonRes-sAll-mLEDARefl_4","NonRes-sAll-mLEDAReflExAnte2017"]
[null,null,null,null,null,null,null,37,"NonRes-sAll-mLEDSpcl_4","NonRes-sAll-mLEDSpclExAnte2017"]
[null,null,null,null,null,null,null,38,"NonRes-sAll-mLFDL-Deemed_4","NonRes-sAll-mLFDL-DeemedDEER2016"]
[null,null,null,null,null,null,null,39,"NonRes-sAll-mLFHB-Deemed_4","NonRes-sAll-mLFHB-DeemedDEER2016"]
[null,null,null,null,null,null,null,40,"NonRes-sAll-mLFHBT5-Deemed_4","NonRes-sAll-mLFHBT5-DeemedDEER2016"]
[null,null,null,null,null,null,null,41,"NonRes-sAll-mLFOth-Deemed_4","NonRes-sAll-mLFOth-DeemedDEER2016"]
[null,null,null,null,null,null,null,42,"NonRes-sAll-mLtg-ci_4","NonRes-sAll-mLtg-ciDEER2016"]
[null,null,null,null,null,null,null,43,"","NonRes-sAll-mLtg-ciDEER2019"]
[null,null,null,null,null,null,null,44,"NonRes-sAll-mLtgCtrl_4","NonRes-sAll-mLtgCtrlDEER2014"]
[null,null,null,null,null,null,null,45,"NonRes-sAll-mLtgCtrl-htr_4","NonRes-sAll-mLtgCtrl-htrDEER2014"]
[null,null,null,null,null,null,null,46,"","NonRes-sAll-MLtgLED-DeemedDEER2016"]
[null,null,null,null,null,null,null,47,"NonRes-sAll-mOccSens_4","NonRes-sAll-mOccSensDEER2014"]
[null,null,null,null,null,null,null,48,"","NonRes-sAll-mPipeInsDEER2014"]
[null,null,null,null,null,null,null,49,"NonRes-sAll-mPipeIns-ci_4","NonRes-sAll-mPipeIns-ciDEER2016"]
[null,null,null,null,null,null,null,50,"","NonRes-sAll-mPipeIns-ciDEER2019"]
[null,null,null,null,null,null,null,51,"NonRes-sAll-mPipeIns-deemed_4","NonRes-sAll-mPipeIns-deemedDEER2016"]
[null,null,null,null,null,null,null,52,"","NonRes-sAll-mPipeIns-deemedDEER2019"]
[null,null,null,null,null,null,null,53,"","NonRes-sAll-mPmpTstDEER2014"]
[null,null,null,null,null,null,null,54,"NonRes-sAll-mPOC_4","NonRes-sAll-mPOCDEER2014"]
[null,null,null,null,null,null,null,55,"","NonRes-sAll-mRCx-ciDEER2014"]
[null,null,null,null,null,null,null,56,"","NonRes-sAll-mRCx-dnDEER2014"]
[null,null,null,null,null,null,null,57,"NonRes-sAll-mRfg-DG_4","NonRes-sAll-mRfg-DGDEER2014"]
[null,null,null,null,null,null,null,58,"NonRes-sAll-mRfg-SC_4","NonRes-sAll-mRfg-SCDEER2014"]
[null,null,null,null,null,null,null,59,"NonRes-sAll-mStmTrp-ci_4","NonRes-sAll-mStmTrp-ciDEER2014"]
[null,null,null,null,null,null,null,60,"NonRes-sAll-mStmTrp-dn_4","NonRes-sAll-mStmTrp-dnDEER2014"]
[null,null,null,null,null,null,null,61,"","NonRes-sAll-mT5T8-ciDEER2014"]
[null,null,null,null,null,null,null,62,"","NonRes-sAll-mT5T8-dnDEER2014"]
[null,null,null,null,null,null,null,63,"","NonRes-sAll-mT8-dirDEER2014"]
[null,null,null,null,null,null,null,64,"NonRes-sAll-NC_4","NonRes-sAll-NCDEER2016"]
[null,null,null,null,null,null,null,65,"NonRes-sGHS-mHtCrtn-ci_4","NonRes-sGHS-mHtCrtn-ciDEER2014"]
[null,null,null,null,null,null,null,66,{"$f":"+F69","v":"NonRes-sGHS-mHtCrtn-dn_4"},{"$f":"+A69&B69","v":"NonRes-sGHS-mHtCrtn-dnDEER2014"}]
[null,null,null,null,null,null,null,{"$f":"+H369+1","v":67},"NonRes-sGHS-mIRF-ci_4","NonRes-sGHS-mIRF-ciDEER2014"]
[null,null,null,null,null,null,null,68,"NonRes-sGHS-mIRF-dn_4","NonRes-sGHS-mIRF-dnDEER2014"]
[null,null,null,null,null,null,null,69,"Res-Default>2_4","Res-Default>2DEER2014"]
[null,null,null,null,null,null,null,70,"Res-Default-HTR-di_4","Res-Default-HTR-diDEER2014"]
[null,null,null,null,null,null,null,71,"Res-mDHWaerator_4","Res-mDHWaeratorDEER2014"]
[null,null,null,null,null,null,null,72,"Res-mDHWaerator_4","Res-mDHWaeratorDEER2014"]
[null,null,null,null,null,null,null,73,"Res-sAll-mCFL_4","Res-sAll-mCFLExAnte2017"]
[null,null,null,null,null,null,null,74,"","Res-sAll-mCFLgt30w-upDEER2015"]
[null,null,null,null,null,null,null,75,"","Res-sAll-mCFLlte30w-upDEER2015"]
[null,null,null,null,null,null,null,76,"","Res-sAll-mCFL-upDEER2014"]
[null,null,null,null,null,null,null,77,"","Res-sAll-mCFL-upDEER2016"]
[null,null,null,null,null,null,null,78,"Res-sAll-mCW_4","Res-sAll-mCWDEER2014"]
[null,null,null,null,null,null,null,79,"Res-sAll-mDHWgt62_4","Res-sAll-mDHWgt62DEER2014"]
[null,null,null,null,null,null,null,80,"Res-sAll-mDHWshwr_4","Res-sAll-mDHWshwrDEER2014"]
[null,null,null,null,null,null,null,81,"Res-sAll-mDuctSeal_4","Res-sAll-mDuctSealDEER2014"]
[null,null,null,null,null,null,null,82,"","Res-sAll-mELtg-DnStrmDeemedDEER2019"]
[null,null,null,null,null,null,null,83,"","Res-sAll-mFrzrRecDEER2014"]
[null,null,null,null,null,null,null,84,"Res-sAll-mFrzrRec_4","Res-sAll-mFrzrRecDEER2016"]
[null,null,null,null,null,null,null,85,"Res-sAll-mHVAC-DX-up_4","Res-sAll-mHVAC-DX-upDEER2016"]
[null,null,null,null,null,null,null,86,"Res-sAll-mHVAC-Pkg-dn_4","Res-sAll-mHVAC-Pkg-dnDEER2017"]
[null,null,null,null,null,null,null,87,"","Res-sAll-mHVAC-Pkg-dnDEER2019"]
[null,null,null,null,null,null,null,88,"Res-sAll-mHVAC-RCA_4","Res-sAll-mHVAC-RCADEER2014"]
[null,null,null,null,null,null,null,89,"Res-sAll-mHVAC-RmAC-dn_4","Res-sAll-mHVAC-RmAC-dnDEER2014"]
[null,null,null,null,null,null,null,90,"Res-sAll-mLEDARefl_4","Res-sAll-mLEDAReflExAnte2017"]
[null,null,null,null,null,null,null,91,"Res-sAll-mLEDSpcl_4","Res-sAll-mLEDSpclExAnte2017"]
[null,null,null,null,null,null,null,92,"","Res-sAll-MLtgLED-DeemedDEER2016"]
[null,null,null,null,null,null,null,93,"","Res-sAll-mRefgRecDEER2014"]
[null,null,null,null,null,null,null,94,"Res-sAll-mRefgRec_4","Res-sAll-mRefgRecDEER2016"]
[null,null,null,null,null,null,null,95,"","Res-sSF-mACgt14-dnDEER2014"]
[null,null,null,null,null,null,null,96,"","Res-sSF-mACgt16-dnDEER2014"]
[null,null,null,null,null,null,null,97,"","Res-sSF-mHPesDEER2014"]
[null,null,null,null,null,null,null,98,"Res-sSF-mShellIns_4","Res-sSF-mShellInsDEER2014"]
[null,null,null,null,null,null,null,99,"TV-UpStream_4","TV-UpStreamDEER2015"]
[]
[null,null,null,null,null,null,null,1,{"$f":"G4","v":"Agric-Default>2yrs_5"},{"$f":"+A4&B4","v":"Agric-Default>2yrsDEER2014"}]
[null,null,null,null,null,null,null,{"$f":"+H404+1","v":2},{"$f":"G5","v":""},{"$f":"+A5&B5","v":"Agric-Sprklr-AllDEER2016"}]
[null,null,null,null,null,null,null,{"$f":"+H405+1","v":3},"Agric-Sprklr-All_5","Agric-Sprklr-AllDEER2019"]
[null,null,null,null,null,null,null,4,"Agricult-Default-HTR-di_5","Agricult-Default-HTR-diDEER2014"]
[null,null,null,null,null,null,null,5,"All-Default<=2yrs_5","All-Default<=2yrsDEER2014"]
[null,null,null,null,null,null,null,6,"Com-Default>2yrs_5","Com-Default>2yrsDEER2014"]
[null,null,null,null,null,null,null,7,"Com-Default-HTR-di_5","Com-Default-HTR-diDEER2014"]
[null,null,null,null,null,null,null,8,"ConstrainedAreaProgram_5","ConstrainedAreaProgramDEER2015"]
[null,null,null,null,null,null,null,9,"ET-Default_5","ET-DefaultDEER2014"]
[null,null,null,null,null,null,null,10,"","EUC-DefaultDEER2014"]
[null,null,null,null,null,null,null,11,"EUC-Default_5","EUC-DefaultDEER2016"]
[null,null,null,null,null,null,null,12,"Ind-Default>2yrs_5","Ind-Default>2yrsDEER2014"]
[null,null,null,null,null,null,null,13,"Ind-Default-HTR-di_5","Ind-Default-HTR-diDEER2014"]
[null,null,null,null,null,null,null,14,"K-12School-ComCollege_5","K-12School-ComCollegeDEER2015"]
[null,null,null,null,null,null,null,15,"K-12School-ComCollege_5","K-12School-ComCollegeDEER2015"]
[null,null,null,null,null,null,null,16,"K-12School-ComCollege_5","K-12School-ComCollegeDEER2015"]
[null,null,null,null,null,null,null,17,"K-12School-ComCollege_5","K-12School-ComCollegeDEER2015"]
[null,null,null,null,null,null,null,18,"NonRes-sAg-mCust-ci_5","NonRes-sAg-mCust-ciDEER2014"]
[null,null,null,null,null,null,null,19,"","NonRes-sAll-mCFLDEER2014"]
[null,null,null,null,null,null,null,20,"NonRes-sAll-mCFL_5","NonRes-sAll-mCFLExAnte2017"]
[null,null,null,null,null,null,null,21,"","NonRes-sAll-mCFL-AllDEER2016"]
[null,null,null,null,null,null,null,22,"","NonRes-sAll-mCFL-ciDEER2014"]
[null,null,null,null,null,null,null,23,"","NonRes-sAll-mCFL-dirDEER2014"]
[null,null,null,null,null,null,null,24,"","NonRes-sAll-mCFL-dnDEER2014"]
[null,null,null,null,null,null,null,25,"NonRes-sAll-mCust_5","NonRes-sAll-mCustDEER2014"]
[null,null,null,null,null,null,null,26,"NonRes-sAll-mCust-Elec_5","NonRes-sAll-mCust-ElecDEER2014"]
[null,null,null,null,null,null,null,27,"","NonRes-sAll-mCustElec-bdDEER2014"]
[null,null,null,null,null,null,null,28,"NonRes-sAll-mCust-Gas_5","NonRes-sAll-mCust-GasDEER2014"]
[null,null,null,null,null,null,null,29,"NonRes-sAll-mELtg-DnStrmDeemed_5","NonRes-sAll-mELtg-DnStrmDeemedDEER2019"]
[null,null,null,null,null,null,null,30,"NonRes-sAll-mHVAC-Chiller_5","NonRes-sAll-mHVAC-ChillerDEER2014"]
[null,null,null,null,null,null,null,31,"","NonRes-sAll-mHVAC-DX-upDEER2014"]
[null,null,null,null,null,null,null,32,"NonRes-sAll-mHVAC-DX-up_5","NonRes-sAll-mHVAC-DX-upDEER2016"]
[null,null,null,null,null,null,null,33,"","NonRes-sAll-mHVAC-PkgDEER2017"]
[null,null,null,null,null,null,null,34,"NonRes-sAll-mHVAC-Pkg_5","NonRes-sAll-mHVAC-PkgDEER2019"]
[null,null,null,null,null,null,null,35,"NonRes-sAll-mHVAC-RCA_5","NonRes-sAll-mHVAC-RCADEER2014"]
[null,null,null,null,null,null,null,36,"NonRes-sAll-mLEDARefl_5","NonRes-sAll-mLEDAReflExAnte2017"]
[null,null,null,null,null,null,null,37,"NonRes-sAll-mLEDSpcl_5","NonRes-sAll-mLEDSpclExAnte2017"]
[null,null,null,null,null,null,null,38,"NonRes-sAll-mLFDL-Deemed_5","NonRes-sAll-mLFDL-DeemedDEER2016"]
[null,null,null,null,null,null,null,39,"NonRes-sAll-mLFHB-Deemed_5","NonRes-sAll-mLFHB-DeemedDEER2016"]
[null,null,null,null,null,null,null,40,"NonRes-sAll-mLFHBT5-Deemed_5","NonRes-sAll-mLFHBT5-DeemedDEER2016"]
[null,null,null,null,null,null,null,41,"NonRes-sAll-mLFOth-Deemed_5","NonRes-sAll-mLFOth-DeemedDEER2016"]
[null,null,null,null,null,null,null,42,"","NonRes-sAll-mLtg-ciDEER2016"]
[null,null,null,null,null,null,null,43,"NonRes-sAll-mLtg-ci_5","NonRes-sAll-mLtg-ciDEER2019"]
[null,null,null,null,null,null,null,44,"NonRes-sAll-mLtgCtrl_5","NonRes-sAll-mLtgCtrlDEER2014"]
[null,null,null,null,null,null,null,45,"NonRes-sAll-mLtgCtrl-htr_5","NonRes-sAll-mLtgCtrl-htrDEER2014"]
[null,null,null,null,null,null,null,46,"","NonRes-sAll-MLtgLED-DeemedDEER2016"]
[null,null,null,null,null,null,null,47,"NonRes-sAll-mOccSens_5","NonRes-sAll-mOccSensDEER2014"]
[null,null,null,null,null,null,null,48,"","NonRes-sAll-mPipeInsDEER2014"]
[null,null,null,null,null,null,null,49,"","NonRes-sAll-mPipeIns-ciDEER2016"]
[null,null,null,null,null,null,null,50,"NonRes-sAll-mPipeIns-ci_5","NonRes-sAll-mPipeIns-ciDEER2019"]
[null,null,null,null,null,null,null,51,"","NonRes-sAll-mPipeIns-deemedDEER2016"]
[null,null,null,null,null,null,null,52,"NonRes-sAll-mPipeIns-deemed_5","NonRes-sAll-mPipeIns-deemedDEER2019"]
[null,null,null,null,null,null,null,53,"","NonRes-sAll-mPmpTstDEER2014"]
[null,null,null,null,null,null,null,54,"NonRes-sAll-mPOC_5","NonRes-sAll-mPOCDEER2014"]
[null,null,null,null,null,null,null,55,"","NonRes-sAll-mRCx-ciDEER2014"]
[null,null,null,null,null,null,null,56,"","NonRes-sAll-mRCx-dnDEER2014"]
[null,null,null,null,null,null,null,57,"NonRes-sAll-mRfg-DG_5","NonRes-sAll-mRfg-DGDEER2014"]
[null,null,null,null,null,null,null,58,"NonRes-sAll-mRfg-SC_5","NonRes-sAll-mRfg-SCDEER2014"]
[null,null,null,null,null,null,null,59,"NonRes-sAll-mStmTrp-ci_5","NonRes-sAll-mStmTrp-ciDEER2014"]
[null,null,null,null,null,null,null,60,"NonRes-sAll-mStmTrp-dn_5","NonRes-sAll-mStmTrp-dnDEER2014"]
[null,null,null,null,null,null,null,61,"","NonRes-sAll-mT5T8-ciDEER2014"]
[null,null,null,null,null,null,null,62,"","NonRes-sAll-mT5T8-dnDEER2014"]
[null,null,null,null,null,null,null,63,"","NonRes-sAll-mT8-dirDEER2014"]
[null,null,null,null,null,null,null,64,"NonRes-sAll-NC_5","NonRes-sAll-NCDEER2016"]
[null,null,null,null,null,null,null,65,"NonRes-sGHS-mHtCrtn-ci_5","NonRes-sGHS-mHtCrtn-ciDEER2014"]
[null,null,null,null,null,null,null,66,{"$f":"G69","v":"NonRes-sGHS-mHtCrtn-dn_5"},{"$f":"+A69&B69","v":"NonRes-sGHS-mHtCrtn-dnDEER2014"}]
[null,null,null,null,null,null,null,{"$f":"+H469+1","v":67},"NonRes-sGHS-mIRF-ci_5","NonRes-sGHS-mIRF-ciDEER2014"]
[null,null,null,null,null,null,null,68,"NonRes-sGHS-mIRF-dn_5","NonRes-sGHS-mIRF-dnDEER2014"]
[null,null,null,null,null,null,null,69,"Res-Default>2_5","Res-Default>2DEER2014"]
[null,null,null,null,null,null,null,70,"Res-Default-HTR-di_5","Res-Default-HTR-diDEER2014"]
[null,null,null,null,null,null,null,71,"Res-mDHWaerator_5","Res-mDHWaeratorDEER2014"]
[null,null,null,null,null,null,null,72,"Res-mDHWaerator_5","Res-mDHWaeratorDEER2014"]
[null,null,null,null,null,null,null,73,"Res-sAll-mCFL_5","Res-sAll-mCFLExAnte2017"]
[null,null,null,null,null,null,null,74,"","Res-sAll-mCFLgt30w-upDEER2015"]
[null,null,null,null,null,null,null,75,"","Res-sAll-mCFLlte30w-upDEER2015"]
[null,null,null,null,null,null,null,76,"","Res-sAll-mCFL-upDEER2014"]
[null,null,null,null,null,null,null,77,"","Res-sAll-mCFL-upDEER2016"]
[null,null,null,null,null,null,null,78,"Res-sAll-mCW_5","Res-sAll-mCWDEER2014"]
[null,null,null,null,null,null,null,79,"Res-sAll-mDHWgt62_5","Res-sAll-mDHWgt62DEER2014"]
[null,null,null,null,null,null,null,80,"Res-sAll-mDHWshwr_5","Res-sAll-mDHWshwrDEER2014"]
[null,null,null,null,null,null,null,81,"Res-sAll-mDuctSeal_5","Res-sAll-mDuctSealDEER2014"]
[null,null,null,null,null,null,null,82,"Res-sAll-mELtg-DnStrmDeemed_5","Res-sAll-mELtg-DnStrmDeemedDEER2019"]
[null,null,null,null,null,null,null,83,"","Res-sAll-mFrzrRecDEER2014"]
[null,null,null,null,null,null,null,84,"Res-sAll-mFrzrRec_5","Res-sAll-mFrzrRecDEER2016"]
[null,null,null,null,null,null,null,85,"Res-sAll-mHVAC-DX-up_5","Res-sAll-mHVAC-DX-upDEER2016"]
[null,null,null,null,null,null,null,86,"","Res-sAll-mHVAC-Pkg-dnDEER2017"]
[null,null,null,null,null,null,null,87,"Res-sAll-mHVAC-Pkg-dn_5","Res-sAll-mHVAC-Pkg-dnDEER2019"]
[null,null,null,null,null,null,null,88,"Res-sAll-mHVAC-RCA_5","Res-sAll-mHVAC-RCADEER2014"]
[null,null,null,null,null,null,null,89,"Res-sAll-mHVAC-RmAC-dn_5","Res-sAll-mHVAC-RmAC-dnDEER2014"]
[null,null,null,null,null,null,null,90,"Res-sAll-mLEDARefl_5","Res-sAll-mLEDAReflExAnte2017"]
[null,null,null,null,null,null,null,91,"Res-sAll-mLEDSpcl_5","Res-sAll-mLEDSpclExAnte2017"]
[null,null,null,null,null,null,null,92,"","Res-sAll-MLtgLED-DeemedDEER2016"]
[null,null,null,null,null,null,null,93,"","Res-sAll-mRefgRecDEER2014"]
[null,null,null,null,null,null,null,94,"Res-sAll-mRefgRec_5","Res-sAll-mRefgRecDEER2016"]
[null,null,null,null,null,null,null,95,"","Res-sSF-mACgt14-dnDEER2014"]
[null,null,null,null,null,null,null,96,"","Res-sSF-mACgt16-dnDEER2014"]
[null,null,null,null,null,null,null,97,"","Res-sSF-mHPesDEER2014"]
[null,null,null,null,null,null,null,98,"Res-sSF-mShellIns_5","Res-sSF-mShellInsDEER2014"]
[null,null,null,null,null,null,null,99,"TV-UpStream_5","TV-UpStreamDEER2015"]

{"sheet":"2017 EE Programs List","index":6,"n_rows":408,"n_cols":13,"rows_kept":408,"cut":false,"hidden":false,"merged":[]}
[null,null,null,"PA index:",{"$f":"MATCH('Project Components'!C5,'2017 EE Programs List'!F3:L3,0)","v":1}]
[null,null,null,"Rows in PA list:",{"$f":"INDEX(F2:L2,PAind)","v":105},{"$f":"COUNTA(F4:F108)","v":105},{"$f":"COUNTA(G4:G108)","v":96},94,85,4,4,17]
["PA","PrgID","ProgramName","PrimarySector","Proglist","PGE","SCE","SCG","SDGE","BAY","MCE","SCR","Current"]
["PGE","PGE21001","Residential Energy Advisor","Residential",null,"PGE21001","SCE-13-L-001","SCG3701","SDGE3201","BAYREN01","MCE01","SCR-EUC-A1",{"$f":"IF(ISBLANK(INDEX(F4:L4,$E$1)),\"\",INDEX(F4:L4,$E$1))","v":"PGE21001"}]
["PGE","PGE210010","Pay for Performance Pilot","Residential",null,"PGE210010","SCE-13-L-002A","SCG3702","SDGE3203","BAYREN02","MCE02","SCR-EUC-A2","PGE210010"]
["PGE","PGE210011","Residential Energy Fitness program","Residential",null,"PGE210011","SCE-13-L-002B","SCG3703","SDGE3204","BAYREN03","MCE03","SCR-EUC-A3","PGE210011"]
["PGE","PGE21002","Plug Load and Appliances","Residential",null,"PGE21002","SCE-13-L-002C","SCG3704","SDGE3207","BAYREN04","MCE04","SCR-EUC-A4","PGE21002"]
["PGE","PGE21003","Multifamily Energy Efficiency","Residential",null,"PGE21003","SCE-13-L-002D","SCG3705","SDGE3209",null,null,"SCR-EUC-A5","PGE21003"]
["PGE","PGE21004","Energy Upgrade California","Residential",null,"PGE21004","SCE-13-L-002E","SCG3706","SDGE3211",null,null,"SCR-EUC-A6","PGE21004"]
["PGE","PGE21005","Residential New Construction","Residential",null,"PGE21005","SCE-13-L-002F","SCG3707","SDGE3212",null,null,"SCR-FIN-B1","PGE21005"]
["PGE","PGE21006","Residential HVAC","Residential",null,"PGE21006","SCE-13-L-002G","SCG3708","SDGE3213",null,null,"SCR-FIN-B2","PGE21006"]
["PGE","PGE21007","California New Homes Multifamily","Residential",null,"PGE21007","SCE-13-L-002H","SCG3709","SDGE3215",null,null,"SCR-FIN-B4","PGE21007"]
["PGE","PGE21008","Enhance Time Delay Relay","Residential",null,"PGE21008","SCE-13-L-002I","SCG3710","SDGE3216",null,null,"SCR-FIN-B5","PGE21008"]
["PGE","PGE21009","Direct Install for Manufactured and Mobile Homes","Residential",null,"PGE21009","SCE-13-L-002J","SCG3711","SDGE3217",null,null,"SCR-REC-C1","PGE21009"]
["PGE","PGE21011","Commercial Calculated Incentives","Commercial",null,"PGE21011","SCE-13-L-002K","SCG3712","SDGE3220",null,null,"SCR-REC-C2","PGE21011"]
["PGE","PGE210112","School Energy Efficiency","Commercial",null,"PGE210112","SCE-13-L-002L","SCG3713","SDGE3222",null,null,"SCR-REC-C3","PGE210112"]
["PGE","PGE210113","Energy Fitness Program","Commercial",null,"PGE210113","SCE-13-L-002M","SCG3714","SDGE3223",null,null,"SCR-REC-C4","PGE210113"]
["PGE","PGE210118","Retail Energy Efficiency","Commercial",null,"PGE210118","SCE-13-L-002N","SCG3715","SDGE3224",null,null,"SCR-REC-C5","PGE210118"]
["PGE","PGE210119","LED Accelerator","Commercial",null,"PGE210119","SCE-13-L-002O","SCG3716","SDGE3225",null,null,"SCR-REC-C6","PGE210119"]
["PGE","PGE21012","Commercial Deemed Incentives","Commercial",null,"PGE21012","SCE-13-L-002P","SCG3717","SDGE3226",null,null,"SCR-REC-C7","PGE21012"]
["PGE","PGE210123","Healthcare Energy Efficiency Program","Commercial",null,"PGE210123","SCE-13-L-002Q","SCG3718","SDGE3227",null,null,null,"PGE210123"]
["PGE","PGE210126","K-12 Private Schools and Colleges Audit Retro","Commercial",null,"PGE210126","SCE-13-L-002R","SCG3719","SDGE3228",null,null,null,"PGE210126"]
["PGE","PGE210128","Enovity SMART","Commercial",null,"PGE210128","SCE-13-L-002Rollup","SCG3720","SDGE3229",null,null,null,"PGE210128"]
["PGE","PGE210129","Nexant AERCx","Commercial",null,"PGE210129","SCE-13-L-002S","SCG3721","SDGE3230",null,null,null,"PGE210129"]
["PGE","PGE21013","Commercial Continuous Energy Improvement","Commercial",null,"PGE21013","SCE-13-L-002T","SCG3722","SDGE3231",null,null,null,"PGE21013"]
["PGE","PGE210130","CLEAResult AERCx","Commercial",null,"PGE210130","SCE-13-L-002U","SCG3723","SDGE3233",null,null,null,"PGE210130"]
["PGE","PGE210131","PECI AERCx","Commercial",null,"PGE210131","SCE-13-L-002V","SCG3724","SDGE3234",null,null,null,"PGE210131"]
["PGE","PGE210135","Water Infrastructure and System Efficiency","Industrial",null,"PGE210135","SCE-13-L-002W","SCG3725","SDGE3235",null,null,null,"PGE210135"]
["PGE","PGE210137","Waypoint Commercial Outreach","Commercial",null,"PGE210137","SCE-13-L-003A","SCG3726","SDGE3236",null,null,null,"PGE210137"]
["PGE","PGE210138","Data Center Air Flow and Temp Optimization","Commercial",null,"PGE210138","SCE-13-L-003B","SCG3727","SDGE3237",null,null,null,"PGE210138"]
["PGE","PGE210139","SEI Energize Schools Program","Commercial",null,"PGE210139","SCE-13-L-003C","SCG3728","SDGE3239",null,null,null,"PGE210139"]
["PGE","PGE21014","Commercial Energy Advisor","Commercial",null,"PGE21014","SCE-13-L-003D","SCG3729","SDGE3240",null,null,null,"PGE21014"]
["PGE","PGE210143","Hospitality Program","Commercial",null,"PGE210143","SCE-13-L-003E","SCG3730","SDGE3241",null,null,null,"PGE210143"]
["PGE","PGE21015","Commercial HVAC","Commercial",null,"PGE21015","SCE-13-L-003F","SCG3731","SDGE3245",null,null,null,"PGE21015"]
["PGE","PGE21016","Air Care Plus","Commercial",null,"PGE21016","SCE-13-L-003G","SCG3734","SDGE3246",null,null,null,"PGE21016"]
["PGE","PGE21017","Boiler Energy Efficiency Program","Commercial",null,"PGE21017","SCE-13-SW-001A","SCG3735","SDGE3247",null,null,null,{"$f":"IF(ISBLANK(INDEX(F36:L36,$E$1)),\"\",INDEX(F36:L36,$E$1))","v":"PGE21017"}]
["PGE","PGE21018","EnergySmart Grocer","Commercial",null,"PGE21018","SCE-13-SW-001B","SCG3736","SDGE3248",null,null,null,"PGE21018"]
["PGE","PGE21021","Industrial Calculated Incentives","Industrial",null,"PGE21021","SCE-13-SW-001C","SCG3737","SDGE3249",null,null,null,"PGE21021"]
["PGE","PGE210210","Industrial Recommissioning Program","Industrial",null,"PGE210210","SCE-13-SW-001D","SCG3738","SDGE3250",null,null,null,"PGE210210"]
["PGE","PGE210211","Light Industrial Energy Efficiency","Industrial",null,"PGE210211","SCE-13-SW-001E","SCG3739","SDGE3251",null,null,null,"PGE210211"]
["PGE","PGE210212","Compressed Air and Vacuum Optimization Program","Industrial",null,"PGE210212","SCE-13-SW-001F","SCG3740","SDGE3252",null,null,null,"PGE210212"]
["PGE","PGE210213","Small Petrochemical Energy Efficiency","Industrial",null,"PGE210213","SCE-13-SW-001G","SCG3741","SDGE3253",null,null,null,"PGE210213"]
["PGE","PGE21022","Industrial Deemed Incentives","Industrial",null,"PGE21022","SCE-13-SW-002A","SCG3742","SDGE3254",null,null,null,"PGE21022"]
["PGE","PGE21023","Industrial Continuous Energy Improvement","Industrial",null,"PGE21023","SCE-13-SW-002B","SCG3743","SDGE3255",null,null,null,"PGE21023"]
["PGE","PGE21024","Industrial Energy Advisor","Industrial",null,"PGE21024","SCE-13-SW-002C","SCG3744","SDGE3257",null,null,null,"PGE21024"]
["PGE","PGE21025","California Wastewater Process Optimization","Industrial",null,"PGE21025","SCE-13-SW-002D","SCG3745","SDGE3260",null,null,null,"PGE21025"]
["PGE","PGE21026","Energy Efficiency Services for Oil Production","Industrial",null,"PGE21026","SCE-13-SW-002E","SCG3746","SDGE3261",null,null,null,"PGE21026"]
["PGE","PGE21027","Heavy Industry Energy Efficiency Program","Industrial",null,"PGE21027","SCE-13-SW-002F","SCG3747","SDGE3262",null,null,null,"PGE21027"]
["PGE","PGE21028","Industrial Compressed Air Program","Industrial",null,"PGE21028","SCE-13-SW-002G","SCG3748","SDGE3264",null,null,null,"PGE21028"]
["PGE","PGE21029","Refinery Energy Efficiency Program","Industrial",null,"PGE21029","SCE-13-SW-002H","SCG3749","SDGE3266",null,null,null,"PGE21029"]
["PGE","PGE21030","Industrial Strategic Energy Management","Industrial",null,"PGE21030","SCE-13-SW-003A","SCG3750","SDGE3267",null,null,null,"PGE21030"]
["PGE","PGE21031","Agricultural Calculated Incentives","Agricultural",null,"PGE21031","SCE-13-SW-003B","SCG3751","SDGE3268",null,null,null,"PGE21031"]
["PGE","PGE210311","Process Wastewater Treatment EM Pgm for Ag Food Processing","Agricultural",null,"PGE210311","SCE-13-SW-003C","SCG3752","SDGE3269",null,null,null,"PGE210311"]
["PGE","PGE210312","Dairy and Winery Industry Efficiency Solutions","Agricultural",null,"PGE210312","SCE-13-SW-003D","SCG3753","SDGE3270",null,null,null,"PGE210312"]
["PGE","PGE21032","Agricultural Deemed Incentives","Agricultural",null,"PGE21032","SCE-13-SW-004A","SCG3754","SDGE3271",null,null,null,"PGE21032"]
["PGE","PGE21033","Agricultural Continuous Energy Improvement","Agricultural",null,"PGE21033","SCE-13-SW-004B","SCG3755","SDGE3272",null,null,null,"PGE21033"]
["PGE","PGE21034","Agricultural Energy Advisor","Agricultural",null,"PGE21034","SCE-13-SW-004C","SCG3757","SDGE3273",null,null,null,"PGE21034"]
["PGE","PGE21036","Industrial Refrigeration Performance Plus","Cross-Cutting",null,"PGE21036","SCE-13-SW-004D","SCG3758","SDGE3274",null,null,null,"PGE21036"]
["PGE","PGE21039","Comprehensive Food Process Audit & Resource Efficiency Pgm","Agricultural",null,"PGE21039","SCE-13-SW-005A","SCG3759","SDGE3275",null,null,null,"PGE21039"]
["PGE","PGE21041","Primary Lighting","Residential",null,"PGE21041","SCE-13-SW-005B","SCG3760","SDGE3276",null,null,null,"PGE21041"]
["PGE","PGE21042","Lighting Innovation","Cross-Cutting",null,"PGE21042","SCE-13-SW-005C","SCG3761","SDGE3277",null,null,null,"PGE21042"]
["PGE","PGE21043","Lighting Market Transformation","Cross-Cutting",null,"PGE21043","SCE-13-SW-006","SCG3762","SDGE3278",null,null,null,"PGE21043"]
["PGE","PGE21051","Building Codes Advocacy","Cross-Cutting",null,"PGE21051","SCE-13-SW-007A","SCG3763","SDGE3279",null,null,null,"PGE21051"]
["PGE","PGE21052","Appliance Standards Advocacy","Cross-Cutting",null,"PGE21052","SCE-13-SW-007A1","SCG3764","SDGE3280",null,null,null,"PGE21052"]
["PGE","PGE21053","Compliance Improvement","Cross-Cutting",null,"PGE21053","SCE-13-SW-007B","SCG3765","SDGE3282",null,null,null,"PGE21053"]
["PGE","PGE21054","Reach Codes","Cross-Cutting",null,"PGE21054","SCE-13-SW-007C","SCG3768","SDGE3291",null,null,null,"PGE21054"]
["PGE","PGE21055","Planning and Coordination","Cross-Cutting",null,"PGE21055","SCE-13-SW-008A","SCG3769","SDGE3292",null,null,null,"PGE21055"]
["PGE","PGE21056","Code Readiness","Cross-Cutting",null,"PGE21056","SCE-13-SW-008B","SCG3770","SDGE3293",null,null,null,{"$f":"IF(ISBLANK(INDEX(F68:L68,$E$1)),\"\",INDEX(F68:L68,$E$1))","v":"PGE21056"}]
["PGE","PGE21061","Technology Development Support","Cross-Cutting",null,"PGE21061","SCE-13-SW-008C","SCG3771","SDGE3296",null,null,null,"PGE21061"]
["PGE","PGE21062","Technology Assessments","Cross-Cutting",null,"PGE21062","SCE-13-SW-008D","SCG3773","SDGE3297",null,null,null,"PGE21062"]
["PGE","PGE21063","Technology Introduction Support","Cross-Cutting",null,"PGE21063","SCE-13-SW-008E","SCG3774","SDGE3298",null,null,null,"PGE21063"]
["PGE","PGE21071","Centergies","Cross-Cutting",null,"PGE21071","SCE-13-SW-009A","SCG3776","SDGE3299",null,null,null,"PGE21071"]
["PGE","PGE21072","Connections","Cross-Cutting",null,"PGE21072","SCE-13-SW-009B","SCG3777","SDGE3300",null,null,null,"PGE21072"]
["PGE","PGE21073","Strategic Planning","Cross-Cutting",null,"PGE21073","SCE-13-SW-009C","SCG3778","SDGE3301",null,null,null,"PGE21073"]
["PGE","PGE21081","Statewide DSM Coordination & Integration","Cross-Cutting",null,"PGE21081","SCE-13-SW-010A","SCG3779","SDGE3302",null,null,null,"PGE21081"]
["PGE","PGE21091","On-Bill Financing (excludes Loan Pool)","Cross-Cutting",null,"PGE21091","SCE-13-SW-010B","SCG3780","SDGE3303",null,null,null,"PGE21091"]
["PGE","PGE210911","On-Bill Financing Alternative Pathway","Cross-Cutting",null,"PGE210911","SCE-13-SW-010C","SCG3781","SDGE3307",null,null,null,"PGE210911"]
["PGE","PGE21092","Third-Party Financing","Cross-Cutting",null,"PGE21092","SCE-13-TP-001","SCG3782","SDGE3308",null,null,null,"PGE21092"]
["PGE","PGE21093","New Financing Offerings","Cross-Cutting",null,"PGE21093","SCE-13-TP-002","SCG3783","SDGE3310",null,null,null,"PGE21093"]
["PGE","PGE2110011","California Community Colleges","Public",null,"PGE2110011","SCE-13-TP-003","SCG3793","SDGE3311",null,null,null,"PGE2110011"]
["PGE","PGE2110012","University of California/California State University","Public",null,"PGE2110012","SCE-13-TP-004","SCG3794","SDGE3312",null,null,null,"PGE2110012"]
["PGE","PGE2110013","State of California","Public",null,"PGE2110013","SCE-13-TP-005","SCG3795","SDGE3313",null,null,null,"PGE2110013"]
["PGE","PGE2110014","Department of Corrections and Rehabilitation","Public",null,"PGE2110014","SCE-13-TP-006","SCG3796","SDGE3317",null,null,null,"PGE2110014"]
["PGE","PGE2110051","Local Government Energy Action Resources (LGEAR)","Public",null,"PGE2110051","SCE-13-TP-007","SCG3797","SDGE3318",null,null,null,"PGE2110051"]
["PGE","PGE2110052","Strategic Energy Resources","Public",null,"PGE2110052","SCE-13-TP-008","SCG3798","SDGE3321",null,null,null,"PGE2110052"]
["PGE","PGE211007","Association of Monterey Bay Area Governments (AMBAG)","Public",null,"PGE211007","SCE-13-TP-009","SCG3799","SDGE3322",null,null,null,"PGE211007"]
["PGE","PGE211009","East Bay","Public",null,"PGE211009","SCE-13-TP-010","SCG3800","SDGE3323",null,null,null,"PGE211009"]
["PGE","PGE211010","Fresno","Public",null,"PGE211010","SCE-13-TP-011","SCG3801","SDGE-ESAP",null,null,null,"PGE211010"]
["PGE","PGE211011","Kern","Public",null,"PGE211011","SCE-13-TP-012","SCG3802",null,null,null,null,"PGE211011"]
["PGE","PGE211012","Madera","Public",null,"PGE211012","SCE-13-TP-013","SCG3803",null,null,null,null,"PGE211012"]
["PGE","PGE211013","Marin County","Public",null,"PGE211013","SCE-13-TP-014","SCG3804",null,null,null,null,"PGE211013"]
["PGE","PGE211014","Mendocino/Lake County","Public",null,"PGE211014","SCE-13-TP-017","SCG3805",null,null,null,null,"PGE211014"]
["PGE","PGE211015","Napa County","Public",null,"PGE211015","SCE-13-TP-018","SCG3806",null,null,null,null,"PGE211015"]
["PGE","PGE211016","Redwood Coast","Public",null,"PGE211016","SCE-13-TP-019","SCG3807",null,null,null,null,"PGE211016"]
["PGE","PGE211018","San Luis Obispo County","Public",null,"PGE211018","SCE-13-TP-020","SCG3808",null,null,null,null,"PGE211018"]
["PGE","PGE211019","San Mateo County","Public",null,"PGE211019","SCE-13-TP-021","SCG3809",null,null,null,null,"PGE211019"]
["PGE","PGE211020","Santa Barbara","Public",null,"PGE211020","SCE-13-TP-022","SCG3810",null,null,null,null,"PGE211020"]
["PGE","PGE211021","Sierra Nevada","Public",null,"PGE211021","SCE-13-TP-023",null,null,null,null,null,"PGE211021"]
["PGE","PGE211022","Sonoma County","Public",null,"PGE211022","SCE-16-L-002X",null,null,null,null,null,"PGE211022"]
["PGE","PGE211023","Silicon Valley","Public",null,"PGE211023",null,null,null,null,null,null,{"$f":"IF(ISBLANK(INDEX(F100:L100,$E$1)),\"\",INDEX(F100:L100,$E$1))","v":"PGE211023"}]
["PGE","PGE211024","San Francisco","Public",null,"PGE211024",null,null,null,null,null,null,"PGE211024"]
["PGE","PGE211025","Savings by Design (SBD)","Commercial",null,"PGE211025",null,null,null,null,null,null,"PGE211025"]
["PGE","PGE211026","North Valley","Public",null,"PGE211026",null,null,null,null,null,null,"PGE211026"]
["PGE","PGE211027","Sutter Buttes","Public",null,"PGE211027",null,null,null,null,null,null,"PGE211027"]
["PGE","PGE211028","Yolo","Public",null,"PGE211028",null,null,null,null,null,null,"PGE211028"]
["PGE","PGE211029","Solano","Public",null,"PGE211029",null,null,null,null,null,null,"PGE211029"]
["PGE","PGE211030","Northern San Joaquin Valley","Public",null,"PGE211030",null,null,null,null,null,null,"PGE211030"]
["PGE","PGE211031","Valley Innovative Energy Watch (VIEW)","Public",null,"PGE211031",null,null,null,null,null,null,"PGE211031"]
["SCE","SCE-13-L-001","Integrated Demand Side Management Pilot for Food Processing","Cross-Cutting"]
["SCE","SCE-13-L-002A","City of Beaumont Energy Leader Partnership","Public"]
["SCE","SCE-13-L-002B","City of Long Beach Energy Leader Partnership","Public"]
["SCE","SCE-13-L-002C","City of Redlands Energy Leader Partnership","Public"]
["SCE","SCE-13-L-002D","City of Santa Ana Energy Leader Partnership","Public"]
["SCE","SCE-13-L-002E","City of Simi Valley Energy Leader Partnership","Public"]
["SCE","SCE-13-L-002F","Gateway Cities Energy Leader Partnership","Public"]
["SCE","SCE-13-L-002G","Community Energy Leader Partnership","Public"]
["SCE","SCE-13-L-002H","Eastern Sierra Energy Leader Partnership","Public"]
["SCE","SCE-13-L-002I","Energy Leader Partnership Strategic Support","Public"]
["SCE","SCE-13-L-002J","Desert Cities Energy Leader Partnership","Public"]
["SCE","SCE-13-L-002K","Kern County Energy Leader Partnership","Public"]
["SCE","SCE-13-L-002L","Orange County Cities Energy Leader Partnership","Public"]
["SCE","SCE-13-L-002M","San Gabriel Valley Energy Leader Partnership","Public"]
["SCE","SCE-13-L-002N","San Joaquin Valley Energy Leader Partnership","Public"]
["SCE","SCE-13-L-002O","South Bay Energy Leader Partnership","Public"]
["SCE","SCE-13-L-002P","South Santa Barbara County Energy Leader Partnership","Public"]
["SCE","SCE-13-L-002Q","Ventura County Energy Leader Partnership","Public"]
["SCE","SCE-13-L-002R","Western Riverside Energy Leader Partnership","Public"]
["SCE","SCE-13-L-002Rollup","Energy Leader Partnership Program","Public"]
["SCE","SCE-13-L-002S","High Desert Regional Energy Leader Partnership","Public"]
["SCE","SCE-13-L-002T","West Side Community Energy Leader Partnership","Public"]
["SCE","SCE-13-L-002U","Local Government Strategic Planning Pilot Program","Public"]
["SCE","SCE-13-L-002V","North Orange County Cities","Public"]
["SCE","SCE-13-L-002W","San Bernardino Association of Governments","Public"]
["SCE","SCE-13-L-003A","California Community Colleges Energy Efficiency Partnership","Public"]
["SCE","SCE-13-L-003B","California Dept. of Corrections and Rehabilitation EE Partnership","Public"]
["SCE","SCE-13-L-003C","County of Los Angeles Energy Efficiency Partnership","Public"]
["SCE","SCE-13-L-003D","County of Riverside Energy Efficiency Partnership","Public"]
["SCE","SCE-13-L-003E","County of San Bernardino Energy Efficiency Partnership","Public"]
["SCE","SCE-13-L-003F","State of California Energy Efficiency Partnership","Public"]
["SCE","SCE-13-L-003G","UC/CSU Energy Efficiency Partnership","Public"]
["SCE","SCE-13-SW-001A","Energy Advisor Program","Residential"]
["SCE","SCE-13-SW-001B","Plug Load and Appliances Program","Residential"]
["SCE","SCE-13-SW-001C","Multifamily Energy Efficiency Rebate Program","Residential"]
["SCE","SCE-13-SW-001D","Energy Upgrade California","Residential"]
["SCE","SCE-13-SW-001E","Residential HVAC Program","Residential"]
["SCE","SCE-13-SW-001F","Residential New Construction Program","Residential"]
["SCE","SCE-13-SW-001G","Residential Direct Install Program","Residential"]
["SCE","SCE-13-SW-002A","Commercial Energy Advisor Program","Commercial"]
["SCE","SCE-13-SW-002B","Commercial Calculated Program","Commercial"]
["SCE","SCE-13-SW-002C","Commercial Deemed Incentives Program","Commercial"]
["SCE","SCE-13-SW-002D","Commercial Direct Install Program","Commercial"]
["SCE","SCE-13-SW-002E","Commercial Continuous Energy Improvement Program","Commercial"]
["SCE","SCE-13-SW-002F","Nonresidential HVAC Program","Commercial"]
["SCE","SCE-13-SW-002G","Savings By Design","Commercial"]
["SCE","SCE-13-SW-002H","Midstream Point of Purchase Program","Commercial"]
["SCE","SCE-13-SW-003A","Industrial Energy Advisor Program","Industrial"]
["SCE","SCE-13-SW-003B","Industrial Calculated Energy Efficiency Program","Industrial"]
["SCE","SCE-13-SW-003C","Industrial Deemed Energy Efficiency Program","Industrial"]
["SCE","SCE-13-SW-003D","Strategic Energy Management Program","Industrial"]
["SCE","SCE-13-SW-004A","Agriculture Energy Advisor Program","Agricultural"]
["SCE","SCE-13-SW-004B","Agriculture Calculated Energy Efficiency Program","Agricultural"]
["SCE","SCE-13-SW-004C","Agriculture Deemed Energy Efficiency Program","Agricultural"]
["SCE","SCE-13-SW-004D","Agriculture Continuous Energy Improvement Program","Agricultural"]
["SCE","SCE-13-SW-005A","Lighting Market Transformation Program","Cross-Cutting"]
["SCE","SCE-13-SW-005B","Lighting Innovation Program","Residential"]
["SCE","SCE-13-SW-005C","Primary Lighting Program","Residential"]
["SCE","SCE-13-SW-006","Integrated Demand Side Management Program","Cross-Cutting"]
["SCE","SCE-13-SW-007A","On-Bill Financing","Cross-Cutting"]
["SCE","SCE-13-SW-007A1","On-Bill Financing Loan Pool","Commercial"]
["SCE","SCE-13-SW-007B","ARRA-Originated Financing","Cross-Cutting"]
["SCE","SCE-13-SW-007C","New Finance Offerings","Cross-Cutting"]
["SCE","SCE-13-SW-008A","Building Codes and Compliance Advocacy","Cross-Cutting"]
["SCE","SCE-13-SW-008B","Appliance Standards Advocacy","Cross-Cutting"]
["SCE","SCE-13-SW-008C","Compliance Improvement","Cross-Cutting"]
["SCE","SCE-13-SW-008D","Reach Codes","Cross-Cutting"]
["SCE","SCE-13-SW-008E","Planning and Coordination","Cross-Cutting"]
["SCE","SCE-13-SW-009A","Technology Development Support","Cross-Cutting"]
["SCE","SCE-13-SW-009B","Technology Assessments","Cross-Cutting"]
["SCE","SCE-13-SW-009C","Technology Introduction Support","Cross-Cutting"]
["SCE","SCE-13-SW-010A","WE&T Centergies","Cross-Cutting"]
["SCE","SCE-13-SW-010B","WE&T Connections","Residential"]
["SCE","SCE-13-SW-010C","WE&T Planning","Cross-Cutting"]
["SCE","SCE-13-TP-001","Comprehensive Manufactured Homes","Residential"]
["SCE","SCE-13-TP-002","Cool Planet","Commercial"]
["SCE","SCE-13-TP-003","Healthcare EE Program","Commercial"]
["SCE","SCE-13-TP-004","Data Center Energy Efficiency","Commercial"]
["SCE","SCE-13-TP-005","Lodging EE Program","Commercial"]
["SCE","SCE-13-TP-006","Food & Kindred Products","Industrial"]
["SCE","SCE-13-TP-007","Primary and Fabricated Metals","Industrial"]
["SCE","SCE-13-TP-008","Nonmetallic Minerals and Products","Industrial"]
["SCE","SCE-13-TP-009","Comprehensive Chemical Products","Industrial"]
["SCE","SCE-13-TP-010","Comprehensive Petroleum Refining","Industrial"]
["SCE","SCE-13-TP-011","Oil Production","Industrial"]
["SCE","SCE-13-TP-012","Refinery Energy Efficiency Program","Industrial"]
["SCE","SCE-13-TP-013","Cool Schools","Commercial"]
["SCE","SCE-13-TP-014","Commercial Utility Building Efficiency","Commercial"]
["SCE","SCE-13-TP-017","Energy Efficiency for Entertainment Centers","Commercial"]
["SCE","SCE-13-TP-018","School Energy Efficiency Program","Commercial"]
["SCE","SCE-13-TP-019","Sustainable Communities","Cross-Cutting"]
["SCE","SCE-13-TP-020","IDEEA365 Program","Industrial"]
["SCE","SCE-13-TP-021","Enhanced Retrocommissioning","Commercial"]
["SCE","SCE-13-TP-022","Water Infrastructure Systems Energy Efficiency Program","Cross-Cutting"]
["SCE","SCE-13-TP-023","Midsize Industrial Customer Program","Industrial"]
["SCE","SCE-16-L-002X","Water Energy Nexus Program ","Public"]
["SCG","SCG3701","RES-Energy Advisor","Residential"]
["SCG","SCG3702","RES-Plug Load and Appliances","Residential"]
["SCG","SCG3703","RES-Plug Load and Appliances - POS","Residential"]
["SCG","SCG3704","RES-MFEER","Residential"]
["SCG","SCG3705","RES-Home Upgrade Program","Residential"]
["SCG","SCG3706","RES-Residential HVAC","Residential"]
["SCG","SCG3707","RES-RNC","Residential"]
["SCG","SCG3708","COM-Energy Advisor","Commercial"]
["SCG","SCG3709","COM-CEI","Commercial"]
["SCG","SCG3710","COM-Calculated Incentives","Commercial"]
["SCG","SCG3711","COM-Deemed Incentives","Commercial"]
["SCG","SCG3712","COM-NonRes HVAC","Commercial"]
["SCG","SCG3713","IND-Energy Advisor","Industrial"]
["SCG","SCG3714","IND-CEI","Industrial"]
["SCG","SCG3715","IND-Calculated Incentives","Industrial"]
["SCG","SCG3716","IND-Deemed Incentives","Industrial"]
["SCG","SCG3717","AG-Energy Advisor","Agricultural"]
["SCG","SCG3718","AG-CEI","Agricultural"]
["SCG","SCG3719","AG-Calculated Incentives","Agricultural"]
["SCG","SCG3720","AG-Deemed Incentives","Agricultural"]
["SCG","SCG3721","ET-Technology Development Support","Cross-Cutting"]
["SCG","SCG3722","ET-Technology Assessment Support","Cross-Cutting"]
["SCG","SCG3723","ET-Technology Introduction Support","Cross-Cutting"]
["SCG","SCG3724","C&S-Building Codes & Compliance Advocacy","Cross-Cutting"]
["SCG","SCG3725","C&S-Appliance Standards Advocacy","Cross-Cutting"]
["SCG","SCG3726","C&S-Compliance Enhancement","Cross-Cutting"]
["SCG","SCG3727","C&S-Reach Codes","Cross-Cutting"]
["SCG","SCG3728","C&S-Planning Coordination","Cross-Cutting"]
["SCG","SCG3729","WE&T-Centergies","Cross-Cutting"]
["SCG","SCG3730","WE&T-Connections","Cross-Cutting"]
["SCG","SCG3731","WE&T-Strategic Planning","Cross-Cutting"]
["SCG","SCG3734","IDSM-IDSM","Cross-Cutting"]
["SCG","SCG3735","FIN-On-Bill Financing","Cross-Cutting"]
["SCG","SCG3736","FIN-ARRA-Originated Financing","Cross-Cutting"]
["SCG","SCG3737","FIN-New Financing Offerings","Cross-Cutting"]
["SCG","SCG3738","LInstP-CA Department of Corrections Partnership","Public"]
["SCG","SCG3739","LInstP-California Community College Partnership","Public"]
["SCG","SCG3740","LInstP-UC/CSU/IOU Partnership","Public"]
["SCG","SCG3741","LInstP-State of CA/IOU Partnership","Public"]
["SCG","SCG3742","LGP-LA Co Partnership","Public"]
["SCG","SCG3743","LGP-Kern Co Partnership","Public"]
["SCG","SCG3744","LGP-Riverside Co Partnership","Public"]
["SCG","SCG3745","LGP-San Bernardino Co Partnership","Public"]
["SCG","SCG3746","LGP-Santa Barbara Co Partnership","Public"]
["SCG","SCG3747","LGP-South Bay Cities Partnership","Public"]
["SCG","SCG3748","LGP-San Luis Obispo Co Partnership","Public"]
["SCG","SCG3749","LGP-San Joaquin Valley Partnership","Public"]
["SCG","SCG3750","LGP-Orange County Cities Partnership","Public"]
["SCG","SCG3751","LGP-SEEC Partnership","Public"]
["SCG","SCG3752","LGP-Community Energy Partnership","Public"]
["SCG","SCG3753","LGP-Desert Cities Partnership","Public"]
["SCG","SCG3754","LGP-Ventura County Partnership","Public"]
["SCG","SCG3755","LGP-Local Government Energy Efficiency Pilots","Public"]
["SCG","SCG3757","3P-Small Industrial Facility Upgrades","Industrial"]
["SCG","SCG3758","3P-PREPPS","Commercial"]
["SCG","SCG3759","3P-On Demand Efficiency","Residential"]
["SCG","SCG3760","3P-HERS Rater Training Advancement","Residential"]
["SCG","SCG3761","3P-MF Home Tune-Up","Residential"]
["SCG","SCG3762","3P-CLEO","Residential"]
["SCG","SCG3763","3P-MF Direct Therm Savings","Residential"]
["SCG","SCG3764","3P-LivingWise","Residential"]
["SCG","SCG3765","3P-Manufactured Mobile Home","Residential"]
["SCG","SCG3768","3P-CA Sustainability Alliance","Cross-Cutting"]
["SCG","SCG3769","3P-PoF","Cross-Cutting"]
["SCG","SCG3770","3P-PACE","Cross-Cutting"]
["SCG","SCG3771","3P-Innovative Designs for Energy Efficiency Activities (IDEEA365)","Cross-Cutting"]
["SCG","SCG3773","LGP-New Partnership Programs","Public"]
["SCG","SCG3774","LGP-LG Regional Resource Placeholder","Public"]
["SCG","SCG3776","LGP-Gateway Cities Partnership","Public"]
["SCG","SCG3777","LGP-San Gabriel Valley COG Partnership","Public"]
["SCG","SCG3778","LGP-City of Santa Ana Partnership","Public"]
["SCG","SCG3779","LGP-West Side Community Energy Partnership","Public"]
["SCG","SCG3780","LGP-City of Simi Valley Partnership","Public"]
["SCG","SCG3781","LGP-City of Redlands Partnership","Public"]
["SCG","SCG3782","LGP-City of Beaumont Partnership","Public"]
["SCG","SCG3783","LGP-Western Riverside Energy Partnership","Public"]
["SCG","SCG3793","3P-IDEEA365-Instant Rebates! Point-of-Sale Foodservice Rebate Program","Commercial"]
["SCG","SCG3794","3P-IDEEA365-Water Loss Control Program","Cross-Cutting"]
["SCG","SCG3795","3P-IDEEA365-Commercial Sustainable Development Program","Commercial"]
["SCG","SCG3796","3P-IDEEA365-ODE for Campus Housing","Commercial"]
["SCG","SCG3797","3P-IDEEA365-Energy Advantage Program for Small Business","Commercial"]
["SCG","SCG3798","3P-IDEEA365-Connect","Commercial"]
["SCG","SCG3799","3P-IDEEA365-HBEEP","Commercial"]
["SCG","SCG3800","3P-IDEEA365-Clear Ice","Commercial"]
["SCG","SCG3801","LGP-North Orange County Cities Partnership","Public"]
["SCG","SCG3802","LGP-San Bernardino Regional Energy Partnership","Public"]
["SCG","SCG3803","SW-FIN-California Hub for EE Financing","Cross-Cutting"]
["SCG","SCG3804","3P-IDEEA365-On-Premise Ozone Laundry","Commercial"]
["SCG","SCG3805","SW-COM-Direct Install Program","Commercial"]
["SCG","SCG3806","Water AMI Pilot","Cross-Cutting"]
["SCG","SCG3807","COM-HOPPS-CRR Program","Commercial"]
["SCG","SCG3808","RES-HOPPS-CWHMBS Program","Residential"]
["SCG","SCG3809","COM-AB793-CEMTL Program","Commercial"]
["SCG","SCG3810","RES-AB793-REMTS Program","Residential"]
["SDGE","SDGE3201","SW-CALS-Energy Advisor-HEES, UAT","Residential"]
["SDGE","SDGE3203","SW-CALS-Plug Load and Appliances-HEER","Residential"]
["SDGE","SDGE3204","SW-CALS-Plug Load and Appliances-POS Rebates","Residential"]
["SDGE","SDGE3207","SW-CALS-MFEER","Residential"]
["SDGE","SDGE3209","SW-CALS-EUC WHRP - Advanced","Residential"]
["SDGE","SDGE3211","Local-CALS-Middle Income Direct Install (MIDI)","Residential"]
["SDGE","SDGE3212","SW-CALS-Residential HVAC-QI/QM","Residential"]
["SDGE","SDGE3213","SW-CALS - CAHP/ESMH-CA Advanced Homes","Residential"]
["SDGE","SDGE3215","SW-COM-Strategic Energy Management ","Commercial"]
["SDGE","SDGE3216","SW-COM-Customer Services-Benchmarking","Commercial"]
["SDGE","SDGE3217","SW-COM-Customer Services- Audits NonRes","Commercial"]
["SDGE","SDGE3220","SW-COM-Calculated Incentives-Calculated","Commercial"]
["SDGE","SDGE3222","SW-COM-Calculated Incentives-Savings by Design","Commercial"]
["SDGE","SDGE3223","SW-COM-Deemed Incentives-Commercial Rebates","Commercial"]
["SDGE","SDGE3224","SW-COM-Deemed Incentives-HVAC Commercial","Commercial"]
["SDGE","SDGE3225","SW-COM-Deemed Incentives-HVAC Core","Commercial"]
["SDGE","SDGE3226","SW-COM Direct Install","Commercial"]
["SDGE","SDGE3227","SW-IND-Strategic Energy Management ","Industrial"]
["SDGE","SDGE3228","SW-IND-Customer Services-Benchmarking","Industrial"]
["SDGE","SDGE3229","SW-IND-Customer Services-Audits NonRes","Industrial"]
["SDGE","SDGE3230","SW-IND-Customer Services-Audits CIEEP","Industrial"]
["SDGE","SDGE3231","SW-IND-Calculated Incentives-Calculated","Industrial"]
["SDGE","SDGE3233","SW-IND-Deemed Incentives","Industrial"]
["SDGE","SDGE3234","SW-AG-Customer Services-Benchmarking","Agricultural"]
["SDGE","SDGE3235","SW-AG-Customer Services-Pump Test Services","Agricultural"]
["SDGE","SDGE3236","SW-AG-Customer Services-Audits","Agricultural"]
["SDGE","SDGE3237","SW-AG-Calculated Incentives-Calculated","Agricultural"]
["SDGE","SDGE3239","SW-AG-Deemed Incentives","Agricultural"]
["SDGE","SDGE3240","SW-Lighting-Lighting Market Transformation","Cross-Cutting"]
["SDGE","SDGE3241","SW-Lighting-Lighting Innovation-ETPC MD","Cross-Cutting"]
["SDGE","SDGE3245","SW-Lighting-Primary Lighting","Cross-Cutting"]
["SDGE","SDGE3246","SW-ET-Technology Introduction Support","Cross-Cutting"]
["SDGE","SDGE3247","SW-ET-Technology Assessment Support","Cross-Cutting"]
["SDGE","SDGE3248","SW-ET-Technology Deployment Support","Cross-Cutting"]
["SDGE","SDGE3249","SW C&S - Building Codes & Compliance Advocacy","Cross-Cutting"]
["SDGE","SDGE3250","SW C&S - Appliance Standards Advocacy","Cross-Cutting"]
["SDGE","SDGE3251","SW C&S - Compliance Enhancement","Cross-Cutting"]
["SDGE","SDGE3252","SW C&S - Reach Codes","Cross-Cutting"]
["SDGE","SDGE3253","SW C&S - Planning Coordination","Cross-Cutting"]
["SDGE","SDGE3254","SW-WE&T-Centergies","Cross-Cutting"]
["SDGE","SDGE3255","SW-WE&T-Connections","Cross-Cutting"]
["SDGE","SDGE3257","SW-WE&T-Strategic Planning","Cross-Cutting"]
["SDGE","SDGE3260","Local-IDSM-ME&O-Local Marketing (EE)","Cross-Cutting"]
["SDGE","SDGE3261","Local-IDSM-ME&O-Behavioral Programs (EE)","Residential"]
["SDGE","SDGE3262","SW-FIN-On-Bill Finance","Commercial"]
["SDGE","SDGE3264","SW-FIN-New Finance Offerings","Commercial"]
["SDGE","SDGE3266","LInstP-CA Department of Corrections Partnership","Public"]
["SDGE","SDGE3267","LInstP-California Community College Partnership","Public"]
["SDGE","SDGE3268","LInstP-UC/CSU/IOU Partnership","Public"]
["SDGE","SDGE3269","LInstP-State of California /IOU","Public"]
["SDGE","SDGE3270","LInstP-University of San Diego Partnership","Public"]
["SDGE","SDGE3271","LInstP-San Diego County Water Authority Partnership","Public"]
["SDGE","SDGE3272","LGP- City of Chula Vista Partnership","Public"]
["SDGE","SDGE3273","LGP- City of San Diego Partnership","Public"]
["SDGE","SDGE3274","LGP- County of San Diego Partnership","Public"]
["SDGE","SDGE3275","LGP- Port of San Diego Partnership","Public"]
["SDGE","SDGE3276","LGP- SANDAG Partnership","Public"]
["SDGE","SDGE3277","LGP- SEEC Partnership","Public"]
["SDGE","SDGE3278","LGP- Emerging Cities Partnership","Public"]
["SDGE","SDGE3279","3P-Res-Comprehensive Manufactured-Mobile Home","Residential"]
["SDGE","SDGE3280","3P-IDEA","Cross-Cutting"]
["SDGE","SDGE3282","SW-IDSM-IDSM","Cross-Cutting"]
["SDGE","SDGE3291","SW-Ind-Customer Services-Pump Test Services","Industrial"]
["SDGE","SDGE3292","SW-Com-Customer Services-Pump Test Services","Commercial"]
["SDGE","SDGE3293","SW-CALS - Residential HVAC-HVAC Core","Residential"]
["SDGE","SDGE3296","SW-Small Bus Lease Off Bill","Commercial"]
["SDGE","SDGE3297","SW-SFLP","Residential"]
["SDGE","SDGE3298","SW-Med/Large OBR","Commercial"]
["SDGE","SDGE3299","SW-MMMFP OBR","Residential"]
["SDGE","SDGE3300","SW-Small Bus Lease OBR","Commercial"]
["SDGE","SDGE3301","SW-Small Bus Loan OBR","Commercial"]
["SDGE","SDGE3302","SW-CALS - Residential HVAC Upstream","Residential"]
["SDGE","SDGE3303","SW-CALS - HVAC to Code Compliance","Residential"]
["SDGE","SDGE3307","3P - ZELDA","Commercial"]
["SDGE","SDGE3308","SW-ME&O","Commercial"]
["SDGE","SDGE3310","Multifamily Heat Pump Optimizer","Residential"]
["SDGE","SDGE3311","3P - Energy Advantage Program EAP","Commercial"]
["SDGE","SDGE3312","Finance IT OBR","Cross-Cutting"]
["SDGE","SDGE3313","Locational Energy Efficiency Program (LEE)","Cross-Cutting"]
["SDGE","SDGE3317","HOPPs - Building Retro-Commissioning","Commercial"]
["SDGE","SDGE3318","HOPPs - Multi Family","Residential"]
["SDGE","SDGE3321","Labor Loaders","Public"]
["SDGE","SDGE3322","3P - Streamlined Ag Efficiency (SAE)","Agricultural"]
["SDGE","SDGE3323","3P - Mid-Market Dynamic Energy Efficiency Program (MMDEEP)","Commercial"]
["SDGE","SDGE-ESAP","Energy Savings Assistance Program (ESA)","Residential"]
["BAY","BAYREN01","Single Family","Residential"]
["BAY","BAYREN02","Multi Family","Residential"]
["BAY","BAYREN03","Codes and Standards Program","Cross-Cutting"]
["BAY","BAYREN04","Financing","Cross-Cutting"]
["MCE","MCE01","Multi-Family","Residential"]
["MCE","MCE02","Small Commercial","Commercial"]
["MCE","MCE03","Single Family","Residential"]
["MCE","MCE04","Financing Pilots","Cross-Cutting"]
["SCR","SCR-EUC-A1","Local Marketing and Outreach","Residential"]
["SCR","SCR-EUC-A2","Green Building Labeling","Residential"]
["SCR","SCR-EUC-A3","Flex Path Incentives","Residential"]
["SCR","SCR-EUC-A4","Contractor Outreach and Training","Residential"]
["SCR","SCR-EUC-A5","Multifamily Incentives","Residential"]
["SCR","SCR-EUC-A6","Low-Income Single Family Residential","Residential"]
["SCR","SCR-FIN-B1","Public Building Loan Loss Reserve","Commercial"]
["SCR","SCR-FIN-B2","EUC Residential Loan Loss Reserve","Residential"]
["SCR","SCR-FIN-B4","Non-Residential PACE","Commercial"]
["SCR","SCR-FIN-B5","Public Agency Revolving Loan Fund","Public"]
["SCR","SCR-REC-C1","Aggregated Regional Procurement","Public"]
["SCR","SCR-REC-C2","Integrated Comprehensive Whole Building Retrofits","Public"]
["SCR","SCR-REC-C3","Regional Climate Action and Energy Plan","Cross-Cutting"]
["SCR","SCR-REC-C4","Water-Energy Nexus","Cross-Cutting"]
["SCR","SCR-REC-C5","Regional Energy Project Tracking and Permitting (CEEPMS)","Public"]
["SCR","SCR-REC-C6","Marketing, Outreach, Education, and Training","Public"]
["SCR","SCR-REC-C7","Workforce Development","Cross-Cutting"]

{"sheet":"lookup","index":7,"n_rows":410,"n_cols":31,"rows_kept":410,"cut":false,"hidden":false,"merged":[]}
[]
[null,null,null,null,null,null,null,null,null,null,null,null,null,null,null,null,null,null,null,null,"Calculation"]
[null,"UseCategory","UseSubCategory","TechGroup","TechType",null,null,"UseCategory","UseSubCategory","TechGroup","TechType",null,null,null,"PA",null,"Msr Type","NTG","index",null,"Type","notes","Discount rates",null,null,"Project Type",null,"Measure Type","notes",null,"Date Range"]
[null,"AppPlug","Electronics","Electronics","AllEquip",null,null,"AppPlug","Any","AirComp","AirEcono",null,null,null,"PGE",null,"Nat'l Gas","NTGR_therm",8,null,"Deemed",null,"PGE",7.7499999999999999E-2,null,"Process",null,"ROB/NC/NR","Use EUL value associated with EUL_ID",null,"before 2016"]
[null,"AppPlug","Electronics","Electronics","AllEquip",null,null,"BldgEnv","Controls","BldgShell","AllEquip",null,null,null,"SCE",null,"Electric","NTGR_kWh",7,null,"Custom","allow EUL value","SCE",7.7600000000000002E-2,null,"Building",null,"AOE","Use RUL value associated with EUL_ID",null,"Jan2016 - Dec2016"]
[null,"AppPlug","Electronics","Electronics","AllEquip",null,null,"CompAir","Cooking","Chiller","Any",null,null,null,"SCG",null,"Both","NTGR_kWh",7,null,"NMEC","allow EUL value","SCG",7.7700000000000005E-2,null,null,null,null,null,null,"Jan2017 - Jun2017"]
[null,"AppPlug","Electronics","Electronics","DesktopComp",null,null,"ComRefrig","Diagnostic","Clean_equip","ASD",null,null,null,"SDGE",null,null,null,null,null,null,null,"SDGE",7.7800000000000008E-2,null,null,null,null,null,null,"Jul2017 - Dec2018"]
[null,"AppPlug","Electronics","Electronics","OccSensPlug",null,null,"FoodServ","Display","Cook_Equip","Boiler_Et",null,null,null,"BAY",null,null,null,null,null,null,null,"MCE",7.7900000000000011E-2,null,null,null,null,null,null,"after 2018"]
[null,"AppPlug","Electronics","Electronics","TV",null,null,"HVAC","Distribute","dxAC_equip","CentBstr",null,null,null,"MCE",null,null,null,null,null,null,null,"Bay",7.8000000000000014E-2]
[null,"AppPlug","KitchenApp","Clean_equip","Dishwash",null,null,"Irrigate","Electronics","dxHP_equip","CFL_fixt",null,null,null,"SCR",null,null,null,null,null,null,null,"SCR",7.8100000000000017E-2]
[null,"AppPlug","KitchenApp","Clean_equip","DishWash",null,null,"Lighting","EnvCtrl","Electronics","CFL_lamp"]
[null,"AppPlug","KitchenApp","Ref_Storage","Freezer",null,null,"ProcDist","Equipment","EvapCool_eq","CFLint_lamp"]
[null,"AppPlug","KitchenApp","Ref_Storage","Freezer",null,null,"Process","EvapSepDehyd","Fenest","ClothesWash"]
[null,"AppPlug","KitchenApp","Ref_Storage","Refrig",null,null,"ProcHeat","FarmIrrig","FoodService","ClothesWasher"]
[null,"AppPlug","KitchenApp","Ref_Storage","Refrig",null,null,"ProcRefrig","Fenestration","HeatReject","ComEvap"]
[null,"AppPlug","Laundry","Clean_equip","ClothesWash",null,null,"Recreate","HeatCool","HV_AirDist","CoolRoof"]
[null,"AppPlug","Laundry","Clean_equip","ClothesWash",null,null,"Service","Heating","HV_Tech","CycAirDryr"]
[null,"AppPlug","Laundry","Clean_equip","ClothesWash",null,null,"Service","HtRej","Irrigation","DCV"]
[null,"AppPlug","Laundry","Clean_equip","ClothesWasher",null,null,"SHW","InCommon","LiquidCirc","DesktopComp"]
[null,"AppPlug","Office_eq","Electronics","AllEquip",null,null,"WhlBldg","InExit","Ltg_Controls","Dishwash"]
[null,"AppPlug","Office_eq","Electronics","MoveSensor",null,null,null,"InGen","Ltg_Fixture","DuctInsC"]
[null,"AppPlug","Office_eq","Electronics",null,null,null,null,"InTask","Ltg_Lamp","DuctInsul"]
[null,"AppPlug","Vending","Electronics","MoveSensor",null,null,null,"KitchenApp","Ltg_Plugin","DuctSysC"]
[null,"BldgEnv","Fenestration","Fenest","WinFilm",null,null,null,"Laundry","Ltg_ScrewIn","EMS"]
[null,"BldgEnv","Fenestration","Fenest","WinFilm",null,null,null,"Maintenance","Motor","EvapFan"]
[null,"BldgEnv","Fenestration","Fenest","WinFilm",null,null,null,"ManufDryAir","Motor_Spd","Exit_fixt"]
[null,"BldgEnv","Fenestration","Fenest",null,null,null,null,"Office_eq","PoolSpa_eq","FaucetAer"]
[null,"BldgEnv","Fenestration","Fenest",null,null,null,null,"Opaque","PumpSystem","FloorIns"]
[null,"BldgEnv","Fenestration","Fenest",null,null,null,null,"OutCommon","Ref_SelfCon","FlowTempCtrl"]
[null,"BldgEnv","Opaque","BldgShell","CoolRoof",null,null,null,"OutDuskDawn","Ref_Storage","Freezer"]
[null,"BldgEnv","Opaque","BldgShell","CoolRoof",null,null,null,"OutGen","SHW_Tech","Fryer"]
[null,"BldgEnv","Opaque","BldgShell","FloorIns",null,null,null,"OutSign","SpaceHtg_eq","GasFurnace"]
[null,"BldgEnv","Opaque","BldgShell","FloorIns",null,null,null,"Packaging","SteamCirc","Gasket"]
[null,"BldgEnv","Opaque","BldgShell","WallBlowIns",null,null,null,"PointOfUse","SteamHtg_eq","Griddle"]
[null,"BldgEnv","Opaque","BldgShell",null,null,null,null,"Pool","WaterFixt","HandWrap"]
[null,"BldgEnv","Opaque","BldgShell",null,null,null,null,"ProdChill","WaterHtg_eq","HeatRecov"]
[null,"BldgEnv","Opaque","BldgShell",null,null,null,null,"ProdStore","WhlBldg","HID_fixt"]
[null,"BldgEnv","Opaque","BldgShell",null,null,null,null,"Pumping",null,"HoldBin"]
[null,"BldgEnv","Opaque","BldgShell",null,null,null,null,"RefDisplay",null,"HP_EF"]
[null,"CompAir","ManufDryAir","AirComp","CycAirDryr",null,null,null,"Refrig",null,"IceMach"]
[null,"CompAir",null,"Motor_Spd","ASD",null,null,null,"RetroComm",null,"Incan_lamp"]
[null,"CompAir",null,null,null,null,null,null,"Seasonal",null,"Ind_LmpBlst"]
[null,"ComRefrig","Display","Ref_Storage","Gasket",null,null,null,"SpaceCool",null,"LED_fixt"]
[null,"ComRefrig","Display","Ref_Storage",null,null,null,null,"SpaceHeat",null,"LED_lamp"]
[null,"ComRefrig","Display","Ref_Storage",null,null,null,null,"SteamDist",null,"LinFluor_fixt"]
[null,"ComRefrig","Display","Ref_Storage",null,null,null,null,"Storage",null,"LtSensor"]
[null,"ComRefrig","Display","Ref_Storage",null,null,null,null,"Vending",null,"LtString"]
[null,"ComRefrig","Equipment","Ref_SelfCon","IceMach",null,null,null,"VentAirDist",null,"MoveSensor"]
[null,"ComRefrig","Equipment","Ref_Storage","EvapFan",null,null,null,"WBUpgrade",null,"multiTech"]
[null,"ComRefrig","Equipment","Ref_Storage","ReachIn",null,null,null,null,null,"OccSensor"]
[null,"ComRefrig","Equipment","Ref_Storage","ReachIn",null,null,null,null,null,"OccSensPlug"]
[null,"ComRefrig","Equipment","Ref_Storage","Refrig_sys",null,null,null,null,null,"OvenComb"]
[null,"ComRefrig","Equipment","Ref_Storage","Refrig_sys",null,null,null,null,null,"OvenConv"]
[null,"ComRefrig","Equipment","Ref_Storage","Refrig_sys",null,null,null,null,null,"PipeIns"]
[null,"ComRefrig","Equipment","Ref_Storage","Refrig_sys",null,null,null,null,null,"pkgEER"]
[null,"ComRefrig","Equipment","Ref_Storage","Refrig_sys",null,null,null,null,null,"PlugIn_fixt"]
[null,"ComRefrig","Storage","Ref_Storage","Gasket",null,null,null,null,null,"PoolCover"]
[null,"ComRefrig","Storage","Ref_Storage","ReachIn",null,null,null,null,null,"PumpMtr"]
[null,"ComRefrig","Storage","Ref_Storage","StripCurt",null,null,null,null,null,"ReachIn"]
[null,"ComRefrig","Storage","Ref_Storage",null,null,null,null,null,null,"Refrig"]
[null,"ComRefrig","Storage","Ref_Storage",null,null,null,null,null,null,"Refrig_sys"]
[null,"ComRefrig","Storage","Ref_Storage",null,null,null,null,null,null,"RefrigLtg"]
[null,"FoodServ","Cooking","Cook_Equip","Fryer",null,null,null,null,null,"RefWareCool"]
[null,"FoodServ","Cooking","Cook_Equip","Fryer",null,null,null,null,null,"ResEvap"]
[null,"FoodServ","Cooking","Cook_Equip","Fryer",null,null,null,null,null,"ShowerHd"]
[null,"FoodServ","Cooking","Cook_Equip","Griddle",null,null,null,null,null,"Steamer"]
[null,"FoodServ","Cooking","Cook_Equip","Griddle",null,null,null,null,null,"SteamTrap"]
[null,"FoodServ","Cooking","Cook_Equip","OvenComb",null,null,null,null,null,"StripCurt"]
[null,"FoodServ","Cooking","Cook_Equip","OvenComb",null,null,null,null,null,"SubBstr"]
[null,"FoodServ","Cooking","Cook_Equip","OvenConv",null,null,null,null,null,"SubWell"]
[null,"FoodServ","Cooking","Cook_Equip","OvenConv",null,null,null,null,null,"TankIns"]
[null,"FoodServ","Cooking","Cook_Equip","OvenConv",null,null,null,null,null,"TempReset"]
[null,"FoodServ","Cooking","Cook_Equip","Steamer",null,null,null,null,null,"Timer"]
[null,"FoodServ","Cooking","Cook_Equip","Steamer",null,null,null,null,null,"Tstat"]
[null,"FoodServ","Cooking","Cook_equip",null,null,null,null,null,null,"TurbBstr"]
[null,"FoodServ","Cooking","FoodService","HoldBin",null,null,null,null,null,"TurbWell"]
[null,"FoodServ","Packaging","FoodService","HandWrap",null,null,null,null,null,"TV"]
[null,"HVAC","EnvCtrl","HV_Tech","EMS",null,null,null,null,null,"VentFanMtr"]
[null,"HVAC","EnvCtrl","HV_Tech","Timer",null,null,null,null,null,"WallBlowIns"]
[null,"HVAC","EnvCtrl","HV_Tech","Tstat",null,null,null,null,null,"WBRetPkg"]
[null,"HVAC","EnvCtrl","HV_Tech","Tstat",null,null,null,null,null,"WinFilm"]
[null,"HVAC","EnvCtrl","LiquidCirc","TempReset",null,null,null,null,null,"WSEcono"]
[null,"HVAC","HeatCool","dxAC_equip","refrig"]
[null,"HVAC","HeatCool","dxAC_equip","refrig"]
[null,"HVAC","HeatCool","dxHP_equip"]
[null,"HVAC","HeatCool","dxHP_equip"]
[null,"HVAC","HeatCool","dxHP_equip"]
[null,"HVAC","HeatCool","dxHP_equip"]
[null,"HVAC","HeatCool","HV_AirDist","HeatRecov"]
[null,"HVAC","HeatCool","HV_AirDist","HeatRecov"]
[null,"HVAC","HeatCool","HV_Tech","DCV"]
[null,"HVAC","HeatCool","LiquidCirc","FlowTempCtrl"]
[null,"HVAC","HeatCool","Motor_Spd","ASD"]
[null,"HVAC","HtRej","HeatReject"]
[null,"HVAC","SpaceCool","Chiller"]
[null,"HVAC","SpaceCool","dxAC_equip"]
[null,"HVAC","SpaceCool","dxAC_equip"]
[null,"HVAC","SpaceCool","dxAC_equip"]
[null,"HVAC","SpaceCool","dxAC_equip"]
[null,"HVAC","SpaceCool","dxAC_equip"]
[null,"HVAC","SpaceCool","dxAC_equip"]
[null,"HVAC","SpaceCool","dxAC_equip"]
[null,"HVAC","SpaceCool","dxHP_equip"]
[null,"HVAC","SpaceCool","EvapCool_eq","ComEvap"]
[null,"HVAC","SpaceCool","EvapCool_eq","ResEvap"]
[null,"HVAC","SpaceCool","EvapCool_eq","ResEvap"]
[null,"HVAC","SpaceCool","HeatReject","WSEcono"]
[null,"HVAC","SpaceCool","HV_AirDist","AirEcono"]
[null,"HVAC","SpaceCool","HV_AirDist","AirEcono"]
[null,"HVAC","SpaceCool","HV_Tech","pkgEER"]
[null,"HVAC","SpaceCool","HV_Tech","TStat"]
[null,"HVAC","SpaceCool","HV_Tech","TStat"]
[null,"HVAC","SpaceCool","HV_Tech","TStat"]
[null,"HVAC","SpaceHeat","SpaceHtg_eq","GasFurnace"]
[null,"HVAC","SpaceHeat","SpaceHtg_eq","GasFurnace"]
[null,"HVAC","SpaceHeat","SpaceHtg_eq"]
[null,"HVAC","SpaceHeat","SteamCirc","SteamTrap"]
[null,"HVAC","SpaceHeat","WaterHtg_eq"]
[null,"HVAC","VentAIrDist","Electronics","AllEquip"]
[null,"HVAC","VentAirDist","HV_AirDist","DuctInsC"]
[null,"HVAC","VentAirDist","HV_AirDist","DuctInsul"]
[null,"HVAC","VentAirDist","HV_AirDist","DuctSysC"]
[null,"HVAC","VentAirDist","HV_AirDist","VentFanMtr"]
[null,"HVAC","VentAirDist","HV_AirDist","VentFanMtr"]
[null,"HVAC","VentAirDist","HV_AirDist","VentFanMtr"]
[null,"HVAC","VentAirDist","HV_AirDist","VentFanMtr"]
[null,"HVAC","VentAirDist","HV_AirDist","VentFanMtr"]
[null,"HVAC","VentAirDist","HV_AirDist","VentFanMtr"]
[null,"HVAC","VentAirDist","HV_AirDist","VentFanMtr"]
[null,"HVAC","VentAirDist","HV_AirDist","VentFanMtr"]
[null,"HVAC","VentAirDist","HV_AirDist","VentFanMtr"]
[null,"HVAC","VentAirDist","HV_AirDist","VentFanMtr"]
[null,"HVAC","VentAirDist","HV_AirDist","VentFanMtr"]
[null,"HVAC","VentAirDist","HV_AirDist","VentFanMtr"]
[null,"HVAC","VentAirDist","HV_AirDist","VentFanMtr"]
[null,"HVAC","VentAirDist","HV_AirDist"]
[null,"HVAC","VentAirDist","HV_AirDist"]
[null,"HVAC","VentAirDist","HV_AirDist"]
[null,"HVAC","VentAirDist","HV_AirDist"]
[null,"HVAC","VentAirDist","HV_AirDist"]
[null,"HVAC","VentAirDist","Motor_Spd","ASD"]
[null,"HVAC","VentAirDist","Motor_Spd","ASD"]
[null,"HVAC","VentAirDist","Motor_Spd","ASD"]
[null,"HVAC","VentAirDist"]
[null,"Irrigate","FarmIrrig","Irrigation"]
[null,"Irrigate","FarmIrrig","Irrigation"]
[null,"Irrigate","FarmIrrig","Irrigation"]
[null,"Irrigate","FarmIrrig","Motor_Spd","ASD"]
[null,"Lighting","Any","Ltg_Fixture","Any"]
[null,"Lighting","Controls","Ltg_Controls","LtSensor"]
[null,"Lighting","Controls","Ltg_Controls","Timer"]
[null,"Lighting","Controls","Ltg_Controls"]
[null,"Lighting","Controls","Ltg_Fixture","OccSensor"]
[null,"Lighting","Controls","Ltg_Fixture","Timer"]
[null,"Lighting","Controls","Ltg_Fixture"]
[null,"Lighting","InCommon","Ltg_Fixture","CFL_fixt"]
[null,"Lighting","InCommon","Ltg_Fixture","HID_fixt"]
[null,"Lighting","InCommon","Ltg_Fixture","LED_fixt"]
[null,"Lighting","InCommon","Ltg_Fixture","LED_fixt"]
[null,"Lighting","InCommon","Ltg_Fixture","LinFluor_fixt"]
[null,"Lighting","InCommon","Ltg_Lamp","CFLint_lamp"]
[null,"Lighting","InCommon","Ltg_Lamp","CFLint_lamp"]
[null,"Lighting","InCommon","Ltg_Lamp","CFLint_lamp"]
[null,"Lighting","InCommon","Ltg_Lamp","CFLint_lamp"]
[null,"Lighting","InCommon","Ltg_Lamp","LED_lamp"]
[null,"Lighting","InCommon","Ltg_Lamp","LED_lamp"]
[null,"Lighting","InExit","Ltg_Fixture","Exit_fixt"]
[null,"Lighting","InGen","Ltg_Fixture","CFL_fixt"]
[null,"Lighting","InGen","Ltg_Fixture","CFL_fixt"]
[null,"Lighting","InGen","Ltg_Fixture","HID_fixt"]
[null,"Lighting","InGen","Ltg_Fixture","HID_fixt"]
[null,"Lighting","InGen","Ltg_Fixture","HID_fixt"]
[null,"Lighting","InGen","Ltg_Fixture","Ind_LmpBlst"]
[null,"Lighting","InGen","Ltg_Fixture","LED_fixt"]
[null,"Lighting","InGen","Ltg_Fixture","LED_fixt"]
[null,"Lighting","InGen","Ltg_Fixture","LED_fixt"]
[null,"Lighting","InGen","Ltg_Fixture","LinFluor_fixt"]
[null,"Lighting","InGen","Ltg_Fixture","LinFluor_fixt"]
[null,"Lighting","InGen","Ltg_Fixture","LinFluor_fixt"]
[null,"Lighting","InGen","Ltg_Fixture","LinFluor_fixt"]
[null,"Lighting","InGen","Ltg_Fixture","LinFluor_fixt"]
[null,"Lighting","InGen","Ltg_Fixture","LinFluor_fixt"]
[null,"Lighting","InGen","Ltg_Lamp","CFLint_lamp"]
[null,"Lighting","InGen","Ltg_Lamp","CFLint_lamp"]
[null,"Lighting","InGen","Ltg_Lamp","CFLint_lamp"]
[null,"Lighting","InGen","Ltg_Lamp","CFLint_lamp"]
[null,"Lighting","InGen","Ltg_Lamp","CFLint_lamp"]
[null,"Lighting","InGen","Ltg_Lamp","CFLint_lamp"]
[null,"Lighting","InGen","Ltg_Lamp","CFLint_lamp"]
[null,"Lighting","InGen","Ltg_Lamp","CFLint_lamp"]
[null,"Lighting","InGen","Ltg_Lamp","CFLint_lamp"]
[null,"Lighting","InGen","Ltg_Lamp","CFLint_lamp"]
[null,"Lighting","InGen","Ltg_Lamp","CFLint_lamp"]
[null,"Lighting","InGen","Ltg_Lamp","CFLint_lamp"]
[null,"Lighting","InGen","Ltg_Lamp","CFLint_lamp"]
[null,"Lighting","InGen","Ltg_Lamp","CFLint_lamp"]
[null,"Lighting","InGen","Ltg_Lamp","Incan_lamp"]
[null,"Lighting","InGen","Ltg_Lamp","Incan_lamp"]
[null,"Lighting","InGen","Ltg_Lamp","LED_lamp"]
[null,"Lighting","InGen","Ltg_Lamp","LED_lamp"]
[null,"Lighting","InGen","Ltg_Lamp","LED_lamp"]
[null,"Lighting","InGen","Ltg_Lamp","LED_lamp"]
[null,"Lighting","InGen","Ltg_Lamp","LED_lamp"]
[null,"Lighting","InTask","Ltg_Plugin","PlugIn_fixt"]
[null,"Lighting","OutCommon","Ltg_Fixture","CFL_fixt"]
[null,"Lighting","OutCommon","Ltg_Fixture","HID_fixt"]
[null,"Lighting","OutCommon","Ltg_Fixture","LED_fixt"]
[null,"Lighting","OutCommon","Ltg_Fixture","LinFluor_fixt"]
[null,"Lighting","OutCommon","Ltg_Lamp","CFLint_lamp"]
[null,"Lighting","OutCommon","Ltg_Lamp","CFLint_lamp"]
[null,"Lighting","OutCommon","Ltg_Lamp","CFLint_lamp"]
[null,"Lighting","OutCommon","Ltg_Lamp","CFLint_lamp"]
[null,"Lighting","OutCommon","Ltg_Lamp","Incan_lamp"]
[null,"Lighting","OutCommon","Ltg_Lamp","LED_lamp"]
[null,"Lighting","OutCommon","Ltg_Lamp","LED_lamp"]
[null,"Lighting","OutDuskDawn","Ltg_Fixture","CFL_fixt"]
[null,"Lighting","OutDuskDawn","Ltg_Fixture","LinFluor_fixt"]
[null,"Lighting","OutDuskDawn","Ltg_Lamp","CFLint_lamp"]
[null,"Lighting","OutDuskDawn","Ltg_Lamp","LED_lamp"]
[null,"Lighting","OutGen","Ltg_Fixture","Any"]
[null,"Lighting","OutGen","Ltg_Fixture","CFL_fixt"]
[null,"Lighting","OutGen","Ltg_Fixture","HID_fixt"]
[null,"Lighting","OutGen","Ltg_Fixture","HID_fixt"]
[null,"Lighting","OutGen","Ltg_Fixture","HID_fixt"]
[null,"Lighting","OutGen","Ltg_Fixture","LED_fixt"]
[null,"Lighting","OutGen","Ltg_Fixture","LED_fixt"]
[null,"Lighting","OutGen","Ltg_Fixture","LED_fixt"]
[null,"Lighting","OutGen","Ltg_Fixture","LED_fixt"]
[null,"Lighting","OutGen","Ltg_Fixture","LinFluor_fixt"]
[null,"Lighting","OutGen","Ltg_Fixture","LinFluor_fixt"]
[null,"Lighting","OutGen","Ltg_Fixture","LinFluor_fixt"]
[null,"Lighting","OutGen","Ltg_Fixture","LinFluor_fixt"]
[null,"Lighting","OutGen","Ltg_Lamp","CFLint_lamp"]
[null,"Lighting","OutGen","Ltg_Lamp","Incan_lamp"]
[null,"Lighting","OutGen","Ltg_Lamp","Incan_lamp"]
[null,"Lighting","OutGen","Ltg_Lamp","LED_lamp"]
[null,"Lighting","OutGen","Ltg_Lamp","LED_lamp"]
[null,"Lighting","OutGen","Ltg_Lamp","LED_lamp"]
[null,"Lighting","OutGen","Ltg_Lamp","LED_lamp"]
[null,"Lighting","OutGen","Ltg_ScrewIn","CFL_lamp"]
[null,"Lighting","OutGen","Ltg_ScrewIn","CFL_lamp"]
[null,"Lighting","OutGen","Ltg_ScrewIn","CFL_lamp"]
[null,"Lighting","OutGen","Ltg_ScrewIn","CFL_lamp"]
[null,"Lighting","OutGen","Ltg_ScrewIn","CFL_lamp"]
[null,"Lighting","OutGen","Ltg_ScrewIn","CFL_lamp"]
[null,"Lighting","OutGen","Ltg_ScrewIn","CFL_lamp"]
[null,"Lighting","OutSign","Ltg_Fixture","LED_fixt"]
[null,"Lighting","RefDisplay","Ref_Storage","RefrigLtg"]
[null,"Lighting","RefDisplay","Ref_Storage","RefrigLtg"]
[null,"Lighting","Refrig","Ltg_Fixture","LED_fixt"]
[null,"Lighting","Seasonal","Ltg_Plugin","LtString"]
[null,"Lighting",null,"Ltg_Lamp","LED_lamp"]
[null,"Lighting",null,"Ltg_Lamp","LED_lamp"]
[null,"ProcDist","Pumping","Motor_Spd","ASD"]
[null,"ProcDist","Pumping","Motor_Spd","ASD"]
[null,"ProcDist","Pumping","PumpSystem","CentBstr"]
[null,"ProcDist","Pumping","PumpSystem","SubBstr"]
[null,"ProcDist","Pumping","PumpSystem","SubWell"]
[null,"ProcDist","Pumping","PumpSystem","TurbBstr"]
[null,"ProcDist","Pumping","PumpSystem","TurbWell"]
[null,"Process",null,"Motor_Spd","ASD"]
[null,"ProcHeat","EvapSepDehyd","SpaceHtg_eq"]
[null,"ProcHeat","SteamDist","SteamCirc","SteamTrap"]
[null,"ProcHeat","Storage",null,"TankIns"]
[null,"ProcHeat",null,"LiquidCirc"]
[null,"ProcHeat",null,"SteamHtg_eq","Boiler_Et"]
[null,"ProcHeat",null,"WaterHtg_eq","Boiler_Et"]
[null,"ProcRefrig","ProdChill","Chiller","TankIns"]
[null,"ProcRefrig","ProdChill"]
[null,"ProcRefrig","ProdStore","Chiller","RefWareCool"]
[null,"ProcRefrig","ProdStore","Chiller","RefWareCool"]
[null,"ProcRefrig","ProdStore","Chiller","RefWareCool"]
[null,"ProcRefrig","ProdStore","Chiller","RefWareCool"]
[null,"ProcRefrig","ProdStore","Chiller","RefWareCool"]
[null,"ProcRefrig","ProdStore","Chiller","RefWareCool"]
[null,"ProcRefrig","ProdStore","Chiller","RefWareCool"]
[null,"Recreate","Pool","LiquidCirc"]
[null,"Recreate","Pool","PoolSpa_eq","PoolCover"]
[null,"Recreate","Pool","WaterHtg_eq"]
[null,"Service","Diagnostic"]
[null,"Service","Diagnostic"]
[null,"Service","Diagnostic"]
[null,"Service","Diagnostic"]
[null,"Service","Maintenance","HeatReject"]
[null,"Service","Maintenance","HeatReject"]
[null,"Service","Maintenance"]
[null,"Service","Maintenance"]
[null,"Service","RetroComm","HV_Tech","TStat"]
[null,"Service","RetroComm","WhlBldg","multiTech"]
[null,"Service","RetroComm"]
[null,"Service ","RetroComm"]
[null,"SHW","Distribute","LiquidCirc","PipeIns"]
[null,"SHW","Distribute","LiquidCirc","PipeIns"]
[null,"SHW","Distribute","LiquidCirc","PipeIns"]
[null,"SHW","Distribute","LiquidCirc","PipeIns"]
[null,"SHW","Distribute","LiquidCirc","Timer"]
[null,"SHW","Distribute","WaterFixt","FaucetAer"]
[null,"SHW","Distribute","WaterFixt","ShowerHd"]
[null,"SHW","Heating","SHW_Tech","EMS"]
[null,"SHW","Heating","WaterHtg_eq","HP_EF"]
[null,"SHW","Heating","WaterHtg_eq","TankIns"]
[null,"SHW","Heating","WaterHtg_eq","TankIns"]
[null,"SHW","Heating","WaterHtg_eq"]
[null,"SHW","Heating","WaterHtg_eq"]
[null,"SHW","Heating","WaterHtg_eq"]
[null,"SHW","Heating","WaterHtg_eq"]
[null,"SHW","Heating","WaterHtg_eq"]
[null,"SHW","Heating","WaterHtg_eq"]
[null,"SHW","PointOfUse","WaterFixt"]
[null,"SHW",null,"WaterHtg_eq"]
[null,"WhlBldg","WBUpgrade","WhlBldg","WBRetPkg"]
[null,"WhlBldg","WBUpgrade","WhlBldg","WBRetPkg"]
[null,"WhlBldg","WBUpgrade","WhlBldg","WBRetPkg"]
[null,"WhlBldg","WBUpgrade","WhlBldg","WBRetPkg"]
[null,"WhlBldg","WBUpgrade","WhlBldg","WBRetPkg"]
[null,"WhlBldg","WBUpgrade","WhlBldg","WBRetPkg"]
[null,"WhlBldg","WBUpgrade","WhlBldg","WBRetPkg"]
[null,"WhlBldg","WBUpgrade","WhlBldg","WBRetPkg"]
[null,"WhlBldg","WBUpgrade","WhlBldg","WBRetPkg"]
[null,"WhlBldg","WBUpgrade","WhlBldg","WBRetPkg"]
[null,"WhlBldg","WBUpgrade","WhlBldg","WBRetPkg"]
[null,"WhlBldg","WBUpgrade","WhlBldg","WBRetPkg"]
[null,"WhlBldg","WBUpgrade","WhlBldg","WBRetPkg"]
[null,"WhlBldg","WBUpgrade","WhlBldg","WBRetPkg"]
[null,"WhlBldg","WBUpgrade","WhlBldg","WBRetPkg"]
[null,"WhlBldg","WBUpgrade","WhlBldg","WBRetPkg"]
[null,"WhlBldg","WBUpgrade","WhlBldg","WBRetPkg"]
[null,"WhlBldg","WBUpgrade","WhlBldg","WBRetPkg"]
[null,"WhlBldg","WBUpgrade","WhlBldg","WBRetPkg"]
[null,"WhlBldg","WBUpgrade","WhlBldg","WBRetPkg"]
[null,"WhlBldg","WBUpgrade","WhlBldg","WBRetPkg"]
[null,"WhlBldg","WBUpgrade","WhlBldg","WBRetPkg"]
[null,"WhlBldg","WBUpgrade","WhlBldg","WBRetPkg"]
[null,"WhlBldg","WBUpgrade","WhlBldg","WBRetPkg"]
[null,"WhlBldg","WBUpgrade","WhlBldg","WBRetPkg"]
[null,"WhlBldg","WBUpgrade","WhlBldg","WBRetPkg"]
[null,"WhlBldg","WBUpgrade","WhlBldg","WBRetPkg"]
[null,"WhlBldg","WBUpgrade","WhlBldg","WBRetPkg"]
[null,"WhlBldg","WBUpgrade","WhlBldg","WBRetPkg"]
[null,"WhlBldg","WBUpgrade","WhlBldg","WBRetPkg"]
[null,"WhlBldg","WBUpgrade","WhlBldg","WBRetPkg"]
[null,"WhlBldg","WBUpgrade","WhlBldg","WBRetPkg"]
[null,"WhlBldg","WBUpgrade","WhlBldg","WBRetPkg"]
[null,"WhlBldg","WBUpgrade","WhlBldg","WBRetPkg"]
[null,"WhlBldg","WBUpgrade","WhlBldg","WBRetPkg"]
[null,"WhlBldg","WBUpgrade","WhlBldg","WBRetPkg"]
[null,"WhlBldg","WBUpgrade","WhlBldg","WBRetPkg"]
[null,"WhlBldg","WBUpgrade","WhlBldg","WBRetPkg"]
[null,"WhlBldg","WBUpgrade","WhlBldg","WBRetPkg"]
[null,"WhlBldg","WBUpgrade","WhlBldg","WBRetPkg"]
[null,"WhlBldg","WBUpgrade","WhlBldg","WBRetPkg"]
[null,"WhlBldg","WBUpgrade","WhlBldg","WBRetPkg"]
[null,"WhlBldg","WBUpgrade","WhlBldg","WBRetPkg"]
[null,"WhlBldg","WBUpgrade","WhlBldg","WBRetPkg"]
[null,"WhlBldg","WBUpgrade","WhlBldg","WBRetPkg"]
[null,"WhlBldg","WBUpgrade","WhlBldg","WBRetPkg"]
[null,"WhlBldg","WBUpgrade","WhlBldg","WBRetPkg"]
[null,"WhlBldg","WBUpgrade","WhlBldg","WBRetPkg"]
[null,"WhlBldg","WBUpgrade","WhlBldg","WBRetPkg"]
[null,"WhlBldg","WBUpgrade","WhlBldg","WBRetPkg"]
[null,"WhlBldg","WBUpgrade","WhlBldg","WBRetPkg"]
[null,"WhlBldg","WBUpgrade","WhlBldg","WBRetPkg"]
[null,"WhlBldg","WBUpgrade","WhlBldg","WBRetPkg"]
[null,"WhlBldg","WBUpgrade","WhlBldg","WBRetPkg"]
[null,"WhlBldg","WBUpgrade","WhlBldg","WBRetPkg"]
[null,"WhlBldg","WBUpgrade","WhlBldg","WBRetPkg"]
[null,"WhlBldg","WBUpgrade","WhlBldg","WBRetPkg"]
[null,"WhlBldg","WBUpgrade","WhlBldg","WBRetPkg"]
[null,"WhlBldg","WBUpgrade","WhlBldg","WBRetPkg"]
[null,"WhlBldg","WBUpgrade","WhlBldg","WBRetPkg"]
[null,"WhlBldg","WBUpgrade","WhlBldg","WBRetPkg"]
[null,"WhlBldg","WBUpgrade","WhlBldg","WBRetPkg"]
[null,"WhlBldg","WBUpgrade","WhlBldg","WBRetPkg"]
[null,"WhlBldg","WBUpgrade","WhlBldg","WBRetPkg"]
[null,"WhlBldg","WBUpgrade","WhlBldg","WBRetPkg"]
[null,"WhlBldg","WBUpgrade","WhlBldg","WBRetPkg"]
[null,"WhlBldg","WBUpgrade","WhlBldg","WBRetPkg"]
[null,"WhlBldg","WBUpgrade","WhlBldg","WBRetPkg"]
[null,"WhlBldg","WBUpgrade","WhlBldg","WBRetPkg"]
[null,"WhlBldg","WBUpgrade","WhlBldg","WBRetPkg"]
[null,"WhlBldg","WBUpgrade","WhlBldg","WBRetPkg"]
[null,"WhlBldg","WBUpgrade","WhlBldg","WBRetPkg"]
[null,"WhlBldg","WBUpgrade","WhlBldg","WBRetPkg"]
[null,"WhlBldg","WBUpgrade","WhlBldg","WBRetPkg"]
[null,"WhlBldg","WBUpgrade","WhlBldg","WBRetPkg"]
[null,"WhlBldg","WBUpgrade","WhlBldg","WBRetPkg"]
[null,"WhlBldg","WBUpgrade","WhlBldg","WBRetPkg"]
[null,"WhlBldg","WBUpgrade","WhlBldg","WBRetPkg"]
[null,"WhlBldg","WBUpgrade","WhlBldg","WBRetPkg"]
[null,"WhlBldg","WBUpgrade","WhlBldg","WBRetPkg"]
[null,"WhlBldg","WBUpgrade","WhlBldg","WBRetPkg"]
[null,"WhlBldg","WBUpgrade","WhlBldg","WBRetPkg"]
[null,"WhlBldg","WBUpgrade","WhlBldg","WBRetPkg"]
[null,"WhlBldg","WBUpgrade","WhlBldg","WBRetPkg"]
[null,"WhlBldg","WBUpgrade","WhlBldg","WBRetPkg"]
[null,"WhlBldg","WBUpgrade","WhlBldg","WBRetPkg"]
[null,"WhlBldg","WBUpgrade","WhlBldg","WBRetPkg"]
[null,"WhlBldg","WBUpgrade","WhlBldg","WBRetPkg"]
[null,"WhlBldg","WBUpgrade","WhlBldg","WBRetPkg"]
[null,"WhlBldg","WBUpgrade","WhlBldg","WBRetPkg"]
[null,"WhlBldg","WBUpgrade","WhlBldg","WBRetPkg"]
[null,"WhlBldg","WBUpgrade","WhlBldg","WBRetPkg"]
[null,"WhlBldg","WBUpgrade","WhlBldg","WBRetPkg"]
[null,"WhlBldg","WBUpgrade","WhlBldg","WBRetPkg"]
[null,"WhlBldg","WBUpgrade","WhlBldg","WBRetPkg"]
[null,"WhlBldg","WBUpgrade","WhlBldg","WBRetPkg"]
[null,"WhlBldg","WBUpgrade","WhlBldg","WBRetPkg"]
[null,null,null,"Electronics"]
[null,null,null,"LiquidCirc","PumpMtr"]
[null,null,null,"Motor"]